Workbook

Sheet Eingabe
B1: Tel. +49 (0)711 8201-0 Fax: -720 | J1: eMail: | K1: info@ltg.de
B2: =IF(Eingabe!$M$6="Deutsch",Legende!$B11,IF(Eingabe!$M$6="English",Legende!$C11,FALSE)) -> LTG Luftverteil-Systeme - Druckregelung mit Fremdenergie - DRE(active), DRF(active) | L2: LTG Aktiengesellschaft
M4: Deutsch
I5: =IF(Eingabe!$M$6="Deutsch","Sprache",IF(Eingabe!$M$6="English","Language:","")) -> Sprache | M5: English
I6: =IF(Eingabe!$M$6="Deutsch",Legende!$B12,IF(Eingabe!$M$6="English",Legende!$C12,FALSE)) -> Datum: | J6: =TODAY() -> 2026-06-23 | M6: Deutsch
I7: =IF(Eingabe!$M$6="Deutsch",Legende!$B13,IF(Eingabe!$M$6="English",Legende!$C13,FALSE)) -> Bearbeiter:
I8: =IF(Eingabe!$M$6="Deutsch",Legende!$B14,IF(Eingabe!$M$6="English",Legende!$C14,FALSE)) -> Projekt:
I9: =IF(Eingabe!$M$6="Deutsch",Legende!$B15,IF(Eingabe!$M$6="English",Legende!$C15,FALSE)) -> Variante:
C10: DRE / DREactive | E10: DRF / DRFactive
C12: =IF(Eingabe!$M$6="Deutsch",Legende!$B16,IF(Eingabe!$M$6="English",Legende!$C16,FALSE)) -> Auslegungspunkt Vmax | H12: =IF(Eingabe!$M$6="Deutsch",Legende!$B34,IF(Eingabe!$M$6="English",Legende!$C34,FALSE)) -> Auslegung:
C13: =IF(Eingabe!$M$6="Deutsch",Legende!$B17,IF(Eingabe!$M$6="English",Legende!$C17,FALSE)) -> Volumenstrom | D13: =IF(Eingabe!$M$6="Deutsch",Legende!$B18,IF(Eingabe!$M$6="English",Legende!$C18,FALSE)) -> Druckverlust | H13: =IF(Eingabe!$M$6="Deutsch",Legende!$B35,IF(Eingabe!$M$6="English",Legende!$C35,FALSE)) -> ← Auslegung starten! | I13: =IF(Eingabe!$M$6="Deutsch",Legende!$B35,IF(Eingabe!$M$6="English",Legende!$C35,FALSE)) -> ← Auslegung starten! | J13: =IF(Eingabe!$M$6="Deutsch",Legende!$B35,IF(Eingabe!$M$6="English",Legende!$C35,FALSE)) -> ← Auslegung starten! | K13: =IF(Eingabe!$M$6="Deutsch",Legende!$B35,IF(Eingabe!$M$6="English",Legende!$C35,FALSE)) -> ← Auslegung starten!
C14: Vmax | D14: =IF(Eingabe!$M$6="Deutsch",Legende!$B19,IF(Eingabe!$M$6="English",Legende!$C19,FALSE)) -> Δp bei VMax | H14: =IF(Eingabe!$M$6="Deutsch",Legende!$B36,IF(Eingabe!$M$6="English",Legende!$C36,FALSE)) -> Auslegungskriterien: | I14: =IF(Eingabe!$M$6="Deutsch",Legende!$B36,IF(Eingabe!$M$6="English",Legende!$C36,FALSE)) -> Auslegungskriterien: | J14: =IF(Eingabe!$M$6="Deutsch",Legende!$B36,IF(Eingabe!$M$6="English",Legende!$C36,FALSE)) -> Auslegungskriterien: | K14: =IF(Eingabe!$M$6="Deutsch",Legende!$B36,IF(Eingabe!$M$6="English",Legende!$C36,FALSE)) -> Auslegungskriterien:
C15: 1000 | D15: 150 | H15: =IF(Eingabe!$M$6="Deutsch",Legende!$B36,IF(Eingabe!$M$6="English",Legende!$C36,FALSE)) -> Auslegungskriterien:
H16: =IF(Eingabe!$M$6="Deutsch",Legende!$B37,IF(Eingabe!$M$6="English",Legende!$C37,FALSE)) -> Maximal zulässige, lichte Höhe bzw. Ø: | K16: 400
C17: ="("&ROUNDUP(cMin/10*272,0)&"-"&ROUNDUP(cMax/10*17280,0)&"m³/h)" -> (28-17280m³/h) | D17: (50-600 Pa)
C18: =IF(AND(SD=TRUE,Eingabe!$M$6="English"),Legende!$C$22,IF(AND(SD=TRUE,Eingabe!$M$6="Deutsch"),Legende!$B$22,IF(Eingabe!$M$6="English",Legende!$C$23,Legende!$B$23))) -> des Druckreglers. | H18: =IF(Eingabe!$M$6="Deutsch",Legende!$B38,IF(Eingabe!$M$6="English",Legende!$C38,FALSE)) -> Maximal zulässiges Strömungsrauschen: | K18: 80
C20: =IF(Eingabe!$M$6="Deutsch",Legende!$B24,IF(Eingabe!$M$6="English",Legende!$C24,FALSE)) -> Akustische Maßnahmen: | H20: =IF(Eingabe!$M$6="Deutsch",Legende!$B39,IF(Eingabe!$M$6="English",Legende!$C39,FALSE)) -> Geschwindigkeitsbereich für Auslegungspunkt VMax:
J21: =IF(Eingabe!$M$6="Deutsch",Legende!$B164,IF(Eingabe!$M$6="English",Legende!$C164,FALSE)) -> von: | K21: 1
C22: =IF(Eingabe!$M$6="Deutsch",Legende!$B25,IF(Eingabe!$M$6="English",Legende!$C25,FALSE)) -> Ausführung mit Dämmschale: | M22: -
C23: =IF(Eingabe!$M$6="Deutsch",Legende!$B26,IF(Eingabe!$M$6="English",Legende!$C26,FALSE)) -> - für DRE / DREactive: Dämmdicke 50 mm | J23: =IF(Eingabe!$M$6="Deutsch",Legende!$B165,IF(Eingabe!$M$6="English",Legende!$C165,FALSE)) -> bis: | K23: 10 | M23: Master
C24: =IF(Eingabe!$M$6="Deutsch",Legende!$B27,IF(Eingabe!$M$6="English",Legende!$C27,FALSE)) -> - für DRF / DRFactive: Dämmdicke 40 mm | M24: Slave
H25: =IF(Eingabe!$M$6="Deutsch",Legende!$B40,IF(Eingabe!$M$6="English",Legende!$C40,FALSE)) -> Projekt-Druckreglerliste
C26: =IF(Eingabe!$M$6="Deutsch",Legende!$B28,IF(Eingabe!$M$6="English",Legende!$C28,FALSE)) -> Ausführung mit Schalldämpfer:
C27: =IF(Eingabe!$M$6="Deutsch",Legende!$B29,IF(Eingabe!$M$6="English",Legende!$C29,FALSE)) -> - für DRE / DREactive:
C28: =IF(Eingabe!$M$6="Deutsch",Legende!$B30,IF(Eingabe!$M$6="English",Legende!$C30,FALSE)) -> Telefonieschaldämpfer Typ SDE-AO
C29: =IF(Eingabe!$M$6="Deutsch",Legende!$B31,IF(Eingabe!$M$6="English",Legende!$C31,FALSE)) -> Rohrschalldämpfer Typ SDE-SO
C30: =IF(Eingabe!$M$6="Deutsch",Legende!$B32,IF(Eingabe!$M$6="English",Legende!$C32,FALSE)) -> - für DRF / DRFactive:
C31: =IF(Eingabe!$M$6="Deutsch",Legende!$B33,IF(Eingabe!$M$6="English",Legende!$C33,FALSE)) -> Schalldämpfer Typ SDF
C32: =IF(AND(SD=TRUE,DS=TRUE,Eingabe!$M$6="Deutsch"),Legende!$B$175,IF(AND(SD=TRUE,DS=TRUE,Eingabe!$M$6="English"),Legende!$C$175,"")) -> 
B37: © LTG Aktiengesellschaft - 13-05-2020
B38: =IF(Eingabe!$M$6="Deutsch",Legende!$B47,IF(Eingabe!$M$6="English",Legende!$C47,FALSE)) -> Angaben zu Toleranzen sowie weitere Spezifikationen sind der aktuellen Technischen Dokumentation zu entnehmen. Diese finden Sie auf www.LTG.de.
B39: =IF(Eingabe!$M$6="Deutsch",Legende!$B48,IF(Eingabe!$M$6="English",Legende!$C48,FALSE)) -> Eine Fehlerfreiheit des Programms kann nicht zugesichert werden. Im Zweifel gelten die technischen Daten der aktuellen Technischen Dokumentation.
B40: =IF(Eingabe!$M$6="Deutsch",Legende!$B49,IF(Eingabe!$M$6="English",Legende!$C49,FALSE)) -> Aus Programmierfehlern entstandener Schaden geht nicht zu Lasten der LTG. Technische Änderungen im Rahmen der Weiterentwicklung vorbehalten.

Sheet Liste
A1: Tel. +49 (0)711 8201-180 Fax: -720 eMail: | D1: info@LTG-AG.de
A2: =IF(Eingabe!$M$6="Deutsch",Legende!$B106,IF(Eingabe!$M$6="English",Legende!$C106,FALSE)) -> LTG Luftverteil-Systeme | AM2: LTG Aktiengesellschaft
AM4: =IF(Eingabe!$M$6="Deutsch",Legende!$B123,IF(Eingabe!$M$6="English",Legende!$C123,FALSE)) -> Eine Fehlerfreiheit der Angaben kann nicht zugesichert werden.
B5: =IF(Eingabe!$M$6="Deutsch",Legende!$B12,IF(Eingabe!$M$6="English",Legende!$C12,FALSE)) -> Datum: | C5: 2020-05-29 | AM5: =IF(Eingabe!$M$6="Deutsch",Legende!$B124,IF(Eingabe!$M$6="English",Legende!$C124,FALSE)) -> Im Zweifel gelten die technischen Daten der aktuellen Technischen Dokumentation.
B6: =IF(Eingabe!$M$6="Deutsch",Legende!$B13,IF(Eingabe!$M$6="English",Legende!$C13,FALSE)) -> Bearbeiter: | AM6: =IF(Eingabe!$M$6="Deutsch",Legende!$B125,IF(Eingabe!$M$6="English",Legende!$C125,FALSE)) -> Technische Änderungen im Rahmen der Weiterentwicklung vorbehalten.
B7: =IF(Eingabe!$M$6="Deutsch",Legende!$B14,IF(Eingabe!$M$6="English",Legende!$C14,FALSE)) -> Projekt: | AM7: =IF(Eingabe!$M$6="Deutsch",Legende!$B126,IF(Eingabe!$M$6="English",Legende!$C126,FALSE)) -> Bei Auslegung mit Schalldämpfer und Dämmschale ist zu berücksichtigen, dass diese ungedämmt sind.
B8: =IF(Eingabe!$M$6="Deutsch",Legende!$B15,IF(Eingabe!$M$6="English",Legende!$C15,FALSE)) -> Variante: | AM8: =IF(Eingabe!$M$6="Deutsch",Legende!$B200,IF(Eingabe!$M$6="English",Legende!$C200,FALSE)) -> Berechnungsgrundlage der Schalldruckpegel gemäß der aktuellen Technischen Dokumentation
A10: =IF(Eingabe!$M$6="Deutsch",Legende!$B107,IF(Eingabe!$M$6="English",Legende!$C107,FALSE)) -> Position | B10: =IF(Eingabe!$M$6="Deutsch",Legende!$B108,IF(Eingabe!$M$6="English",Legende!$C108,FALSE)) -> Kunden- bezeichnung | C10: =IF(Eingabe!$M$6="Deutsch",Legende!$B109,IF(Eingabe!$M$6="English",Legende!$C109,FALSE)) -> Kunden- bezeichnung | D10: =IF(Eingabe!$M$6="Deutsch",Legende!$B110,IF(Eingabe!$M$6="English",Legende!$C110,FALSE)) -> Typ | E10: =IF(Eingabe!$M$6="Deutsch",Legende!$B111,IF(Eingabe!$M$6="English",Legende!$C111,FALSE)) -> Baugröße | F10: =IF(Eingabe!$M$6="Deutsch",Legende!$B112,IF(Eingabe!$M$6="English",Legende!$C112,FALSE)) -> Ausführung | G10: =IF(Eingabe!$M$6="Deutsch",Legende!$B113,IF(Eingabe!$M$6="English",Legende!$C113,FALSE)) -> Dämmschale | H10: =IF(Eingabe!$M$6="Deutsch",Legende!$B190,IF(Eingabe!$M$6="English",Legende!$C190,FALSE)) -> Anschluss | I10: =IF(Eingabe!$M$6="Deutsch",Legende!$B187,IF(Eingabe!$M$6="English",Legende!$C187,FALSE)) -> Gehäuseleckage | J10: =IF(Eingabe!$M$6="Deutsch",Legende!$B114,IF(Eingabe!$M$6="English",Legende!$C114,FALSE)) -> elektronische Regelungs- komponente | K10: Pnenn | L10: Pmax | M10: Pmin | N10: Vmax | O10: =IF(Eingabe!$M$6="Deutsch",Legende!$B118,IF(Eingabe!$M$6="English",Legende!$C118,FALSE)) -> c bei Vmax | P10: =IF(Eingabe!$M$6="Deutsch",Legende!$B119,IF(Eingabe!$M$6="English",Legende!$C119,FALSE)) -> DpA bei Vmax | Q10: =IF(Eingabe!$M$6="Deutsch",Legende!$B81,IF(Eingabe!$M$6="English",Legende!$C81,FALSE)) -> Stückzahl | R10: =IF(Eingabe!$M$6="Deutsch",Legende!$B127,IF(Eingabe!$M$6="English",Legende!$C127,FALSE)) -> Schallleistung und Schalldruck - Durchstrahlung - bei VMax und DpA (Toleranzbereich +/- 3 dB) | AC10: =IF(Eingabe!$M$6="Deutsch",Legende!$B128,IF(Eingabe!$M$6="English",Legende!$C128,FALSE)) -> Schallleistung und Schalldruck - Abstrahlung - bei VMax und DpA (Toleranzbereich +/- 3 dB)
R11: =IF(Eingabe!$M$6="Deutsch",Legende!$B129,IF(Eingabe!$M$6="English",Legende!$C129,FALSE)) -> mit Schalldämpfer | S11: 63 Hz | T11: 125 Hz | U11: 250 Hz | V11: 500 Hz | W11: 1 kHz | X11: 2 kHz | Y11: 4 kHz | Z11: 8 kHz | AA11: SLWA | AB11: SLPA | AC11: mit Dämmschale | AD11: 63 Hz | AE11: 125 Hz | AF11: 250 Hz | AG11: 500 Hz | AH11: 1 kHz | AI11: 2 kHz | AJ11: 4 kHz | AK11: 8 kHz | AL11: SLWA | AM11: SLPA | AN11: Numme rierung
A12: =A11+1 -> 1 | AN12: 1
A13: 2 | AN13: 2
A14: 3 | AN14: 3
A15: 4 | AN15: 4
A16: 5 | AN16: 5
A17: 6 | AN17: 6
A18: 7 | AN18: 7
A19: 8 | AN19: 8
A20: 9 | AN20: 9
A21: 10 | AN21: 10
A22: 11 | AN22: 11
A23: 12 | AN23: 12
A24: 13 | AN24: 13
A25: 14 | AN25: 14
A26: 15 | AN26: 15
A27: 16 | AN27: 16
A28: 17 | AN28: 17
A29: 18 | AN29: 18 | CA29: 25.04559586
A30: 19 | AN30: 19
A31: 20 | AN31: 20
A32: 21 | AN32: 21 | BQ32: 47.52618094
A33: 22 | AN33: 22
A34: 23 | AN34: 23
A35: 24 | AN35: 24
A36: 25 | AN36: 25
A37: 26 | AN37: 26
A38: 27 | AN38: 27
A39: 28 | AN39: 28
A40: 29 | AN40: 29
A41: 30 | AN41: 30
A42: 31 | AN42: 31
A43: 32 | AN43: 32
A44: 33 | AN44: 33
A45: 34 | AN45: 34
A46: 35 | AN46: 35
A47: 36 | AN47: 36
A48: 37 | AN48: 37
A49: 38 | AN49: 38
A50: 39 | AN50: 39
A51: 40 | AN51: 40
A52: 41 | AN52: 41
A53: 42 | AN53: 42
A54: 43 | AN54: 43
A55: 44 | AN55: 44
A56: 45 | AN56: 45
A57: 46 | AN57: 46
A58: 47 | AN58: 47
A59: 48 | AN59: 48
A60: 49 | AN60: 49
A61: 50 | AN61: 50
A62: 51 | AN62: 51
A63: 52 | AN63: 52
A64: 53 | AN64: 53
A65: 54 | AN65: 54
A66: 55 | AN66: 55
A67: 56 | AN67: 56
A68: 57 | AN68: 57
A69: 58 | AN69: 58
A70: 59 | AN70: 59
A71: 60 | AN71: 60
A72: 61 | AN72: 61
A73: 62 | AN73: 62
A74: 63 | AN74: 63
A75: 64 | AN75: 64
A76: =A75+1 -> 65 | AN76: 65
A77: 66 | AN77: 66
A78: 67 | AN78: 67
A79: 68 | AN79: 68
A80: 69 | AN80: 69
A81: 70 | AN81: 70
A82: 71 | AN82: 71
A83: 72 | AN83: 72
A84: 73 | AN84: 73
A85: 74 | AN85: 74
A86: 75 | AN86: 75
A87: 76 | AN87: 76
A88: 77 | AN88: 77
A89: 78 | AN89: 78
A90: 79 | AN90: 79
A91: 80 | AN91: 80
A92: 81 | AN92: 81
A93: 82 | AN93: 82
A94: 83 | AN94: 83
A95: 84 | AN95: 84
A96: 85 | AN96: 85
A97: 86 | AN97: 86
A98: 87 | AN98: 87
A99: 88 | AN99: 88
A100: 89 | AN100: 89
A101: 90 | AN101: 90
A102: 91 | AN102: 91
A103: 92 | AN103: 92
A104: 93 | AN104: 93
A105: 94 | AN105: 94
A106: 95 | AN106: 95
A107: 96 | AN107: 96
A108: 97 | AN108: 97
A109: 98 | AN109: 98
A110: 99 | AN110: 99
A111: 100 | AN111: 100
A112: 101 | AN112: 101
A113: 102 | AN113: 102
A114: 103 | AN114: 103
A115: 104 | AN115: 104
A116: 105 | AN116: 105
A117: 106 | AN117: 106
A118: 107 | AN118: 107
A119: 108 | AN119: 108
A120: 109 | AN120: 109
A121: 110 | AN121: 110
A122: 111 | AN122: 111
A123: 112 | AN123: 112
A124: 113 | AN124: 113
A125: 114 | AN125: 114
A126: 115 | AN126: 115
A127: 116 | AN127: 116
A128: 117 | AN128: 117
A129: 118 | AN129: 118
A130: 119 | AN130: 119
A131: 120 | AN131: 120
A132: 121 | AN132: 121
A133: 122 | AN133: 122
A134: 123 | AN134: 123
A135: 124 | AN135: 124
A136: 125 | AN136: 125
A137: 126 | AN137: 126
A138: 127 | AN138: 127
A139: 128 | AN139: 128
A140: =A139+1 -> 129 | AN140: 129
A141: 130 | AN141: 130
A142: 131 | AN142: 131
A143: 132 | AN143: 132
A144: 133 | AN144: 133
A145: 134 | AN145: 134
A146: 135 | AN146: 135
A147: 136 | AN147: 136
A148: 137 | AN148: 137
A149: 138 | AN149: 138
A150: 139 | AN150: 139
A151: 140 | AN151: 140
A152: 141 | AN152: 141
A153: 142 | AN153: 142
A154: 143 | AN154: 143
A155: 144 | AN155: 144
A156: 145 | AN156: 145
A157: 146 | AN157: 146
A158: 147 | AN158: 147
A159: 148 | AN159: 148
A160: 149 | AN160: 149
A161: 150 | AN161: 150
A162: 151 | AN162: 151
A163: 152 | AN163: 152
A164: 153 | AN164: 153
A165: 154 | AN165: 154
A166: 155 | AN166: 155
A167: 156 | AN167: 156
A168: 157 | AN168: 157
A169: 158 | AN169: 158
A170: 159 | AN170: 159
A171: 160 | AN171: 160
A172: 161 | AN172: 161
A173: 162 | AN173: 162
A174: 163 | AN174: 163
A175: 164 | AN175: 164
A176: 165 | AN176: 165
A177: 166 | AN177: 166
A178: 167 | AN178: 167
A179: 168 | AN179: 168
A180: 169 | AN180: 169
A181: 170 | AN181: 170
A182: 171 | AN182: 171
A183: 172 | AN183: 172
A184: 173 | AN184: 173
A185: 174 | AN185: 174
A186: 175 | AN186: 175
A187: 176 | AN187: 176
A188: 177 | AN188: 177
A189: 178 | AN189: 178
A190: 179 | AN190: 179
A191: 180 | AN191: 180
A192: 181 | AN192: 181
A193: 182 | AN193: 182
A194: 183 | AN194: 183
A195: 184 | AN195: 184
A196: 185 | AN196: 185
A197: 186 | AN197: 186
A198: 187 | AN198: 187
A199: 188 | AN199: 188
A200: 189 | AN200: 189
A201: 190 | AN201: 190
A202: 191 | AN202: 191
... 310 more rows

Sheet SDEInfo
A1: Tel. +49 (0)711 8201-180 Fax: -720 | T1: SD Typ | U1: =IF(Eingabe!$M$6="Deutsch",Legende!$B140,IF(Eingabe!$M$6="English",Legende!$C140,FALSE)) -> Packung | V1: =IF(Eingabe!$M$6="Deutsch",Legende!$B141,IF(Eingabe!$M$6="English",Legende!$C141,FALSE)) -> Länge
B2: =IF(Eingabe!$M$6="Deutsch",Legende!$B130,IF(Eingabe!$M$6="English",Legende!$C130,FALSE)) -> LTG Luftverteil-Systeme - Schalldämpfer SDE und SDF | O2: LTG Aktiengesellschaft | T2: SDE-AO | U2: 25 | W2: =IF(Eingabe!$M$6="Deutsch",Legende!$B142,IF(Eingabe!$M$6="English",Legende!$C142,FALSE)) -> Nennweite | X2: 250
P3: =IF(Eingabe!$M$6="Deutsch",Legende!$B139,IF(Eingabe!$M$6="English",Legende!$C139,FALSE)) -> Teil | Q3: SD Typ | R3: =IF(Eingabe!$M$6="Deutsch",Legende!$B140,IF(Eingabe!$M$6="English",Legende!$C140,FALSE)) -> Packung | S3: =IF(Eingabe!$M$6="Deutsch",Legende!$B141,IF(Eingabe!$M$6="English",Legende!$C141,FALSE)) -> Länge | T3: SDE-SO | U3: 50 | V3: 900 | W3: =IF(Eingabe!$M$6="Deutsch",Legende!$B143,IF(Eingabe!$M$6="English",Legende!$C143,FALSE)) -> Strömungsrauschen | X3: =IF(ROUND(VLOOKUP(Size,C7:Y13,14,FALSE),0)<20,"< 20",ROUND(VLOOKUP(Size,C7:Y13,14,FALSE),0)) -> < 20
B4: =IF(Eingabe!$M$6="Deutsch",Legende!$B131,IF(Eingabe!$M$6="English",Legende!$C131,FALSE)) -> DRUCK-REGLER | D4: =IF(Eingabe!$M$6="Deutsch",Legende!$B134,IF(Eingabe!$M$6="English",Legende!$C134,FALSE)) -> SCHALLDÄMPFER | E4: =IF(Eingabe!$M$6="Deutsch",Legende!$B132,IF(Eingabe!$M$6="English",Legende!$C132,FALSE)) -> Typ | F4: =IF(Eingabe!$M$6="Deutsch",Legende!$B132,IF(Eingabe!$M$6="English",Legende!$C132,FALSE)) -> Typ | G4: =IF(Eingabe!$M$6="Deutsch",Legende!$B132,IF(Eingabe!$M$6="English",Legende!$C132,FALSE)) -> Typ | P4: =MID(D7,5,2) -> SO | Q4: SDE-SO | R4: 50 | S4: 900 | U4: 100 | V4: 1200 | W4: =IF(Eingabe!$M$6="Deutsch",Legende!$B18,IF(Eingabe!$M$6="English",Legende!$C18,FALSE)) -> Druckverlust | X4: =IF(ROUND(VLOOKUP(Size,C7:Y13,23,FALSE),0)<5,"< 5",ROUND(VLOOKUP(Size,C7:Y13,23,FALSE),0)) -> < 5
B5: =IF(Eingabe!$M$6="Deutsch",Legende!$B132,IF(Eingabe!$M$6="English",Legende!$C132,FALSE)) -> Typ | C5: =IF(Eingabe!$M$6="Deutsch",Legende!$B133,IF(Eingabe!$M$6="English",Legende!$C133,FALSE)) -> Nennweite | D5: =IF(Eingabe!$M$6="Deutsch",Legende!$B132,IF(Eingabe!$M$6="English",Legende!$C132,FALSE)) -> Typ | E5: =IF(Eingabe!$M$6="Deutsch",Legende!$B136,IF(Eingabe!$M$6="English",Legende!$C136,FALSE)) -> Packung in [mm] | F5: =IF(Eingabe!$M$6="Deutsch",Legende!$B135,IF(Eingabe!$M$6="English",Legende!$C135,FALSE)) -> Außenmaße in [mm] | G5: =IF(Eingabe!$M$6="Deutsch",Legende!$B137,IF(Eingabe!$M$6="English",Legende!$C137,FALSE)) -> Länge L* in [mm] | H5: =IF(Eingabe!$M$6="Deutsch",Legende!$B138,IF(Eingabe!$M$6="English",Legende!$C138,FALSE)) -> EINFÜGUNGSDÄMPFUNG in [dB] für die Oktavmittenfrequenzen | I5: =IF(Eingabe!$M$6="Deutsch",Legende!$B133,IF(Eingabe!$M$6="English",Legende!$C133,FALSE)) -> Nennweite | J5: =IF(Eingabe!$M$6="Deutsch",Legende!$B133,IF(Eingabe!$M$6="English",Legende!$C133,FALSE)) -> Nennweite | K5: =IF(Eingabe!$M$6="Deutsch",Legende!$B133,IF(Eingabe!$M$6="English",Legende!$C133,FALSE)) -> Nennweite | L5: =IF(Eingabe!$M$6="Deutsch",Legende!$B135,IF(Eingabe!$M$6="English",Legende!$C135,FALSE)) -> Außenmaße in [mm] | M5: =IF(Eingabe!$M$6="Deutsch",Legende!$B133,IF(Eingabe!$M$6="English",Legende!$C133,FALSE)) -> Nennweite | N5: =IF(Eingabe!$M$6="Deutsch",Legende!$B133,IF(Eingabe!$M$6="English",Legende!$C133,FALSE)) -> Nennweite | O5: =IF(Eingabe!$M$6="Deutsch",Legende!$B133,IF(Eingabe!$M$6="English",Legende!$C133,FALSE)) -> Nennweite | V5: 1000
H6: 63 | I6: 125 | J6: 250 | K6: 500 | L6: 1000 | M6: 2000 | N6: 4000 | O6: 8000 | P6: LWA | Q6: 63 | R6: 125 | S6: 250 | T6: 500 | U6: 1000 | V6: 2000 | W6: 4000 | X6: 8000 | Y6: dp
B7: LTG Druckregler DRE / DREactive | C7: 100 | D7: =SDTyp -> SDE-SO | E7: =Packung -> 50 | F7: =E7*2+C7 -> 200 | G7: =IF(D7="SDE-AO",1000,Länge) -> 900 | H7: =IF(AND(SDTyp="SDE-AO",Packung="25"),VLOOKUP($C7,$B$32:$M$48,4,FALSE),IF(AND(SDTyp="SDE-AO",Packung="50"),VLOOKUP($C7,$B$54:$M$70,4,FALSE),IF(AND(SDTyp="SDE-SO",Packung="50",Länge="900"),VLOOKUP($C7,$B$76:$M$92,4,FALSE),IF(AND(SDTyp="SDE-SO",Packung="50",Länge="1200"),VLOOKUP($C7,$B$98:$M$114,4,FALSE),IF(AND(SDTyp="SDE-SO",Packung="100",Länge="900"),VLOOKUP($C7,$B$120:$M$136,4,FALSE),IF(AND(SDTyp="SDE-SO",Packung="100",Länge="1200"),VLOOKUP($C7,$B$142:$M$158,4,FALSE),)))))) -> 4 | I7: =IF(AND(SDTyp="SDE-AO",Packung="25"),VLOOKUP($C7,$B$32:$M$48,5,FALSE),IF(AND(SDTyp="SDE-AO",Packung="50"),VLOOKUP($C7,$B$54:$M$70,5,FALSE),IF(AND(SDTyp="SDE-SO",Packung="50",Länge="900"),VLOOKUP($C7,$B$76:$M$92,5,FALSE),IF(AND(SDTyp="SDE-SO",Packung="50",Länge="1200"),VLOOKUP($C7,$B$98:$M$114,5,FALSE),IF(AND(SDTyp="SDE-SO",Packung="100",Länge="900"),VLOOKUP($C7,$B$120:$M$136,5,FALSE),IF(AND(SDTyp="SDE-SO",Packung="100",Länge="1200"),VLOOKUP($C7,$B$142:$M$158,5,FALSE),)))))) -> 10 | J7: =IF(AND(SDTyp="SDE-AO",Packung="25"),VLOOKUP($C7,$B$32:$M$48,6,FALSE),IF(AND(SDTyp="SDE-AO",Packung="50"),VLOOKUP($C7,$B$54:$M$70,6,FALSE),IF(AND(SDTyp="SDE-SO",Packung="50",Länge="900"),VLOOKUP($C7,$B$76:$M$92,6,FALSE),IF(AND(SDTyp="SDE-SO",Packung="50",Länge="1200"),VLOOKUP($C7,$B$98:$M$114,6,FALSE),IF(AND(SDTyp="SDE-SO",Packung="100",Länge="900"),VLOOKUP($C7,$B$120:$M$136,6,FALSE),IF(AND(SDTyp="SDE-SO",Packung="100",Länge="1200"),VLOOKUP($C7,$B$142:$M$158,6,FALSE),)))))) -> 15 | K7: =IF(AND(SDTyp="SDE-AO",Packung="25"),VLOOKUP($C7,$B$32:$M$48,7,FALSE),IF(AND(SDTyp="SDE-AO",Packung="50"),VLOOKUP($C7,$B$54:$M$70,7,FALSE),IF(AND(SDTyp="SDE-SO",Packung="50",Länge="900"),VLOOKUP($C7,$B$76:$M$92,7,FALSE),IF(AND(SDTyp="SDE-SO",Packung="50",Länge="1200"),VLOOKUP($C7,$B$98:$M$114,7,FALSE),IF(AND(SDTyp="SDE-SO",Packung="100",Länge="900"),VLOOKUP($C7,$B$120:$M$136,7,FALSE),IF(AND(SDTyp="SDE-SO",Packung="100",Länge="1200"),VLOOKUP($C7,$B$142:$M$158,7,FALSE),)))))) -> 28 | L7: =IF(AND(SDTyp="SDE-AO",Packung="25"),VLOOKUP($C7,$B$32:$M$48,8,FALSE),IF(AND(SDTyp="SDE-AO",Packung="50"),VLOOKUP($C7,$B$54:$M$70,8,FALSE),IF(AND(SDTyp="SDE-SO",Packung="50",Länge="900"),VLOOKUP($C7,$B$76:$M$92,8,FALSE),IF(AND(SDTyp="SDE-SO",Packung="50",Länge="1200"),VLOOKUP($C7,$B$98:$M$114,8,FALSE),IF(AND(SDTyp="SDE-SO",Packung="100",Länge="900"),VLOOKUP($C7,$B$120:$M$136,8,FALSE),IF(AND(SDTyp="SDE-SO",Packung="100",Länge="1200"),VLOOKUP($C7,$B$142:$M$158,8,FALSE),)))))) -> 40 | M7: =IF(AND(SDTyp="SDE-AO",Packung="25"),VLOOKUP($C7,$B$32:$M$48,9,FALSE),IF(AND(SDTyp="SDE-AO",Packung="50"),VLOOKUP($C7,$B$54:$M$70,9,FALSE),IF(AND(SDTyp="SDE-SO",Packung="50",Länge="900"),VLOOKUP($C7,$B$76:$M$92,9,FALSE),IF(AND(SDTyp="SDE-SO",Packung="50",Länge="1200"),VLOOKUP($C7,$B$98:$M$114,9,FALSE),IF(AND(SDTyp="SDE-SO",Packung="100",Länge="900"),VLOOKUP($C7,$B$120:$M$136,9,FALSE),IF(AND(SDTyp="SDE-SO",Packung="100",Länge="1200"),VLOOKUP($C7,$B$142:$M$158,9,FALSE),)))))) -> 50 | N7: =IF(AND(SDTyp="SDE-AO",Packung="25"),VLOOKUP($C7,$B$32:$M$48,10,FALSE),IF(AND(SDTyp="SDE-AO",Packung="50"),VLOOKUP($C7,$B$54:$M$70,10,FALSE),IF(AND(SDTyp="SDE-SO",Packung="50",Länge="900"),VLOOKUP($C7,$B$76:$M$92,10,FALSE),IF(AND(SDTyp="SDE-SO",Packung="50",Länge="1200"),VLOOKUP($C7,$B$98:$M$114,10,FALSE),IF(AND(SDTyp="SDE-SO",Packung="100",Länge="900"),VLOOKUP($C7,$B$120:$M$136,10,FALSE),IF(AND(SDTyp="SDE-SO",Packung="100",Länge="1200"),VLOOKUP($C7,$B$142:$M$158,10,FALSE),)))))) -> 44 | O7: =IF(AND(SDTyp="SDE-AO",Packung="25"),VLOOKUP($C7,$B$32:$M$48,11,FALSE),IF(AND(SDTyp="SDE-AO",Packung="50"),VLOOKUP($C7,$B$54:$M$70,11,FALSE),IF(AND(SDTyp="SDE-SO",Packung="50",Länge="900"),VLOOKUP($C7,$B$76:$M$92,11,FALSE),IF(AND(SDTyp="SDE-SO",Packung="50",Länge="1200"),VLOOKUP($C7,$B$98:$M$114,11,FALSE),IF(AND(SDTyp="SDE-SO",Packung="100",Länge="900"),VLOOKUP($C7,$B$120:$M$136,11,FALSE),IF(AND(SDTyp="SDE-SO",Packung="100",Länge="1200"),VLOOKUP($C7,$B$142:$M$158,11,FALSE),)))))) -> 27 | P7: =IF(ROUND(70*LOG('VRE-W'!F3)-25+10*LOG('VRE-W'!C3),2)<0,0,ROUND(70*LOG('VRE-W'!F3)-25+10*LOG('VRE-W'!C3),2)) -> 63.38 | Q7: =IF($P7-21<0,0,$P7-21) -> 42.38 | R7: =IF($P7-15<0,0,$P7-15) -> 48.38 | S7: =IF($P7-10<0,0,$P7-10) -> 53.38 | T7: =IF($P7-7<0,0,$P7-7) -> 56.38 | U7: =IF($P7-5<0,0,$P7-5) -> 58.38 | V7: =IF($P7-9<0,0,$P7-9) -> 54.38 | W7: =IF($P7-14<0,0,$P7-14) -> 49.38 | X7: =IF($P7-22<0,0,$P7-22) -> 41.38 | Y7: =ROUND(('VRE-W'!F3^2/10^2)*14.7*G7/1000,0) -> 179
C8: 125 | D8: =SDTyp -> SDE-SO | E8: =Packung -> 50 | F8: =E8*2+C8 -> 225 | G8: =IF(D8="SDE-AO",1000,Länge) -> 900 | H8: 4 | I8: 9 | J8: 14 | K8: 27 | L8: 42 | M8: 50 | N8: 35 | O8: 24 | P8: =IF(ROUND(70*LOG('VRE-W'!F4)-25+10*LOG('VRE-W'!C4),2)<0,0,ROUND(70*LOG('VRE-W'!F4)-25+10*LOG('VRE-W'!C4),2)) -> 51.71 | Q8: =IF($P8-21<0,0,$P8-21) -> 30.71 | R8: =IF($P8-15<0,0,$P8-15) -> 36.71 | S8: =IF($P8-10<0,0,$P8-10) -> 41.71 | T8: =IF($P8-7<0,0,$P8-7) -> 44.71 | U8: =IF($P8-5<0,0,$P8-5) -> 46.71 | V8: =IF($P8-9<0,0,$P8-9) -> 42.71 | W8: =IF($P8-14<0,0,$P8-14) -> 37.71 | X8: =IF($P8-22<0,0,$P8-22) -> 29.71 | Y8: =ROUND(('VRE-W'!F4^2/10^2)*11.1*G8/1000,0) -> 55
C9: 160 | D9: SDE-SO | E9: 50 | F9: 260 | G9: 900 | H9: 3 | I9: 5 | J9: 11 | K9: 23 | L9: 35 | M9: 39 | N9: 30 | O9: 12 | P9: =IF(ROUND(70*LOG('VRE-W'!F5)-25+10*LOG('VRE-W'!C5),2)<0,0,ROUND(70*LOG('VRE-W'!F5)-25+10*LOG('VRE-W'!C5),2)) -> 38.57 | Q9: 17.57 | R9: 23.57 | S9: 28.57 | T9: 31.57 | U9: 33.57 | V9: 29.57 | W9: 24.57 | X9: 16.57 | Y9: =ROUND(('VRE-W'!F5^2/10^2)*8.2*G9/1000,0) -> 15
C10: 200 | D10: SDE-SO | E10: 50 | F10: 300 | G10: 900 | H10: 1 | I10: 5 | J10: 10 | K10: 19 | L10: 32 | M10: 31 | N10: 16 | O10: 11 | P10: =IF(ROUND(70*LOG('VRE-W'!F6)-25+10*LOG('VRE-W'!C6),2)<0,0,ROUND(70*LOG('VRE-W'!F6)-25+10*LOG('VRE-W'!C6),2)) -> 27 | Q10: 6 | R10: 12 | S10: 17 | T10: 20 | U10: 22 | V10: 18 | W10: 13 | X10: 5 | Y10: =ROUND(('VRE-W'!F6^2/10^2)*6.2*G10/1000,0) -> 5
C11: 250 | D11: SDE-SO | E11: 50 | F11: 350 | G11: 900 | H11: 2 | I11: 3 | J11: 9 | K11: 17 | L11: 26 | M11: 21 | N11: 13 | O11: 8 | P11: =IF(ROUND(70*LOG('VRE-W'!F7)-25+10*LOG('VRE-W'!C7),2)<0,0,ROUND(70*LOG('VRE-W'!F7)-25+10*LOG('VRE-W'!C7),2)) -> 15.26 | Q11: 0 | R11: 0.26 | S11: 5.26 | T11: 8.26 | U11: 10.26 | V11: 6.26 | W11: 1.26 | X11: 0 | Y11: =ROUND(('VRE-W'!F7^2/10^2)*4.7*G11/1000,0) -> 1
C12: 315 | D12: SDE-SO | E12: 50 | F12: 415 | G12: 900 | H12: 1 | I12: 2 | J12: 6 | K12: 15 | L12: 21 | M12: 15 | N12: 8 | O12: 7 | P12: =IF(ROUND(70*LOG('VRE-W'!F8)-25+10*LOG('VRE-W'!C8),2)<0,0,ROUND(70*LOG('VRE-W'!F8)-25+10*LOG('VRE-W'!C8),2)) -> 2.78 | Q12: 0 | R12: 0 | S12: 0 | T12: 0 | U12: 0 | V12: 0 | W12: 0 | X12: 0 | Y12: =ROUND(('VRE-W'!F8^2/10^2)*3.5*G12/1000,0) -> 0
C13: 400 | D13: SDE-SO | E13: 50 | F13: 500 | G13: 900 | H13: 1 | I13: 2 | J13: 5 | K13: 13 | L13: 15 | M13: 8 | N13: 3 | O13: 2 | P13: =IF(ROUND(70*LOG('VRE-W'!F9)-25+10*LOG('VRE-W'!C9),2)<0,0,ROUND(70*LOG('VRE-W'!F9)-25+10*LOG('VRE-W'!C9),2)) -> 0 | Q13: 0 | R13: 0 | S13: 0 | T13: 0 | U13: 0 | V13: 0 | W13: 0 | X13: 0 | Y13: =ROUND(('VRE-W'!F9^2/10^2)*2.6*G13/1000,0) -> 0
B15: =IF(Eingabe!$M$6="Deutsch",Legende!$B152,IF(Eingabe!$M$6="English",Legende!$C152,FALSE)) -> Legende
B16: =IF(Eingabe!$M$6="Deutsch",Legende!$B144,IF(Eingabe!$M$6="English",Legende!$C144,FALSE)) -> * L = Länge ohne Einsteckenden
B17: =IF(Eingabe!$M$6="Deutsch",Legende!$B145,IF(Eingabe!$M$6="English",Legende!$C145,FALSE)) -> SDE-SO = Rohrschalldämpfer starr, Stahl verzinkt (alternativ Edelstahl), erhältlich in Standardlänge 900 mm und 1200mm
B18: =IF(Eingabe!$M$6="Deutsch",Legende!$B146,IF(Eingabe!$M$6="English",Legende!$C146,FALSE)) -> SDE-AO = Telefonieschalldämpfer flexibel, Aluminiummantel, erhältlich in Standardlänge 1000 mm
B21: =Eingabe!B37 -> © LTG Aktiengesellschaft - 13-05-2020
B22: =IF(Eingabe!$M$6="Deutsch",Legende!$B47,IF(Eingabe!$M$6="English",Legende!$C47,FALSE)) -> Angaben zu Toleranzen sowie weitere Spezifikationen sind der aktuellen Technischen Dokumentation zu entnehmen. Diese finden Sie auf www.LTG.de.
B23: =IF(Eingabe!$M$6="Deutsch",Legende!$B48,IF(Eingabe!$M$6="English",Legende!$C48,FALSE)) -> Eine Fehlerfreiheit des Programms kann nicht zugesichert werden. Im Zweifel gelten die technischen Daten der aktuellen Technischen Dokumentation.
B24: =IF(Eingabe!$M$6="Deutsch",Legende!$B49,IF(Eingabe!$M$6="English",Legende!$C49,FALSE)) -> Aus Programmierfehlern entstandener Schaden geht nicht zu Lasten der LTG. Technische Änderungen im Rahmen der Weiterentwicklung vorbehalten.
B50: SDE-AO 50 mm - 1000 mm
F51: Oktavband (Hz)
B52: d1 | C52: D | D52: L | E52: 63 | F52: 125 | G52: 250 | H52: 500 | I52: 1000 | J52: 2000 | K52: 4000 | L52: 8000 | M52: Gewicht
B53: mm | C53: mm | D53: mm | F53: Einfügungsdämpfung (dB) | M53: kg
B54: 80 | C54: 180 | D54: 1000 | E54: 1 | F54: 14 | G54: 21 | H54: 30 | I54: 47 | J54: 50 | K54: 50 | L54: 45 | M54: 1.1
B55: 100 | C55: 200 | D55: 1000 | E55: 1 | F55: 10 | G55: 16 | H55: 25 | I55: 42 | J55: 50 | K55: 43 | L55: 38 | M55: 1.3
B56: 125 | C56: 224 | D56: 1000 | E56: 1 | F56: 7 | G56: 13 | H56: 22 | I56: 39 | J56: 42 | K56: 25 | L56: 22 | M56: 1.7
B57: 140 | C57: 240 | D57: 1000 | E57: 1 | F57: 7 | G57: 10 | H57: 21 | I57: 39 | J57: 30 | K57: 20 | L57: 17
B58: 150 | C58: 250 | D58: 1000 | E58: 1 | F58: 5 | G58: 10 | H58: 21 | I58: 39 | J58: 30 | K58: 20 | L58: 17
B59: 160 | C59: 250 | D59: 1000 | E59: 1 | F59: 5 | G59: 10 | H59: 21 | I59: 39 | J59: 30 | K59: 20 | L59: 17 | M59: 1.9
B60: 180 | C60: 280 | D60: 1000 | E60: 1 | F60: 5 | G60: 8 | H60: 16 | I60: 32 | J60: 22 | K60: 15 | L60: 13
B61: 200 | C61: 300 | D61: 1000 | E61: 1 | F61: 5 | G61: 8 | H61: 16 | I61: 32 | J61: 22 | K61: 15 | L61: 13 | M61: 2.4
B62: 224 | C62: 315 | D62: 1250 | E62: 1 | F62: 4 | G62: 8 | H62: 16 | I62: 32 | J62: 15 | K62: 11 | L62: 13
B63: 250 | C63: 355 | D63: 1000 | E63: 1 | F63: 4 | G63: 8 | H63: 16 | I63: 32 | J63: 15 | K63: 11 | L63: 10 | M63: 3
B64: 280 | C64: 400 | D64: 1250 | E64: 1 | F64: 4 | G64: 6 | H64: 12 | I64: 25 | J64: 11 | K64: 10 | L64: 8
B65: 300 | C65: 400 | D65: 1250 | E65: 1 | F65: 4 | G65: 6 | H65: 12 | I65: 25 | J65: 11 | K65: 10 | L65: 8
B66: 315 | C66: 400 | D66: 1000 | E66: 1 | F66: 4 | G66: 6 | H66: 12 | I66: 25 | J66: 11 | K66: 10 | L66: 8 | M66: 3.4
B67: 355 | C67: 450 | D67: 1000 | E67: 2 | F67: 4 | G67: 6 | H67: 10 | I67: 20 | J67: 9 | K67: 8 | L67: 7 | M67: 8
B68: 400 | C68: 500 | D68: 1000 | E68: 1 | F68: 4 | G68: 6 | H68: 10 | I68: 20 | J68: 9 | K68: 8 | L68: 7 | M68: 4.3
B72: SDE-SO 50 mm - 900 mm
E73: Oktavband (Hz)
B74: DN | C74: D | D74: L | E74: 63 | F74: 125 | G74: 250 | H74: 500 | I74: 1000 | J74: 2000 | K74: 4000 | L74: 8000 | M74: Gewicht
C75: mm | D75: mm | E75: Einfügungsdämpfung (dB) | M75: kg
B76: 80 | C76: =+B76+100 -> 180 | D76: 900 | M76: 5.2
B77: 100 | C77: =+B77+100 -> 200 | D77: 900 | E77: 4 | F77: 10 | G77: 15 | H77: 28 | I77: 40 | J77: 50 | K77: 44 | L77: 27 | M77: 6.6
B78: 125 | C78: 225 | D78: 900 | E78: 4 | F78: 9 | G78: 14 | H78: 27 | I78: 42 | J78: 50 | K78: 35 | L78: 24 | M78: 7.6
B79: 140 | C79: 240 | D79: 900
B80: 150 | C80: 250 | D80: 900
B81: 160 | C81: 260 | D81: 900 | E81: 3 | F81: 5 | G81: 11 | H81: 23 | I81: 35 | J81: 39 | K81: 30 | L81: 12 | M81: 9
B82: 180 | C82: 280 | D82: 900
B83: 200 | C83: 300 | D83: 900 | E83: 1 | F83: 5 | G83: 10 | H83: 19 | I83: 32 | J83: 31 | K83: 16 | L83: 11 | M83: 10
B84: 224 | C84: 324 | D84: 900 | M84: 12
B85: 250 | C85: 350 | D85: 900 | E85: 2 | F85: 3 | G85: 9 | H85: 17 | I85: 26 | J85: 21 | K85: 13 | L85: 8 | M85: 12
B86: 280 | C86: 380 | D86: 900 | M86: 15
B87: 300 | C87: 400 | D87: 900 | M87: 15
B88: 315 | C88: 415 | D88: 900 | E88: 1 | F88: 2 | G88: 6 | H88: 15 | I88: 21 | J88: 15 | K88: 8 | L88: 7 | M88: 15
B89: 355 | C89: 455 | D89: 900 | M89: 22
B90: 400 | C90: 500 | D90: 900 | E90: 1 | F90: 2 | G90: 5 | H90: 13 | I90: 15 | J90: 8 | K90: 3 | L90: 2 | M90: 22
B94: SDE-SO 50 mm - 1200 mm
E95: Oktavband (Hz)
B96: DN | C96: D | D96: L | E96: 63 | F96: 125 | G96: 250 | H96: 500 | I96: 1000 | J96: 2000 | K96: 4000 | L96: 8000 | M96: Gewicht
C97: mm | D97: mm | E97: Einfügungsdämpfung (dB) | M97: kg
B98: 80 | C98: =+B98+100 -> 180 | D98: 1200 | E98: 4 | F98: 13 | G98: 27 | H98: 50 | I98: 50 | J98: 50 | K98: 50 | L98: 43 | M98: 7.2
B99: 100 | C99: =+B99+100 -> 200 | D99: 1200 | E99: 4 | F99: 10 | G99: 20 | H99: 37 | I99: 48 | J99: 50 | K99: 48 | L99: 34 | M99: 7.5
B100: 125 | C100: 225 | D100: 1200 | E100: 4 | F100: 11 | G100: 17 | H100: 36 | I100: 46 | J100: 50 | K100: 46 | L100: 31 | M100: 9.2
B101: 140 | C101: 240 | D101: 1200 | M101: 10.5
B102: 150 | C102: 250 | D102: 1200 | M102: 10.5
B103: 160 | C103: 260 | D103: 1200 | E103: 4 | F103: 6 | G103: 15 | H103: 30 | I103: 44 | J103: 50 | K103: 38 | L103: 14 | M103: 10.5
B104: 180 | C104: 280 | D104: 1200 | M104: 12
B105: 200 | C105: 300 | D105: 1200 | E105: 2 | F105: 6 | G105: 12 | H105: 22 | I105: 42 | J105: 41 | K105: 20 | L105: 13 | M105: 12
B106: 224 | C106: 324 | D106: 1200
B107: 250 | C107: 350 | D107: 1200 | E107: 2 | F107: 4 | G107: 12 | H107: 21 | I107: 34 | J107: 27 | K107: 17 | L107: 10 | M107: 15
B108: 280 | C108: 380 | D108: 1200
B109: 300 | C109: 400 | D109: 1200
B110: 315 | C110: 415 | D110: 1200 | E110: 1 | F110: 3 | G110: 7 | H110: 21 | I110: 27 | J110: 22 | K110: 13 | L110: 10 | M110: 24
B111: 355 | C111: 455 | D111: 1200 | M111: 32
B112: 400 | C112: 500 | D112: 1200 | E112: 1 | F112: 2 | G112: 7 | H112: 16 | I112: 20 | J112: 11 | K112: 4 | L112: 3
B113: 500 | C113: 600 | D113: 1200
B114: 630 | C114: 730 | D114: 1200

Sheet SDFInfo
A1: Tel. +49 (0)711 8201-180 Fax: -720
B2: =IF(Eingabe!$M$6="Deutsch",Legende!$B147,IF(Eingabe!$M$6="English",Legende!$C147,FALSE)) -> LTG Luftverteil-Systeme - Schalldämpfer SDF | O2: LTG Aktiengesellschaft | Q2: 200x100
Q3: =IF(ROUND(VLOOKUP(SizeSDF,P6:Z39,2,FALSE),0)<20,"< 20",ROUND(VLOOKUP(SizeSDF,P6:Z39,2,FALSE),0)) -> 56
B4: =IF(Eingabe!$M$6="Deutsch",Legende!$B131,IF(Eingabe!$M$6="English",Legende!$C131,FALSE)) -> DRUCK-REGLER | C4: =IF(Eingabe!$M$6="Deutsch",Legende!$B149,IF(Eingabe!$M$6="English",Legende!$C149,FALSE)) -> EINFÜGUNGSDÄMPFUNG in [dB] für die Oktavmittenfrequenzen | D4: =IF(Eingabe!$M$6="Deutsch",Legende!$B149,IF(Eingabe!$M$6="English",Legende!$C149,FALSE)) -> EINFÜGUNGSDÄMPFUNG in [dB] für die Oktavmittenfrequenzen | E4: =IF(Eingabe!$M$6="Deutsch",Legende!$B134,IF(Eingabe!$M$6="English",Legende!$C134,FALSE)) -> SCHALLDÄMPFER | F4: =IF(Eingabe!$M$6="Deutsch",Legende!$B149,IF(Eingabe!$M$6="English",Legende!$C149,FALSE)) -> EINFÜGUNGSDÄMPFUNG in [dB] für die Oktavmittenfrequenzen | G4: =IF(Eingabe!$M$6="Deutsch",Legende!$B149,IF(Eingabe!$M$6="English",Legende!$C149,FALSE)) -> EINFÜGUNGSDÄMPFUNG in [dB] für die Oktavmittenfrequenzen | H4: =IF(Eingabe!$M$6="Deutsch",Legende!$B138,IF(Eingabe!$M$6="English",Legende!$C138,FALSE)) -> EINFÜGUNGSDÄMPFUNG in [dB] für die Oktavmittenfrequenzen | I4: =IF(Eingabe!$M$6="Deutsch",Legende!$B131,IF(Eingabe!$M$6="English",Legende!$C131,FALSE)) -> DRUCK-REGLER | J4: =IF(Eingabe!$M$6="Deutsch",Legende!$B131,IF(Eingabe!$M$6="English",Legende!$C131,FALSE)) -> DRUCK-REGLER | K4: =IF(Eingabe!$M$6="Deutsch",Legende!$B131,IF(Eingabe!$M$6="English",Legende!$C131,FALSE)) -> DRUCK-REGLER | L4: =IF(Eingabe!$M$6="Deutsch",Legende!$B131,IF(Eingabe!$M$6="English",Legende!$C131,FALSE)) -> DRUCK-REGLER | M4: =IF(Eingabe!$M$6="Deutsch",Legende!$B131,IF(Eingabe!$M$6="English",Legende!$C131,FALSE)) -> DRUCK-REGLER | N4: =IF(Eingabe!$M$6="Deutsch",Legende!$B131,IF(Eingabe!$M$6="English",Legende!$C131,FALSE)) -> DRUCK-REGLER | O4: =IF(Eingabe!$M$6="Deutsch",Legende!$B131,IF(Eingabe!$M$6="English",Legende!$C131,FALSE)) -> DRUCK-REGLER | Q4: =IF(ROUND(VLOOKUP(SizeSDF,P6:Z39,11,FALSE),0)<5,"< 5",ROUND(VLOOKUP(SizeSDF,P6:Z39,11,FALSE),0)) -> 347
B5: =IF(Eingabe!$M$6="Deutsch",Legende!$B132,IF(Eingabe!$M$6="English",Legende!$C132,FALSE)) -> Typ | C5: =IF(Eingabe!$M$6="Deutsch",Legende!$B167,IF(Eingabe!$M$6="English",Legende!$C166,FALSE)) -> Breite | D5: =IF(Eingabe!$M$6="Deutsch",Legende!$B168,IF(Eingabe!$M$6="English",Legende!$C167,FALSE)) -> Höhe | E5: =IF(Eingabe!$M$6="Deutsch",Legende!$B132,IF(Eingabe!$M$6="English",Legende!$C132,FALSE)) -> Typ | F5: =IF(Eingabe!$M$6="Deutsch",Legende!$B137,IF(Eingabe!$M$6="English",Legende!$C137,FALSE)) -> Länge L* in [mm] | G5: =IF(Eingabe!$M$6="Deutsch",Legende!$B148,IF(Eingabe!$M$6="English",Legende!$C148,FALSE)) -> Kulissen-länge in [mm] | H5: 63 | I5: 125 | J5: 250 | K5: 500 | L5: 1000 | M5: 2000 | N5: 4000 | O5: 8000 | P5: Size | Q5: LWA | R5: 63 | S5: 125 | T5: 250 | U5: 500 | V5: 1000 | W5: 2000 | X5: 4000 | Y5: 8000 | Z5: Dp
B6: =IF(Eingabe!$M$6="Deutsch",Legende!$B156,IF(Eingabe!$M$6="English",Legende!$C156,FALSE)) -> LTG Druckregler DRF / DRFactive | C6: 200 | D6: 100 | E6: SDF-SM | F6: 1300 | G6: 1000 | H6: 2 | I6: 4 | J6: 8 | K6: 17 | L6: 33 | M6: 32 | N6: 18 | O6: 14 | P6: 200x100 | Q6: =IF(70*LOG('VRF-WGES'!I3*2)-25+10*LOG('VRF-WGES'!F3/2)<0,0,70*LOG('VRF-WGES'!I3*2)-25+10*LOG('VRF-WGES'!F3/2)) -> 56.05882495 | R6: =IF($Q6-21<0,0,$Q6-21) -> 35.05882495 | S6: =IF($Q6-15<0,0,$Q6-15) -> 41.05882495 | T6: =IF($Q6-10<0,0,$Q6-10) -> 46.05882495 | U6: =IF($Q6-7<0,0,$Q6-7) -> 49.05882495 | V6: =IF($Q6-5<0,0,$Q6-5) -> 51.05882495 | W6: =IF($Q6-9<0,0,$Q6-9) -> 47.05882495 | X6: =IF($Q6-14<0,0,$Q6-14) -> 42.05882495 | Y6: =IF($Q6-22<0,0,$Q6-22) -> 34.05882495 | Z6: =(('VRF-WGES'!I3^2)/(5^2))*45 -> 347.2222222
B7: =IF(Eingabe!$M$6="Deutsch",Legende!$B134,IF(Eingabe!$M$6="English",Legende!$C134,FALSE)) -> SCHALLDÄMPFER | C7: 300 | D7: 100 | E7: SDF-SM | F7: 1300 | G7: 1000 | H7: 2 | I7: 4 | J7: 8 | K7: 17 | L7: 33 | M7: 32 | N7: 18 | O7: 14 | P7: 300x100 | Q7: =IF(70*LOG('VRF-WGES'!I4*2)-25+10*LOG('VRF-WGES'!F4/2)<0,0,70*LOG('VRF-WGES'!I4*2)-25+10*LOG('VRF-WGES'!F4/2)) -> 45.4933494 | R7: =IF($Q7-21<0,0,$Q7-21) -> 24.4933494 | S7: =IF($Q7-15<0,0,$Q7-15) -> 30.4933494 | T7: =IF($Q7-10<0,0,$Q7-10) -> 35.4933494 | U7: =IF($Q7-7<0,0,$Q7-7) -> 38.4933494 | V7: =IF($Q7-5<0,0,$Q7-5) -> 40.4933494 | W7: =IF($Q7-9<0,0,$Q7-9) -> 36.4933494 | X7: =IF($Q7-14<0,0,$Q7-14) -> 31.4933494 | Y7: =IF($Q7-22<0,0,$Q7-22) -> 23.4933494 | Z7: =(('VRF-WGES'!I4^2)/(5^2))*45 -> 154.3209877
B8: =IF(Eingabe!$M$6="Deutsch",Legende!$B135,IF(Eingabe!$M$6="English",Legende!$C135,FALSE)) -> Außenmaße in [mm] | C8: 400 | D8: 100 | E8: SDF-SM | F8: 1300 | G8: 1000 | H8: 2 | I8: 4 | J8: 8 | K8: 17 | L8: 33 | M8: 32 | N8: 18 | O8: 14 | P8: 400x100 | Q8: =IF(70*LOG('VRF-WGES'!I5*2)-25+10*LOG('VRF-WGES'!F5/2)<0,0,70*LOG('VRF-WGES'!I5*2)-25+10*LOG('VRF-WGES'!F5/2)) -> 37.99702521 | R8: 16.99702521 | S8: 22.99702521 | T8: 27.99702521 | U8: 30.99702521 | V8: 32.99702521 | W8: 28.99702521 | X8: 23.99702521 | Y8: 15.99702521 | Z8: =(('VRF-WGES'!I5^2)/(5^2))*45 -> 86.80555556
B9: =IF(Eingabe!$M$6="Deutsch",Legende!$B136,IF(Eingabe!$M$6="English",Legende!$C136,FALSE)) -> Packung in [mm] | C9: 500 | D9: 100 | E9: SDF-SM | F9: 1300 | G9: 1000 | H9: 2 | I9: 4 | J9: 8 | K9: 17 | L9: 33 | M9: 32 | N9: 18 | O9: 14 | P9: 500x100 | Q9: =IF(70*LOG('VRF-WGES'!I6*2)-25+10*LOG('VRF-WGES'!F6/2)<0,0,70*LOG('VRF-WGES'!I6*2)-25+10*LOG('VRF-WGES'!F6/2)) -> 32.18242443 | R9: 11.18242443 | S9: 17.18242443 | T9: 22.18242443 | U9: 25.18242443 | V9: 27.18242443 | W9: 23.18242443 | X9: 18.18242443 | Y9: 10.18242443 | Z9: =(('VRF-WGES'!I6^2)/(5^2))*45 -> 55.55555556
B10: =IF(Eingabe!$M$6="Deutsch",Legende!$B137,IF(Eingabe!$M$6="English",Legende!$C137,FALSE)) -> Länge L* in [mm] | C10: 600 | D10: 100 | E10: SDF-SM | F10: 1300 | G10: 1000 | H10: 2 | I10: 4 | J10: 8 | K10: 17 | L10: 33 | M10: 32 | N10: 18 | O10: 14 | P10: 600x100 | Q10: =IF(70*LOG('VRF-WGES'!I7*2)-25+10*LOG('VRF-WGES'!F7/2)<0,0,70*LOG('VRF-WGES'!I7*2)-25+10*LOG('VRF-WGES'!F7/2)) -> 27.43154966 | R10: 6.431549663 | S10: 12.43154966 | T10: 17.43154966 | U10: 20.43154966 | V10: 22.43154966 | W10: 18.43154966 | X10: 13.43154966 | Y10: 5.431549663 | Z10: =(('VRF-WGES'!I7^2)/(5^2))*45 -> 38.58024691
B11: =IF(Eingabe!$M$6="Deutsch",Legende!$B138,IF(Eingabe!$M$6="English",Legende!$C138,FALSE)) -> EINFÜGUNGSDÄMPFUNG in [dB] für die Oktavmittenfrequenzen | C11: 300 | D11: 150 | E11: SDF-SM | F11: 1300 | G11: 1000 | H11: 2 | I11: 4 | J11: 8 | K11: 17 | L11: 33 | M11: 32 | N11: 18 | O11: 14 | P11: 300x150 | Q11: =IF(70*LOG('VRF-WGES'!I8*2)-25+10*LOG('VRF-WGES'!F8/2)<0,0,70*LOG('VRF-WGES'!I8*2)-25+10*LOG('VRF-WGES'!F8/2)) -> 34.92787386 | R11: 13.92787386 | S11: 19.92787386 | T11: 24.92787386 | U11: 27.92787386 | V11: 29.92787386 | W11: 25.92787386 | X11: 20.92787386 | Y11: 12.92787386 | Z11: =(('VRF-WGES'!I8^2)/(5^2))*45 -> 68.58710562
B12: =IF(Eingabe!$M$6="Deutsch",Legende!$B139,IF(Eingabe!$M$6="English",Legende!$C139,FALSE)) -> Teil | C12: 400 | D12: 150 | E12: SDF-SM | F12: 1300 | G12: 1000 | H12: 2 | I12: 4 | J12: 8 | K12: 17 | L12: 33 | M12: 32 | N12: 18 | O12: 14 | P12: 400x150 | Q12: =IF(70*LOG('VRF-WGES'!I9*2)-25+10*LOG('VRF-WGES'!F9/2)<0,0,70*LOG('VRF-WGES'!I9*2)-25+10*LOG('VRF-WGES'!F9/2)) -> 27.43154966 | R12: 6.431549663 | S12: 12.43154966 | T12: 17.43154966 | U12: 20.43154966 | V12: 22.43154966 | W12: 18.43154966 | X12: 13.43154966 | Y12: 5.431549663 | Z12: =(('VRF-WGES'!I9^2)/(5^2))*45 -> 38.58024691
B13: =IF(Eingabe!$M$6="Deutsch",Legende!$B140,IF(Eingabe!$M$6="English",Legende!$C140,FALSE)) -> Packung | C13: 500 | D13: 150 | E13: SDF-SM | F13: 1300 | G13: 1000 | H13: 2 | I13: 4 | J13: 8 | K13: 17 | L13: 33 | M13: 32 | N13: 18 | O13: 14 | P13: 500x150 | Q13: =IF(70*LOG('VRF-WGES'!I10*2)-25+10*LOG('VRF-WGES'!F10/2)<0,0,70*LOG('VRF-WGES'!I10*2)-25+10*LOG('VRF-WGES'!F10/2)) -> 21.61694888 | R13: 0.6169488826 | S13: 6.616948883 | T13: 11.61694888 | U13: 14.61694888 | V13: 16.61694888 | W13: 12.61694888 | X13: 7.616948883 | Y13: 0 | Z13: =(('VRF-WGES'!I10^2)/(5^2))*45 -> 24.69135802
B14: =IF(Eingabe!$M$6="Deutsch",Legende!$B141,IF(Eingabe!$M$6="English",Legende!$C141,FALSE)) -> Länge | C14: 600 | D14: 150 | E14: SDF-SM | F14: 1300 | G14: 1000 | H14: 2 | I14: 4 | J14: 8 | K14: 17 | L14: 33 | M14: 32 | N14: 18 | O14: 14 | P14: 600x150 | Q14: =IF(70*LOG('VRF-WGES'!I11*2)-25+10*LOG('VRF-WGES'!F11/2)<0,0,70*LOG('VRF-WGES'!I11*2)-25+10*LOG('VRF-WGES'!F11/2)) -> 16.86607412 | R14: 0 | S14: 1.86607412 | T14: 6.86607412 | U14: 9.86607412 | V14: 11.86607412 | W14: 7.86607412 | X14: 2.86607412 | Y14: 0 | Z14: =(('VRF-WGES'!I11^2)/(5^2))*45 -> 17.14677641
B15: =IF(Eingabe!$M$6="Deutsch",Legende!$B142,IF(Eingabe!$M$6="English",Legende!$C142,FALSE)) -> Nennweite | C15: 200 | D15: 200 | E15: SDF-SM | F15: 1300 | G15: 1000 | H15: 2 | I15: 4 | J15: 8 | K15: 17 | L15: 33 | M15: 32 | N15: 18 | O15: 14 | P15: 200x200 | Q15: =IF(70*LOG('VRF-WGES'!I12*2)-25+10*LOG('VRF-WGES'!F12/2)<0,0,70*LOG('VRF-WGES'!I12*2)-25+10*LOG('VRF-WGES'!F12/2)) -> 37.99702521 | R15: 16.99702521 | S15: 22.99702521 | T15: 27.99702521 | U15: 30.99702521 | V15: 32.99702521 | W15: 28.99702521 | X15: 23.99702521 | Y15: 15.99702521 | Z15: =(('VRF-WGES'!I12^2)/(5^2))*45 -> 86.80555556
B16: =IF(Eingabe!$M$6="Deutsch",Legende!$B143,IF(Eingabe!$M$6="English",Legende!$C143,FALSE)) -> Strömungsrauschen | C16: 300 | D16: 200 | E16: SDF-SM | F16: 1300 | G16: 1000 | H16: 2 | I16: 4 | J16: 8 | K16: 17 | L16: 33 | M16: 32 | N16: 18 | O16: 14 | P16: 300x200 | Q16: =IF(70*LOG('VRF-WGES'!I13*2)-25+10*LOG('VRF-WGES'!F13/2)<0,0,70*LOG('VRF-WGES'!I13*2)-25+10*LOG('VRF-WGES'!F13/2)) -> 27.43154966 | R16: 6.431549663 | S16: 12.43154966 | T16: 17.43154966 | U16: 20.43154966 | V16: 22.43154966 | W16: 18.43154966 | X16: 13.43154966 | Y16: 5.431549663 | Z16: =(('VRF-WGES'!I13^2)/(5^2))*45 -> 38.58024691
B17: =IF(Eingabe!$M$6="Deutsch",Legende!$B144,IF(Eingabe!$M$6="English",Legende!$C144,FALSE)) -> * L = Länge ohne Einsteckenden | C17: 400 | D17: 200 | E17: SDF-SM | F17: 1300 | G17: 1000 | H17: 2 | I17: 4 | J17: 8 | K17: 17 | L17: 33 | M17: 32 | N17: 18 | O17: 14 | P17: 400x200 | Q17: =IF(70*LOG('VRF-WGES'!I14*2)-25+10*LOG('VRF-WGES'!F14/2)<0,0,70*LOG('VRF-WGES'!I14*2)-25+10*LOG('VRF-WGES'!F14/2)) -> 19.93522547 | R17: 0 | S17: 4.935225467 | T17: 9.935225467 | U17: 12.93522547 | V17: 14.93522547 | W17: 10.93522547 | X17: 5.935225467 | Y17: 0 | Z17: =(('VRF-WGES'!I14^2)/(5^2))*45 -> 21.70138889
B18: =IF(Eingabe!$M$6="Deutsch",Legende!$B145,IF(Eingabe!$M$6="English",Legende!$C145,FALSE)) -> SDE-SO = Rohrschalldämpfer starr, Stahl verzinkt (alternativ Edelstahl), erhältlich in Standardlänge 900 mm und 1200mm | C18: 500 | D18: 200 | E18: SDF-SM | F18: 1300 | G18: 1000 | H18: 2 | I18: 4 | J18: 8 | K18: 17 | L18: 33 | M18: 32 | N18: 18 | O18: 14 | P18: 500x200 | Q18: =IF(70*LOG('VRF-WGES'!I15*2)-25+10*LOG('VRF-WGES'!F15/2)<0,0,70*LOG('VRF-WGES'!I15*2)-25+10*LOG('VRF-WGES'!F15/2)) -> 14.12062469 | R18: 0 | S18: 0 | T18: 4.120624686 | U18: 7.120624686 | V18: 9.120624686 | W18: 5.120624686 | X18: 0.1206246861 | Y18: 0 | Z18: =(('VRF-WGES'!I15^2)/(5^2))*45 -> 13.88888889
B19: =IF(Eingabe!$M$6="Deutsch",Legende!$B146,IF(Eingabe!$M$6="English",Legende!$C146,FALSE)) -> SDE-AO = Telefonieschalldämpfer flexibel, Aluminiummantel, erhältlich in Standardlänge 1000 mm | C19: 600 | D19: 200 | E19: SDF-SM | F19: 1300 | G19: 1000 | H19: 2 | I19: 4 | J19: 8 | K19: 17 | L19: 33 | M19: 32 | N19: 18 | O19: 14 | P19: 600x200 | Q19: =IF(70*LOG('VRF-WGES'!I16*2)-25+10*LOG('VRF-WGES'!F16/2)<0,0,70*LOG('VRF-WGES'!I16*2)-25+10*LOG('VRF-WGES'!F16/2)) -> 9.369749923 | R19: 0 | S19: 0 | T19: 0 | U19: 2.369749923 | V19: 4.369749923 | W19: 0.3697499233 | X19: 0 | Y19: 0 | Z19: =(('VRF-WGES'!I16^2)/(5^2))*45 -> 9.645061728
B20: =IF(Eingabe!$M$6="Deutsch",Legende!$B147,IF(Eingabe!$M$6="English",Legende!$C147,FALSE)) -> LTG Luftverteil-Systeme - Schalldämpfer SDF | C20: 800 | D20: 200 | E20: SDF-SM | F20: 1300 | G20: 1000 | H20: 2 | I20: 4 | J20: 8 | K20: 17 | L20: 33 | M20: 32 | N20: 18 | O20: 14 | P20: 800x200 | Q20: =IF(70*LOG('VRF-WGES'!I17*2)-25+10*LOG('VRF-WGES'!F17/2)<0,0,70*LOG('VRF-WGES'!I17*2)-25+10*LOG('VRF-WGES'!F17/2)) -> 1.873425727 | R20: 0 | S20: 0 | T20: 0 | U20: 0 | V20: 0 | W20: 0 | X20: 0 | Y20: 0 | Z20: =(('VRF-WGES'!I17^2)/(5^2))*45 -> 5.425347222
B21: =IF(Eingabe!$M$6="Deutsch",Legende!$B148,IF(Eingabe!$M$6="English",Legende!$C148,FALSE)) -> Kulissen-länge in [mm] | C21: 300 | D21: 250 | E21: SDF-SM | F21: 1300 | G21: 1000 | H21: 2 | I21: 4 | J21: 8 | K21: 17 | L21: 33 | M21: 32 | N21: 18 | O21: 14 | P21: 300x250 | Q21: =IF(70*LOG('VRF-WGES'!I18*2)-25+10*LOG('VRF-WGES'!F18/2)<0,0,70*LOG('VRF-WGES'!I18*2)-25+10*LOG('VRF-WGES'!F18/2)) -> 21.61694888 | R21: 0.6169488826 | S21: 6.616948883 | T21: 11.61694888 | U21: 14.61694888 | V21: 16.61694888 | W21: 12.61694888 | X21: 7.616948883 | Y21: 0 | Z21: =(('VRF-WGES'!I18^2)/(5^2))*45 -> 24.69135802
B22: =IF(Eingabe!$M$6="Deutsch",Legende!$B149,IF(Eingabe!$M$6="English",Legende!$C149,FALSE)) -> EINFÜGUNGSDÄMPFUNG in [dB] für die Oktavmittenfrequenzen | C22: 400 | D22: 250 | E22: SDF-SM | F22: 1300 | G22: 1000 | H22: 2 | I22: 4 | J22: 8 | K22: 17 | L22: 33 | M22: 32 | N22: 18 | O22: 14 | P22: 400x250 | Q22: =IF(70*LOG('VRF-WGES'!I19*2)-25+10*LOG('VRF-WGES'!F19/2)<0,0,70*LOG('VRF-WGES'!I19*2)-25+10*LOG('VRF-WGES'!F19/2)) -> 14.12062469 | R22: 0 | S22: 0 | T22: 4.120624686 | U22: 7.120624686 | V22: 9.120624686 | W22: 5.120624686 | X22: 0.1206246861 | Y22: 0 | Z22: =(('VRF-WGES'!I19^2)/(5^2))*45 -> 13.88888889
B23: =IF(Eingabe!$M$6="Deutsch",Legende!$B150,IF(Eingabe!$M$6="English",Legende!$C150,FALSE)) -> * L = Einbaulänge | C23: 500 | D23: 250 | E23: SDF-SM | F23: 1300 | G23: 1000 | H23: 2 | I23: 4 | J23: 8 | K23: 17 | L23: 33 | M23: 32 | N23: 18 | O23: 14 | P23: 500x250 | Q23: =IF(70*LOG('VRF-WGES'!I20*2)-25+10*LOG('VRF-WGES'!F20/2)<0,0,70*LOG('VRF-WGES'!I20*2)-25+10*LOG('VRF-WGES'!F20/2)) -> 8.306023906 | R23: 0 | S23: 0 | T23: 0 | U23: 1.306023906 | V23: 3.306023906 | W23: 0 | X23: 0 | Y23: 0 | Z23: =(('VRF-WGES'!I20^2)/(5^2))*45 -> 8.888888889
B24: =IF(Eingabe!$M$6="Deutsch",Legende!$B151,IF(Eingabe!$M$6="English",Legende!$C151,FALSE)) -> SDF-SM = Schalldämpfer eckig, bestehend aus verzinktem Stahlblech mit Schalldämm-Mittelkulissen. | C24: 600 | D24: 250 | E24: SDF-SM | F24: 1300 | G24: 1000 | H24: 2 | I24: 4 | J24: 8 | K24: 17 | L24: 33 | M24: 32 | N24: 18 | O24: 14 | P24: 600x250 | Q24: =IF(70*LOG('VRF-WGES'!I21*2)-25+10*LOG('VRF-WGES'!F21/2)<0,0,70*LOG('VRF-WGES'!I21*2)-25+10*LOG('VRF-WGES'!F21/2)) -> 3.555149143 | R24: 0 | S24: 0 | T24: 0 | U24: 0 | V24: 0 | W24: 0 | X24: 0 | Y24: 0 | Z24: =(('VRF-WGES'!I21^2)/(5^2))*45 -> 6.172839506
B25: =IF(Eingabe!$M$6="Deutsch",Legende!$B152,IF(Eingabe!$M$6="English",Legende!$C152,FALSE)) -> Legende | C25: 800 | D25: 250 | E25: SDF-SM | F25: 1300 | G25: 1000 | H25: 2 | I25: 4 | J25: 8 | K25: 17 | L25: 33 | M25: 32 | N25: 18 | O25: 14 | P25: 800x250 | Q25: =IF(70*LOG('VRF-WGES'!I22*2)-25+10*LOG('VRF-WGES'!F22/2)<0,0,70*LOG('VRF-WGES'!I22*2)-25+10*LOG('VRF-WGES'!F22/2)) -> 0 | R25: 0 | S25: 0 | T25: 0 | U25: 0 | V25: 0 | W25: 0 | X25: 0 | Y25: 0 | Z25: =(('VRF-WGES'!I22^2)/(5^2))*45 -> 3.472222222
B26: =IF(Eingabe!$M$6="Deutsch",Legende!$B154,IF(Eingabe!$M$6="English",Legende!$C154,FALSE)) -> Auswahl Druckregler | C26: 1000 | D26: 250 | E26: SDF-SM | F26: 1300 | G26: 1000 | H26: 2 | I26: 4 | J26: 8 | K26: 17 | L26: 33 | M26: 32 | N26: 18 | O26: 14 | P26: 1000x250 | Q26: =IF(70*LOG('VRF-WGES'!I23*2)-25+10*LOG('VRF-WGES'!F23/2)<0,0,70*LOG('VRF-WGES'!I23*2)-25+10*LOG('VRF-WGES'!F23/2)) -> 0 | R26: 0 | S26: 0 | T26: 0 | U26: 0 | V26: 0 | W26: 0 | X26: 0 | Y26: 0 | Z26: =(('VRF-WGES'!I23^2)/(5^2))*45 -> 2.222222222
B27: =IF(Eingabe!$M$6="Deutsch",Legende!$B155,IF(Eingabe!$M$6="English",Legende!$C155,FALSE)) -> LTG Druckregler DRE / DREactive | C27: 300 | D27: 300 | E27: SDF-SM | F27: 1500 | G27: 1000 | H27: 2 | I27: 4 | J27: 8 | K27: 17 | L27: 33 | M27: 32 | N27: 18 | O27: 14 | P27: 300x300 | Q27: =IF(70*LOG('VRF-WGES'!I24*2)-25+10*LOG('VRF-WGES'!F24/2)<0,0,70*LOG('VRF-WGES'!I24*2)-25+10*LOG('VRF-WGES'!F24/2)) -> 16.86607412 | R27: 0 | S27: 1.86607412 | T27: 6.86607412 | U27: 9.86607412 | V27: 11.86607412 | W27: 7.86607412 | X27: 2.86607412 | Y27: 0 | Z27: =(('VRF-WGES'!I24^2)/(5^2))*45 -> 17.14677641
B28: =IF(Eingabe!$M$6="Deutsch",Legende!$B156,IF(Eingabe!$M$6="English",Legende!$C156,FALSE)) -> LTG Druckregler DRF / DRFactive | C28: 400 | D28: 300 | E28: SDF-SM | F28: 1500 | G28: 1000 | H28: 2 | I28: 4 | J28: 8 | K28: 17 | L28: 33 | M28: 32 | N28: 18 | O28: 14 | P28: 400x300 | Q28: =IF(70*LOG('VRF-WGES'!I25*2)-25+10*LOG('VRF-WGES'!F25/2)<0,0,70*LOG('VRF-WGES'!I25*2)-25+10*LOG('VRF-WGES'!F25/2)) -> 9.369749923 | R28: 0 | S28: 0 | T28: 0 | U28: 2.369749923 | V28: 4.369749923 | W28: 0.3697499233 | X28: 0 | Y28: 0 | Z28: =(('VRF-WGES'!I25^2)/(5^2))*45 -> 9.645061728
B29: =IF(Eingabe!$M$6="Deutsch",Legende!$B157,IF(Eingabe!$M$6="English",Legende!$C157,FALSE)) -> Die Auslegung ist somit abgeschlossen. | C29: 500 | D29: 300 | E29: SDF-SM | F29: 1500 | G29: 1000 | H29: 2 | I29: 4 | J29: 8 | K29: 17 | L29: 33 | M29: 32 | N29: 18 | O29: 14 | P29: 500x300 | Q29: =IF(70*LOG('VRF-WGES'!I26*2)-25+10*LOG('VRF-WGES'!F26/2)<0,0,70*LOG('VRF-WGES'!I26*2)-25+10*LOG('VRF-WGES'!F26/2)) -> 3.555149143 | R29: 0 | S29: 0 | T29: 0 | U29: 0 | V29: 0 | W29: 0 | X29: 0 | Y29: 0 | Z29: =(('VRF-WGES'!I26^2)/(5^2))*45 -> 6.172839506
B30: =IF(Eingabe!$M$6="Deutsch",Legende!$B158,IF(Eingabe!$M$6="English",Legende!$C158,FALSE)) -> Listeneintrag | C30: 600 | D30: 300 | E30: SDF-SM | F30: 1500 | G30: 1000 | H30: 2 | I30: 4 | J30: 8 | K30: 17 | L30: 33 | M30: 32 | N30: 18 | O30: 14 | P30: 600x300 | Q30: =IF(70*LOG('VRF-WGES'!I27*2)-25+10*LOG('VRF-WGES'!F27/2)<0,0,70*LOG('VRF-WGES'!I27*2)-25+10*LOG('VRF-WGES'!F27/2)) -> 0 | R30: 0 | S30: 0 | T30: 0 | U30: 0 | V30: 0 | W30: 0 | X30: 0 | Y30: 0 | Z30: =(('VRF-WGES'!I27^2)/(5^2))*45 -> 4.286694102
B31: =IF(Eingabe!$M$6="Deutsch",Legende!$B159,IF(Eingabe!$M$6="English",Legende!$C159,FALSE)) -> Druckreglerlisteneintrag | C31: 800 | D31: 300 | E31: SDF-SM | F31: 1500 | G31: 1000 | H31: 2 | I31: 4 | J31: 8 | K31: 17 | L31: 33 | M31: 32 | N31: 18 | O31: 14 | P31: 800x300 | Q31: =IF(70*LOG('VRF-WGES'!I28*2)-25+10*LOG('VRF-WGES'!F28/2)<0,0,70*LOG('VRF-WGES'!I28*2)-25+10*LOG('VRF-WGES'!F28/2)) -> 0 | R31: 0 | S31: 0 | T31: 0 | U31: 0 | V31: 0 | W31: 0 | X31: 0 | Y31: 0 | Z31: =(('VRF-WGES'!I28^2)/(5^2))*45 -> 2.411265432
B32: =IF(Eingabe!$M$6="Deutsch",Legende!$B160,IF(Eingabe!$M$6="English",Legende!$C160,FALSE)) -> Durchmesser bzw. | C32: 1000 | D32: 300 | E32: SDF-SM | F32: 1500 | G32: 1000 | H32: 2 | I32: 4 | J32: 8 | K32: 17 | L32: 33 | M32: 32 | N32: 18 | O32: 14 | P32: 1000x300 | Q32: =IF(70*LOG('VRF-WGES'!I29*2)-25+10*LOG('VRF-WGES'!F29/2)<0,0,70*LOG('VRF-WGES'!I29*2)-25+10*LOG('VRF-WGES'!F29/2)) -> 0 | R32: 0 | S32: 0 | T32: 0 | U32: 0 | V32: 0 | W32: 0 | X32: 0 | Y32: 0 | Z32: =(('VRF-WGES'!I29^2)/(5^2))*45 -> 1.543209877
B33: =IF(Eingabe!$M$6="Deutsch",Legende!$B161,IF(Eingabe!$M$6="English",Legende!$C161,FALSE)) -> Breite x Höhe in mm | C33: 1200 | D33: 300 | E33: SDF-SM | F33: 1500 | G33: 1000 | H33: 2 | I33: 4 | J33: 8 | K33: 17 | L33: 33 | M33: 32 | N33: 18 | O33: 14 | P33: 1200x300 | Q33: =IF(70*LOG('VRF-WGES'!I30*2)-25+10*LOG('VRF-WGES'!F30/2)<0,0,70*LOG('VRF-WGES'!I30*2)-25+10*LOG('VRF-WGES'!F30/2)) -> 0 | R33: 0 | S33: 0 | T33: 0 | U33: 0 | V33: 0 | W33: 0 | X33: 0 | Y33: 0 | Z33: =(('VRF-WGES'!I30^2)/(5^2))*45 -> 1.071673525
B34: =IF(Eingabe!$M$6="Deutsch",Legende!$B162,IF(Eingabe!$M$6="English",Legende!$C162,FALSE)) -> ohne | C34: 400 | D34: 400 | E34: SDF-SM | F34: 1500 | G34: 1000 | H34: 2 | I34: 4 | J34: 8 | K34: 17 | L34: 33 | M34: 32 | N34: 18 | O34: 14 | P34: 400x400 | Q34: =IF(70*LOG('VRF-WGES'!I31*2)-25+10*LOG('VRF-WGES'!F31/2)<0,0,70*LOG('VRF-WGES'!I31*2)-25+10*LOG('VRF-WGES'!F31/2)) -> 1.873425727 | R34: 0 | S34: 0 | T34: 0 | U34: 0 | V34: 0 | W34: 0 | X34: 0 | Y34: 0 | Z34: =(('VRF-WGES'!I31^2)/(5^2))*45 -> 5.425347222
B35: =IF(Eingabe!$M$6="Deutsch",Legende!$B163,IF(Eingabe!$M$6="English",Legende!$C163,FALSE)) -> mit | C35: 500 | D35: 400 | E35: SDF-SM | F35: 1500 | G35: 1000 | H35: 2 | I35: 4 | J35: 8 | K35: 17 | L35: 33 | M35: 32 | N35: 18 | O35: 14 | P35: 500x400 | Q35: =IF(70*LOG('VRF-WGES'!I32*2)-25+10*LOG('VRF-WGES'!F32/2)<0,0,70*LOG('VRF-WGES'!I32*2)-25+10*LOG('VRF-WGES'!F32/2)) -> 0 | R35: 0 | S35: 0 | T35: 0 | U35: 0 | V35: 0 | W35: 0 | X35: 0 | Y35: 0 | Z35: =(('VRF-WGES'!I32^2)/(5^2))*45 -> 3.472222222
B36: =IF(Eingabe!$M$6="Deutsch",Legende!$B164,IF(Eingabe!$M$6="English",Legende!$C164,FALSE)) -> von: | C36: 600 | D36: 400 | E36: SDF-SM | F36: 1500 | G36: 1000 | H36: 2 | I36: 4 | J36: 8 | K36: 17 | L36: 33 | M36: 32 | N36: 18 | O36: 14 | P36: 600x400 | Q36: =IF(70*LOG('VRF-WGES'!I33*2)-25+10*LOG('VRF-WGES'!F33/2)<0,0,70*LOG('VRF-WGES'!I33*2)-25+10*LOG('VRF-WGES'!F33/2)) -> 0 | R36: 0 | S36: 0 | T36: 0 | U36: 0 | V36: 0 | W36: 0 | X36: 0 | Y36: 0 | Z36: =(('VRF-WGES'!I33^2)/(5^2))*45 -> 2.411265432
B37: =IF(Eingabe!$M$6="Deutsch",Legende!$B165,IF(Eingabe!$M$6="English",Legende!$C165,FALSE)) -> bis: | C37: 800 | D37: 400 | E37: SDF-SM | F37: 1500 | G37: 1000 | H37: 2 | I37: 4 | J37: 8 | K37: 17 | L37: 33 | M37: 32 | N37: 18 | O37: 14 | P37: 800x400 | Q37: =IF(70*LOG('VRF-WGES'!I34*2)-25+10*LOG('VRF-WGES'!F34/2)<0,0,70*LOG('VRF-WGES'!I34*2)-25+10*LOG('VRF-WGES'!F34/2)) -> 0 | R37: 0 | S37: 0 | T37: 0 | U37: 0 | V37: 0 | W37: 0 | X37: 0 | Y37: 0 | Z37: =(('VRF-WGES'!I34^2)/(5^2))*45 -> 1.356336806
B38: =IF(Eingabe!$M$6="Deutsch",Legende!$B167,IF(Eingabe!$M$6="English",Legende!$C166,FALSE)) -> Breite | C38: 1000 | D38: 400 | E38: SDF-SM | F38: 1500 | G38: 1000 | H38: 2 | I38: 4 | J38: 8 | K38: 17 | L38: 33 | M38: 32 | N38: 18 | O38: 14 | P38: 1000x400 | Q38: =IF(70*LOG('VRF-WGES'!I35*2)-25+10*LOG('VRF-WGES'!F35/2)<0,0,70*LOG('VRF-WGES'!I35*2)-25+10*LOG('VRF-WGES'!F35/2)) -> 0 | R38: 0 | S38: 0 | T38: 0 | U38: 0 | V38: 0 | W38: 0 | X38: 0 | Y38: 0 | Z38: =(('VRF-WGES'!I35^2)/(5^2))*45 -> 0.8680555556
B39: =IF(Eingabe!$M$6="Deutsch",Legende!$B168,IF(Eingabe!$M$6="English",Legende!$C167,FALSE)) -> Höhe | C39: 1200 | D39: 400 | E39: SDF-SM | F39: 1500 | G39: 1000 | H39: 2 | I39: 4 | J39: 8 | K39: 17 | L39: 33 | M39: 32 | N39: 18 | O39: 14 | P39: 1200x400 | Q39: =IF(70*LOG('VRF-WGES'!I36*2)-25+10*LOG('VRF-WGES'!F36/2)<0,0,70*LOG('VRF-WGES'!I36*2)-25+10*LOG('VRF-WGES'!F36/2)) -> 0 | R39: 0 | S39: 0 | T39: 0 | U39: 0 | V39: 0 | W39: 0 | X39: 0 | Y39: 0 | Z39: =(('VRF-WGES'!I36^2)/(5^2))*45 -> 0.602816358
B41: =IF(Eingabe!$M$6="Deutsch",Legende!$B152,IF(Eingabe!$M$6="English",Legende!$C152,FALSE)) -> Legende
B42: =IF(Eingabe!$M$6="Deutsch",Legende!$B150,IF(Eingabe!$M$6="English",Legende!$C150,FALSE)) -> * L = Einbaulänge
B43: =IF(Eingabe!$M$6="Deutsch",Legende!$B151,IF(Eingabe!$M$6="English",Legende!$C151,FALSE)) -> SDF-SM = Schalldämpfer eckig, bestehend aus verzinktem Stahlblech mit Schalldämm-Mittelkulissen.
B47: =Eingabe!B37 -> © LTG Aktiengesellschaft - 13-05-2020
B48: =IF(Eingabe!$M$6="Deutsch",Legende!$B47,IF(Eingabe!$M$6="English",Legende!$C47,FALSE)) -> Angaben zu Toleranzen sowie weitere Spezifikationen sind der aktuellen Technischen Dokumentation zu entnehmen. Diese finden Sie auf www.LTG.de.
B49: =IF(Eingabe!$M$6="Deutsch",Legende!$B48,IF(Eingabe!$M$6="English",Legende!$C48,FALSE)) -> Eine Fehlerfreiheit des Programms kann nicht zugesichert werden. Im Zweifel gelten die technischen Daten der aktuellen Technischen Dokumentation.
B50: =IF(Eingabe!$M$6="Deutsch",Legende!$B49,IF(Eingabe!$M$6="English",Legende!$C49,FALSE)) -> Aus Programmierfehlern entstandener Schaden geht nicht zu Lasten der LTG. Technische Änderungen im Rahmen der Weiterentwicklung vorbehalten.

Sheet Auswahl (hidden)
A1: VRE-W
A2: =IF(Eingabe!$M$6="Deutsch",Legende!$B99,IF(Eingabe!$M$6="English",Legende!$C99,FALSE)) -> Bauhöhe | B2: =IF(Eingabe!$M$6="Deutsch",Legende!$B100,IF(Eingabe!$M$6="English",Legende!$C100,FALSE)) -> Baugröße | C2: =IF(Eingabe!$M$6="Deutsch",Legende!$B101,IF(Eingabe!$M$6="English",Legende!$C101,FALSE)) -> VNenn | D2: Dpmind | E2: cMax | F2: LWA Durch. | G2: LPA Durch. | H2: LWA Abstr. | I2: LPA Abstr. | K2: =IF(Eingabe!$M$6="Deutsch",Legende!$B99,IF(Eingabe!$M$6="English",Legende!$C99,FALSE)) -> Bauhöhe | L2: cMax | M2: cMax | N2: LWA Durch. | P2: =IF(Eingabe!$M$6="Deutsch",Legende!$B99,IF(Eingabe!$M$6="English",Legende!$C99,FALSE)) -> Bauhöhe | Q2: =IF(Eingabe!$M$6="Deutsch",Legende!$B100,IF(Eingabe!$M$6="English",Legende!$C100,FALSE)) -> Baugröße | R2: =IF(Eingabe!$M$6="Deutsch",Legende!$B101,IF(Eingabe!$M$6="English",Legende!$C101,FALSE)) -> VNenn | S2: Dpmind | T2: cMax | U2: LWA Durch. | V2: LPA Durch. | W2: LWA Abstr. | X2: LPA Abstr. | Y2: =IF(Eingabe!$M$6="Deutsch",Legende!$B103,IF(Eingabe!$M$6="English",Legende!$C103,FALSE)) -> Leider keine Vorschläge bei den geg. Auslegungsbedingungen!
A3: =B3 -> 100 | B3: ='VRE-W'!A3 -> 100 | C3: 272 | D3: =IF(SD=FALSE,6.5852*EXP(0.1904*'VRE-W'!F3),SDEInfo!Y7+6.5852*EXP(0.1904*'VRE-W'!F3)) -> 7270.240905 | E3: =IF(Auswahl!D3<'VRE-W'!G3,'VRE-W'!F3,0) -> 0 | F3: =IF(SD=FALSE,'VRE-W'!J3,'VRE-W'!T3) -> 88.26666667 | G3: =IF(SD=FALSE,'VRE-W'!BI3,'VRE-W'!BS3) -> 77.01954321 | H3: =IF(DS=FALSE,'VRE-W'!AD3,'VRE-W'!AN3) -> 98.25943402 | I3: =H3-9 -> 89.25943402 | J3: y = 6,5852e0,1904x | K3: ="<="&Eingabe!K16 -> <=400 | L3: ="<="&cMax -> <=10 | M3: =">="&cMin -> >=1 | N3: ="<="&Eingabe!K18 -> <=80 | P3: 200 | Q3: 200 | R3: 1108 | S3: 40.85636646 | T3: 9.1 | U3: 60.2 | V3: 49.34663593 | W3: 46.601067 | X3: 37.601067
A4: =B4 -> 125 | B4: ='VRE-W'!A4 -> 125 | C4: 428 | D4: =IF(SD=FALSE,7.2241*EXP(0.1904*'VRE-W'!F4),SDEInfo!Y8+7.2241*EXP(0.1904*'VRE-W'!F4)) -> 633.8565448 | E4: =IF(Auswahl!D4<'VRE-W'!G4,'VRE-W'!F4,0) -> 0 | F4: =IF(SD=FALSE,'VRE-W'!J4,'VRE-W'!T4) -> 73 | G4: =IF(SD=FALSE,'VRE-W'!BI4,'VRE-W'!BS4) -> 60.56628439 | H4: =IF(DS=FALSE,'VRE-W'!AD4,'VRE-W'!AN4) -> 68.90253249 | I4: =H4-9 -> 59.90253249 | J4: y = 7,2241e0,1646x | P4: 250 | Q4: 250 | R4: 1739 | S4: 17.59166 | T4: 5.8 | U4: 57.7 | V4: 46.95734397 | W4: 41.1329222 | X4: 32.1329222
A5: 160 | B5: ='VRE-W'!A5 -> 160 | C5: 706 | D5: =IF(SD=FALSE,7.2241*EXP(0.1904*'VRE-W'!F5),SDEInfo!Y9+7.2241*EXP(0.1904*'VRE-W'!F5)) -> 107.8889717 | E5: =IF(Auswahl!D5<'VRE-W'!G5,'VRE-W'!F5,0) -> 14.2 | F5: =IF(SD=FALSE,'VRE-W'!J5,'VRE-W'!T5) -> 68.8 | G5: =IF(SD=FALSE,'VRE-W'!BI5,'VRE-W'!BS5) -> 57.94969235 | H5: =IF(DS=FALSE,'VRE-W'!AD5,'VRE-W'!AN5) -> 53.59852137 | I5: 44.59852137 | J5: y = 7,2241e0,1646x | P5: 315 | Q5: 315 | R5: 2770 | S5: 13.55092 | T5: 3.6 | U5: 53.55 | V5: 42.75357139 | W5: 39.45174103 | X5: 30.45174103
A6: 200 | B6: ='VRE-W'!A6 -> 200 | C6: 1108 | D6: =IF(SD=FALSE,7.2241*EXP(0.1904*'VRE-W'!F6),SDEInfo!Y10+7.2241*EXP(0.1904*'VRE-W'!F6)) -> 40.85636646 | E6: =IF(Auswahl!D6<'VRE-W'!G6,'VRE-W'!F6,0) -> 9.1 | F6: =IF(SD=FALSE,'VRE-W'!J6,'VRE-W'!T6) -> 60.2 | G6: =IF(SD=FALSE,'VRE-W'!BI6,'VRE-W'!BS6) -> 49.34663593 | H6: =IF(DS=FALSE,'VRE-W'!AD6,'VRE-W'!AN6) -> 46.601067 | I6: =H6-9 -> 37.601067 | J6: y = 7,2241e0,1646x | P6: 400 | Q6: 400 | R6: 4479 | S6: 10.97954 | T6: 2.2 | U6: 52.4 | V6: 41.59481473 | W6: 41.58703352 | X6: 32.58703352
A7: 250 | B7: ='VRE-W'!A7 -> 250 | C7: 1739 | D7: =IF(SD=FALSE,1.8367*'VRE-W'!F7+6.9388,SDEInfo!Y11+1.8367*'VRE-W'!F7+6.9388) -> 17.59166 | E7: =IF(Auswahl!D7<'VRE-W'!G7,'VRE-W'!F7,0) -> 5.8 | F7: =IF(SD=FALSE,'VRE-W'!J7,'VRE-W'!T7) -> 57.7 | G7: =IF(SD=FALSE,'VRE-W'!BI7,'VRE-W'!BS7) -> 46.95734397 | H7: =IF(DS=FALSE,'VRE-W'!AD7,'VRE-W'!AN7) -> 41.1329222 | I7: 32.1329222 | J7: y = 1,8367x + 6,9388
A8: 315 | B8: ='VRE-W'!A8 -> 315 | C8: 2770 | D8: =IF(SD=FALSE,1.8367*'VRE-W'!F8+6.9388,SDEInfo!Y12+1.8367*'VRE-W'!F8+6.9388) -> 13.55092 | E8: =IF(Auswahl!D8<'VRE-W'!G8,'VRE-W'!F8,0) -> 3.6 | F8: =IF(SD=FALSE,'VRE-W'!J8,'VRE-W'!T8) -> 53.55 | G8: =IF(SD=FALSE,'VRE-W'!BI8,'VRE-W'!BS8) -> 42.75357139 | H8: =IF(DS=FALSE,'VRE-W'!AD8,'VRE-W'!AN8) -> 39.45174103 | I8: 30.45174103 | J8: y = 1,8367x + 6,9388
A9: 400 | B9: ='VRE-W'!A9 -> 400 | C9: 4479 | D9: =IF(SD=FALSE,1.8367*'VRE-W'!F9+6.9388,SDEInfo!Y13+1.8367*'VRE-W'!F9+6.9388) -> 10.97954 | E9: =IF(Auswahl!D9<'VRE-W'!G9,'VRE-W'!F9,0) -> 2.2 | F9: =IF(SD=FALSE,'VRE-W'!J9,'VRE-W'!T9) -> 52.4 | G9: =IF(SD=FALSE,'VRE-W'!BI9,'VRE-W'!BS9) -> 41.59481473 | H9: =IF(DS=FALSE,'VRE-W'!AD9,'VRE-W'!AN9) -> 41.58703352 | I9: 32.58703352 | J9: y = 1,8367x + 6,9388
A11: VRF-W
A12: =IF(Eingabe!$M$6="Deutsch",Legende!$B99,IF(Eingabe!$M$6="English",Legende!$C99,FALSE)) -> Bauhöhe | B12: =IF(Eingabe!$M$6="Deutsch",Legende!$B100,IF(Eingabe!$M$6="English",Legende!$C100,FALSE)) -> Baugröße | C12: =IF(Eingabe!$M$6="Deutsch",Legende!$B101,IF(Eingabe!$M$6="English",Legende!$C101,FALSE)) -> VNenn | D12: Dpmind | E12: cMax | F12: LWA Durch. | G12: LPA Durch. | H12: LWA Abstr. | I12: LPA Abstr. | K12: =IF(Eingabe!$M$6="Deutsch",Legende!$B99,IF(Eingabe!$M$6="English",Legende!$C99,FALSE)) -> Bauhöhe | L12: cMax | M12: cMax | N12: LWA Durch. | P12: =IF(Eingabe!$M$6="Deutsch",Legende!$B99,IF(Eingabe!$M$6="English",Legende!$C99,FALSE)) -> Bauhöhe | Q12: =IF(Eingabe!$M$6="Deutsch",Legende!$B100,IF(Eingabe!$M$6="English",Legende!$C100,FALSE)) -> Baugröße | R12: =IF(Eingabe!$M$6="Deutsch",Legende!$B101,IF(Eingabe!$M$6="English",Legende!$C101,FALSE)) -> VNenn | S12: Dpmind | T12: cMax | U12: LWA Durch. | V12: LPA Durch. | W12: LWA Abstr. | X12: LPA Abstr.
A13: =VALUE(MID(B13,5,3)) -> 100 | B13: ='VRF-WGES'!B3 -> 200x100 | C13: 720 | D13: =IF(SD=FALSE,6.5418*EXP('VRF-WGES'!I3*0.2546),6.5418*EXP('VRF-WGES'!I3*0.2546)+SDFInfo!Z6) -> 224.6005448 | E13: =IF(Auswahl!D13<dp,'VRF-WGES'!I3,0) -> 0 | F13: =IF(SD=FALSE,'VRF-WGES'!T3,'VRF-WGES'!AD3) -> 67.9537037 | G13: =IF(SD=FALSE,'VRF-WGES'!BR3,'VRF-WGES'!CB3) -> 57.10796993 | H13: =IF(DS=FALSE,'VRF-WAbstrOhneDS'!S3,'VRF-WAbstrMitDS'!S3) -> 63.10185185 | I13: =H13-9 -> 54.10185185 | J13: y=6,5418e0,2546x | K13: ="<="&Eingabe!K16 -> <=400 | L13: ="<="&cMax -> <=10 | M13: =">="&cMin -> >=1 | N13: ="<="&Eingabe!K18 -> <=80 | P13: 100 | Q13: 300x100 | R13: 1080 | S13: 58.83506591 | T13: 9.259259259 | U13: 61.08024691 | V13: 50.24457384 | W13: 55.45679012 | X13: 46.45679012
A14: 100 | B14: ='VRF-WGES'!B4 -> 300x100 | C14: 1080 | D14: =IF(SD=FALSE,5.9042*EXP('VRF-WGES'!I4*0.2483),5.9042*EXP('VRF-WGES'!I4*0.2483)+SDFInfo!Z7) -> 58.83506591 | E14: =IF(Auswahl!D14<dp,'VRF-WGES'!I4,0) -> 9.259259259 | F14: =IF(SD=FALSE,'VRF-WGES'!T4,'VRF-WGES'!AD4) -> 61.08024691 | G14: =IF(SD=FALSE,'VRF-WGES'!BR4,'VRF-WGES'!CB4) -> 50.24457384 | H14: =IF(DS=FALSE,'VRF-WAbstrOhneDS'!S4,'VRF-WAbstrMitDS'!S4) -> 55.45679012 | I14: =H14-9 -> 46.45679012 | J14: y=5,9042e0,2483x | P14: 100 | Q14: 400x100 | R14: 1440 | S14: 29.83910833 | T14: 6.944444444 | U14: 57.64351852 | V14: 46.79806792 | W14: 51.63425926 | X14: 42.63425926
A15: 100 | B15: ='VRF-WGES'!B5 -> 400x100 | C15: 1440 | D15: =IF(SD=FALSE,6.2416*EXP('VRF-WGES'!I5*0.2253),6.2416*EXP('VRF-WGES'!I5*0.2253)+SDFInfo!Z8) -> 29.83910833 | E15: =IF(Auswahl!D15<dp,'VRF-WGES'!I5,0) -> 6.944444444 | F15: =IF(SD=FALSE,'VRF-WGES'!T5,'VRF-WGES'!AD5) -> 57.64351852 | G15: =IF(SD=FALSE,'VRF-WGES'!BR5,'VRF-WGES'!CB5) -> 46.79806792 | H15: =IF(DS=FALSE,'VRF-WAbstrOhneDS'!S5,'VRF-WAbstrMitDS'!S5) -> 51.63425926 | I15: 42.63425926 | J15: y = 6,2416e0,2253x | P15: 100 | Q15: 500x100 | R15: 1800 | S15: 21.82166375 | T15: 5.555555556 | U15: 55.98148148 | V15: 45.12769295 | W15: 49.74074074 | X15: 40.74074074
A16: 100 | B16: ='VRF-WGES'!B6 -> 500x100 | C16: 1800 | D16: =IF(SD=FALSE,6.2416*EXP('VRF-WGES'!I6*0.2253),6.2416*EXP('VRF-WGES'!I6*0.2253)+SDFInfo!Z9) -> 21.82166375 | E16: =IF(Auswahl!D16<dp,'VRF-WGES'!I6,0) -> 5.555555556 | F16: =IF(SD=FALSE,'VRF-WGES'!T6,'VRF-WGES'!AD6) -> 55.98148148 | G16: =IF(SD=FALSE,'VRF-WGES'!BR6,'VRF-WGES'!CB6) -> 45.12769295 | H16: =IF(DS=FALSE,'VRF-WAbstrOhneDS'!S6,'VRF-WAbstrMitDS'!S6) -> 49.74074074 | I16: 40.74074074 | J16: y = 6,2416e0,2253x | P16: 100 | Q16: 600x100 | R16: 2160 | S16: 17.71288101 | T16: 4.62962963 | U16: 55.20679012 | V16: 44.3467649 | W16: 48.8117284 | X16: 39.8117284
A17: 100 | B17: ='VRF-WGES'!B7 -> 600x100 | C17: 2160 | D17: =IF(SD=FALSE,6.2416*EXP('VRF-WGES'!I7*0.2253),6.2416*EXP('VRF-WGES'!I7*0.2253)+SDFInfo!Z10) -> 17.71288101 | E17: =IF(Auswahl!D17<dp,'VRF-WGES'!I7,0) -> 4.62962963 | F17: =IF(SD=FALSE,'VRF-WGES'!T7,'VRF-WGES'!AD7) -> 55.20679012 | G17: =IF(SD=FALSE,'VRF-WGES'!BR7,'VRF-WGES'!CB7) -> 44.3467649 | H17: =IF(DS=FALSE,'VRF-WAbstrOhneDS'!S7,'VRF-WAbstrMitDS'!S7) -> 48.8117284 | I17: 39.8117284 | J17: y = 6,2416e0,2253x | P17: 150 | Q17: 300x150 | R17: 1620 | S17: 19.95484641 | T17: 6.172839506 | U17: 59.81069959 | V17: 48.97684819 | W17: 53.53497942 | X17: 44.53497942
A18: 150 | B18: ='VRF-WGES'!B8 -> 300x150 | C18: 1620 | D18: =IF(SD=FALSE,7.2241*EXP('VRF-WGES'!I8*0.1646),7.2241*EXP('VRF-WGES'!I8*0.1646)+SDFInfo!Z11) -> 19.95484641 | E18: =IF(Auswahl!D18<dp,'VRF-WGES'!I8,0) -> 6.172839506 | F18: =IF(SD=FALSE,'VRF-WGES'!T8,'VRF-WGES'!AD8) -> 59.81069959 | G18: =IF(SD=FALSE,'VRF-WGES'!BR8,'VRF-WGES'!CB8) -> 48.97684819 | H18: =IF(DS=FALSE,'VRF-WAbstrOhneDS'!S8,'VRF-WAbstrMitDS'!S8) -> 53.53497942 | I18: 44.53497942 | J18: y = 7,2241e0,1646x | P18: 150 | Q18: 400x150 | R18: 2160 | S18: 15.47861967 | T18: 4.62962963 | U18: 59.52469136 | V18: 48.68656944 | W18: 52.7345679 | X18: 43.7345679
A19: 150 | B19: ='VRF-WGES'!B9 -> 400x150 | C19: 2160 | D19: =IF(SD=FALSE,7.2241*EXP('VRF-WGES'!I9*0.1646),7.2241*EXP('VRF-WGES'!I9*0.1646)+SDFInfo!Z12) -> 15.47861967 | E19: =IF(Auswahl!D19<dp,'VRF-WGES'!I9,0) -> 4.62962963 | F19: =IF(SD=FALSE,'VRF-WGES'!T9,'VRF-WGES'!AD9) -> 59.52469136 | G19: =IF(SD=FALSE,'VRF-WGES'!BR9,'VRF-WGES'!CB9) -> 48.68656944 | H19: =IF(DS=FALSE,'VRF-WAbstrOhneDS'!S9,'VRF-WAbstrMitDS'!S9) -> 52.7345679 | I19: 43.7345679 | J19: y = 7,2241e0,1646x | P19: 150 | Q19: 500x150 | R19: 2700 | S19: 13.29053714 | T19: 3.703703704 | U19: 59.40740741 | V19: 48.58182171 | W19: 52.20987654 | X19: 43.20987654
A20: 150 | B20: ='VRF-WGES'!B10 -> 500x150 | C20: 2700 | D20: =IF(SD=FALSE,7.2241*EXP('VRF-WGES'!I10*0.1646),7.2241*EXP('VRF-WGES'!I10*0.1646)+SDFInfo!Z13) -> 13.29053714 | E20: =IF(Auswahl!D20<dp,'VRF-WGES'!I10,0) -> 3.703703704 | F20: =IF(SD=FALSE,'VRF-WGES'!T10,'VRF-WGES'!AD10) -> 59.40740741 | G20: =IF(SD=FALSE,'VRF-WGES'!BR10,'VRF-WGES'!CB10) -> 48.58182171 | H20: =IF(DS=FALSE,'VRF-WAbstrOhneDS'!S10,'VRF-WAbstrMitDS'!S10) -> 52.20987654 | I20: 43.20987654 | J20: y = 7,2241e0,1646x | P20: 150 | Q20: 600x150 | R20: 3240 | S20: 12.00649016 | T20: 3.086419753 | U20: 59.17283951 | V20: 48.37515878 | W20: 51.56378601 | X20: 42.56378601
A21: 150 | B21: ='VRF-WGES'!B11 -> 600x150 | C21: 3240 | D21: =IF(SD=FALSE,7.2241*EXP('VRF-WGES'!I11*0.1646),7.2241*EXP('VRF-WGES'!I11*0.1646)+SDFInfo!Z14) -> 12.00649016 | E21: =IF(Auswahl!D21<dp,'VRF-WGES'!I11,0) -> 3.086419753 | F21: =IF(SD=FALSE,'VRF-WGES'!T11,'VRF-WGES'!AD11) -> 59.17283951 | G21: =IF(SD=FALSE,'VRF-WGES'!BR11,'VRF-WGES'!CB11) -> 48.37515878 | H21: =IF(DS=FALSE,'VRF-WAbstrOhneDS'!S11,'VRF-WAbstrMitDS'!S11) -> 51.56378601 | I21: 42.56378601 | J21: y = 7,2241e0,1646x | P21: 200 | Q21: 200x200 | R21: 1440 | S21: 22.65721206 | T21: 6.944444444 | U21: 58.98148148 | V21: 48.17535533 | W21: 50.71759259 | X21: 41.71759259
A22: 200 | B22: ='VRF-WGES'!B12 -> 200x200 | C22: 1440 | D22: =IF(SD=FALSE,7.2241*EXP('VRF-WGES'!I12*0.1646),7.2241*EXP('VRF-WGES'!I12*0.1646)+SDFInfo!Z15) -> 22.65721206 | E22: =IF(Auswahl!D22<dp,'VRF-WGES'!I12,0) -> 6.944444444 | F22: =IF(SD=FALSE,'VRF-WGES'!T12,'VRF-WGES'!AD12) -> 58.98148148 | G22: =IF(SD=FALSE,'VRF-WGES'!BR12,'VRF-WGES'!CB12) -> 48.17535533 | H22: =IF(DS=FALSE,'VRF-WAbstrOhneDS'!S12,'VRF-WAbstrMitDS'!S12) -> 50.71759259 | I22: 41.71759259 | J22: y = 7,2241e0,1646x | P22: 200 | Q22: 300x200 | R22: 2160 | S22: 15.47861967 | T22: 4.62962963 | U22: 59.20987654 | V22: 48.35999621 | W22: 50.36728395 | X22: 41.36728395
A23: 200 | B23: ='VRF-WGES'!B13 -> 300x200 | C23: 2160 | D23: =IF(SD=FALSE,7.2241*EXP('VRF-WGES'!I13*0.1646),7.2241*EXP('VRF-WGES'!I13*0.1646)+SDFInfo!Z16) -> 15.47861967 | E23: =IF(Auswahl!D23<dp,'VRF-WGES'!I13,0) -> 4.62962963 | F23: =IF(SD=FALSE,'VRF-WGES'!T13,'VRF-WGES'!AD13) -> 59.20987654 | G23: =IF(SD=FALSE,'VRF-WGES'!BR13,'VRF-WGES'!CB13) -> 48.35999621 | H23: =IF(DS=FALSE,'VRF-WAbstrOhneDS'!S13,'VRF-WAbstrMitDS'!S13) -> 50.36728395 | I23: 41.36728395 | J23: y = 7,2241e0,1646x | P23: 200 | Q23: 400x200 | R23: 2880 | S23: 12.79366897 | T23: 3.472222222 | U23: 60 | V23: 49.12532504 | W23: 50.91203704 | X23: 41.91203704
A24: 200 | B24: ='VRF-WGES'!B14 -> 400x200 | C24: 2880 | D24: =IF(SD=FALSE,7.2241*EXP('VRF-WGES'!I14*0.1646),7.2241*EXP('VRF-WGES'!I14*0.1646)+SDFInfo!Z17) -> 12.79366897 | E24: =IF(Auswahl!D24<dp,'VRF-WGES'!I14,0) -> 3.472222222 | F24: =IF(SD=FALSE,'VRF-WGES'!T14,'VRF-WGES'!AD14) -> 60 | G24: =IF(SD=FALSE,'VRF-WGES'!BR14,'VRF-WGES'!CB14) -> 49.12532504 | H24: =IF(DS=FALSE,'VRF-WAbstrOhneDS'!S14,'VRF-WAbstrMitDS'!S14) -> 50.91203704 | I24: 41.91203704 | J24: y = 7,2241e0,1646x | P24: 200 | Q24: 500x200 | R24: 3600 | S24: 11.41176546 | T24: 2.777777778 | U24: 61 | V24: 50.10438165 | W24: 51.7962963 | X24: 42.7962963
A25: 200 | B25: ='VRF-WGES'!B15 -> 500x200 | C25: 3600 | D25: =IF(SD=FALSE,7.2241*EXP('VRF-WGES'!I15*0.1646),7.2241*EXP('VRF-WGES'!I15*0.1646)+SDFInfo!Z18) -> 11.41176546 | E25: =IF(Auswahl!D25<dp,'VRF-WGES'!I15,0) -> 2.777777778 | F25: =IF(SD=FALSE,'VRF-WGES'!T15,'VRF-WGES'!AD15) -> 61 | G25: =IF(SD=FALSE,'VRF-WGES'!BR15,'VRF-WGES'!CB15) -> 50.10438165 | H25: =IF(DS=FALSE,'VRF-WAbstrOhneDS'!S15,'VRF-WAbstrMitDS'!S15) -> 51.7962963 | I25: 42.7962963 | J25: y = 7,2241e0,1646x | P25: 200 | Q25: 600x200 | R25: 4320 | S25: 10.5744549 | T25: 2.314814815 | U25: 62 | V25: 51.09077555 | W25: 52.7191358 | X25: 43.7191358
A26: 200 | B26: ='VRF-WGES'!B16 -> 600x200 | C26: 4320 | D26: =IF(SD=FALSE,7.2241*EXP('VRF-WGES'!I16*0.1646),7.2241*EXP('VRF-WGES'!I16*0.1646)+SDFInfo!Z19) -> 10.5744549 | E26: =IF(Auswahl!D26<dp,'VRF-WGES'!I16,0) -> 2.314814815 | F26: =IF(SD=FALSE,'VRF-WGES'!T16,'VRF-WGES'!AD16) -> 62 | G26: =IF(SD=FALSE,'VRF-WGES'!BR16,'VRF-WGES'!CB16) -> 51.09077555 | H26: =IF(DS=FALSE,'VRF-WAbstrOhneDS'!S16,'VRF-WAbstrMitDS'!S16) -> 52.7191358 | I26: 43.7191358 | J26: y = 7,2241e0,1646x | P26: 200 | Q26: 800x200 | R26: 5760 | S26: 9.613674843 | T26: 1.736111111 | U26: 63 | V26: 52.07492285 | W26: 53.62268519 | X26: 44.62268519
A27: 200 | B27: ='VRF-WGES'!B17 -> 800x200 | C27: 5760 | D27: =IF(SD=FALSE,7.2241*EXP('VRF-WGES'!I17*0.1646),7.2241*EXP('VRF-WGES'!I17*0.1646)+SDFInfo!Z20) -> 9.613674843 | E27: =IF(Auswahl!D27<dp,'VRF-WGES'!I17,0) -> 1.736111111 | F27: =IF(SD=FALSE,'VRF-WGES'!T17,'VRF-WGES'!AD17) -> 63 | G27: =IF(SD=FALSE,'VRF-WGES'!BR17,'VRF-WGES'!CB17) -> 52.07492285 | H27: =IF(DS=FALSE,'VRF-WAbstrOhneDS'!S17,'VRF-WAbstrMitDS'!S17) -> 53.62268519 | I27: 44.62268519 | J27: y = 7,2241e0,1646x | P27: 250 | Q27: 300x250 | R27: 2700 | S27: 13.23809637 | T27: 3.703703704 | U27: 59.95061728 | V27: 49.1240907 | W27: 50.90123457 | X27: 41.90123457
A28: 250 | B28: ='VRF-WGES'!B18 -> 300x250 | C28: 2700 | D28: =IF(SD=FALSE,8.1401*EXP('VRF-WGES'!I18*0.1313),8.1401*EXP('VRF-WGES'!I18*0.1313)+SDFInfo!Z21) -> 13.23809637 | E28: =IF(Auswahl!D28<dp,'VRF-WGES'!I18,0) -> 3.703703704 | F28: =IF(SD=FALSE,'VRF-WGES'!T18,'VRF-WGES'!AD18) -> 59.95061728 | G28: =IF(SD=FALSE,'VRF-WGES'!BR18,'VRF-WGES'!CB18) -> 49.1240907 | H28: =IF(DS=FALSE,'VRF-WAbstrOhneDS'!S18,'VRF-WAbstrMitDS'!S18) -> 50.90123457 | I28: 41.90123457 | J28: y = 8,1401e0,1313x | P28: 250 | Q28: 400x250 | R28: 3600 | S28: 11.72267133 | T28: 2.777777778 | U28: 60.7962963 | V28: 49.9261917 | W28: 51.59259259 | X28: 42.59259259
A29: 250 | B29: ='VRF-WGES'!B19 -> 400x250 | C29: 3600 | D29: =IF(SD=FALSE,8.1401*EXP('VRF-WGES'!I19*0.1313),8.1401*EXP('VRF-WGES'!I19*0.1313)+SDFInfo!Z22) -> 11.72267133 | E29: =IF(Auswahl!D29<dp,'VRF-WGES'!I19,0) -> 2.777777778 | F29: =IF(SD=FALSE,'VRF-WGES'!T19,'VRF-WGES'!AD19) -> 60.7962963 | G29: =IF(SD=FALSE,'VRF-WGES'!BR19,'VRF-WGES'!CB19) -> 49.9261917 | H29: =IF(DS=FALSE,'VRF-WAbstrOhneDS'!S19,'VRF-WAbstrMitDS'!S19) -> 51.59259259 | I29: 42.59259259 | J29: y = 8,1401e0,1313x | P29: 250 | Q29: 500x250 | R29: 4500 | S29: 10.89801042 | T29: 2.222222222 | U29: 61.7037037 | V29: 50.81015878 | W29: 52.40740741 | X29: 43.40740741
A30: 250 | B30: ='VRF-WGES'!B20 -> 500x250 | C30: 4500 | D30: =IF(SD=FALSE,8.1401*EXP('VRF-WGES'!I20*0.1313),8.1401*EXP('VRF-WGES'!I20*0.1313)+SDFInfo!Z23) -> 10.89801042 | E30: =IF(Auswahl!D30<dp,'VRF-WGES'!I20,0) -> 2.222222222 | F30: =IF(SD=FALSE,'VRF-WGES'!T20,'VRF-WGES'!AD20) -> 61.7037037 | G30: =IF(SD=FALSE,'VRF-WGES'!BR20,'VRF-WGES'!CB20) -> 50.81015878 | H30: =IF(DS=FALSE,'VRF-WAbstrOhneDS'!S20,'VRF-WAbstrMitDS'!S20) -> 52.40740741 | I30: 43.40740741 | J30: y = 8,1401e0,1313x | P30: 250 | Q30: 600x250 | R30: 5400 | S30: 10.38072388 | T30: 1.851851852 | U30: 62.64197531 | V30: 51.73430505 | W30: 53.28395062 | X30: 44.28395062
A31: 250 | B31: ='VRF-WGES'!B21 -> 600x250 | C31: 5400 | D31: =IF(SD=FALSE,8.1401*EXP('VRF-WGES'!I21*0.1313),8.1401*EXP('VRF-WGES'!I21*0.1313)+SDFInfo!Z24) -> 10.38072388 | E31: =IF(Auswahl!D31<dp,'VRF-WGES'!I21,0) -> 1.851851852 | F31: =IF(SD=FALSE,'VRF-WGES'!T21,'VRF-WGES'!AD21) -> 62.64197531 | G31: =IF(SD=FALSE,'VRF-WGES'!BR21,'VRF-WGES'!CB21) -> 51.73430505 | H31: =IF(DS=FALSE,'VRF-WAbstrOhneDS'!S21,'VRF-WAbstrMitDS'!S21) -> 53.28395062 | I31: 44.28395062 | J31: y = 8,1401e0,1313x | P31: 250 | Q31: 800x250 | R31: 7200 | S31: 9.768506379 | T31: 1.388888889 | U31: 63.56481481 | V31: 52.6413247 | W31: 54.12962963 | X31: 45.12962963
A32: 250 | B32: ='VRF-WGES'!B22 -> 800x250 | C32: 7200 | D32: =IF(SD=FALSE,8.1401*EXP('VRF-WGES'!I22*0.1313),8.1401*EXP('VRF-WGES'!I22*0.1313)+SDFInfo!Z25) -> 9.768506379 | E32: =IF(Auswahl!D32<dp,'VRF-WGES'!I22,0) -> 1.388888889 | F32: =IF(SD=FALSE,'VRF-WGES'!T22,'VRF-WGES'!AD22) -> 63.56481481 | G32: =IF(SD=FALSE,'VRF-WGES'!BR22,'VRF-WGES'!CB22) -> 52.6413247 | H32: =IF(DS=FALSE,'VRF-WAbstrOhneDS'!S22,'VRF-WAbstrMitDS'!S22) -> 54.12962963 | I32: 45.12962963 | J32: y = 8,1401e0,1313x | P32: 300 | Q32: 300x300 | R32: 3240 | S32: 12.2074861 | T32: 3.086419753 | U32: 60.69547325 | V32: 49.86219347 | W32: 51.54320988 | X32: 42.54320988
P33: 300 | Q33: 400x300 | R33: 4320 | S33: 11.03131063 | T33: 2.314814815 | U33: 61.4382716 | V33: 50.56570073 | W33: 52.15740741 | X33: 43.15740741
A34: =VALUE(MID(B34,5,3)) -> 300 | B34: ='VRF-WGES'!B24 -> 300x300 | C34: 3240 | D34: =IF(SD=FALSE,8.1401*EXP('VRF-WGES'!I24*0.1313),8.1401*EXP('VRF-WGES'!I24*0.1313)+SDFInfo!Z27) -> 12.2074861 | E34: =IF(Auswahl!D34<dp,'VRF-WGES'!I24,0) -> 3.086419753 | F34: =IF(SD=FALSE,'VRF-WGES'!T24,'VRF-WGES'!AD24) -> 60.69547325 | G34: =IF(SD=FALSE,'VRF-WGES'!BR24,'VRF-WGES'!CB24) -> 49.86219347 | H34: =IF(DS=FALSE,'VRF-WAbstrOhneDS'!S24,'VRF-WAbstrMitDS'!S24) -> 51.54320988 | I34: 42.54320988 | J34: y = 8,1401e0,1313x | P34: 300 | Q34: 500x300 | R34: 5400 | S34: 10.38072388 | T34: 1.851851852 | U34: 62.28395062 | V34: 51.39104818 | W34: 52.92592593 | X34: 43.92592593
A35: =VALUE(MID(B35,5,3)) -> 300 | B35: ='VRF-WGES'!B25 -> 400x300 | C35: 4320 | D35: =IF(SD=FALSE,8.1401*EXP('VRF-WGES'!I25*0.1313),8.1401*EXP('VRF-WGES'!I25*0.1313)+SDFInfo!Z28) -> 11.03131063 | E35: =IF(Auswahl!D35<dp,'VRF-WGES'!I25,0) -> 2.314814815 | F35: =IF(SD=FALSE,'VRF-WGES'!T25,'VRF-WGES'!AD25) -> 61.4382716 | G35: =IF(SD=FALSE,'VRF-WGES'!BR25,'VRF-WGES'!CB25) -> 50.56570073 | H35: =IF(DS=FALSE,'VRF-WAbstrOhneDS'!S25,'VRF-WAbstrMitDS'!S25) -> 52.15740741 | I35: 43.15740741 | J35: y = 8,1401e0,1313x | P35: 300 | Q35: 600x300 | R35: 6480 | S35: 9.968458137 | T35: 1.543209877 | U35: 63.18106996 | V35: 52.27600542 | W35: 53.77160494 | X35: 44.77160494
A36: =VALUE(MID(B36,5,3)) -> 300 | B36: ='VRF-WGES'!B26 -> 500x300 | C36: 5400 | D36: =IF(SD=FALSE,8.1401*EXP('VRF-WGES'!I26*0.1313),8.1401*EXP('VRF-WGES'!I26*0.1313)+SDFInfo!Z29) -> 10.38072388 | E36: =IF(Auswahl!D36<dp,'VRF-WGES'!I26,0) -> 1.851851852 | F36: =IF(SD=FALSE,'VRF-WGES'!T26,'VRF-WGES'!AD26) -> 62.28395062 | G36: =IF(SD=FALSE,'VRF-WGES'!BR26,'VRF-WGES'!CB26) -> 51.39104818 | H36: =IF(DS=FALSE,'VRF-WAbstrOhneDS'!S26,'VRF-WAbstrMitDS'!S26) -> 52.92592593 | I36: 43.92592593 | J36: y = 8,1401e0,1313x | P36: 300 | Q36: 800x300 | R36: 8640 | S36: 9.476073641 | T36: 1.157407407 | U36: 64.05246914 | V36: 53.13373734 | W36: 54.5787037 | X36: 45.5787037
A37: =VALUE(MID(B37,5,3)) -> 300 | B37: ='VRF-WGES'!B27 -> 600x300 | C37: 6480 | D37: =IF(SD=FALSE,8.1401*EXP('VRF-WGES'!I27*0.1313),8.1401*EXP('VRF-WGES'!I27*0.1313)+SDFInfo!Z30) -> 9.968458137 | E37: =IF(Auswahl!D37<dp,'VRF-WGES'!I27,0) -> 1.543209877 | F37: =IF(SD=FALSE,'VRF-WGES'!T27,'VRF-WGES'!AD27) -> 63.18106996 | G37: =IF(SD=FALSE,'VRF-WGES'!BR27,'VRF-WGES'!CB27) -> 52.27600542 | H37: =IF(DS=FALSE,'VRF-WAbstrOhneDS'!S27,'VRF-WAbstrMitDS'!S27) -> 53.77160494 | I37: 44.77160494 | J37: y = 8,1401e0,1313x | P37: 400 | Q37: 400x400 | R37: 5760 | S37: 10.22416314 | T37: 1.736111111 | U37: 62.99074074 | V37: 52.11315107 | W37: 53.49074074 | X37: 44.49074074
A38: =VALUE(MID(B38,5,3)) -> 300 | B38: ='VRF-WGES'!B28 -> 800x300 | C38: 8640 | D38: =IF(SD=FALSE,8.1401*EXP('VRF-WGES'!I28*0.1313),8.1401*EXP('VRF-WGES'!I28*0.1313)+SDFInfo!Z31) -> 9.476073641 | E38: =IF(Auswahl!D38<dp,'VRF-WGES'!I28,0) -> 1.157407407 | F38: =IF(SD=FALSE,'VRF-WGES'!T28,'VRF-WGES'!AD28) -> 64.05246914 | G38: =IF(SD=FALSE,'VRF-WGES'!BR28,'VRF-WGES'!CB28) -> 53.13373734 | H38: =IF(DS=FALSE,'VRF-WAbstrOhneDS'!S28,'VRF-WAbstrMitDS'!S28) -> 54.5787037 | I38: 45.5787037 | J38: y = 8,1401e0,1313x | P38: 400 | Q38: 500x400 | R38: 7200 | S38: 9.768506379 | T38: 1.388888889 | U38: 63.75925926 | V38: 52.86204999 | W38: 54.25925926 | X38: 45.25925926
A39: =VALUE(MID(B39,6,3)) -> 300 | B39: ='VRF-WGES'!B29 -> 1000x300 | C39: 10800 | D39: =IF(SD=FALSE,8.1401*EXP('VRF-WGES'!I29*0.1313),8.1401*EXP('VRF-WGES'!I29*0.1313)+SDFInfo!Z32) -> 9.192395251 | E39: =IF(Auswahl!D39<dp,'VRF-WGES'!I29,0) -> 0.9259259259 | F39: =IF(SD=FALSE,'VRF-WGES'!T29,'VRF-WGES'!AD29) -> 64.97530864 | G39: =IF(SD=FALSE,'VRF-WGES'!BR29,'VRF-WGES'!CB29) -> 54.04916695 | H39: =IF(DS=FALSE,'VRF-WAbstrOhneDS'!S29,'VRF-WAbstrMitDS'!S29) -> 55.46296296 | I39: 46.46296296 | J39: y = 8,1401e0,1313x | P39: 400 | Q39: 600x400 | R39: 8640 | S39: 9.476073641 | T39: 1.157407407 | U39: 64.60493827 | V39: 53.69615047 | W39: 55.10493827 | X39: 46.10493827
A41: =VALUE(MID(B41,5,3)) -> 400 | B41: ='VRF-WGES'!B31 -> 400x400 | C41: 5760 | D41: =IF(SD=FALSE,8.1401*EXP('VRF-WGES'!I31*0.1313),8.1401*EXP('VRF-WGES'!I31*0.1313)+SDFInfo!Z34) -> 10.22416314 | E41: =IF(Auswahl!D41<dp,'VRF-WGES'!I31,0) -> 1.736111111 | F41: =IF(SD=FALSE,'VRF-WGES'!T31,'VRF-WGES'!AD31) -> 62.99074074 | G41: =IF(SD=FALSE,'VRF-WGES'!BR31,'VRF-WGES'!CB31) -> 52.11315107 | H41: =IF(DS=FALSE,'VRF-WAbstrOhneDS'!S31,'VRF-WAbstrMitDS'!S31) -> 53.49074074 | I41: 44.49074074 | J41: y = 8,1401e0,1313x
A42: =VALUE(MID(B42,5,3)) -> 400 | B42: ='VRF-WGES'!B32 -> 500x400 | C42: 7200 | D42: =IF(SD=FALSE,8.1401*EXP('VRF-WGES'!I32*0.1313),8.1401*EXP('VRF-WGES'!I32*0.1313)+SDFInfo!Z35) -> 9.768506379 | E42: =IF(Auswahl!D42<dp,'VRF-WGES'!I32,0) -> 1.388888889 | F42: =IF(SD=FALSE,'VRF-WGES'!T32,'VRF-WGES'!AD32) -> 63.75925926 | G42: =IF(SD=FALSE,'VRF-WGES'!BR32,'VRF-WGES'!CB32) -> 52.86204999 | H42: =IF(DS=FALSE,'VRF-WAbstrOhneDS'!S32,'VRF-WAbstrMitDS'!S32) -> 54.25925926 | I42: 45.25925926 | J42: y = 8,1401e0,1313x
A43: =VALUE(MID(B43,5,3)) -> 400 | B43: ='VRF-WGES'!B33 -> 600x400 | C43: 8640 | D43: =IF(SD=FALSE,8.1401*EXP('VRF-WGES'!I33*0.1313),8.1401*EXP('VRF-WGES'!I33*0.1313)+SDFInfo!Z36) -> 9.476073641 | E43: =IF(Auswahl!D43<dp,'VRF-WGES'!I33,0) -> 1.157407407 | F43: =IF(SD=FALSE,'VRF-WGES'!T33,'VRF-WGES'!AD33) -> 64.60493827 | G43: =IF(SD=FALSE,'VRF-WGES'!BR33,'VRF-WGES'!CB33) -> 53.69615047 | H43: =IF(DS=FALSE,'VRF-WAbstrOhneDS'!S33,'VRF-WAbstrMitDS'!S33) -> 55.10493827 | I43: 46.10493827 | J43: y = 8,1401e0,1313x
A44: =VALUE(MID(B44,5,3)) -> 400 | B44: ='VRF-WGES'!B34 -> 800x400 | C44: 11520 | D44: =IF(SD=FALSE,8.1401*EXP('VRF-WGES'!I34*0.1313),8.1401*EXP('VRF-WGES'!I34*0.1313)+SDFInfo!Z37) -> 9.122812634 | E44: =IF(Auswahl!D44<dp,'VRF-WGES'!I34,0) -> 0.8680555556 | F44: =IF(SD=FALSE,'VRF-WGES'!T34,'VRF-WGES'!AD34) -> 65.41203704 | G44: =IF(SD=FALSE,'VRF-WGES'!BR34,'VRF-WGES'!CB34) -> 54.4903545 | H44: =IF(DS=FALSE,'VRF-WAbstrOhneDS'!S34,'VRF-WAbstrMitDS'!S34) -> 55.91203704 | I44: 46.91203704 | J44: y = 8,1401e0,1313x
A45: =VALUE(MID(B45,6,3)) -> 400 | B45: ='VRF-WGES'!B35 -> 1000x400 | C45: 14400 | D45: =IF(SD=FALSE,8.1401*EXP('VRF-WGES'!I35*0.1313),8.1401*EXP('VRF-WGES'!I35*0.1313)+SDFInfo!Z38) -> 8.917209136 | E45: =IF(Auswahl!D45<dp,'VRF-WGES'!I35,0) -> 0.6944444444 | F45: =IF(SD=FALSE,'VRF-WGES'!T35,'VRF-WGES'!AD35) -> 66.2962963 | G45: =IF(SD=FALSE,'VRF-WGES'!BR35,'VRF-WGES'!CB35) -> 55.36766499 | H45: =IF(DS=FALSE,'VRF-WAbstrOhneDS'!S35,'VRF-WAbstrMitDS'!S35) -> 56.7962963 | I45: 47.7962963 | J45: y = 8,1401e0,1313x
A46: =VALUE(MID(B46,6,3)) -> 400 | B46: ='VRF-WGES'!B36 -> 1200x400 | C46: 17280 | D46: =IF(SD=FALSE,8.1401*EXP('VRF-WGES'!I36*0.1313),8.1401*EXP('VRF-WGES'!I36*0.1313)+SDFInfo!Z39) -> 8.782720936 | E46: =IF(Auswahl!D46<dp,'VRF-WGES'!I36,0) -> 0.5787037037 | F46: =IF(SD=FALSE,'VRF-WGES'!T36,'VRF-WGES'!AD36) -> 67.2191358 | G46: =IF(SD=FALSE,'VRF-WGES'!BR36,'VRF-WGES'!CB36) -> 56.28618064 | H46: =IF(DS=FALSE,'VRF-WAbstrOhneDS'!S36,'VRF-WAbstrMitDS'!S36) -> 57.7191358 | I46: 48.7191358 | J46: y = 8,1401e0,1313x
B47: ='VRF-WGES'!B45 -> 0
B48: ='VRF-WGES'!B46 -> 0
A51: SD | B51: FALSE
A52: DS | B52: FALSE

Sheet SVerweis (hidden)

Sheet VRE-W (hidden)
E1: VMax Auslegung | I1: Schallleistungspegel Durchstrahlung | T1: Schallleistungspegel Durchstrahlung mit Schalldämpfer (Volumenstromregler und Schalldämpfer) | AD1: Schallleistungspegel Abstrahlung | AN1: Schallleistungspegel Abstrahlung mit Dämmschale | AX1: Schallleistungspegel mit Schalldämpfer (nur Volumenstromregler) | BI1: Schalldruckpegel Durchstrahlung ohne SD | BS1: Schalldruckpegel Durchstrahlung mit SD
B2: Ø licht /hydr. | C2: Querschnitt | D2: Mantelfl. 6m | E2: VMax | F2: cMax | G2: Dp | H2: a | J2: S LWA | K2: S aus Oktaven | L2: 63 | M2: 125 | N2: 250 | O2: 500 | P2: 1000 | Q2: 2000 | R2: 4000 | S2: 8000 | T2: S LWA | U2: S aus Oktaven | V2: 63 | W2: 125 | X2: 250 | Y2: 500 | Z2: 1000 | AA2: 2000 | AB2: 4000 | AC2: 8000 | AD2: S LWA | AF2: 63 | AG2: 125 | AH2: 250 | AI2: 500 | AJ2: 1000 | AK2: 2000 | AL2: 4000 | AM2: 8000 | AN2: S LWA | AP2: 63 | AQ2: 125 | AR2: 250 | AS2: 500 | AT2: 1000 | AU2: 2000 | AV2: 4000 | AW2: 8000 | AX2: Vnenn | AY2: S LWA | BA2: 63 | BB2: 125 | BC2: 250 | BD2: 500 | BE2: 1000 | BF2: 2000 | BG2: 4000 | BH2: 8000 | BI2: S LPA | BJ2: S aus Oktaven | BK2: 63 | BL2: 125 | BM2: 250 | BN2: 500 | BO2: 1000 | BP2: 2000 | BQ2: 4000 | BR2: 8000 | BS2: S LPA | BT2: S aus Oktaven | BU2: 63 | BV2: 125 | BW2: 250 | BX2: 500 | BY2: 1000 | BZ2: 2000 | CA2: 4000 | CB2: 8000
A3: 100 | B3: 98 | C3: =((B3/1000)^2)*(PI()/4) -> 0.007542963961 | D3: =(B3/1000)*PI()*6 -> 1.84725648 | E3: =VMax -> 1000 | F3: =ROUND(E3/(((B3/1000)^2/4)*(PI())*3600),1) -> 36.8 | G3: =IF(SD=TRUE,IF(dp-SDEInfo!Y7<1,1,dp-SDEInfo!Y7),dp) -> 150 | H3: =IF(((LN((2*G3)/(F3^2*1.2))-LN(0.218798860946047))/0.1258791219104)>60,60,((LN((2*G3)/(F3^2*1.2))-LN(0.218798860946047))/0.1258791219104)) -> -1.349964597 | J3: =IF(AND($F3<7,$G3<200),$AU33,IF(AND($F3<7,$G3>=200),$AU34,IF(AND($F3>=7,$G3<200),$AU36,$AU37))) -> 88.26666667 | K3: =10*LOG10((10^(0.1*(L3-26.2)))+10^(0.1*(M3-16.1))+10^(0.1*(N3-8.6))+10^(0.1*(O3-3.2))+10^(0.1*(P3-0))+10^(0.1*(Q3+1.2))+10^(0.1*(R3+1))+10^(0.1*(S3-1.1))) -> 109.1363161 | L3: =IF($G3>200,A105,A95) -> 79.74444444 | M3: =IF($G3>200,B105,B95) -> 117.0333333 | N3: 98.15555556 | O3: 85.25555556 | P3: 70.85555556 | Q3: 93.17777778 | R3: 99.1 | S3: 108.5444444 | T3: =10*LOG10(10^(0.1*AY3)+10^(0.1*SDEInfo!P7)) -> 71.29438932 | U3: =10*LOG10((10^(0.1*(V3-26.2)))+10^(0.1*(W3-16.1))+10^(0.1*(X3-8.6))+10^(0.1*(Y3-3.2))+10^(0.1*(Z3-0))+10^(0.1*(AA3+1.2))+10^(0.1*(AB3+1))+10^(0.1*(AC3-1.1))) -> 91.40275505 | V3: =10*LOG10(10^(0.1*BA3)+10^(0.1*SDEInfo!Q7)) -> 75.74644541 | W3: =10*LOG10(10^(0.1*BB3)+10^(0.1*SDEInfo!R7)) -> 107.0333393 | X3: =10*LOG10(10^(0.1*BC3)+10^(0.1*SDEInfo!S7)) -> 83.16012644 | Y3: =10*LOG10(10^(0.1*BD3)+10^(0.1*SDEInfo!T7)) -> 59.85010492 | Z3: =10*LOG10(10^(0.1*BE3)+10^(0.1*SDEInfo!U7)) -> 58.38767284 | AA3: =10*LOG10(10^(0.1*BF3)+10^(0.1*SDEInfo!V7)) -> 54.69739191 | AB3: =10*LOG10(10^(0.1*BG3)+10^(0.1*SDEInfo!W7)) -> 56.13090767 | AC3: =10*LOG10(10^(0.1*BH3)+10^(0.1*SDEInfo!X7)) -> 81.54486258 | AD3: =10*LOG10((10^(0.1*(AF3-26.2)))+10^(0.1*(AG3-16.1))+10^(0.1*(AH3-8.6))+10^(0.1*(AI3-3.2))+10^(0.1*(AJ3-0))+10^(0.1*(AK3+1.2))+10^(0.1*(AL3+1))+10^(0.1*(AM3-1.1))) -> 98.25943402 | AF3: =IF((L3-VLOOKUP($A3,$A$116:$I$131,2,FALSE)+10*LOG($D3/$C3))<0,0,(L3-VLOOKUP($A3,$A$116:$I$131,2,FALSE)+10*LOG($D3/$C3))) -> 67.6342961 | AG3: =IF((M3-VLOOKUP($A3,$A$116:$I$131,3,FALSE)+10*LOG($D3/$C3))<0,0,(M3-VLOOKUP($A3,$A$116:$I$131,3,FALSE)+10*LOG($D3/$C3))) -> 92.92318499 | AH3: =IF((N3-VLOOKUP($A3,$A$116:$I$131,4,FALSE)+10*LOG($D3/$C3))<0,0,(N3-VLOOKUP($A3,$A$116:$I$131,4,FALSE)+10*LOG($D3/$C3))) -> 81.04540722 | AI3: =IF((O3-VLOOKUP($A3,$A$116:$I$131,5,FALSE)+10*LOG($D3/$C3))<0,0,(O3-VLOOKUP($A3,$A$116:$I$131,5,FALSE)+10*LOG($D3/$C3))) -> 68.14540722 | AJ3: =IF((P3-VLOOKUP($A3,$A$116:$I$131,6,FALSE)+10*LOG($D3/$C3))<0,0,(P3-VLOOKUP($A3,$A$116:$I$131,6,FALSE)+10*LOG($D3/$C3))) -> 55.74540722 | AK3: =IF((Q3-VLOOKUP($A3,$A$116:$I$131,7,FALSE)+10*LOG($D3/$C3))<0,0,(Q3-VLOOKUP($A3,$A$116:$I$131,7,FALSE)+10*LOG($D3/$C3))) -> 85.06762944 | AL3: =IF((R3-VLOOKUP($A3,$A$116:$I$131,8,FALSE)+10*LOG($D3/$C3))<0,0,(R3-VLOOKUP($A3,$A$116:$I$131,8,FALSE)+10*LOG($D3/$C3))) -> 87.98985166 | AM3: =IF((S3-VLOOKUP($A3,$A$116:$I$131,9,FALSE)+10*LOG($D3/$C3))<0,0,(S3-VLOOKUP($A3,$A$116:$I$131,9,FALSE)+10*LOG($D3/$C3))) -> 98.4342961 | AN3: =10*LOG10((10^(0.1*(AP3-26.2)))+10^(0.1*(AQ3-16.1))+10^(0.1*(AR3-8.6))+10^(0.1*(AS3-3.2))+10^(0.1*(AT3-0))+10^(0.1*(AU3+1.2))+10^(0.1*(AV3+1))+10^(0.1*(AW3-1.1))) -> 81.20375038 | AP3: =IF((L3-VLOOKUP($A3,$A$135:$I$150,2,FALSE)+10*LOG($D3/$C3))<0,0,(L3-VLOOKUP($A3,$A$135:$I$150,2,FALSE)+10*LOG($D3/$C3))) -> 66.6342961 | AQ3: =IF((M3-VLOOKUP($A3,$A$135:$I$150,3,FALSE)+10*LOG($D3/$C3))<0,0,(M3-VLOOKUP($A3,$A$135:$I$150,3,FALSE)+10*LOG($D3/$C3))) -> 92.92318499 | AR3: =IF((N3-VLOOKUP($A3,$A$135:$I$150,4,FALSE)+10*LOG($D3/$C3))<0,0,(N3-VLOOKUP($A3,$A$135:$I$150,4,FALSE)+10*LOG($D3/$C3))) -> 81.04540722 | AS3: =IF((O3-VLOOKUP($A3,$A$135:$I$150,5,FALSE)+10*LOG($D3/$C3))<0,0,(O3-VLOOKUP($A3,$A$135:$I$150,5,FALSE)+10*LOG($D3/$C3))) -> 62.14540722 | AT3: =IF((P3-VLOOKUP($A3,$A$135:$I$150,6,FALSE)+10*LOG($D3/$C3))<0,0,(P3-VLOOKUP($A3,$A$135:$I$150,6,FALSE)+10*LOG($D3/$C3))) -> 46.74540722 | AU3: =IF((Q3-VLOOKUP($A3,$A$135:$I$150,7,FALSE)+10*LOG($D3/$C3))<0,0,(Q3-VLOOKUP($A3,$A$135:$I$150,7,FALSE)+10*LOG($D3/$C3))) -> 64.06762944 | AV3: =IF((R3-VLOOKUP($A3,$A$135:$I$150,8,FALSE)+10*LOG($D3/$C3))<0,0,(R3-VLOOKUP($A3,$A$135:$I$150,8,FALSE)+10*LOG($D3/$C3))) -> 67.98985166 | AW3: =IF((S3-VLOOKUP($A3,$A$135:$I$150,9,FALSE)+10*LOG($D3/$C3))<0,0,(S3-VLOOKUP($A3,$A$135:$I$150,9,FALSE)+10*LOG($D3/$C3))) -> 78.4342961 | AX3: 272 | AY3: =J3-(K3-10*LOG10((10^(0.1*(BA3-26.2)))+10^(0.1*(BB3-16.1))+10^(0.1*(BC3-8.6))+10^(0.1*(BD3-3.2))+10^(0.1*(BE3-0))+10^(0.1*(BF3+1.2))+10^(0.1*(BG3+1))+10^(0.1*(BH3-1.1)))) -> 70.52867124 | BA3: =IF((A95-SDEInfo!H7)<0,0,(A95-SDEInfo!H7)) -> 75.74444444 | BB3: =IF((B95-SDEInfo!I7)<0,0,(B95-SDEInfo!I7)) -> 107.0333333 | BC3: =IF((C95-SDEInfo!J7)<0,0,(C95-SDEInfo!J7)) -> 83.15555556 | BD3: =IF((D95-SDEInfo!K7)<0,0,(D95-SDEInfo!K7)) -> 57.25555556 | BE3: =IF((E95-SDEInfo!L7)<0,0,(E95-SDEInfo!L7)) -> 30.85555556 | BF3: =IF((F95-SDEInfo!M7)<0,0,(F95-SDEInfo!M7)) -> 43.17777778 | BG3: =IF((G95-SDEInfo!N7)<0,0,(G95-SDEInfo!N7)) -> 55.1 | BH3: =IF((H95-SDEInfo!O7)<0,0,(H95-SDEInfo!O7)) -> 81.54444444 | BI3: =J3-K3+BJ3 -> 77.01954321 | BJ3: =10*LOG10((10^(0.1*(BK3-26.2)))+10^(0.1*(BL3-16.1))+10^(0.1*(BM3-8.6))+10^(0.1*(BN3-3.2))+10^(0.1*(BO3-0))+10^(0.1*(BP3+1.2))+10^(0.1*(BQ3+1))+10^(0.1*(BR3-1.1))) -> 97.8891926 | BK3: =L3-5-10-IF(VMax<540,0,ROUND(10*LOG(VMax/540),0)) -> 61.74444444 | BL3: =M3-5-5-IF(VMax<540,0,ROUND(10*LOG(VMax/540),0)) -> 104.0333333 | BM3: =N3-1-5-2-IF(VMax<540,0,ROUND(10*LOG(VMax/540),0)) -> 87.15555556 | BN3: =O3-2-5-IF(VMax<540,0,ROUND(10*LOG(VMax/540),0)) -> 75.25555556 | BO3: =P3-3-5-IF(VMax<540,0,ROUND(10*LOG(VMax/540),0)) -> 59.85555556 | BP3: 82.17777778 | BQ3: 88.1 | BR3: 97.54444444 | BS3: =T3-U3+BT3 -> 58.54735465 | BT3: =10*LOG10((10^(0.1*(BU3-26.2)))+10^(0.1*(BV3-16.1))+10^(0.1*(BW3-8.6))+10^(0.1*(BX3-3.2))+10^(0.1*(BY3-0))+10^(0.1*(BZ3+1.2))+10^(0.1*(CA3+1))+10^(0.1*(CB3-1.1))) -> 78.65572038 | BU3: =V3-5-10-IF(VMax<540,0,ROUND(10*LOG(VMax/540),0)) -> 57.74644541 | BV3: =W3-5-5-IF(VMax<540,0,ROUND(10*LOG(VMax/540),0)) -> 94.03333926 | BW3: =X3-1-5-2-IF(VMax<540,0,ROUND(10*LOG(VMax/540),0)) -> 72.16012644 | BX3: =Y3-2-5-IF(VMax<540,0,ROUND(10*LOG(VMax/540),0)) -> 49.85010492 | BY3: =Z3-3-5-IF(VMax<540,0,ROUND(10*LOG(VMax/540),0)) -> 47.38767284 | BZ3: 43.69739191 | CA3: 45.13090767 | CB3: 70.54486258
A4: 125 | B4: 122.8 | C4: =((B4/1000)^2)*(PI()/4) -> 0.01184367864 | D4: 2.314725467 | E4: 1000 | F4: =ROUND(E4/(((B4/1000)^2/4)*(PI())*3600),1) -> 23.5 | G4: =IF(SD=TRUE,IF(dp-SDEInfo!Y8<1,1,dp-SDEInfo!Y8),dp) -> 150 | H4: =IF(((LN((2*G4)/(F4^2*1.2))-LN(0.218798860946047))/0.1258791219104)>60,60,((LN((2*G4)/(F4^2*1.2))-LN(0.218798860946047))/0.1258791219104)) -> 5.77587831 | J4: =IF(AND($F4<7,$G4<200),$AU42,IF(AND($F4<7,$G4>=200),$AU43,IF(AND($F4>=7,$G4<200),$AU45,$AU46))) -> 73 | K4: 88.90344261 | L4: 79.5 | M4: =IF($G4>200,B106,B96) -> 104 | N4: 85.75 | O4: 78.75 | P4: 72.5 | Q4: 66.75 | R4: 73.75 | S4: 73.75 | T4: =10*LOG10(10^(0.1*AY4)+10^(0.1*SDEInfo!P8)) -> 63.4265159 | U4: 79.0323486 | V4: =10*LOG10(10^(0.1*BA4)+10^(0.1*SDEInfo!Q8)) -> 75.50014414 | W4: =10*LOG10(10^(0.1*BB4)+10^(0.1*SDEInfo!R8)) -> 95.00000644 | X4: =10*LOG10(10^(0.1*BC4)+10^(0.1*SDEInfo!S8)) -> 71.754301 | Y4: =10*LOG10(10^(0.1*BD4)+10^(0.1*SDEInfo!T8)) -> 52.53346949 | Z4: =10*LOG10(10^(0.1*BE4)+10^(0.1*SDEInfo!U8)) -> 46.81271607 | AA4: =10*LOG10(10^(0.1*BF4)+10^(0.1*SDEInfo!V8)) -> 42.72099599 | AB4: =10*LOG10(10^(0.1*BG4)+10^(0.1*SDEInfo!W8)) -> 41.27135681 | AC4: =10*LOG10(10^(0.1*BH4)+10^(0.1*SDEInfo!X8)) -> 49.7928195 | AD4: =10*LOG10((10^(0.1*(AF4-26.2)))+10^(0.1*(AG4-16.1))+10^(0.1*(AH4-8.6))+10^(0.1*(AI4-3.2))+10^(0.1*(AJ4-0))+10^(0.1*(AK4+1.2))+10^(0.1*(AL4+1))+10^(0.1*(AM4-1.1))) -> 68.90253249 | AF4: =IF((L4-VLOOKUP($A4,$A$116:$I$131,2,FALSE)+10*LOG($D4/$C4))<0,0,(L4-VLOOKUP($A4,$A$116:$I$131,2,FALSE)+10*LOG($D4/$C4))) -> 66.41012875 | AG4: =IF((M4-VLOOKUP($A4,$A$116:$I$131,3,FALSE)+10*LOG($D4/$C4))<0,0,(M4-VLOOKUP($A4,$A$116:$I$131,3,FALSE)+10*LOG($D4/$C4))) -> 78.91012875 | AH4: =IF((N4-VLOOKUP($A4,$A$116:$I$131,4,FALSE)+10*LOG($D4/$C4))<0,0,(N4-VLOOKUP($A4,$A$116:$I$131,4,FALSE)+10*LOG($D4/$C4))) -> 67.66012875 | AI4: =IF((O4-VLOOKUP($A4,$A$116:$I$131,5,FALSE)+10*LOG($D4/$C4))<0,0,(O4-VLOOKUP($A4,$A$116:$I$131,5,FALSE)+10*LOG($D4/$C4))) -> 60.66012875 | AJ4: =IF((P4-VLOOKUP($A4,$A$116:$I$131,6,FALSE)+10*LOG($D4/$C4))<0,0,(P4-VLOOKUP($A4,$A$116:$I$131,6,FALSE)+10*LOG($D4/$C4))) -> 56.41012875 | AK4: =IF((Q4-VLOOKUP($A4,$A$116:$I$131,7,FALSE)+10*LOG($D4/$C4))<0,0,(Q4-VLOOKUP($A4,$A$116:$I$131,7,FALSE)+10*LOG($D4/$C4))) -> 57.66012875 | AL4: =IF((R4-VLOOKUP($A4,$A$116:$I$131,8,FALSE)+10*LOG($D4/$C4))<0,0,(R4-VLOOKUP($A4,$A$116:$I$131,8,FALSE)+10*LOG($D4/$C4))) -> 61.66012875 | AM4: =IF((S4-VLOOKUP($A4,$A$116:$I$131,9,FALSE)+10*LOG($D4/$C4))<0,0,(S4-VLOOKUP($A4,$A$116:$I$131,9,FALSE)+10*LOG($D4/$C4))) -> 62.66012875 | AN4: 64.70936081 | AP4: =IF((L4-VLOOKUP($A4,$A$135:$I$150,2,FALSE)+10*LOG($D4/$C4))<0,0,(L4-VLOOKUP($A4,$A$135:$I$150,2,FALSE)+10*LOG($D4/$C4))) -> 65.41012875 | AQ4: =IF((M4-VLOOKUP($A4,$A$135:$I$150,3,FALSE)+10*LOG($D4/$C4))<0,0,(M4-VLOOKUP($A4,$A$135:$I$150,3,FALSE)+10*LOG($D4/$C4))) -> 78.91012875 | AR4: =IF((N4-VLOOKUP($A4,$A$135:$I$150,4,FALSE)+10*LOG($D4/$C4))<0,0,(N4-VLOOKUP($A4,$A$135:$I$150,4,FALSE)+10*LOG($D4/$C4))) -> 67.66012875 | AS4: =IF((O4-VLOOKUP($A4,$A$135:$I$150,5,FALSE)+10*LOG($D4/$C4))<0,0,(O4-VLOOKUP($A4,$A$135:$I$150,5,FALSE)+10*LOG($D4/$C4))) -> 54.66012875 | AT4: =IF((P4-VLOOKUP($A4,$A$135:$I$150,6,FALSE)+10*LOG($D4/$C4))<0,0,(P4-VLOOKUP($A4,$A$135:$I$150,6,FALSE)+10*LOG($D4/$C4))) -> 47.41012875 | AU4: =IF((Q4-VLOOKUP($A4,$A$135:$I$150,7,FALSE)+10*LOG($D4/$C4))<0,0,(Q4-VLOOKUP($A4,$A$135:$I$150,7,FALSE)+10*LOG($D4/$C4))) -> 36.66012875 | AV4: =IF((R4-VLOOKUP($A4,$A$135:$I$150,8,FALSE)+10*LOG($D4/$C4))<0,0,(R4-VLOOKUP($A4,$A$135:$I$150,8,FALSE)+10*LOG($D4/$C4))) -> 41.66012875 | AW4: =IF((S4-VLOOKUP($A4,$A$135:$I$150,9,FALSE)+10*LOG($D4/$C4))<0,0,(S4-VLOOKUP($A4,$A$135:$I$150,9,FALSE)+10*LOG($D4/$C4))) -> 42.66012875 | AX4: 428 | AY4: 63.12369504 | BA4: =IF((A96-SDEInfo!H8)<0,0,(A96-SDEInfo!H8)) -> 75.5 | BB4: =IF((B96-SDEInfo!I8)<0,0,(B96-SDEInfo!I8)) -> 95 | BC4: =IF((C96-SDEInfo!J8)<0,0,(C96-SDEInfo!J8)) -> 71.75 | BD4: =IF((D96-SDEInfo!K8)<0,0,(D96-SDEInfo!K8)) -> 51.75 | BE4: =IF((E96-SDEInfo!L8)<0,0,(E96-SDEInfo!L8)) -> 30.5 | BF4: =IF((F96-SDEInfo!M8)<0,0,(F96-SDEInfo!M8)) -> 16.75 | BG4: =IF((G96-SDEInfo!N8)<0,0,(G96-SDEInfo!N8)) -> 38.75 | BH4: =IF((H96-SDEInfo!O8)<0,0,(H96-SDEInfo!O8)) -> 49.75 | BI4: =J4-K4+BJ4 -> 60.56628439 | BJ4: =10*LOG10((10^(0.1*(BK4-26.2)))+10^(0.1*(BL4-16.1))+10^(0.1*(BM4-8.6))+10^(0.1*(BN4-3.2))+10^(0.1*(BO4-0))+10^(0.1*(BP4+1.2))+10^(0.1*(BQ4+1))+10^(0.1*(BR4-1.1))) -> 76.469727 | BK4: 61.5 | BL4: =M4-5-5-IF(VMax<540,0,ROUND(10*LOG(VMax/540),0)) -> 91 | BM4: 74.75 | BN4: 68.75 | BO4: 61.5 | BP4: 55.75 | BQ4: 62.75 | BR4: 62.75 | BS4: =T4-U4+BT4 -> 50.49820938 | BT4: =10*LOG10((10^(0.1*(BU4-26.2)))+10^(0.1*(BV4-16.1))+10^(0.1*(BW4-8.6))+10^(0.1*(BX4-3.2))+10^(0.1*(BY4-0))+10^(0.1*(BZ4+1.2))+10^(0.1*(CA4+1))+10^(0.1*(CB4-1.1))) -> 66.10404208 | BU4: 57.50014414 | BV4: 82.00000644 | BW4: 60.754301 | BX4: 42.53346949 | BY4: 35.81271607 | BZ4: 31.72099599 | CA4: 30.27135681 | CB4: 38.7928195
A5: 160 | B5: 157.7 | C5: 0.01953229469 | D5: 2.972574969 | E5: 1000 | F5: 14.2 | G5: =IF(SD=TRUE,IF(dp-SDEInfo!Y9<1,1,dp-SDEInfo!Y9),dp) -> 150 | H5: =IF(((LN((2*G5)/(F5^2*1.2))-LN(0.218798860946047))/0.1258791219104)>60,60,((LN((2*G5)/(F5^2*1.2))-LN(0.218798860946047))/0.1258791219104)) -> 13.77972277 | J5: =IF(AND($F5<7,$G5<200),$AU51,IF(AND($F5<7,$G5>=200),$AU52,IF(AND($F5>=7,$G5<200),$AU54,$AU55))) -> 68.8 | K5: 69.05643171 | L5: 68.16666667 | M5: 73.96666667 | N5: 67.9 | O5: 66.23333333 | P5: 64.6 | Q5: 59.23333333 | R5: 55.93333333 | S5: 49.86666667 | T5: =10*LOG10(10^(0.1*AY5)+10^(0.1*SDEInfo!P9)) -> 54.41206629 | U5: 54.6241731 | V5: =10*LOG10(10^(0.1*BA5)+10^(0.1*SDEInfo!Q9)) -> 65.1667422 | W5: =10*LOG10(10^(0.1*BB5)+10^(0.1*SDEInfo!R9)) -> 68.96679201 | X5: =10*LOG10(10^(0.1*BC5)+10^(0.1*SDEInfo!S9)) -> 56.90637478 | Y5: =10*LOG10(10^(0.1*BD5)+10^(0.1*SDEInfo!T9)) -> 43.51978393 | Z5: =10*LOG10(10^(0.1*BE5)+10^(0.1*SDEInfo!U9)) -> 35.03396817 | AA5: =10*LOG10(10^(0.1*BF5)+10^(0.1*SDEInfo!V9)) -> 30.048595 | AB5: =10*LOG10(10^(0.1*BG5)+10^(0.1*SDEInfo!W9)) -> 28.31524544 | AC5: =10*LOG10(10^(0.1*BH5)+10^(0.1*SDEInfo!X9)) -> 37.89876715 | AD5: 53.59852137 | AF5: 53.99046215 | AG5: 47.79046215 | AH5: 48.72379548 | AI5: 47.05712882 | AJ5: 47.42379548 | AK5: 49.05712882 | AL5: 42.75712882 | AM5: 39.69046215 | AN5: 44.22100618 | AP5: 52.99046215 | AQ5: 47.79046215 | AR5: 48.72379548 | AS5: 41.05712882 | AT5: 38.42379548 | AU5: 28.05712882 | AV5: 22.75712882 | AW5: 17.69046215 | AX5: 706 | AY5: 54.29743675 | BA5: =IF((A97-SDEInfo!H9)<0,0,(A97-SDEInfo!H9)) -> 65.16666667 | BB5: =IF((B97-SDEInfo!I9)<0,0,(B97-SDEInfo!I9)) -> 68.96666667 | BC5: =IF((C97-SDEInfo!J9)<0,0,(C97-SDEInfo!J9)) -> 56.9 | BD5: =IF((D97-SDEInfo!K9)<0,0,(D97-SDEInfo!K9)) -> 43.23333333 | BE5: =IF((E97-SDEInfo!L9)<0,0,(E97-SDEInfo!L9)) -> 29.6 | BF5: =IF((F97-SDEInfo!M9)<0,0,(F97-SDEInfo!M9)) -> 20.23333333 | BG5: =IF((G97-SDEInfo!N9)<0,0,(G97-SDEInfo!N9)) -> 25.93333333 | BH5: =IF((H97-SDEInfo!O9)<0,0,(H97-SDEInfo!O9)) -> 37.86666667 | BI5: 57.94969235 | BJ5: 58.20612406 | BK5: 50.16666667 | BL5: 60.96666667 | BM5: 56.9 | BN5: 56.23333333 | BO5: 53.6 | BP5: 48.23333333 | BQ5: 44.93333333 | BR5: 38.86666667 | BS5: 42.11390665 | BT5: 42.32601346 | BU5: 47.1667422 | BV5: 55.96679201 | BW5: 45.90637478 | BX5: 33.51978393 | BY5: 24.03396817 | BZ5: 19.048595 | CA5: 17.31524544 | CB5: 26.89876715
A6: 200 | B6: 197.5 | C6: 0.03063543711 | D6: 3.722787295 | E6: 1000 | F6: 9.1 | G6: =IF(SD=TRUE,IF(dp-SDEInfo!Y10<1,1,dp-SDEInfo!Y10),dp) -> 150 | H6: =IF(((LN((2*G$6)/(F6^2*1.2))-LN(0.218798860946047))/0.1258791219104)>60,60,((LN((2*G$6)/(F6^2*1.2))-LN(0.218798860946047))/0.1258791219104)) -> 20.84948215 | J6: =IF(AND($F6<7,$G6<200),$AU60,IF(AND($F6<7,$G6>=200),$AU61,IF(AND($F6>=7,$G6<200),$AU63,$AU64))) -> 60.2 | K6: 60.57621018 | L6: 62.9 | M6: 58.85 | N6: 57.45 | O6: 56.05 | P6: 56.15 | Q6: 52.85 | R6: 47.4 | S6: 51.65 | T6: =10*LOG10(10^(0.1*AY6)+10^(0.1*SDEInfo!P10)) -> 44.61159455 | U6: =10*LOG10((10^(0.1*(V6-26.2)))+10^(0.1*(W6-16.1))+10^(0.1*(X6-8.6))+10^(0.1*(Y6-3.2))+10^(0.1*(Z6-0))+10^(0.1*(AA6+1.2))+10^(0.1*(AB6+1))+10^(0.1*(AC6-1.1))) -> 44.95710568 | V6: =10*LOG10(10^(0.1*BA6)+10^(0.1*SDEInfo!Q10)) -> 61.90001116 | W6: =10*LOG10(10^(0.1*BB6)+10^(0.1*SDEInfo!R10)) -> 53.85028364 | X6: =10*LOG10(10^(0.1*BC6)+10^(0.1*SDEInfo!S10)) -> 47.45391371 | Y6: =10*LOG10(10^(0.1*BD6)+10^(0.1*SDEInfo!T10)) -> 37.13482738 | Z6: =10*LOG10(10^(0.1*BE6)+10^(0.1*SDEInfo!U10)) -> 26.21700937 | AA6: =10*LOG10(10^(0.1*BF6)+10^(0.1*SDEInfo!V10)) -> 23.3486469 | AB6: =10*LOG10(10^(0.1*BG6)+10^(0.1*SDEInfo!W10)) -> 31.46232529 | AC6: =10*LOG10(10^(0.1*BH6)+10^(0.1*SDEInfo!X10)) -> 40.65118229 | AD6: =10*LOG10((10^(0.1*(AF6-26.2)))+10^(0.1*(AG$6-16.1))+10^(0.1*(AH6-8.6))+10^(0.1*(AI6-3.2))+10^(0.1*(AJ6-0))+10^(0.1*(AK6+1.2))+10^(0.1*(AL6+1))+10^(0.1*(AM6-1.1))) -> 46.601067 | AF6: 52.74644142 | AG6: 39.69644142 | AH6: 43.29644142 | AI6: 40.89644142 | AJ6: 39.99644142 | AK6: 38.69644142 | AL6: 33.24644142 | AM6: 42.49644142 | AN6: 41.06083977 | AP6: 49.74644142 | AQ6: 37.69644142 | AR6: 41.29644142 | AS6: 37.89644142 | AT6: 36.99644142 | AU6: 32.69644142 | AV6: 11.24644142 | AW6: 21.49644142 | AX6: 1108 | AY6: 44.53566412 | BA6: =IF((A98-SDEInfo!H10)<0,0,(A98-SDEInfo!H10)) -> 61.9 | BB6: =IF((B98-SDEInfo!I10)<0,0,(B98-SDEInfo!I10)) -> 53.85 | BC6: =IF((C98-SDEInfo!J10)<0,0,(C98-SDEInfo!J10)) -> 47.45 | BD6: =IF((D98-SDEInfo!K10)<0,0,(D98-SDEInfo!K10)) -> 37.05 | BE6: =IF((E98-SDEInfo!L10)<0,0,(E98-SDEInfo!L10)) -> 24.15 | BF6: =IF((F98-SDEInfo!M10)<0,0,(F98-SDEInfo!M10)) -> 21.85 | BG6: =IF((G98-SDEInfo!N10)<0,0,(G98-SDEInfo!N10)) -> 31.4 | BH6: =IF((H98-SDEInfo!O10)<0,0,(H98-SDEInfo!O10)) -> 40.65 | BI6: 49.34663593 | BJ6: =10*LOG10((10^(0.1*(BK6-26.2)))+10^(0.1*(BL6-16.1))+10^(0.1*(BM6-8.6))+10^(0.1*(BN6-3.2))+10^(0.1*(BO6-0))+10^(0.1*(BP6+1.2))+10^(0.1*(BQ6+1))+10^(0.1*(BR6-1.1))) -> 49.72284612 | BK6: 44.9 | BL6: 45.85 | BM6: 46.45 | BN6: 46.05 | BO6: 45.15 | BP6: 41.85 | BQ6: 36.4 | BR6: 40.65 | BS6: =T6-U6+BT6 -> 32.93263448 | BT6: 33.27814562 | BU6: 43.90001116 | BV6: 40.85028364 | BW6: 36.45391371 | BX6: 27.13482738 | BY6: 15.21700937 | BZ6: 12.3486469 | CA6: 20.46232529 | CB6: 29.65118229
A7: 250 | B7: 247.4 | C7: 0.04807167689 | D7: 4.663380135 | E7: 1000 | F7: 5.8 | G7: =IF(SD=TRUE,IF(dp-SDEInfo!Y11<1,1,dp-SDEInfo!Y11),dp) -> 150 | H7: =IF(((LN((2*G7)/(F7^2*1.2))-LN(0.218798860946047))/0.1258791219104)>60,60,((LN((2*G7)/(F7^2*1.2))-LN(0.218798860946047))/0.1258791219104)) -> 28.00581577 | J7: =IF(AND($F7<7,$G7<200),$AU69,IF(AND($F7<7,$G7>=200),$AU70,IF(AND($F7>=7,$G7<200),$AU72,$AU73))) -> 57.7 | K7: 56.84504858 | L7: 55.56666667 | M7: 54.63333333 | N7: 54.43333333 | O7: 54.23333333 | P7: 51.96666667 | Q7: 48.83333333 | R7: 45 | S7: 42.1 | T7: =10*LOG10(10^(0.1*AY7)+10^(0.1*SDEInfo!P11)) -> 43.0792129 | U7: 42.22290068 | V7: =10*LOG10(10^(0.1*BA7)+10^(0.1*SDEInfo!Q11)) -> 53.56668577 | W7: =10*LOG10(10^(0.1*BB7)+10^(0.1*SDEInfo!R11)) -> 51.63336499 | X7: =10*LOG10(10^(0.1*BC7)+10^(0.1*SDEInfo!S11)) -> 45.43375062 | Y7: =10*LOG10(10^(0.1*BD7)+10^(0.1*SDEInfo!T11)) -> 37.23883097 | Z7: =10*LOG10(10^(0.1*BE7)+10^(0.1*SDEInfo!U11)) -> 26.08183851 | AA7: =10*LOG10(10^(0.1*BF7)+10^(0.1*SDEInfo!V11)) -> 27.86345949 | AB7: =10*LOG10(10^(0.1*BG7)+10^(0.1*SDEInfo!W11)) -> 32.00366101 | AC7: =10*LOG10(10^(0.1*BH7)+10^(0.1*SDEInfo!X11)) -> 34.10168927 | AD7: =10*LOG10((10^(0.1*(AF7-26.2)))+10^(0.1*(AG7-16.1))+10^(0.1*(AH7-8.6))+10^(0.1*(AI7-3.2))+10^(0.1*(AJ7-0))+10^(0.1*(AK7+1.2))+10^(0.1*(AL7+1))+10^(0.1*(AM7-1.1))) -> 41.1329222 | AF7: 44.43478213 | AG7: 34.5014488 | AH7: 39.3014488 | AI7: 38.1014488 | AJ7: 34.83478213 | AK7: 33.7014488 | AL7: 29.86811546 | AM7: 31.96811546 | AN7: =10*LOG10((10^(0.1*(AP7-26.2)))+10^(0.1*(AQ7-16.1))+10^(0.1*(AR7-8.6))+10^(0.1*(AS7-3.2))+10^(0.1*(AT7-0))+10^(0.1*(AU7+1.2))+10^(0.1*(AV7+1))+10^(0.1*(AW7-1.1))) -> 36.70948789 | AP7: 41.43478213 | AQ7: 32.5014488 | AR7: 37.3014488 | AS7: 35.1014488 | AT7: 31.83478213 | AU7: 27.7014488 | AV7: 7.868115464 | AW7: 10.96811546 | AX7: 1739 | AY7: 43.07203129 | BA7: =IF((A99-SDEInfo!H11)<0,0,(A99-SDEInfo!H11)) -> 53.56666667 | BB7: =IF((B99-SDEInfo!I11)<0,0,(B99-SDEInfo!I11)) -> 51.63333333 | BC7: =IF((C99-SDEInfo!J11)<0,0,(C99-SDEInfo!J11)) -> 45.43333333 | BD7: =IF((D99-SDEInfo!K11)<0,0,(D99-SDEInfo!K11)) -> 37.23333333 | BE7: =IF((E99-SDEInfo!L11)<0,0,(E99-SDEInfo!L11)) -> 25.96666667 | BF7: =IF((F99-SDEInfo!M11)<0,0,(F99-SDEInfo!M11)) -> 27.83333333 | BG7: =IF((G99-SDEInfo!N11)<0,0,(G99-SDEInfo!N11)) -> 32 | BH7: =IF((H99-SDEInfo!O11)<0,0,(H99-SDEInfo!O11)) -> 34.1 | BI7: 46.95734397 | BJ7: 46.10239255 | BK7: 37.56666667 | BL7: 41.63333333 | BM7: 43.43333333 | BN7: 44.23333333 | BO7: 40.96666667 | BP7: 37.83333333 | BQ7: 34 | BR7: 31.1 | BS7: 31.78304624 | BT7: 30.92673402 | BU7: 35.56668577 | BV7: 38.63336499 | BW7: 34.43375062 | BX7: 27.23883097 | BY7: 15.08183851 | BZ7: 16.86345949 | CA7: 21.00366101 | CB7: 23.10168927
A8: 315 | B8: 312.22 | C8: 0.07656165629 | D8: 5.88520835 | E8: 1000 | F8: 3.6 | G8: =IF(SD=TRUE,IF(dp-SDEInfo!Y12<1,1,dp-SDEInfo!Y12),dp) -> 150 | H8: =IF(((LN((2*G8)/(F8^2*1.2))-LN(0.218798860946047))/0.1258791219104)>60,60,((LN((2*G8)/(F8^2*1.2))-LN(0.218798860946047))/0.1258791219104)) -> 35.5833086 | J8: =IF(AND($F8<7,$G8<200),$AU78,IF(AND($F8<7,$G8>=200),$AU79,IF(AND($F8>=7,$G8<200),$AU81,$AU82))) -> 53.55 | K8: 53.31376849 | L8: 56.9 | M8: 54.15 | N8: 51.85 | O8: 50.4 | P8: 48.96666667 | Q8: 44.7 | R8: 39.93333333 | S8: 36.11666667 | T8: =10*LOG10(10^(0.1*AY8)+10^(0.1*SDEInfo!P12)) -> 42.38077689 | U8: 42.14539367 | V8: =10*LOG10(10^(0.1*BA8)+10^(0.1*SDEInfo!Q12)) -> 55.90001116 | W8: =10*LOG10(10^(0.1*BB8)+10^(0.1*SDEInfo!R12)) -> 52.15002647 | X8: =10*LOG10(10^(0.1*BC8)+10^(0.1*SDEInfo!S12)) -> 45.85011292 | Y8: =10*LOG10(10^(0.1*BD8)+10^(0.1*SDEInfo!T12)) -> 35.40125234 | Z8: =10*LOG10(10^(0.1*BE8)+10^(0.1*SDEInfo!U12)) -> 27.97359727 | AA8: =10*LOG10(10^(0.1*BF8)+10^(0.1*SDEInfo!V12)) -> 29.70465106 | AB8: =10*LOG10(10^(0.1*BG8)+10^(0.1*SDEInfo!W12)) -> 31.93611504 | AC8: =10*LOG10(10^(0.1*BH8)+10^(0.1*SDEInfo!X12)) -> 29.12198593 | AD8: 39.45174103 | AF8: 44.75750522 | AG8: 33.00750522 | AH8: 35.70750522 | AI8: 36.25750522 | AJ8: 33.82417189 | AK8: 32.55750522 | AL8: 27.79083856 | AM8: 28.97417189 | AN8: 32.76053224 | AP8: 41.75750522 | AQ8: 31.00750522 | AR8: 33.70750522 | AS8: 30.25750522 | AT8: 27.82417189 | AU8: 24.55750522 | AV8: 3.790838557 | AW8: 6.97417189 | AX8: 2770 | AY8: 42.38030076 | BA8: =IF((A100-SDEInfo!H12)<0,0,(A100-SDEInfo!H12)) -> 55.9 | BB8: =IF((B100-SDEInfo!I12)<0,0,(B100-SDEInfo!I12)) -> 52.15 | BC8: =IF((C100-SDEInfo!J12)<0,0,(C100-SDEInfo!J12)) -> 45.85 | BD8: =IF((D100-SDEInfo!K12)<0,0,(D100-SDEInfo!K12)) -> 35.4 | BE8: =IF((E100-SDEInfo!L12)<0,0,(E100-SDEInfo!L12)) -> 27.96666667 | BF8: =IF((F100-SDEInfo!M12)<0,0,(F100-SDEInfo!M12)) -> 29.7 | BG8: =IF((G100-SDEInfo!N12)<0,0,(G100-SDEInfo!N12)) -> 31.93333333 | BH8: =IF((H100-SDEInfo!O12)<0,0,(H100-SDEInfo!O12)) -> 29.11666667 | BI8: 42.75357139 | BJ8: 42.51733988 | BK8: 38.9 | BL8: 41.15 | BM8: 40.85 | BN8: 40.4 | BO8: 37.96666667 | BP8: 33.7 | BQ8: 28.93333333 | BR8: 25.11666667 | BS8: 30.87447288 | BT8: 30.63908966 | BU8: 37.90001116 | BV8: 39.15002647 | BW8: 34.85011292 | BX8: 25.40125234 | BY8: 16.97359727 | BZ8: 18.70465106 | CA8: 20.93611504 | CB8: 18.12198593
A9: 400 | B9: 397.05 | C9: 0.1238170014 | D9: 7.484216179 | E9: 1000 | F9: 2.2 | G9: =IF(SD=TRUE,IF(dp-SDEInfo!Y13<1,1,dp-SDEInfo!Y13),dp) -> 150 | H9: =IF(((LN((2*G9)/(F9^2*1.2))-LN(0.218798860946047))/0.1258791219104)>60,60,((LN((2*G9)/(F9^2*1.2))-LN(0.218798860946047))/0.1258791219104)) -> 43.40790219 | J9: =IF(AND($F9<7,$G9<200),$AU87,IF(AND($F9<7,$G9>=200),$AU88,IF(AND($F9>=7,$G9<200),$AU90,$AU91))) -> 52.4 | K9: 52.51736939 | L9: 53.5 | M9: 52.7 | N9: 50.5 | O9: 49.2 | P9: 48.4 | Q9: 42.2 | R9: 42.7 | S9: 36.7 | T9: =10*LOG10(10^(0.1*AY9)+10^(0.1*SDEInfo!P13)) -> 44.63929344 | U9: =10*LOG10((10^(0.1*(V9-26.2)))+10^(0.1*(W9-16.1))+10^(0.1*(X9-8.6))+10^(0.1*(Y9-3.2))+10^(0.1*(Z9-0))+10^(0.1*(AA9+1.2))+10^(0.1*(AB9+1))+10^(0.1*(AC9-1.1))) -> 44.75723938 | V9: =10*LOG10(10^(0.1*BA9)+10^(0.1*SDEInfo!Q13)) -> 52.50002442 | W9: =10*LOG10(10^(0.1*BB9)+10^(0.1*SDEInfo!R13)) -> 50.70003696 | X9: =10*LOG10(10^(0.1*BC9)+10^(0.1*SDEInfo!S13)) -> 45.5001224 | Y9: =10*LOG10(10^(0.1*BD9)+10^(0.1*SDEInfo!T13)) -> 36.20104167 | Z9: =10*LOG10(10^(0.1*BE9)+10^(0.1*SDEInfo!U13)) -> 33.40198466 | AA9: =10*LOG10(10^(0.1*BF9)+10^(0.1*SDEInfo!V13)) -> 34.20165083 | AB9: =10*LOG10(10^(0.1*BG9)+10^(0.1*SDEInfo!W13)) -> 39.70046533 | AC9: =10*LOG10(10^(0.1*BH9)+10^(0.1*SDEInfo!X13)) -> 34.70147133 | AD9: 41.58703352 | AF9: 40.31366041 | AG9: 30.51366041 | AH9: 33.31366041 | AI9: 38.01366041 | AJ9: 36.21366041 | AK9: 33.01366041 | AL9: 33.51366041 | AM9: 32.51366041 | AN9: 31.08488655 | AP9: 37.31366041 | AQ9: 28.51366041 | AR9: 31.31366041 | AS9: 28.01366041 | AT9: 26.21366041 | AU9: 24.01366041 | AV9: 8.513660414 | AW9: 7.513660414 | AX9: 4479 | AY9: 44.63914421 | BA9: =IF((A101-SDEInfo!H13)<0,0,(A101-SDEInfo!H13)) -> 52.5 | BB9: =IF((B101-SDEInfo!I13)<0,0,(B101-SDEInfo!I13)) -> 50.7 | BC9: =IF((C101-SDEInfo!J13)<0,0,(C101-SDEInfo!J13)) -> 45.5 | BD9: =IF((D101-SDEInfo!K13)<0,0,(D101-SDEInfo!K13)) -> 36.2 | BE9: =IF((E101-SDEInfo!L13)<0,0,(E101-SDEInfo!L13)) -> 33.4 | BF9: =IF((F101-SDEInfo!M13)<0,0,(F101-SDEInfo!M13)) -> 34.2 | BG9: =IF((G101-SDEInfo!N13)<0,0,(G101-SDEInfo!N13)) -> 39.7 | BH9: =IF((H101-SDEInfo!O13)<0,0,(H101-SDEInfo!O13)) -> 34.7 | BI9: 41.59481473 | BJ9: 41.71218412 | BK9: 35.5 | BL9: 39.7 | BM9: 39.5 | BN9: 39.2 | BO9: 37.4 | BP9: 31.2 | BQ9: 31.7 | BR9: 25.7 | BS9: 33.50821583 | BT9: 33.62616178 | BU9: 34.50002442 | BV9: 37.70003696 | BW9: 34.5001224 | BX9: 26.20104167 | BY9: 22.40198466 | BZ9: 23.20165083 | CA9: 28.70046533 | CB9: 23.70147133
A26: Luftschalldurchstrahlung LW für Oktavmittenfrequenzen
B27: 63 | G27: 125 Hz | L27: 250 Hz | Q27: 500 Hz | V27: 1000 Hz | AA27: 2000 Hz | AF27: 4000 Hz | AK27: 8000 Hz | AP27: S LWA
A28: BG | B28: v | C28: dp | D28: LW | E28: m | F28: b | G28: v | H28: dp | I28: LW | J28: m | K28: b | L28: v | M28: dp | N28: LW | O28: m | P28: b | Q28: v | R28: dp | S28: LW | T28: m | U28: b | V28: v | W28: dp | X28: LW | Y28: m | Z28: b | AA28: v | AB28: dp | AC28: LW | AD28: m | AE28: b | AF28: v | AG28: dp | AH28: LW | AI28: m | AJ28: b | AK28: v | AL28: dp | AM28: LW | AN28: m | AO28: b | AP28: v | AQ28: dp | AR28: LW | AS28: m | AT28: b
A29: 100 | B29: 1 | C29: 100 | D29: 33 | G29: 1 | H29: 100 | I29: 32 | L29: 1 | M29: 100 | N29: 36 | Q29: 1 | R29: 100 | S29: 42 | V29: 1 | W29: 100 | X29: 43 | AA29: 1 | AB29: 100 | AC29: 32 | AF29: 1 | AG29: 100 | AH29: 23 | AK29: 1 | AL29: 100 | AM29: 26 | AP29: 1 | AQ29: 100 | AR29: 45 | AV29: 100
B30: 1 | C30: 200 | D30: 35 | E30: =INDEX(LINEST(D29:D30,C29:C30,TRUE,FALSE),1) -> 0.02 | F30: =INDEX(LINEST(D29:D30,C29:C30,TRUE,FALSE),2) -> 31 | G30: 1 | H30: 200 | I30: 35 | J30: =INDEX(LINEST(I29:I30,H29:H30,TRUE,FALSE),1) -> 0.03 | K30: =INDEX(LINEST(I29:I30,H29:H30,TRUE,FALSE),2) -> 29 | L30: 1 | M30: 200 | N30: 37 | O30: =INDEX(LINEST(N29:N30,M29:M30,TRUE,FALSE),1) -> 0.01 | P30: =INDEX(LINEST(N29:N30,M29:M30,TRUE,FALSE),2) -> 35 | Q30: 1 | R30: 200 | S30: 41 | T30: =INDEX(LINEST(S29:S30,R29:R30,TRUE,FALSE),1) -> -0.01 | U30: =INDEX(LINEST(S29:S30,R29:R30,TRUE,FALSE),2) -> 43 | V30: 1 | W30: 200 | X30: 47 | Y30: =INDEX(LINEST(X29:X30,W29:W30,TRUE,FALSE),1) -> 0.04 | Z30: =INDEX(LINEST(X29:X30,W29:W30,TRUE,FALSE),2) -> 39 | AA30: 1 | AB30: 200 | AC30: 39 | AD30: =INDEX(LINEST(AC29:AC30,AB29:AB30,TRUE,FALSE),1) -> 0.07 | AE30: =INDEX(LINEST(AC29:AC30,AB29:AB30,TRUE,FALSE),2) -> 25 | AF30: 1 | AG30: 200 | AH30: 32 | AI30: =INDEX(LINEST(AH29:AH30,AG29:AG30,TRUE,FALSE),1) -> 0.09 | AJ30: =INDEX(LINEST(AH29:AH30,AG29:AG30,TRUE,FALSE),2) -> 14 | AK30: 1 | AL30: 200 | AM30: 28 | AN30: =INDEX(LINEST(AM29:AM30,AL29:AL30,TRUE,FALSE),1) -> 0.02 | AO30: =INDEX(LINEST(AM29:AM30,AL29:AL30,TRUE,FALSE),2) -> 24 | AP30: 1 | AQ30: 200 | AR30: 48 | AS30: =INDEX(LINEST(AR29:AR30,AQ29:AQ30,TRUE,FALSE),1) -> 0.03 | AT30: =INDEX(LINEST(AR29:AR30,AQ29:AQ30,TRUE,FALSE),2) -> 42
B31: 1 | C31: 500 | D31: 33 | E31: =INDEX(LINEST(D30:D31,C30:C31,TRUE,FALSE),1) -> -0.006666666667 | F31: =INDEX(LINEST(D30:D31,C30:C31,TRUE,FALSE),2) -> 36.33333333 | G31: 1 | H31: 500 | I31: 37 | J31: =INDEX(LINEST(I30:I31,H30:H31,TRUE,FALSE),1) -> 0.006666666667 | K31: =INDEX(LINEST(I30:I31,H30:H31,TRUE,FALSE),2) -> 33.66666667 | L31: 1 | M31: 500 | N31: 43 | O31: =INDEX(LINEST(N30:N31,M30:M31,TRUE,FALSE),1) -> 0.02 | P31: =INDEX(LINEST(N30:N31,M30:M31,TRUE,FALSE),2) -> 33 | Q31: 1 | R31: 500 | S31: 44 | T31: =INDEX(LINEST(S30:S31,R30:R31,TRUE,FALSE),1) -> 0.01 | U31: =INDEX(LINEST(S30:S31,R30:R31,TRUE,FALSE),2) -> 39 | V31: 1 | W31: 500 | X31: 48 | Y31: =INDEX(LINEST(X30:X31,W30:W31,TRUE,FALSE),1) -> 0.003333333333 | Z31: =INDEX(LINEST(X30:X31,W30:W31,TRUE,FALSE),2) -> 46.33333333 | AA31: 1 | AB31: 500 | AC31: 47 | AD31: =INDEX(LINEST(AC30:AC31,AB30:AB31,TRUE,FALSE),1) -> 0.02666666667 | AE31: =INDEX(LINEST(AC30:AC31,AB30:AB31,TRUE,FALSE),2) -> 33.66666667 | AF31: 1 | AG31: 500 | AH31: 46 | AI31: =INDEX(LINEST(AH30:AH31,AG30:AG31,TRUE,FALSE),1) -> 0.04666666667 | AJ31: =INDEX(LINEST(AH30:AH31,AG30:AG31,TRUE,FALSE),2) -> 22.66666667 | AK31: 1 | AL31: 500 | AM31: 40 | AN31: =INDEX(LINEST(AM30:AM31,AL30:AL31,TRUE,FALSE),1) -> 0.04 | AO31: =INDEX(LINEST(AM30:AM31,AL30:AL31,TRUE,FALSE),2) -> 20 | AP31: 1 | AQ31: 500 | AR31: 53 | AS31: =INDEX(LINEST(AR30:AR31,AQ30:AQ31,TRUE,FALSE),1) -> 0.01666666667 | AT31: =INDEX(LINEST(AR30:AR31,AQ30:AQ31,TRUE,FALSE),2) -> 44.66666667
B32: 7 | C32: 100 | G32: 7 | H32: 100 | L32: 7 | M32: 100 | Q32: 7 | R32: 100 | V32: 7 | W32: 100 | AA32: 7 | AB32: 100 | AF32: 7 | AG32: 100 | AK32: 7 | AL32: 100 | AP32: 7 | AQ32: 100 | AR32: 50
B33: 7 | C33: 200 | G33: 7 | H33: 200 | L33: 7 | M33: 200 | Q33: 7 | R33: 200 | V33: 7 | W33: 200 | AA33: 7 | AB33: 200 | AF33: 7 | AG33: 200 | AK33: 7 | AL33: 200 | AP33: 7 | AQ33: 200 | AR33: 57 | AS33: =INDEX(LINEST(AR32:AR33,AQ32:AQ33,TRUE,FALSE),1) -> 0.07 | AT33: =INDEX(LINEST(AR32:AR33,AQ32:AQ33,TRUE,FALSE),2) -> 43 | AU33: =((($F$3-1)/6)*((AS33*$G$3+AT33)-(AS30*$G$3+AT30)))+(AS30*$G$3+AT30) -> 88.26666667
B34: 7 | C34: 500 | G34: 7 | H34: 500 | L34: 7 | M34: 500 | Q34: 7 | R34: 500 | V34: 7 | W34: 500 | AA34: 7 | AB34: 500 | AF34: 7 | AG34: 500 | AK34: 7 | AL34: 500 | AP34: 7 | AQ34: 500 | AR34: 66 | AS34: =INDEX(LINEST(AR33:AR34,AQ33:AQ34,TRUE,FALSE),1) -> 0.03 | AT34: =INDEX(LINEST(AR33:AR34,AQ33:AQ34,TRUE,FALSE),2) -> 51 | AU34: =((($F$3-1)/6)*((AS34*$G$3+AT34)-(AS31*$G$3+AT31)))+(AS31*$G$3+AT31) -> 96.88888889
B35: 10 | C35: 100 | D35: 44 | G35: 10 | H35: 100 | I35: 51 | L35: 10 | M35: 100 | N35: 48 | Q35: 10 | R35: 100 | S35: 50 | V35: 10 | W35: 100 | X35: 49 | AA35: 10 | AB35: 100 | AC35: 47 | AF35: 10 | AG35: 100 | AH35: 42 | AK35: 10 | AL35: 100 | AM35: 43 | AP35: 10 | AQ35: 100 | AR35: 54
B36: 10 | C36: 200 | D36: 47 | E36: =INDEX(LINEST(D35:D36,C35:C36,TRUE,FALSE),1) -> 0.03 | F36: =INDEX(LINEST(D35:D36,C35:C36,TRUE,FALSE),2) -> 41 | G36: 10 | H36: 200 | I36: 58 | J36: =INDEX(LINEST(I35:I36,H35:H36,TRUE,FALSE),1) -> 0.07 | K36: =INDEX(LINEST(I35:I36,H35:H36,TRUE,FALSE),2) -> 44 | L36: 10 | M36: 200 | N36: 56 | O36: =INDEX(LINEST(N35:N36,M35:M36,TRUE,FALSE),1) -> 0.08 | P36: =INDEX(LINEST(N35:N36,M35:M36,TRUE,FALSE),2) -> 40 | Q36: 10 | R36: 200 | S36: 55 | T36: =INDEX(LINEST(S35:S36,R35:R36,TRUE,FALSE),1) -> 0.05 | U36: =INDEX(LINEST(S35:S36,R35:R36,TRUE,FALSE),2) -> 45 | V36: 10 | W36: 200 | X36: 54 | Y36: =INDEX(LINEST(X35:X36,W35:W36,TRUE,FALSE),1) -> 0.05 | Z36: =INDEX(LINEST(X35:X36,W35:W36,TRUE,FALSE),2) -> 44 | AA36: 10 | AB36: 200 | AC36: 53 | AD36: =INDEX(LINEST(AC35:AC36,AB35:AB36,TRUE,FALSE),1) -> 0.06 | AE36: =INDEX(LINEST(AC35:AC36,AB35:AB36,TRUE,FALSE),2) -> 41 | AF36: 10 | AG36: 200 | AH36: 49 | AI36: =INDEX(LINEST(AH35:AH36,AG35:AG36,TRUE,FALSE),1) -> 0.07 | AJ36: =INDEX(LINEST(AH35:AH36,AG35:AG36,TRUE,FALSE),2) -> 35 | AK36: 10 | AL36: 200 | AM36: 52 | AN36: =INDEX(LINEST(AM35:AM36,AL35:AL36,TRUE,FALSE),1) -> 0.09 | AO36: =INDEX(LINEST(AM35:AM36,AL35:AL36,TRUE,FALSE),2) -> 34 | AP36: 10 | AQ36: 200 | AR36: 60 | AS36: =INDEX(LINEST(AR35:AR36,AQ35:AQ36,TRUE,FALSE),1) -> 0.06 | AT36: =INDEX(LINEST(AR35:AR36,AQ35:AQ36,TRUE,FALSE),2) -> 48 | AU36: =((($F$3-7)/3)*((AS36*$G$3+AT36)-(AS33*$G$3+AT33)))+(AS33*$G$3+AT33) -> 88.26666667
B37: 10 | C37: 500 | D37: 51 | E37: =INDEX(LINEST(D36:D37,C36:C37,TRUE,FALSE),1) -> 0.01333333333 | F37: =INDEX(LINEST(D36:D37,C36:C37,TRUE,FALSE),2) -> 44.33333333 | G37: 10 | H37: 500 | I37: 64 | J37: =INDEX(LINEST(I36:I37,H36:H37,TRUE,FALSE),1) -> 0.02 | K37: =INDEX(LINEST(I36:I37,H36:H37,TRUE,FALSE),2) -> 54 | L37: 10 | M37: 500 | N37: 64 | O37: =INDEX(LINEST(N36:N37,M36:M37,TRUE,FALSE),1) -> 0.02666666667 | P37: =INDEX(LINEST(N36:N37,M36:M37,TRUE,FALSE),2) -> 50.66666667 | Q37: 10 | R37: 500 | S37: 63 | T37: =INDEX(LINEST(S36:S37,R36:R37,TRUE,FALSE),1) -> 0.02666666667 | U37: =INDEX(LINEST(S36:S37,R36:R37,TRUE,FALSE),2) -> 49.66666667 | V37: 10 | W37: 500 | X37: 61 | Y37: =INDEX(LINEST(X36:X37,W36:W37,TRUE,FALSE),1) -> 0.02333333333 | Z37: =INDEX(LINEST(X36:X37,W36:W37,TRUE,FALSE),2) -> 49.33333333 | AA37: 10 | AB37: 500 | AC37: 60 | AD37: =INDEX(LINEST(AC36:AC37,AB36:AB37,TRUE,FALSE),1) -> 0.02333333333 | AE37: =INDEX(LINEST(AC36:AC37,AB36:AB37,TRUE,FALSE),2) -> 48.33333333 | AF37: 10 | AG37: 500 | AH37: 56 | AI37: =INDEX(LINEST(AH36:AH37,AG36:AG37,TRUE,FALSE),1) -> 0.02333333333 | AJ37: =INDEX(LINEST(AH36:AH37,AG36:AG37,TRUE,FALSE),2) -> 44.33333333 | AK37: 10 | AL37: 500 | AM37: 54 | AN37: =INDEX(LINEST(AM36:AM37,AL36:AL37,TRUE,FALSE),1) -> 0.006666666667 | AO37: =INDEX(LINEST(AM36:AM37,AL36:AL37,TRUE,FALSE),2) -> 50.66666667 | AP37: 10 | AQ37: 500 | AR37: 67 | AS37: =INDEX(LINEST(AR36:AR37,AQ36:AQ37,TRUE,FALSE),1) -> 0.02333333333 | AT37: =INDEX(LINEST(AR36:AR37,AQ36:AQ37,TRUE,FALSE),2) -> 55.33333333 | AU37: =((($F$3-7)/3)*((AS37*$G$3+AT37)-(AS34*$G$3+AT34)))+(AS34*$G$3+AT34) -> 88.61111111
A38: 125 | B38: 1 | C38: 100 | D38: 32 | G38: 1 | H38: 100 | I38: 29 | L38: 1 | M38: 100 | N38: 31 | Q38: 1 | R38: 100 | S38: 39 | V38: 1 | W38: 100 | X38: 41 | AA38: 1 | AB38: 100 | AC38: 32 | AF38: 1 | AG38: 100 | AH38: 23 | AK38: 1 | AL38: 100 | AM38: 16 | AP38: 1 | AQ38: 100 | AR38: 42 | AV38: 125
B39: 1 | C39: 200 | D39: 37 | E39: =INDEX(LINEST(D38:D39,C38:C39,TRUE,FALSE),1) -> 0.05 | F39: =INDEX(LINEST(D38:D39,C38:C39,TRUE,FALSE),2) -> 27 | G39: 1 | H39: 200 | I39: 29 | J39: =INDEX(LINEST(I38:I39,H38:H39,TRUE,FALSE),1) -> 0 | K39: =INDEX(LINEST(I38:I39,H38:H39,TRUE,FALSE),2) -> 29 | L39: 1 | M39: 200 | N39: 33 | O39: =INDEX(LINEST(N38:N39,M38:M39,TRUE,FALSE),1) -> 0.02 | P39: =INDEX(LINEST(N38:N39,M38:M39,TRUE,FALSE),2) -> 29 | Q39: 1 | R39: 200 | S39: 41 | T39: =INDEX(LINEST(S38:S39,R38:R39,TRUE,FALSE),1) -> 0.02 | U39: =INDEX(LINEST(S38:S39,R38:R39,TRUE,FALSE),2) -> 37 | V39: 1 | W39: 200 | X39: 49 | Y39: =INDEX(LINEST(X38:X39,W38:W39,TRUE,FALSE),1) -> 0.08 | Z39: =INDEX(LINEST(X38:X39,W38:W39,TRUE,FALSE),2) -> 33 | AA39: 1 | AB39: 200 | AC39: 44 | AD39: =INDEX(LINEST(AC38:AC39,AB38:AB39,TRUE,FALSE),1) -> 0.12 | AE39: =INDEX(LINEST(AC38:AC39,AB38:AB39,TRUE,FALSE),2) -> 20 | AF39: 1 | AG39: 200 | AH39: 37 | AI39: =INDEX(LINEST(AH38:AH39,AG38:AG39,TRUE,FALSE),1) -> 0.14 | AJ39: =INDEX(LINEST(AH38:AH39,AG38:AG39,TRUE,FALSE),2) -> 9 | AK39: 1 | AL39: 200 | AM39: 29 | AN39: =INDEX(LINEST(AM38:AM39,AL38:AL39,TRUE,FALSE),1) -> 0.13 | AO39: =INDEX(LINEST(AM38:AM39,AL38:AL39,TRUE,FALSE),2) -> 3 | AP39: 1 | AQ39: 200 | AR39: 51 | AS39: =INDEX(LINEST(AR38:AR39,AQ38:AQ39,TRUE,FALSE),1) -> 0.09 | AT39: =INDEX(LINEST(AR38:AR39,AQ38:AQ39,TRUE,FALSE),2) -> 33
B40: 1 | C40: 500 | D40: 32 | E40: =INDEX(LINEST(D39:D40,C39:C40,TRUE,FALSE),1) -> -0.01666666667 | F40: =INDEX(LINEST(D39:D40,C39:C40,TRUE,FALSE),2) -> 40.33333333 | G40: 1 | H40: 500 | I40: 31 | J40: =INDEX(LINEST(I39:I40,H39:H40,TRUE,FALSE),1) -> 0.006666666667 | K40: =INDEX(LINEST(I39:I40,H39:H40,TRUE,FALSE),2) -> 27.66666667 | L40: 1 | M40: 500 | N40: 36 | O40: =INDEX(LINEST(N39:N40,M39:M40,TRUE,FALSE),1) -> 0.01 | P40: =INDEX(LINEST(N39:N40,M39:M40,TRUE,FALSE),2) -> 31 | Q40: 1 | R40: 500 | S40: 44 | T40: =INDEX(LINEST(S39:S40,R39:R40,TRUE,FALSE),1) -> 0.01 | U40: =INDEX(LINEST(S39:S40,R39:R40,TRUE,FALSE),2) -> 39 | V40: 1 | W40: 500 | X40: 53 | Y40: =INDEX(LINEST(X39:X40,W39:W40,TRUE,FALSE),1) -> 0.01333333333 | Z40: =INDEX(LINEST(X39:X40,W39:W40,TRUE,FALSE),2) -> 46.33333333 | AA40: 1 | AB40: 500 | AC40: 58 | AD40: =INDEX(LINEST(AC39:AC40,AB39:AB40,TRUE,FALSE),1) -> 0.04666666667 | AE40: =INDEX(LINEST(AC39:AC40,AB39:AB40,TRUE,FALSE),2) -> 34.66666667 | AF40: 1 | AG40: 500 | AH40: 54 | AI40: =INDEX(LINEST(AH39:AH40,AG39:AG40,TRUE,FALSE),1) -> 0.05666666667 | AJ40: =INDEX(LINEST(AH39:AH40,AG39:AG40,TRUE,FALSE),2) -> 25.66666667 | AK40: 1 | AL40: 500 | AM40: 46 | AN40: =INDEX(LINEST(AM39:AM40,AL39:AL40,TRUE,FALSE),1) -> 0.05666666667 | AO40: =INDEX(LINEST(AM39:AM40,AL39:AL40,TRUE,FALSE),2) -> 17.66666667 | AP40: 1 | AQ40: 500 | AR40: 61 | AS40: =INDEX(LINEST(AR39:AR40,AQ39:AQ40,TRUE,FALSE),1) -> 0.03333333333 | AT40: =INDEX(LINEST(AR39:AR40,AQ39:AQ40,TRUE,FALSE),2) -> 44.33333333
B41: 7 | C41: 100 | G41: 7 | H41: 100 | L41: 7 | M41: 100 | Q41: 7 | R41: 100 | V41: 7 | W41: 100 | AA41: 7 | AB41: 100 | AF41: 7 | AG41: 100 | AK41: 7 | AL41: 100 | AP41: 7 | AQ41: 100 | AR41: 53
B42: 7 | C42: 200 | G42: 7 | H42: 200 | L42: 7 | M42: 200 | Q42: 7 | R42: 200 | V42: 7 | W42: 200 | AA42: 7 | AB42: 200 | AF42: 7 | AG42: 200 | AK42: 7 | AL42: 200 | AP42: 7 | AQ42: 200 | AR42: 60 | AS42: =INDEX(LINEST(AR41:AR42,AQ41:AQ42,TRUE,FALSE),1) -> 0.07 | AT42: =INDEX(LINEST(AR41:AR42,AQ41:AQ42,TRUE,FALSE),2) -> 46 | AU42: =((($F$4-1)/6)*((AS42*$G$4+AT42)-(AS39*$G$4+AT39)))+(AS39*$G$4+AT39) -> 84
B43: 7 | C43: 500 | G43: 7 | H43: 500 | L43: 7 | M43: 500 | Q43: 7 | R43: 500 | V43: 7 | W43: 500 | AA43: 7 | AB43: 500 | AF43: 7 | AG43: 500 | AK43: 7 | AL43: 500 | AP43: 7 | AQ43: 500 | AR43: 66 | AS43: =INDEX(LINEST(AR42:AR43,AQ42:AQ43,TRUE,FALSE),1) -> 0.02 | AT43: =INDEX(LINEST(AR42:AR43,AQ42:AQ43,TRUE,FALSE),2) -> 56 | AU43: =((($F$4-1)/6)*((AS43*$G$4+AT43)-(AS40*$G$4+AT40)))+(AS40*$G$4+AT40) -> 85.58333333
B44: 10 | C44: 100 | D44: 50 | G44: 10 | H44: 100 | I44: 55 | L44: 10 | M44: 100 | N44: 50 | Q44: 10 | R44: 100 | S44: 53 | V44: 10 | W44: 100 | X44: 54 | AA44: 10 | AB44: 100 | AC44: 46 | AF44: 10 | AG44: 100 | AH44: 43 | AK44: 10 | AL44: 100 | AM44: 37 | AP44: 10 | AQ44: 100 | AR44: 57
B45: 10 | C45: 200 | D45: 55 | E45: =INDEX(LINEST(D44:D45,C44:C45,TRUE,FALSE),1) -> 0.05 | F45: =INDEX(LINEST(D44:D45,C44:C45,TRUE,FALSE),2) -> 45 | G45: 10 | H45: 200 | I45: 63 | J45: =INDEX(LINEST(I44:I45,H44:H45,TRUE,FALSE),1) -> 0.08 | K45: =INDEX(LINEST(I44:I45,H44:H45,TRUE,FALSE),2) -> 47 | L45: 10 | M45: 200 | N45: 57 | O45: =INDEX(LINEST(N44:N45,M44:M45,TRUE,FALSE),1) -> 0.07 | P45: =INDEX(LINEST(N44:N45,M44:M45,TRUE,FALSE),2) -> 43 | Q45: 10 | R45: 200 | S45: 58 | T45: =INDEX(LINEST(S44:S45,R44:R45,TRUE,FALSE),1) -> 0.05 | U45: =INDEX(LINEST(S44:S45,R44:R45,TRUE,FALSE),2) -> 48 | V45: 10 | W45: 200 | X45: 58 | Y45: =INDEX(LINEST(X44:X45,W44:W45,TRUE,FALSE),1) -> 0.04 | Z45: =INDEX(LINEST(X44:X45,W44:W45,TRUE,FALSE),2) -> 50 | AA45: 10 | AB45: 200 | AC45: 53 | AD45: =INDEX(LINEST(AC44:AC45,AB44:AB45,TRUE,FALSE),1) -> 0.07 | AE45: =INDEX(LINEST(AC44:AC45,AB44:AB45,TRUE,FALSE),2) -> 39 | AF45: 10 | AG45: 200 | AH45: 52 | AI45: =INDEX(LINEST(AH44:AH45,AG44:AG45,TRUE,FALSE),1) -> 0.09 | AJ45: =INDEX(LINEST(AH44:AH45,AG44:AG45,TRUE,FALSE),2) -> 34 | AK45: 10 | AL45: 200 | AM45: 49 | AN45: =INDEX(LINEST(AM44:AM45,AL44:AL45,TRUE,FALSE),1) -> 0.12 | AO45: =INDEX(LINEST(AM44:AM45,AL44:AL45,TRUE,FALSE),2) -> 25 | AP45: 10 | AQ45: 200 | AR45: 62 | AS45: =INDEX(LINEST(AR44:AR45,AQ44:AQ45,TRUE,FALSE),1) -> 0.05 | AT45: =INDEX(LINEST(AR44:AR45,AQ44:AQ45,TRUE,FALSE),2) -> 52 | AU45: =((($F$4-7)/3)*((AS45*$G$4+AT45)-(AS42*$G$4+AT42)))+(AS42*$G$4+AT42) -> 73
B46: 10 | C46: 500 | D46: 57 | E46: =INDEX(LINEST(D45:D46,C45:C46,TRUE,FALSE),1) -> 0.006666666667 | F46: =INDEX(LINEST(D45:D46,C45:C46,TRUE,FALSE),2) -> 53.66666667 | G46: 10 | H46: 500 | I46: 66 | J46: =INDEX(LINEST(I45:I46,H45:H46,TRUE,FALSE),1) -> 0.01 | K46: =INDEX(LINEST(I45:I46,H45:H46,TRUE,FALSE),2) -> 61 | L46: 10 | M46: 500 | N46: 69 | O46: =INDEX(LINEST(N45:N46,M45:M46,TRUE,FALSE),1) -> 0.04 | P46: =INDEX(LINEST(N45:N46,M45:M46,TRUE,FALSE),2) -> 49 | Q46: 10 | R46: 500 | S46: 65 | T46: =INDEX(LINEST(S45:S46,R45:R46,TRUE,FALSE),1) -> 0.02333333333 | U46: =INDEX(LINEST(S45:S46,R45:R46,TRUE,FALSE),2) -> 53.33333333 | V46: 10 | W46: 500 | X46: 64 | Y46: =INDEX(LINEST(X45:X46,W45:W46,TRUE,FALSE),1) -> 0.02 | Z46: =INDEX(LINEST(X45:X46,W45:W46,TRUE,FALSE),2) -> 54 | AA46: 10 | AB46: 500 | AC46: 62 | AD46: =INDEX(LINEST(AC45:AC46,AB45:AB46,TRUE,FALSE),1) -> 0.03 | AE46: =INDEX(LINEST(AC45:AC46,AB45:AB46,TRUE,FALSE),2) -> 47 | AF46: 10 | AG46: 500 | AH46: 58 | AI46: =INDEX(LINEST(AH45:AH46,AG45:AG46,TRUE,FALSE),1) -> 0.02 | AJ46: =INDEX(LINEST(AH45:AH46,AG45:AG46,TRUE,FALSE),2) -> 48 | AK46: 10 | AL46: 500 | AM46: 57 | AN46: =INDEX(LINEST(AM45:AM46,AL45:AL46,TRUE,FALSE),1) -> 0.02666666667 | AO46: =INDEX(LINEST(AM45:AM46,AL45:AL46,TRUE,FALSE),2) -> 43.66666667 | AP46: 10 | AQ46: 500 | AR46: 69 | AS46: =INDEX(LINEST(AR45:AR46,AQ45:AQ46,TRUE,FALSE),1) -> 0.02333333333 | AT46: =INDEX(LINEST(AR45:AR46,AQ45:AQ46,TRUE,FALSE),2) -> 57.33333333 | AU46: =((($F$4-7)/3)*((AS46*$G$4+AT46)-(AS43*$G$4+AT43)))+(AS43*$G$4+AT43) -> 69.08333333
A47: 160 | B47: 1 | C47: 100 | D47: 43 | G47: 1 | H47: 100 | I47: 37 | L47: 1 | M47: 100 | N47: 39 | Q47: 1 | R47: 100 | S47: 42 | V47: 1 | W47: 100 | X47: 42 | AA47: 1 | AB47: 100 | AC47: 30 | AF47: 1 | AG47: 100 | AH47: 23 | AK47: 1 | AL47: 100 | AM47: 26 | AP47: 1 | AQ47: 100 | AR47: 44 | AV47: 160
B48: 1 | C48: 200 | D48: 42 | E48: =INDEX(LINEST(D47:D48,C47:C48,TRUE,FALSE),1) -> -0.01 | F48: =INDEX(LINEST(D47:D48,C47:C48,TRUE,FALSE),2) -> 44 | G48: 1 | H48: 200 | I48: 42 | J48: =INDEX(LINEST(I47:I48,H47:H48,TRUE,FALSE),1) -> 0.05 | K48: =INDEX(LINEST(I47:I48,H47:H48,TRUE,FALSE),2) -> 32 | L48: 1 | M48: 200 | N48: 44 | O48: =INDEX(LINEST(N47:N48,M47:M48,TRUE,FALSE),1) -> 0.05 | P48: =INDEX(LINEST(N47:N48,M47:M48,TRUE,FALSE),2) -> 34 | Q48: 1 | R48: 200 | S48: 45 | T48: =INDEX(LINEST(S47:S48,R47:R48,TRUE,FALSE),1) -> 0.03 | U48: =INDEX(LINEST(S47:S48,R47:R48,TRUE,FALSE),2) -> 39 | V48: 1 | W48: 200 | X48: 52 | Y48: =INDEX(LINEST(X47:X48,W47:W48,TRUE,FALSE),1) -> 0.1 | Z48: =INDEX(LINEST(X47:X48,W47:W48,TRUE,FALSE),2) -> 32 | AA48: 1 | AB48: 200 | AC48: 43 | AD48: =INDEX(LINEST(AC47:AC48,AB47:AB48,TRUE,FALSE),1) -> 0.13 | AE48: =INDEX(LINEST(AC47:AC48,AB47:AB48,TRUE,FALSE),2) -> 17 | AF48: 1 | AG48: 200 | AH48: 39 | AI48: =INDEX(LINEST(AH47:AH48,AG47:AG48,TRUE,FALSE),1) -> 0.16 | AJ48: =INDEX(LINEST(AH47:AH48,AG47:AG48,TRUE,FALSE),2) -> 7 | AK48: 1 | AL48: 200 | AM48: 40 | AN48: =INDEX(LINEST(AM47:AM48,AL47:AL48,TRUE,FALSE),1) -> 0.14 | AO48: =INDEX(LINEST(AM47:AM48,AL47:AL48,TRUE,FALSE),2) -> 12 | AP48: 1 | AQ48: 200 | AR48: 53 | AS48: =INDEX(LINEST(AR47:AR48,AQ47:AQ48,TRUE,FALSE),1) -> 0.09 | AT48: =INDEX(LINEST(AR47:AR48,AQ47:AQ48,TRUE,FALSE),2) -> 35
B49: 1 | C49: 500 | D49: 42 | E49: =INDEX(LINEST(D48:D49,C48:C49,TRUE,FALSE),1) -> 0 | F49: =INDEX(LINEST(D48:D49,C48:C49,TRUE,FALSE),2) -> 42 | G49: 1 | H49: 500 | I49: 41 | J49: =INDEX(LINEST(I48:I49,H48:H49,TRUE,FALSE),1) -> -0.003333333333 | K49: =INDEX(LINEST(I48:I49,H48:H49,TRUE,FALSE),2) -> 42.66666667 | L49: 1 | M49: 500 | N49: 50 | O49: =INDEX(LINEST(N48:N49,M48:M49,TRUE,FALSE),1) -> 0.02 | P49: =INDEX(LINEST(N48:N49,M48:M49,TRUE,FALSE),2) -> 40 | Q49: 1 | R49: 500 | S49: 51 | T49: =INDEX(LINEST(S48:S49,R48:R49,TRUE,FALSE),1) -> 0.02 | U49: =INDEX(LINEST(S48:S49,R48:R49,TRUE,FALSE),2) -> 41 | V49: 1 | W49: 500 | X49: 54 | Y49: =INDEX(LINEST(X48:X49,W48:W49,TRUE,FALSE),1) -> 0.006666666667 | Z49: =INDEX(LINEST(X48:X49,W48:W49,TRUE,FALSE),2) -> 50.66666667 | AA49: 1 | AB49: 500 | AC49: 57 | AD49: =INDEX(LINEST(AC48:AC49,AB48:AB49,TRUE,FALSE),1) -> 0.04666666667 | AE49: =INDEX(LINEST(AC48:AC49,AB48:AB49,TRUE,FALSE),2) -> 33.66666667 | AF49: 1 | AG49: 500 | AH49: 50 | AI49: =INDEX(LINEST(AH48:AH49,AG48:AG49,TRUE,FALSE),1) -> 0.03666666667 | AJ49: =INDEX(LINEST(AH48:AH49,AG48:AG49,TRUE,FALSE),2) -> 31.66666667 | AK49: 1 | AL49: 500 | AM49: 46 | AN49: =INDEX(LINEST(AM48:AM49,AL48:AL49,TRUE,FALSE),1) -> 0.02 | AO49: =INDEX(LINEST(AM48:AM49,AL48:AL49,TRUE,FALSE),2) -> 36 | AP49: 1 | AQ49: 500 | AR49: 60 | AS49: =INDEX(LINEST(AR48:AR49,AQ48:AQ49,TRUE,FALSE),1) -> 0.02333333333 | AT49: =INDEX(LINEST(AR48:AR49,AQ48:AQ49,TRUE,FALSE),2) -> 48.33333333
B50: 7 | C50: 100 | G50: 7 | H50: 100 | L50: 7 | M50: 100 | Q50: 7 | R50: 100 | V50: 7 | W50: 100 | AA50: 7 | AB50: 100 | AF50: 7 | AG50: 100 | AK50: 7 | AL50: 100 | AP50: 7 | AQ50: 100 | AR50: 55
B51: 7 | C51: 200 | G51: 7 | H51: 200 | L51: 7 | M51: 200 | Q51: 7 | R51: 200 | V51: 7 | W51: 200 | AA51: 7 | AB51: 200 | AF51: 7 | AG51: 200 | AK51: 7 | AL51: 200 | AP51: 7 | AQ51: 200 | AR51: 61 | AS51: =INDEX(LINEST(AR50:AR51,AQ50:AQ51,TRUE,FALSE),1) -> 0.06 | AT51: =INDEX(LINEST(AR50:AR51,AQ50:AQ51,TRUE,FALSE),2) -> 49 | AU51: =((($F$5-1)/6)*((AS51*$G$5+AT51)-(AS48*$G$5+AT48)))+(AS48*$G$5+AT48) -> 69.4
B52: 7 | C52: 500 | G52: 7 | H52: 500 | L52: 7 | M52: 500 | Q52: 7 | R52: 500 | V52: 7 | W52: 500 | AA52: 7 | AB52: 500 | AF52: 7 | AG52: 500 | AK52: 7 | AL52: 500 | AP52: 7 | AQ52: 500 | AR52: 69 | AS52: =INDEX(LINEST(AR51:AR52,AQ51:AQ52,TRUE,FALSE),1) -> 0.02666666667 | AT52: =INDEX(LINEST(AR51:AR52,AQ51:AQ52,TRUE,FALSE),2) -> 55.66666667 | AU52: =((($F$5-1)/6)*((AS52*$G$5+AT52)-(AS49*$G$5+AT49)))+(AS49*$G$5+AT49) -> 69.06666667
B53: 10 | C53: 100 | D53: 58 | G53: 10 | H53: 100 | I53: 60 | L53: 10 | M53: 100 | N53: 56 | Q53: 10 | R53: 100 | S53: 57 | V53: 10 | W53: 100 | X53: 57 | AA53: 10 | AB53: 100 | AC53: 49 | AF53: 10 | AG53: 100 | AH53: 45 | AK53: 10 | AL53: 100 | AM53: 40 | AP53: 10 | AQ53: 100 | AR53: 60
B54: 10 | C54: 200 | D54: 62 | E54: =INDEX(LINEST(D53:D54,C53:C54,TRUE,FALSE),1) -> 0.04 | F54: =INDEX(LINEST(D53:D54,C53:C54,TRUE,FALSE),2) -> 54 | G54: 10 | H54: 200 | I54: 66 | J54: =INDEX(LINEST(I53:I54,H53:H54,TRUE,FALSE),1) -> 0.06 | K54: =INDEX(LINEST(I53:I54,H53:H54,TRUE,FALSE),2) -> 54 | L54: 10 | M54: 200 | N54: 63 | O54: =INDEX(LINEST(N53:N54,M53:M54,TRUE,FALSE),1) -> 0.07 | P54: =INDEX(LINEST(N53:N54,M53:M54,TRUE,FALSE),2) -> 49 | Q54: 10 | R54: 200 | S54: 61 | T54: =INDEX(LINEST(S53:S54,R53:R54,TRUE,FALSE),1) -> 0.04 | U54: =INDEX(LINEST(S53:S54,R53:R54,TRUE,FALSE),2) -> 53 | V54: 10 | W54: 200 | X54: 61 | Y54: =INDEX(LINEST(X53:X54,W53:W54,TRUE,FALSE),1) -> 0.04 | Z54: =INDEX(LINEST(X53:X54,W53:W54,TRUE,FALSE),2) -> 53 | AA54: 10 | AB54: 200 | AC54: 55 | AD54: =INDEX(LINEST(AC53:AC54,AB53:AB54,TRUE,FALSE),1) -> 0.06 | AE54: =INDEX(LINEST(AC53:AC54,AB53:AB54,TRUE,FALSE),2) -> 43 | AF54: 10 | AG54: 200 | AH54: 51 | AI54: =INDEX(LINEST(AH53:AH54,AG53:AG54,TRUE,FALSE),1) -> 0.06 | AJ54: =INDEX(LINEST(AH53:AH54,AG53:AG54,TRUE,FALSE),2) -> 39 | AK54: 10 | AL54: 200 | AM54: 49 | AN54: =INDEX(LINEST(AM53:AM54,AL53:AL54,TRUE,FALSE),1) -> 0.09 | AO54: =INDEX(LINEST(AM53:AM54,AL53:AL54,TRUE,FALSE),2) -> 31 | AP54: 10 | AQ54: 200 | AR54: 65 | AS54: =INDEX(LINEST(AR53:AR54,AQ53:AQ54,TRUE,FALSE),1) -> 0.05 | AT54: =INDEX(LINEST(AR53:AR54,AQ53:AQ54,TRUE,FALSE),2) -> 55 | AU54: =((($F$5-7)/3)*((AS54*$G$5+AT54)-(AS51*$G$5+AT51)))+(AS51*$G$5+AT51) -> 68.8
B55: 10 | C55: 500 | D55: 67 | E55: =INDEX(LINEST(D54:D55,C54:C55,TRUE,FALSE),1) -> 0.01666666667 | F55: =INDEX(LINEST(D54:D55,C54:C55,TRUE,FALSE),2) -> 58.66666667 | G55: 10 | H55: 500 | I55: 71 | J55: =INDEX(LINEST(I54:I55,H54:H55,TRUE,FALSE),1) -> 0.01666666667 | K55: =INDEX(LINEST(I54:I55,H54:H55,TRUE,FALSE),2) -> 62.66666667 | L55: 10 | M55: 500 | N55: 70 | O55: =INDEX(LINEST(N54:N55,M54:M55,TRUE,FALSE),1) -> 0.02333333333 | P55: =INDEX(LINEST(N54:N55,M54:M55,TRUE,FALSE),2) -> 58.33333333 | Q55: 10 | R55: 500 | S55: 68 | T55: =INDEX(LINEST(S54:S55,R54:R55,TRUE,FALSE),1) -> 0.02333333333 | U55: =INDEX(LINEST(S54:S55,R54:R55,TRUE,FALSE),2) -> 56.33333333 | V55: 10 | W55: 500 | X55: 66 | Y55: =INDEX(LINEST(X54:X55,W54:W55,TRUE,FALSE),1) -> 0.01666666667 | Z55: =INDEX(LINEST(X54:X55,W54:W55,TRUE,FALSE),2) -> 57.66666667 | AA55: 10 | AB55: 500 | AC55: 64 | AD55: =INDEX(LINEST(AC54:AC55,AB54:AB55,TRUE,FALSE),1) -> 0.03 | AE55: =INDEX(LINEST(AC54:AC55,AB54:AB55,TRUE,FALSE),2) -> 49 | AF55: 10 | AG55: 500 | AH55: 59 | AI55: =INDEX(LINEST(AH54:AH55,AG54:AG55,TRUE,FALSE),1) -> 0.02666666667 | AJ55: =INDEX(LINEST(AH54:AH55,AG54:AG55,TRUE,FALSE),2) -> 45.66666667 | AK55: 10 | AL55: 500 | AM55: 58 | AN55: =INDEX(LINEST(AM54:AM55,AL54:AL55,TRUE,FALSE),1) -> 0.03 | AO55: =INDEX(LINEST(AM54:AM55,AL54:AL55,TRUE,FALSE),2) -> 43 | AP55: 10 | AQ55: 500 | AR55: 71 | AS55: =INDEX(LINEST(AR54:AR55,AQ54:AQ55,TRUE,FALSE),1) -> 0.02 | AT55: =INDEX(LINEST(AR54:AR55,AQ54:AQ55,TRUE,FALSE),2) -> 61 | AU55: =((($F$5-7)/3)*((AS55*$G$5+AT55)-(AS52*$G$5+AT52)))+(AS52*$G$5+AT52) -> 70.06666667
A56: 200 | B56: 1 | C56: 100 | D56: 38 | G56: 1 | H56: 100 | I56: 33 | L56: 1 | M56: 100 | N56: 37 | Q56: 1 | R56: 100 | S56: 40 | V56: 1 | W56: 100 | X56: 39 | AA56: 1 | AB56: 100 | AC56: 31 | AF56: 1 | AG56: 100 | AH56: 21 | AK56: 1 | AL56: 100 | AM56: 15 | AP56: 1 | AQ56: 100 | AR56: 42 | AV56: 200
B57: 1 | C57: 200 | D57: 41 | E57: =INDEX(LINEST(D56:D57,C56:C57,TRUE,FALSE),1) -> 0.03 | F57: =INDEX(LINEST(D56:D57,C56:C57,TRUE,FALSE),2) -> 35 | G57: 1 | H57: 200 | I57: 37 | J57: =INDEX(LINEST(I56:I57,H56:H57,TRUE,FALSE),1) -> 0.04 | K57: =INDEX(LINEST(I56:I57,H56:H57,TRUE,FALSE),2) -> 29 | L57: 1 | M57: 200 | N57: 41 | O57: =INDEX(LINEST(N56:N57,M56:M57,TRUE,FALSE),1) -> 0.04 | P57: =INDEX(LINEST(N56:N57,M56:M57,TRUE,FALSE),2) -> 33 | Q57: 1 | R57: 200 | S57: 46 | T57: =INDEX(LINEST(S56:S57,R56:R57,TRUE,FALSE),1) -> 0.06 | U57: =INDEX(LINEST(S56:S57,R56:R57,TRUE,FALSE),2) -> 34 | V57: 1 | W57: 200 | X57: 49 | Y57: =INDEX(LINEST(X56:X57,W56:W57,TRUE,FALSE),1) -> 0.1 | Z57: =INDEX(LINEST(X56:X57,W56:W57,TRUE,FALSE),2) -> 29 | AA57: 1 | AB57: 200 | AC57: 45 | AD57: =INDEX(LINEST(AC56:AC57,AB56:AB57,TRUE,FALSE),1) -> 0.14 | AE57: =INDEX(LINEST(AC56:AC57,AB56:AB57,TRUE,FALSE),2) -> 17 | AF57: 1 | AG57: 200 | AH57: 36 | AI57: =INDEX(LINEST(AH56:AH57,AG56:AG57,TRUE,FALSE),1) -> 0.15 | AJ57: =INDEX(LINEST(AH56:AH57,AG56:AG57,TRUE,FALSE),2) -> 6 | AK57: 1 | AL57: 200 | AM57: 28 | AN57: =INDEX(LINEST(AM56:AM57,AL56:AL57,TRUE,FALSE),1) -> 0.13 | AO57: =INDEX(LINEST(AM56:AM57,AL56:AL57,TRUE,FALSE),2) -> 2 | AP57: 1 | AQ57: 200 | AR57: 51 | AS57: =INDEX(LINEST(AR56:AR57,AQ56:AQ57,TRUE,FALSE),1) -> 0.09 | AT57: =INDEX(LINEST(AR56:AR57,AQ56:AQ57,TRUE,FALSE),2) -> 33
B58: 1 | C58: 500 | D58: 43 | E58: =INDEX(LINEST(D57:D58,C57:C58,TRUE,FALSE),1) -> 0.006666666667 | F58: =INDEX(LINEST(D57:D58,C57:C58,TRUE,FALSE),2) -> 39.66666667 | G58: 1 | H58: 500 | I58: 41 | J58: =INDEX(LINEST(I57:I58,H57:H58,TRUE,FALSE),1) -> 0.01333333333 | K58: =INDEX(LINEST(I57:I58,H57:H58,TRUE,FALSE),2) -> 34.33333333 | L58: 1 | M58: 500 | N58: 43 | O58: =INDEX(LINEST(N57:N58,M57:M58,TRUE,FALSE),1) -> 0.006666666667 | P58: =INDEX(LINEST(N57:N58,M57:M58,TRUE,FALSE),2) -> 39.66666667 | Q58: 1 | R58: 500 | S58: 49 | T58: =INDEX(LINEST(S57:S58,R57:R58,TRUE,FALSE),1) -> 0.01 | U58: =INDEX(LINEST(S57:S58,R57:R58,TRUE,FALSE),2) -> 44 | V58: 1 | W58: 500 | X58: 56 | Y58: =INDEX(LINEST(X57:X58,W57:W58,TRUE,FALSE),1) -> 0.02333333333 | Z58: =INDEX(LINEST(X57:X58,W57:W58,TRUE,FALSE),2) -> 44.33333333 | AA58: 1 | AB58: 500 | AC58: 60 | AD58: =INDEX(LINEST(AC57:AC58,AB57:AB58,TRUE,FALSE),1) -> 0.05 | AE58: =INDEX(LINEST(AC57:AC58,AB57:AB58,TRUE,FALSE),2) -> 35 | AF58: 1 | AG58: 500 | AH58: 55 | AI58: =INDEX(LINEST(AH57:AH58,AG57:AG58,TRUE,FALSE),1) -> 0.06333333333 | AJ58: =INDEX(LINEST(AH57:AH58,AG57:AG58,TRUE,FALSE),2) -> 23.33333333 | AK58: 1 | AL58: 500 | AM58: 47 | AN58: =INDEX(LINEST(AM57:AM58,AL57:AL58,TRUE,FALSE),1) -> 0.06333333333 | AO58: =INDEX(LINEST(AM57:AM58,AL57:AL58,TRUE,FALSE),2) -> 15.33333333 | AP58: 1 | AQ58: 500 | AR58: 64 | AS58: =INDEX(LINEST(AR57:AR58,AQ57:AQ58,TRUE,FALSE),1) -> 0.04333333333 | AT58: =INDEX(LINEST(AR57:AR58,AQ57:AQ58,TRUE,FALSE),2) -> 42.33333333
B59: 7 | C59: 100 | G59: 7 | H59: 100 | L59: 7 | M59: 100 | Q59: 7 | R59: 100 | V59: 7 | W59: 100 | AA59: 7 | AB59: 100 | AF59: 7 | AG59: 100 | AK59: 7 | AL59: 100 | AP59: 7 | AQ59: 100 | AR59: 54
B60: 7 | C60: 200 | G60: 7 | H60: 200 | L60: 7 | M60: 200 | Q60: 7 | R60: 200 | V60: 7 | W60: 200 | AA60: 7 | AB60: 200 | AF60: 7 | AG60: 200 | AK60: 7 | AL60: 200 | AP60: 7 | AQ60: 200 | AR60: 58 | AS60: =INDEX(LINEST(AR59:AR60,AQ59:AQ60,TRUE,FALSE),1) -> 0.04 | AT60: =INDEX(LINEST(AR59:AR60,AQ59:AQ60,TRUE,FALSE),2) -> 50 | AU60: =((($F$6-1)/6)*((AS60*$G$6+AT60)-(AS57*$G$6+AT57)))+(AS57*$G$6+AT57) -> 59.325
B61: 7 | C61: 500 | G61: 7 | H61: 500 | L61: 7 | M61: 500 | Q61: 7 | R61: 500 | V61: 7 | W61: 500 | AA61: 7 | AB61: 500 | AF61: 7 | AG61: 500 | AK61: 7 | AL61: 500 | AP61: 7 | AQ61: 500 | AR61: 66 | AS61: =INDEX(LINEST(AR60:AR61,AQ60:AQ61,TRUE,FALSE),1) -> 0.02666666667 | AT61: =INDEX(LINEST(AR60:AR61,AQ60:AQ61,TRUE,FALSE),2) -> 52.66666667 | AU61: =((($F$6-1)/6)*((AS61*$G$6+AT61)-(AS58*$G$6+AT58)))+(AS58*$G$6+AT58) -> 59.40833333
B62: 10 | C62: 100 | D62: 65 | G62: 10 | H62: 100 | I62: 60 | L62: 10 | M62: 100 | N62: 58 | Q62: 10 | R62: 100 | S62: 57 | V62: 10 | W62: 100 | X62: 57 | AA62: 10 | AB62: 100 | AC62: 53 | AF62: 10 | AG62: 100 | AH62: 48 | AK62: 10 | AL62: 100 | AM62: 54 | AP62: 10 | AQ62: 100 | AR62: 61
B63: 10 | C63: 200 | D63: 66 | E63: =INDEX(LINEST(D62:D63,C62:C63,TRUE,FALSE),1) -> 0.01 | F63: =INDEX(LINEST(D62:D63,C62:C63,TRUE,FALSE),2) -> 64 | G63: 10 | H63: 200 | I63: 63 | J63: =INDEX(LINEST(I62:I63,H62:H63,TRUE,FALSE),1) -> 0.03 | K63: =INDEX(LINEST(I62:I63,H62:H63,TRUE,FALSE),2) -> 57 | L63: 10 | M63: 200 | N63: 61 | O63: =INDEX(LINEST(N62:N63,M62:M63,TRUE,FALSE),1) -> 0.03 | P63: =INDEX(LINEST(N62:N63,M62:M63,TRUE,FALSE),2) -> 55 | Q63: 10 | R63: 200 | S63: 58 | T63: =INDEX(LINEST(S62:S63,R62:R63,TRUE,FALSE),1) -> 0.01 | U63: =INDEX(LINEST(S62:S63,R62:R63,TRUE,FALSE),2) -> 56 | V63: 10 | W63: 200 | X63: 58 | Y63: =INDEX(LINEST(X62:X63,W62:W63,TRUE,FALSE),1) -> 0.01 | Z63: =INDEX(LINEST(X62:X63,W62:W63,TRUE,FALSE),2) -> 56 | AA63: 10 | AB63: 200 | AC63: 56 | AD63: =INDEX(LINEST(AC62:AC63,AB62:AB63,TRUE,FALSE),1) -> 0.03 | AE63: =INDEX(LINEST(AC62:AC63,AB62:AB63,TRUE,FALSE),2) -> 50 | AF63: 10 | AG63: 200 | AH63: 51 | AI63: =INDEX(LINEST(AH62:AH63,AG62:AG63,TRUE,FALSE),1) -> 0.03 | AJ63: =INDEX(LINEST(AH62:AH63,AG62:AG63,TRUE,FALSE),2) -> 45 | AK63: 10 | AL63: 200 | AM63: 56 | AN63: =INDEX(LINEST(AM62:AM63,AL62:AL63,TRUE,FALSE),1) -> 0.02 | AO63: =INDEX(LINEST(AM62:AM63,AL62:AL63,TRUE,FALSE),2) -> 52 | AP63: 10 | AQ63: 200 | AR63: 63 | AS63: =INDEX(LINEST(AR62:AR63,AQ62:AQ63,TRUE,FALSE),1) -> 0.02 | AT63: =INDEX(LINEST(AR62:AR63,AQ62:AQ63,TRUE,FALSE),2) -> 59 | AU63: =((($F$6-7)/3)*((AS63*$G$6+AT63)-(AS60*$G$6+AT60)))+(AS60*$G$6+AT60) -> 60.2
B64: 10 | C64: 500 | D64: 73 | E64: =INDEX(LINEST(D63:D64,C63:C64,TRUE,FALSE),1) -> 0.02333333333 | F64: =INDEX(LINEST(D63:D64,C63:C64,TRUE,FALSE),2) -> 61.33333333 | G64: 10 | H64: 500 | I64: 70 | J64: =INDEX(LINEST(I63:I64,H63:H64,TRUE,FALSE),1) -> 0.02333333333 | K64: =INDEX(LINEST(I63:I64,H63:H64,TRUE,FALSE),2) -> 58.33333333 | L64: 10 | M64: 500 | N64: 68 | O64: =INDEX(LINEST(N63:N64,M63:M64,TRUE,FALSE),1) -> 0.02333333333 | P64: =INDEX(LINEST(N63:N64,M63:M64,TRUE,FALSE),2) -> 56.33333333 | Q64: 10 | R64: 500 | S64: 64 | T64: =INDEX(LINEST(S63:S64,R63:R64,TRUE,FALSE),1) -> 0.02 | U64: =INDEX(LINEST(S63:S64,R63:R64,TRUE,FALSE),2) -> 54 | V64: 10 | W64: 500 | X64: 62 | Y64: =INDEX(LINEST(X63:X64,W63:W64,TRUE,FALSE),1) -> 0.01333333333 | Z64: =INDEX(LINEST(X63:X64,W63:W64,TRUE,FALSE),2) -> 55.33333333 | AA64: 10 | AB64: 500 | AC64: 61 | AD64: =INDEX(LINEST(AC63:AC64,AB63:AB64,TRUE,FALSE),1) -> 0.01666666667 | AE64: =INDEX(LINEST(AC63:AC64,AB63:AB64,TRUE,FALSE),2) -> 52.66666667 | AF64: 10 | AG64: 500 | AH64: 58 | AI64: =INDEX(LINEST(AH63:AH64,AG63:AG64,TRUE,FALSE),1) -> 0.02333333333 | AJ64: =INDEX(LINEST(AH63:AH64,AG63:AG64,TRUE,FALSE),2) -> 46.33333333 | AK64: 10 | AL64: 500 | AM64: 57 | AN64: =INDEX(LINEST(AM63:AM64,AL63:AL64,TRUE,FALSE),1) -> 0.003333333333 | AO64: =INDEX(LINEST(AM63:AM64,AL63:AL64,TRUE,FALSE),2) -> 55.33333333 | AP64: 10 | AQ64: 500 | AR64: 68 | AS64: =INDEX(LINEST(AR63:AR64,AQ63:AQ64,TRUE,FALSE),1) -> 0.01666666667 | AT64: =INDEX(LINEST(AR63:AR64,AQ63:AQ64,TRUE,FALSE),2) -> 59.66666667 | AU64: =((($F$6-7)/3)*((AS64*$G$6+AT64)-(AS61*$G$6+AT61)))+(AS61*$G$6+AT61) -> 60.51666667
A65: 250 | B65: 1 | C65: 100 | D65: 38 | G65: 1 | H65: 100 | I65: 39 | L65: 1 | M65: 100 | N65: 42 | Q65: 1 | R65: 100 | S65: 43 | V65: 1 | W65: 100 | X65: 39 | AA65: 1 | AB65: 100 | AC65: 33 | AF65: 1 | AG65: 100 | AH65: 28 | AK65: 1 | AL65: 100 | AM65: 26 | AP65: 1 | AQ65: 100 | AR65: 44 | AV65: 250
B66: 1 | C66: 200 | D66: 39 | E66: =INDEX(LINEST(D65:D66,C65:C66,TRUE,FALSE),1) -> 0.01 | F66: =INDEX(LINEST(D65:D66,C65:C66,TRUE,FALSE),2) -> 37 | G66: 1 | H66: 200 | I66: 42 | J66: =INDEX(LINEST(I65:I66,H65:H66,TRUE,FALSE),1) -> 0.03 | K66: =INDEX(LINEST(I65:I66,H65:H66,TRUE,FALSE),2) -> 36 | L66: 1 | M66: 200 | N66: 45 | O66: =INDEX(LINEST(N65:N66,M65:M66,TRUE,FALSE),1) -> 0.03 | P66: =INDEX(LINEST(N65:N66,M65:M66,TRUE,FALSE),2) -> 39 | Q66: 1 | R66: 200 | S66: 50 | T66: =INDEX(LINEST(S65:S66,R65:R66,TRUE,FALSE),1) -> 0.07 | U66: =INDEX(LINEST(S65:S66,R65:R66,TRUE,FALSE),2) -> 36 | V66: 1 | W66: 200 | X66: 50 | Y66: =INDEX(LINEST(X65:X66,W65:W66,TRUE,FALSE),1) -> 0.11 | Z66: =INDEX(LINEST(X65:X66,W65:W66,TRUE,FALSE),2) -> 28 | AA66: 1 | AB66: 200 | AC66: 46 | AD66: =INDEX(LINEST(AC65:AC66,AB65:AB66,TRUE,FALSE),1) -> 0.13 | AE66: =INDEX(LINEST(AC65:AC66,AB65:AB66,TRUE,FALSE),2) -> 20 | AF66: 1 | AG66: 200 | AH66: 38 | AI66: =INDEX(LINEST(AH65:AH66,AG65:AG66,TRUE,FALSE),1) -> 0.1 | AJ66: =INDEX(LINEST(AH65:AH66,AG65:AG66,TRUE,FALSE),2) -> 18 | AK66: 1 | AL66: 200 | AM66: 31 | AN66: =INDEX(LINEST(AM65:AM66,AL65:AL66,TRUE,FALSE),1) -> 0.05 | AO66: =INDEX(LINEST(AM65:AM66,AL65:AL66,TRUE,FALSE),2) -> 21 | AP66: 1 | AQ66: 200 | AR66: 53 | AS66: =INDEX(LINEST(AR65:AR66,AQ65:AQ66,TRUE,FALSE),1) -> 0.09 | AT66: =INDEX(LINEST(AR65:AR66,AQ65:AQ66,TRUE,FALSE),2) -> 35
B67: 1 | C67: 500 | D67: 42 | E67: =INDEX(LINEST(D66:D67,C66:C67,TRUE,FALSE),1) -> 0.01 | F67: =INDEX(LINEST(D66:D67,C66:C67,TRUE,FALSE),2) -> 37 | G67: 1 | H67: 500 | I67: 48 | J67: =INDEX(LINEST(I66:I67,H66:H67,TRUE,FALSE),1) -> 0.02 | K67: =INDEX(LINEST(I66:I67,H66:H67,TRUE,FALSE),2) -> 38 | L67: 1 | M67: 500 | N67: 49 | O67: =INDEX(LINEST(N66:N67,M66:M67,TRUE,FALSE),1) -> 0.01333333333 | P67: =INDEX(LINEST(N66:N67,M66:M67,TRUE,FALSE),2) -> 42.33333333 | Q67: 1 | R67: 500 | S67: 51 | T67: =INDEX(LINEST(S66:S67,R66:R67,TRUE,FALSE),1) -> 0.003333333333 | U67: =INDEX(LINEST(S66:S67,R66:R67,TRUE,FALSE),2) -> 49.33333333 | V67: 1 | W67: 500 | X67: 57 | Y67: =INDEX(LINEST(X66:X67,W66:W67,TRUE,FALSE),1) -> 0.02333333333 | Z67: =INDEX(LINEST(X66:X67,W66:W67,TRUE,FALSE),2) -> 45.33333333 | AA67: 1 | AB67: 500 | AC67: 58 | AD67: =INDEX(LINEST(AC66:AC67,AB66:AB67,TRUE,FALSE),1) -> 0.04 | AE67: =INDEX(LINEST(AC66:AC67,AB66:AB67,TRUE,FALSE),2) -> 38 | AF67: 1 | AG67: 500 | AH67: 55 | AI67: =INDEX(LINEST(AH66:AH67,AG66:AG67,TRUE,FALSE),1) -> 0.05666666667 | AJ67: =INDEX(LINEST(AH66:AH67,AG66:AG67,TRUE,FALSE),2) -> 26.66666667 | AK67: 1 | AL67: 500 | AM67: 50 | AN67: =INDEX(LINEST(AM66:AM67,AL66:AL67,TRUE,FALSE),1) -> 0.06333333333 | AO67: =INDEX(LINEST(AM66:AM67,AL66:AL67,TRUE,FALSE),2) -> 18.33333333 | AP67: 1 | AQ67: 500 | AR67: 63 | AS67: =INDEX(LINEST(AR66:AR67,AQ66:AQ67,TRUE,FALSE),1) -> 0.03333333333 | AT67: =INDEX(LINEST(AR66:AR67,AQ66:AQ67,TRUE,FALSE),2) -> 46.33333333
B68: 7 | C68: 100 | G68: 7 | H68: 100 | L68: 7 | M68: 100 | Q68: 7 | R68: 100 | V68: 7 | W68: 100 | AA68: 7 | AB68: 100 | AF68: 7 | AG68: 100 | AK68: 7 | AL68: 100 | AP68: 7 | AQ68: 100 | AR68: 58
B69: 7 | C69: 200 | G69: 7 | H69: 200 | L69: 7 | M69: 200 | Q69: 7 | R69: 200 | V69: 7 | W69: 200 | AA69: 7 | AB69: 200 | AF69: 7 | AG69: 200 | AK69: 7 | AL69: 200 | AP69: 7 | AQ69: 200 | AR69: 62 | AS69: =INDEX(LINEST(AR68:AR69,AQ68:AQ69,TRUE,FALSE),1) -> 0.04 | AT69: =INDEX(LINEST(AR68:AR69,AQ68:AQ69,TRUE,FALSE),2) -> 54 | AU69: =((($F$7-1)/6)*((AS69*$G$7+AT69)-(AS66*$G$7+AT66)))+(AS66*$G$7+AT66) -> 57.7
B70: 7 | C70: 500 | G70: 7 | H70: 500 | L70: 7 | M70: 500 | Q70: 7 | R70: 500 | V70: 7 | W70: 500 | AA70: 7 | AB70: 500 | AF70: 7 | AG70: 500 | AK70: 7 | AL70: 500 | AP70: 7 | AQ70: 500 | AR70: 70 | AS70: =INDEX(LINEST(AR69:AR70,AQ69:AQ70,TRUE,FALSE),1) -> 0.02666666667 | AT70: =INDEX(LINEST(AR69:AR70,AQ69:AQ70,TRUE,FALSE),2) -> 56.66666667 | AU70: =((($F$7-1)/6)*((AS70*$G$7+AT70)-(AS67*$G$7+AT67)))+(AS67*$G$7+AT67) -> 58.8
B71: 10 | C71: 100 | D71: 68 | G71: 10 | H71: 100 | I71: 64 | L71: 10 | M71: 100 | N71: 61 | Q71: 10 | R71: 100 | S71: 58 | V71: 10 | W71: 100 | X71: 56 | AA71: 10 | AB71: 100 | AC71: 54 | AF71: 10 | AG71: 100 | AH71: 53 | AK71: 10 | AL71: 100 | AM71: 51 | AP71: 10 | AQ71: 100 | AR71: 62
B72: 10 | C72: 200 | D72: 73 | E72: =INDEX(LINEST(D71:D72,C71:C72,TRUE,FALSE),1) -> 0.05 | F72: =INDEX(LINEST(D71:D72,C71:C72,TRUE,FALSE),2) -> 63 | G72: 10 | H72: 200 | I72: 70 | J72: =INDEX(LINEST(I71:I72,H71:H72,TRUE,FALSE),1) -> 0.06 | K72: =INDEX(LINEST(I71:I72,H71:H72,TRUE,FALSE),2) -> 58 | L72: 10 | M72: 200 | N72: 67 | O72: =INDEX(LINEST(N71:N72,M71:M72,TRUE,FALSE),1) -> 0.06 | P72: =INDEX(LINEST(N71:N72,M71:M72,TRUE,FALSE),2) -> 55 | Q72: 10 | R72: 200 | S72: 64 | T72: =INDEX(LINEST(S71:S72,R71:R72,TRUE,FALSE),1) -> 0.06 | U72: =INDEX(LINEST(S71:S72,R71:R72,TRUE,FALSE),2) -> 52 | V72: 10 | W72: 200 | X72: 61 | Y72: =INDEX(LINEST(X71:X72,W71:W72,TRUE,FALSE),1) -> 0.05 | Z72: =INDEX(LINEST(X71:X72,W71:W72,TRUE,FALSE),2) -> 51 | AA72: 10 | AB72: 200 | AC72: 60 | AD72: =INDEX(LINEST(AC71:AC72,AB71:AB72,TRUE,FALSE),1) -> 0.06 | AE72: =INDEX(LINEST(AC71:AC72,AB71:AB72,TRUE,FALSE),2) -> 48 | AF72: 10 | AG72: 200 | AH72: 58 | AI72: =INDEX(LINEST(AH71:AH72,AG71:AG72,TRUE,FALSE),1) -> 0.05 | AJ72: =INDEX(LINEST(AH71:AH72,AG71:AG72,TRUE,FALSE),2) -> 48 | AK72: 10 | AL72: 200 | AM72: 57 | AN72: =INDEX(LINEST(AM71:AM72,AL71:AL72,TRUE,FALSE),1) -> 0.06 | AO72: =INDEX(LINEST(AM71:AM72,AL71:AL72,TRUE,FALSE),2) -> 45 | AP72: 10 | AQ72: 200 | AR72: 68 | AS72: =INDEX(LINEST(AR71:AR72,AQ71:AQ72,TRUE,FALSE),1) -> 0.06 | AT72: =INDEX(LINEST(AR71:AR72,AQ71:AQ72,TRUE,FALSE),2) -> 56 | AU72: =((($F$7-7)/3)*((AS72*$G$7+AT72)-(AS69*$G$7+AT69)))+(AS69*$G$7+AT69) -> 58
B73: 10 | C73: 500 | D73: 80 | E73: =INDEX(LINEST(D72:D73,C72:C73,TRUE,FALSE),1) -> 0.02333333333 | F73: =INDEX(LINEST(D72:D73,C72:C73,TRUE,FALSE),2) -> 68.33333333 | G73: 10 | H73: 500 | I73: 77 | J73: =INDEX(LINEST(I72:I73,H72:H73,TRUE,FALSE),1) -> 0.02333333333 | K73: =INDEX(LINEST(I72:I73,H72:H73,TRUE,FALSE),2) -> 65.33333333 | L73: 10 | M73: 500 | N73: 76 | O73: =INDEX(LINEST(N72:N73,M72:M73,TRUE,FALSE),1) -> 0.03 | P73: =INDEX(LINEST(N72:N73,M72:M73,TRUE,FALSE),2) -> 61 | Q73: 10 | R73: 500 | S73: 70 | T73: =INDEX(LINEST(S72:S73,R72:R73,TRUE,FALSE),1) -> 0.02 | U73: =INDEX(LINEST(S72:S73,R72:R73,TRUE,FALSE),2) -> 60 | V73: 10 | W73: 500 | X73: 66 | Y73: =INDEX(LINEST(X72:X73,W72:W73,TRUE,FALSE),1) -> 0.01666666667 | Z73: =INDEX(LINEST(X72:X73,W72:W73,TRUE,FALSE),2) -> 57.66666667 | AA73: 10 | AB73: 500 | AC73: 64 | AD73: =INDEX(LINEST(AC72:AC73,AB72:AB73,TRUE,FALSE),1) -> 0.01333333333 | AE73: =INDEX(LINEST(AC72:AC73,AB72:AB73,TRUE,FALSE),2) -> 57.33333333 | AF73: 10 | AG73: 500 | AH73: 62 | AI73: =INDEX(LINEST(AH72:AH73,AG72:AG73,TRUE,FALSE),1) -> 0.01333333333 | AJ73: =INDEX(LINEST(AH72:AH73,AG72:AG73,TRUE,FALSE),2) -> 55.33333333 | AK73: 10 | AL73: 500 | AM73: 59 | AN73: =INDEX(LINEST(AM72:AM73,AL72:AL73,TRUE,FALSE),1) -> 0.006666666667 | AO73: =INDEX(LINEST(AM72:AM73,AL72:AL73,TRUE,FALSE),2) -> 55.66666667 | AP73: 10 | AQ73: 500 | AR73: 73 | AS73: =INDEX(LINEST(AR72:AR73,AQ72:AQ73,TRUE,FALSE),1) -> 0.01666666667 | AT73: =INDEX(LINEST(AR72:AR73,AQ72:AQ73,TRUE,FALSE),2) -> 64.66666667 | AU73: =((($F$7-7)/3)*((AS73*$G$7+AT73)-(AS70*$G$7+AT70)))+(AS70*$G$7+AT70) -> 58.06666667
A74: 315 | B74: 1 | C74: 100 | D74: 46 | G74: 1 | H74: 100 | I74: 45 | L74: 1 | M74: 100 | N74: 44 | Q74: 1 | R74: 100 | S74: 44 | V74: 1 | W74: 100 | X74: 41 | AA74: 1 | AB74: 100 | AC74: 33 | AF74: 1 | AG74: 100 | AH74: 28 | AK74: 1 | AL74: 100 | AM74: 31 | AP74: 1 | AQ74: 100 | AR74: 45 | AV74: 315
B75: 1 | C75: 200 | D75: 47 | E75: =INDEX(LINEST(D74:D75,C74:C75,TRUE,FALSE),1) -> 0.01 | F75: =INDEX(LINEST(D74:D75,C74:C75,TRUE,FALSE),2) -> 45 | G75: 1 | H75: 200 | I75: 49 | J75: =INDEX(LINEST(I74:I75,H74:H75,TRUE,FALSE),1) -> 0.04 | K75: =INDEX(LINEST(I74:I75,H74:H75,TRUE,FALSE),2) -> 41 | L75: 1 | M75: 200 | N75: 48 | O75: =INDEX(LINEST(N74:N75,M74:M75,TRUE,FALSE),1) -> 0.04 | P75: =INDEX(LINEST(N74:N75,M74:M75,TRUE,FALSE),2) -> 40 | Q75: 1 | R75: 200 | S75: 49 | T75: =INDEX(LINEST(S74:S75,R74:R75,TRUE,FALSE),1) -> 0.05 | U75: =INDEX(LINEST(S74:S75,R74:R75,TRUE,FALSE),2) -> 39 | V75: 1 | W75: 200 | X75: 50 | Y75: =INDEX(LINEST(X74:X75,W74:W75,TRUE,FALSE),1) -> 0.09 | Z75: =INDEX(LINEST(X74:X75,W74:W75,TRUE,FALSE),2) -> 32 | AA75: 1 | AB75: 200 | AC75: 46 | AD75: =INDEX(LINEST(AC74:AC75,AB74:AB75,TRUE,FALSE),1) -> 0.13 | AE75: =INDEX(LINEST(AC74:AC75,AB74:AB75,TRUE,FALSE),2) -> 20 | AF75: 1 | AG75: 200 | AH75: 38 | AI75: =INDEX(LINEST(AH74:AH75,AG74:AG$75,TRUE,FALSE),1) -> 0.1 | AJ75: =INDEX(LINEST(AH74:AH75,AG74:AG$75,TRUE,FALSE),2) -> 18 | AK75: 1 | AL75: 200 | AM75: 33 | AN75: =INDEX(LINEST(AM74:AM75,AL74:AL75,TRUE,FALSE),1) -> 0.02 | AO75: =INDEX(LINEST(AM74:AM75,AL74:AL75,TRUE,FALSE),2) -> 29 | AP75: 1 | AQ75: 200 | AR75: 53 | AS75: =INDEX(LINEST(AR74:AR75,AQ74:AQ75,TRUE,FALSE),1) -> 0.08 | AT75: =INDEX(LINEST(AR74:AR75,AQ74:AQ75,TRUE,FALSE),2) -> 37
B76: 1 | C76: 500 | D76: 50 | E76: =INDEX(LINEST(D75:D76,C75:C76,TRUE,FALSE),1) -> 0.01 | F76: =INDEX(LINEST(D75:D76,C75:C76,TRUE,FALSE),2) -> 45 | G76: 1 | H76: 500 | I76: 53 | J76: =INDEX(LINEST(I75:I76,H75:H76,TRUE,FALSE),1) -> 0.01333333333 | K76: =INDEX(LINEST(I75:I76,H75:H76,TRUE,FALSE),2) -> 46.33333333 | L76: 1 | M76: 500 | N76: 49 | O76: =INDEX(LINEST(N75:N76,M75:M76,TRUE,FALSE),1) -> 0.003333333333 | P76: =INDEX(LINEST(N75:N76,M75:M76,TRUE,FALSE),2) -> 47.33333333 | Q76: 1 | R76: 500 | S76: 52 | T76: =INDEX(LINEST(S75:S76,R75:R76,TRUE,FALSE),1) -> 0.01 | U76: =INDEX(LINEST(S75:S76,R75:R76,TRUE,FALSE),2) -> 47 | V76: 1 | W76: 500 | X76: 59 | Y76: =INDEX(LINEST(X75:X76,W75:W76,TRUE,FALSE),1) -> 0.03 | Z76: =INDEX(LINEST(X75:X76,W75:W76,TRUE,FALSE),2) -> 44 | AA76: 1 | AB76: 500 | AC76: 59 | AD76: =INDEX(LINEST(AC75:AC76,AB75:AB76,TRUE,FALSE),1) -> 0.04333333333 | AE76: =INDEX(LINEST(AC75:AC76,AB75:AB76,TRUE,FALSE),2) -> 37.33333333 | AF76: 1 | AG76: 500 | AH76: 56 | AI76: =INDEX(LINEST(AH75:AH76,AG$75:AG$76,TRUE,FALSE),1) -> 0.06 | AJ76: =INDEX(LINEST(AH75:AH76,AG$75:AG$76,TRUE,FALSE),2) -> 26 | AK76: 1 | AL76: 500 | AM76: 49 | AN76: =INDEX(LINEST(AM75:AM76,AL75:AL76,TRUE,FALSE),1) -> 0.05333333333 | AO76: =INDEX(LINEST(AM75:AM76,AL75:AL76,TRUE,FALSE),2) -> 22.33333333 | AP76: 1 | AQ76: 500 | AR76: 64 | AS76: =INDEX(LINEST(AR75:AR76,AQ75:AQ76,TRUE,FALSE),1) -> 0.03666666667 | AT76: =INDEX(LINEST(AR75:AR76,AQ75:AQ76,TRUE,FALSE),2) -> 45.66666667
B77: 7 | C77: 100 | D77: 67 | G77: 7 | H77: 100 | I77: 60 | L77: 7 | M77: 100 | N77: 56 | Q77: 7 | R77: 100 | S77: 53 | V77: 7 | W77: 100 | X77: 52 | AA77: 7 | AB77: 100 | AC77: 49 | AF77: 7 | AG77: 100 | AH77: 45 | AK77: 7 | AL77: 100 | AM77: 37 | AP77: 7 | AQ77: 100 | AR77: 57
B78: 7 | C78: 200 | D78: 74 | E78: =INDEX(LINEST(D77:D78,C77:C78,TRUE,FALSE),1) -> 0.07 | F78: =INDEX(LINEST(D77:D78,C77:C78,TRUE,FALSE),2) -> 60 | G78: 7 | H78: 200 | I78: 67 | J78: =INDEX(LINEST(I77:I78,H77:H78,TRUE,FALSE),1) -> 0.07 | K78: =INDEX(LINEST(I77:I78,H77:H78,TRUE,FALSE),2) -> 53 | L78: 7 | M78: 200 | N78: 63 | O78: =INDEX(LINEST(N77:N78,M77:M78,TRUE,FALSE),1) -> 0.07 | P78: =INDEX(LINEST(N77:N78,M77:M78,TRUE,FALSE),2) -> 49 | Q78: 7 | R78: 200 | S78: 58 | T78: =INDEX(LINEST(S77:S78,R77:R78,TRUE,FALSE),1) -> 0.05 | U78: =INDEX(LINEST(S77:S78,R77:R78,TRUE,FALSE),2) -> 48 | V78: 7 | W78: 200 | X78: 55 | Y78: =INDEX(LINEST(X77:X78,W77:W78,TRUE,FALSE),1) -> 0.03 | Z78: =INDEX(LINEST(X77:X78,W77:W78,TRUE,FALSE),2) -> 49 | AA78: 7 | AB78: 200 | AC78: 54 | AD78: =INDEX(LINEST(AC77:AC78,AB77:AB78,TRUE,FALSE),1) -> 0.05 | AE78: =INDEX(LINEST(AC77:AC78,AB77:AB78,TRUE,FALSE),2) -> 44 | AF78: 7 | AG78: 200 | AH78: 53 | AI78: =INDEX(LINEST(AH77:AH78,AG$77:AG$78,TRUE,FALSE),1) -> 0.08 | AJ78: =INDEX(LINEST(AH77:AH78,AG$77:AG$78,TRUE,FALSE),2) -> 37 | AK78: 7 | AL78: 200 | AM78: 46 | AN78: =INDEX(LINEST(AM77:AM78,AL77:AL78,TRUE,FALSE),1) -> 0.09 | AO78: =INDEX(LINEST(AM77:AM78,AL77:AL78,TRUE,FALSE),2) -> 28 | AP78: 7 | AQ78: 200 | AR78: 62 | AS78: =INDEX(LINEST(AR77:AR78,AQ77:AQ78,TRUE,FALSE),1) -> 0.05 | AT78: =INDEX(LINEST(AR77:AR78,AQ77:AQ78,TRUE,FALSE),2) -> 52 | AU78: =((($F$8-1)/6)*((AS78*$G$8+AT78)-(AS75*$G$8+AT75)))+(AS75*$G$8+AT75) -> 53.55
B79: 7 | C79: 500 | D79: 77 | E79: =INDEX(LINEST(D78:D79,C78:C79,TRUE,FALSE),1) -> 0.01 | F79: =INDEX(LINEST(D78:D79,C78:C79,TRUE,FALSE),2) -> 72 | G79: 7 | H79: 500 | I79: 76 | J79: =INDEX(LINEST(I78:I79,H78:H79,TRUE,FALSE),1) -> 0.03 | K79: =INDEX(LINEST(I78:I79,H78:H79,TRUE,FALSE),2) -> 61 | L79: 7 | M79: 500 | N79: 74 | O79: =INDEX(LINEST(N78:N79,M78:M79,TRUE,FALSE),1) -> 0.03666666667 | P79: =INDEX(LINEST(N78:N79,M78:M79,TRUE,FALSE),2) -> 55.66666667 | Q79: 7 | R79: 500 | S79: 68 | T79: =INDEX(LINEST(S78:S79,R78:R79,TRUE,FALSE),1) -> 0.03333333333 | U79: =INDEX(LINEST(S78:S79,R78:R79,TRUE,FALSE),2) -> 51.33333333 | V79: 7 | W79: 500 | X79: 63 | Y79: =INDEX(LINEST(X78:X79,W78:W79,TRUE,FALSE),1) -> 0.02666666667 | Z79: =INDEX(LINEST(X78:X79,W78:W79,TRUE,FALSE),2) -> 49.66666667 | AA79: 7 | AB79: 500 | AC79: 61 | AD79: =INDEX(LINEST(AC78:AC79,AB78:AB79,TRUE,FALSE),1) -> 0.02333333333 | AE79: =INDEX(LINEST(AC78:AC79,AB78:AB79,TRUE,FALSE),2) -> 49.33333333 | AF79: 7 | AG79: 500 | AH79: 60 | AI79: =INDEX(LINEST(AH78:AH79,AG$78:AG$79,TRUE,FALSE),1) -> 0.02333333333 | AJ79: =INDEX(LINEST(AH78:AH79,AG$78:AG$79,TRUE,FALSE),2) -> 48.33333333 | AK79: 7 | AL79: 500 | AM79: 58 | AN79: =INDEX(LINEST(AM78:AM79,AL78:AL79,TRUE,FALSE),1) -> 0.04 | AO79: =INDEX(LINEST(AM78:AM79,AL78:AL79,TRUE,FALSE),2) -> 38 | AP79: 7 | AQ79: 500 | AR79: 71 | AS79: =INDEX(LINEST(AR78:AR79,AQ78:AQ79,TRUE,FALSE),1) -> 0.03 | AT79: =INDEX(LINEST(AR78:AR79,AQ78:AQ79,TRUE,FALSE),2) -> 56 | AU79: =((($F$8-1)/6)*((AS79*$G$8+AT79)-(AS76*$G$8+AT76)))+(AS76*$G$8+AT76) -> 55.21111111
B80: 10 | C80: 100 | G80: 10 | H80: 100 | L80: 10 | M80: 100 | Q80: 10 | R80: 100 | V80: 10 | W80: 100 | AA80: 10 | AB80: 100 | AF80: 10 | AG80: 100 | AK80: 10 | AL80: 100 | AP80: 10 | AQ80: 100 | AR80: 66
B81: 10 | C81: 200 | G81: 10 | H81: 200 | L81: 10 | M81: 200 | Q81: 10 | R81: 200 | V81: 10 | W81: 200 | AA81: 10 | AB81: 200 | AF81: 10 | AG81: 200 | AK81: 10 | AL81: 200 | AP81: 10 | AQ81: 200 | AR81: 66 | AS81: =INDEX(LINEST(AR80:AR81,AQ80:AQ81,TRUE,FALSE),1) -> 0 | AT81: =INDEX(LINEST(AR80:AR81,AQ80:AQ81,TRUE,FALSE),2) -> 66 | AU81: =((($F$8-7)/3)*((AS81*$G$8+AT81)-(AS78*$G$8+AT78)))+(AS78*$G$8+AT78) -> 52.13333333
B82: 10 | C82: 500 | G82: 10 | H82: 500 | L82: 10 | M82: 500 | Q82: 10 | R82: 500 | V82: 10 | W82: 500 | AA82: 10 | AB82: 500 | AF82: 10 | AG82: 500 | AK82: 10 | AL82: 500 | AP82: 10 | AQ82: 500 | AR82: 74 | AS82: =INDEX(LINEST(AR81:AR82,AQ81:AQ82,TRUE,FALSE),1) -> 0.02666666667 | AT82: =INDEX(LINEST(AR81:AR82,AQ81:AQ82,TRUE,FALSE),2) -> 60.66666667 | AU82: =((($F$8-7)/3)*((AS82*$G$8+AT82)-(AS79*$G$8+AT79)))+(AS79*$G$8+AT79) -> 55.77777778
A83: 400 | B83: 1 | C83: 100 | D83: 47 | G83: 1 | H83: 100 | I83: 46 | L83: 1 | M83: 100 | N83: 46 | Q83: 1 | R83: 100 | S83: 45 | V83: 1 | W83: 100 | X83: 43 | AA83: 1 | AB83: 100 | AC83: 33 | AF83: 1 | AG83: 100 | AH83: 29 | AK83: 1 | AL83: 100 | AM83: 36 | AP83: 1 | AQ83: 100 | AR83: 47 | AV83: 400
B84: 1 | C84: 200 | D84: 50 | E84: =INDEX(LINEST(D83:D84,C83:C84,TRUE,FALSE),1) -> 0.03 | F84: =INDEX(LINEST(D83:D84,C83:C84,TRUE,FALSE),2) -> 44 | G84: 1 | H84: 200 | I84: 53 | J84: =INDEX(LINEST(I83:I84,H83:H84,TRUE,FALSE),1) -> 0.07 | K84: =INDEX(LINEST(I83:I84,H83:H84,TRUE,FALSE),2) -> 39 | L84: 1 | M84: 200 | N84: 50 | O84: =INDEX(LINEST(N83:N84,M83:M84,TRUE,FALSE),1) -> 0.04 | P84: =INDEX(LINEST(N83:N84,M83:M84,TRUE,FALSE),2) -> 42 | Q84: 1 | R84: 200 | S84: 50 | T84: =INDEX(LINEST(S83:S84,R83:R84,TRUE,FALSE),1) -> 0.05 | U84: =INDEX(LINEST(S83:S84,R83:R84,TRUE,FALSE),2) -> 40 | V84: 1 | W84: 200 | X84: 51 | Y84: =INDEX(LINEST(X83:X84,W83:W84,TRUE,FALSE),1) -> 0.08 | Z84: =INDEX(LINEST(X83:X84,W83:W84,TRUE,FALSE),2) -> 35 | AA84: 1 | AB84: 200 | AC84: 47 | AD84: =INDEX(LINEST(AC83:AC84,AB83:AB84,TRUE,FALSE),1) -> 0.14 | AE84: =INDEX(LINEST(AC83:AC84,AB83:AB84,TRUE,FALSE),2) -> 19 | AF84: 1 | AG84: 200 | AH84: 53 | AI84: =INDEX(LINEST(AH83:AH84,AG$83:AG$84,TRUE,FALSE),1) -> 0.24 | AJ84: =INDEX(LINEST(AH83:AH84,AG$83:AG$84,TRUE,FALSE),2) -> 5 | AK84: 1 | AL84: 200 | AM84: 35 | AN84: =INDEX(LINEST(AM83:AM84,AL83:AL84,TRUE,FALSE),1) -> -0.01 | AO84: =INDEX(LINEST(AM83:AM84,AL83:AL84,TRUE,FALSE),2) -> 37 | AP84: 1 | AQ84: 200 | AR84: 54 | AS84: =INDEX(LINEST(AR83:AR84,AQ83:AQ84,TRUE,FALSE),1) -> 0.07 | AT84: =INDEX(LINEST(AR83:AR84,AQ83:AQ84,TRUE,FALSE),2) -> 40
B85: 1 | C85: 500 | D85: 52 | E85: =INDEX(LINEST(D84:D85,C84:C85,TRUE,FALSE),1) -> 0.006666666667 | F85: =INDEX(LINEST(D84:D85,C84:C85,TRUE,FALSE),2) -> 48.66666667 | G85: 1 | H85: 500 | I85: 55 | J85: =INDEX(LINEST(I84:I85,H84:H85,TRUE,FALSE),1) -> 0.006666666667 | K85: =INDEX(LINEST(I84:I85,H84:H85,TRUE,FALSE),2) -> 51.66666667 | L85: 1 | M85: 500 | N85: 50 | O85: =INDEX(LINEST(N84:N85,M84:M85,TRUE,FALSE),1) -> 0 | P85: =INDEX(LINEST(N84:N85,M84:M85,TRUE,FALSE),2) -> 50 | Q85: 1 | R85: 500 | S85: 53 | T85: =INDEX(LINEST(S84:S85,R84:R85,TRUE,FALSE),1) -> 0.01 | U85: =INDEX(LINEST(S84:S85,R84:R85,TRUE,FALSE),2) -> 48 | V85: 1 | W85: 500 | X85: 60 | Y85: =INDEX(LINEST(X84:X85,W84:W85,TRUE,FALSE),1) -> 0.03 | Z85: =INDEX(LINEST(X84:X85,W84:W85,TRUE,FALSE),2) -> 45 | AA85: 1 | AB85: 500 | AC85: 60 | AD85: =INDEX(LINEST(AC84:AC85,AB84:AB85,TRUE,FALSE),1) -> 0.04333333333 | AE85: =INDEX(LINEST(AC84:AC85,AB84:AB85,TRUE,FALSE),2) -> 38.33333333 | AF85: 1 | AG85: 500 | AH85: 56 | AI85: =INDEX(LINEST(AH84:AH85,AG$84:AG$85,TRUE,FALSE),1) -> 0.01 | AJ85: =INDEX(LINEST(AH84:AH85,AG$84:AG$85,TRUE,FALSE),2) -> 51 | AK85: 1 | AL85: 500 | AM85: 48 | AN85: =INDEX(LINEST(AM84:AM85,AL84:AL85,TRUE,FALSE),1) -> 0.04333333333 | AO85: =INDEX(LINEST(AM84:AM85,AL84:AL85,TRUE,FALSE),2) -> 26.33333333 | AP85: 1 | AQ85: 500 | AR85: 65 | AS85: =INDEX(LINEST(AR84:AR85,AQ84:AQ85,TRUE,FALSE),1) -> 0.03666666667 | AT85: =INDEX(LINEST(AR84:AR85,AQ84:AQ85,TRUE,FALSE),2) -> 46.66666667
B86: 7 | C86: 100 | D86: 69 | G86: 7 | H86: 100 | I86: 61 | L86: 7 | M86: 100 | N86: 57 | Q86: 7 | R86: 100 | S86: 54 | V86: 7 | W86: 100 | X86: 52 | AA86: 7 | AB86: 100 | AC86: 48 | AF86: 7 | AG86: 100 | AH86: 45 | AK86: 7 | AL86: 100 | AM86: 39 | AP86: 7 | AQ86: 100 | AR86: 57
B87: 7 | C87: 200 | D87: 78 | E87: =INDEX(LINEST(D86:D87,C86:C87,TRUE,FALSE),1) -> 0.09 | F87: =INDEX(LINEST(D86:D87,C86:C87,TRUE,FALSE),2) -> 60 | G87: 7 | H87: 200 | I87: 70 | J87: =INDEX(LINEST(I86:I87,H86:H87,TRUE,FALSE),1) -> 0.09 | K87: =INDEX(LINEST(I86:I87,H86:H87,TRUE,FALSE),2) -> 52 | L87: 7 | M87: 200 | N87: 64 | O87: =INDEX(LINEST(N86:N87,M86:M87,TRUE,FALSE),1) -> 0.07 | P87: =INDEX(LINEST(N86:N87,M86:M87,TRUE,FALSE),2) -> 50 | Q87: 7 | R87: 200 | S87: 58 | T87: =INDEX(LINEST(S86:S87,R86:R87,TRUE,FALSE),1) -> 0.04 | U87: =INDEX(LINEST(S86:S87,R86:R87,TRUE,FALSE),2) -> 50 | V87: 7 | W87: 200 | X87: 56 | Y87: =INDEX(LINEST(X86:X87,W86:W87,TRUE,FALSE),1) -> 0.04 | Z87: =INDEX(LINEST(X86:X87,W86:W87,TRUE,FALSE),2) -> 48 | AA87: 7 | AB87: 200 | AC87: 54 | AD87: =INDEX(LINEST(AC86:AC87,AB86:AB87,TRUE,FALSE),1) -> 0.06 | AE87: =INDEX(LINEST(AC86:AC87,AB86:AB87,TRUE,FALSE),2) -> 42 | AF87: 7 | AG87: 200 | AH87: 54 | AI87: =INDEX(LINEST(AH86:AH87,AG$86:AG$87,TRUE,FALSE),1) -> 0.09 | AJ87: =INDEX(LINEST(AH86:AH87,AG$86:AG$87,TRUE,FALSE),2) -> 36 | AK87: 7 | AL87: 200 | AM87: 44 | AN87: =INDEX(LINEST(AM86:AM87,AL86:AL87,TRUE,FALSE),1) -> 0.05 | AO87: =INDEX(LINEST(AM86:AM87,AL86:AL87,TRUE,FALSE),2) -> 34 | AP87: 7 | AQ87: 200 | AR87: 63 | AS87: =INDEX(LINEST(AR86:AR87,AQ86:AQ87,TRUE,FALSE),1) -> 0.06 | AT87: =INDEX(LINEST(AR86:AR87,AQ86:AQ87,TRUE,FALSE),2) -> 51 | AU87: =((($F$9-1)/6)*((AS87*$G$9+AT87)-(AS84*$G$9+AT84)))+(AS84*$G$9+AT84) -> 52.4
B88: 7 | C88: 500 | D88: 80 | E88: =INDEX(LINEST(D87:D88,C87:C88,TRUE,FALSE),1) -> 0.006666666667 | F88: =INDEX(LINEST(D87:D88,C87:C88,TRUE,FALSE),2) -> 76.66666667 | G88: 7 | H88: 500 | I88: 79 | J88: =INDEX(LINEST(I87:I88,H87:H88,TRUE,FALSE),1) -> 0.03 | K88: =INDEX(LINEST(I87:I88,H87:H88,TRUE,FALSE),2) -> 64 | L88: 7 | M88: 500 | N88: 75 | O88: =INDEX(LINEST(N87:N88,M87:M88,TRUE,FALSE),1) -> 0.03666666667 | P88: =INDEX(LINEST(N87:N88,M87:M88,TRUE,FALSE),2) -> 56.66666667 | Q88: 7 | R88: 500 | S88: 70 | T88: =INDEX(LINEST(S87:S88,R87:R88,TRUE,FALSE),1) -> 0.04 | U88: =INDEX(LINEST(S87:S88,R87:R88,TRUE,FALSE),2) -> 50 | V88: 7 | W88: 500 | X88: 64 | Y88: =INDEX(LINEST(X87:X88,W87:W88,TRUE,FALSE),1) -> 0.02666666667 | Z88: =INDEX(LINEST(X87:X88,W87:W88,TRUE,FALSE),2) -> 50.66666667 | AA88: 7 | AB88: 500 | AC88: 62 | AD88: =INDEX(LINEST(AC87:AC88,AB87:AB88,TRUE,FALSE),1) -> 0.02666666667 | AE88: =INDEX(LINEST(AC87:AC88,AB87:AB88,TRUE,FALSE),2) -> 48.66666667 | AF88: 7 | AG88: 500 | AH88: 60 | AI88: =INDEX(LINEST(AH87:AH88,AG$87:AG88,TRUE,FALSE),1) -> 0.02 | AJ88: =INDEX(LINEST(AH87:AH88,AG$87:AG88,TRUE,FALSE),2) -> 50 | AK88: 7 | AL88: 500 | AM88: 58 | AN88: =INDEX(LINEST(AM87:AM88,AL87:AL88,TRUE,FALSE),1) -> 0.04666666667 | AO88: =INDEX(LINEST(AM87:AM88,AL87:AL88,TRUE,FALSE),2) -> 34.66666667 | AP88: 7 | AQ88: 500 | AR88: 73 | AS88: =INDEX(LINEST(AR87:AR88,AQ87:AQ88,TRUE,FALSE),1) -> 0.03333333333 | AT88: =INDEX(LINEST(AR87:AR88,AQ87:AQ88,TRUE,FALSE),2) -> 56.33333333 | AU88: =((($F$9-1)/6)*((AS88*$G$9+AT88)-(AS85*$G$9+AT85)))+(AS85*$G$9+AT85) -> 54
B89: 10 | C89: 100 | G89: 10 | H89: 100 | L89: 10 | M89: 100 | Q89: 10 | R89: 100 | V89: 10 | W89: 100 | AA89: 10 | AB89: 100 | AF89: 10 | AG89: 100 | AK89: 10 | AL89: 100 | AP89: 10 | AQ89: 100 | AR89: 65
B90: 10 | C90: 200 | G90: 10 | H90: 200 | L90: 10 | M90: 200 | Q90: 10 | R90: 200 | V90: 10 | W90: 200 | AA90: 10 | AB90: 200 | AF90: 10 | AG90: 200 | AK90: 10 | AL90: 200 | AP90: 10 | AQ90: 200 | AR90: 65 | AS90: =INDEX(LINEST(AR89:AR90,AQ89:AQ90,TRUE,FALSE),1) -> 0 | AT90: =INDEX(LINEST(AR89:AR90,AQ89:AQ90,TRUE,FALSE),2) -> 65 | AU90: =((($F$9-7)/3)*((AS90*$G$9+AT90)-(AS87*$G$9+AT87)))+(AS87*$G$9+AT87) -> 52
B91: 10 | C91: 500 | G91: 10 | H91: 500 | L91: 10 | M91: 500 | Q91: 10 | R91: 500 | V91: 10 | W91: 500 | AA91: 10 | AB91: 500 | AF91: 10 | AG91: 500 | AK91: 10 | AL91: 500 | AP91: 10 | AQ91: 500 | AR91: 75 | AS91: =INDEX(LINEST(AR90:AR91,AQ90:AQ91,TRUE,FALSE),1) -> 0.03333333333 | AT91: =INDEX(LINEST(AR90:AR91,AQ90:AQ91,TRUE,FALSE),2) -> 58.33333333 | AU91: =((($F$9-7)/3)*((AS91*$G$9+AT91)-(AS88*$G$9+AT88)))+(AS88*$G$9+AT88) -> 58.13333333
A94: dp <= 200
A95: =(((E$36-E$30)*'VRE-W'!$G$3+(F$36-F$30))/(B$35-B$29))*('VRE-W'!$F$3-B$29)+(E$30*'VRE-W'!$G$3)+F$30 -> 79.74444444 | B95: =(((J$36-J$30)*'VRE-W'!$G$3+(K$36-K$30))/(G$35-G$29))*('VRE-W'!$F$3-G$29)+(J$30*'VRE-W'!$G$3)+K$30 -> 117.0333333 | C95: =(((O36-O$30)*'VRE-W'!$G$3+(P36-P$30))/(L$35-L$29))*('VRE-W'!$F$3-L$29)+(O$30*'VRE-W'!$G$3)+P$30 -> 98.15555556 | D95: =(((T$36-T$30)*'VRE-W'!$G$3+(U$36-U$30))/(Q$35-Q$29))*('VRE-W'!$F$3-Q$29)+(T$30*'VRE-W'!$G$3)+U$30 -> 85.25555556 | E95: =(((Y$36-Y$30)*'VRE-W'!$G$3+(Z$36-Z$30))/(V$35-V$29))*('VRE-W'!$F$3-V$29)+(Y$30*'VRE-W'!$G$3)+Z$30 -> 70.85555556 | F95: =(((AD$36-AD$30)*'VRE-W'!$G$3+(AE$36-AE$30))/(AA$35-AA$29))*('VRE-W'!$F$3-AA$29)+(AD$30*'VRE-W'!$G$3)+AE$30 -> 93.17777778 | G95: =(((AI$36-AI$30)*'VRE-W'!$G$3+(AJ$36-AJ$30))/(AF$35-AF$29))*('VRE-W'!$F$3-AF$29)+(AI$30*'VRE-W'!$G$3)+AJ$30 -> 99.1 | H95: =(((AN$36-AN$30)*'VRE-W'!$G$3+(AO$36-AO$30))/(AK$35-AK$29))*('VRE-W'!$F$3-AK$29)+(AN$30*'VRE-W'!$G$3)+AO$30 -> 108.5444444
A96: =(((E$45-E$39)*'VRE-W'!$G$4+(F$45-F$39))/(B$44-B$38))*('VRE-W'!$F$4-B$38)+(E$39*'VRE-W'!$G$4)+F$39 -> 79.5 | B96: =(((J$45-J$39)*'VRE-W'!$G$4+(K$45-K$39))/(G$44-G$38))*('VRE-W'!$F$4-G$38)+(J$39*'VRE-W'!$G$4)+K$39 -> 104 | C96: =(((O$45-O$39)*'VRE-W'!$G$4+(P$45-P$39))/(L$44-L$38))*('VRE-W'!$F$4-L$38)+(O$39*'VRE-W'!$G$4)+P$39 -> 85.75 | D96: =(((T$45-T$39)*'VRE-W'!$G$4+(U$45-U$39))/(Q$44-Q$38))*('VRE-W'!$F$4-Q$38)+(T$39*'VRE-W'!$G$4)+U$39 -> 78.75 | E96: =(((Y$45-Y$39)*'VRE-W'!$G$4+(Z$45-Z$39))/(V$44-V$38))*('VRE-W'!$F$4-V$38)+(Y$39*'VRE-W'!$G$4)+Z$39 -> 72.5 | F96: =(((AD$45-AD$39)*'VRE-W'!$G$4+(AE$45-AE$39))/(AA$44-AA$38))*('VRE-W'!$F$4-AA$38)+(AD$39*'VRE-W'!$G$4)+AE$39 -> 66.75 | G96: =(((AI$45-AI$39)*'VRE-W'!$G$4+(AJ$45-AJ$39))/(AF$44-AF$38))*('VRE-W'!$F$4-AF$38)+(AI$39*'VRE-W'!$G$4)+AJ$39 -> 73.75 | H96: =(((AN$45-AN$39)*'VRE-W'!$G$4+(AO$45-AO$39))/(AK$44-AK$38))*('VRE-W'!$F$4-AK$38)+(AN$39*'VRE-W'!$G$4)+AO$39 -> 73.75
A97: =(((E$54-E$48)*'VRE-W'!$G$5+(F$54-F$48))/(B$53-B$47))*('VRE-W'!$F$5-B$47)+(E$48*'VRE-W'!$G$5)+F$48 -> 68.16666667 | B97: =(((J$54-J$48)*'VRE-W'!$G$5+(K$54-K$48))/(G$53-G$47))*('VRE-W'!$F$5-G$47)+(J$48*'VRE-W'!$G$5)+K$48 -> 73.96666667 | C97: =(((O$54-O$48)*'VRE-W'!$G$5+(P$54-P$48))/(L$53-L$47))*('VRE-W'!$F$5-L$47)+(O$48*'VRE-W'!$G$5)+P$48 -> 67.9 | D97: =(((T$54-T$48)*'VRE-W'!$G$5+(U$54-U$48))/(Q$53-Q$47))*('VRE-W'!$F$5-Q$47)+(T$48*'VRE-W'!$G$5)+U$48 -> 66.23333333 | E97: =(((Y$54-Y$48)*'VRE-W'!$G$5+(Z$54-Z$48))/(V$53-V$47))*('VRE-W'!$F$5-V$47)+(Y$48*'VRE-W'!$G$5)+Z$48 -> 64.6 | F97: =(((AD$54-AD$48)*'VRE-W'!$G$5+(AE$54-AE$48))/(AA$53-AA$47))*('VRE-W'!$F$5-AA$47)+(AD$48*'VRE-W'!$G$5)+AE$48 -> 59.23333333 | G97: =(((AI$54-AI$48)*'VRE-W'!$G$5+(AJ$54-AJ$48))/(AF$53-AF$47))*('VRE-W'!$F$5-AF$47)+(AI$48*'VRE-W'!$G$5)+AJ$48 -> 55.93333333 | H97: =(((AN$54-AN$48)*'VRE-W'!$G$5+(AO$54-AO$48))/(AK$53-AK$47))*('VRE-W'!$F$5-AK$47)+(AN$48*'VRE-W'!$G$5)+AO$48 -> 49.86666667
A98: =(((E$63-E$57)*$G$6+(F$63-F$57))/(B$62-B$56))*($F$6-B$56)+(E$57*$G$6)+F$57 -> 62.9 | B98: =(((J$63-J$57)*'VRE-W'!$G$6+(K$63-K$57))/(G$62-G$56))*('VRE-W'!$F$6-G$56)+(J$57*'VRE-W'!$G$6)+K$57 -> 58.85 | C98: =(((O$63-O$57)*'VRE-W'!$G$6+(P$63-P$57))/(L$62-L$56))*('VRE-W'!$F$6-L$56)+(O$57*'VRE-W'!$G$6)+P$57 -> 57.45 | D98: =(((T$63-T$57)*'VRE-W'!$G$6+(U$63-U$57))/(Q$62-Q$56))*('VRE-W'!$F$6-Q$56)+(T$57*'VRE-W'!$G$6)+U$57 -> 56.05 | E98: =(((Y$63-Y$57)*'VRE-W'!$G$6+(Z$63-Z$57))/(V$62-V$56))*('VRE-W'!$F$6-V$56)+(Y$57*'VRE-W'!$G$6)+Z$57 -> 56.15 | F98: =(((AD$63-AD$57)*'VRE-W'!$G$6+(AE$63-AE$57))/(AA$62-AA$56))*('VRE-W'!$F$6-AA$56)+(AD$57*'VRE-W'!$G$6)+AE$57 -> 52.85 | G98: =(((AI$63-AI$57)*'VRE-W'!$G$6+(AJ$63-AJ$57))/(AF$62-AF$56))*('VRE-W'!$F$6-AF$56)+(AI$57*'VRE-W'!$G$6)+AJ$57 -> 47.4 | H98: =(((AN$63-AN$57)*'VRE-W'!$G$6+(AO$63-AO$57))/(AK$62-AK$56))*('VRE-W'!$F$6-AK$56)+(AN$57*'VRE-W'!$G$6)+AO$57 -> 51.65
A99: =(((E$72-E$66)*$G$7+(F$72-F$66))/(B$71-B$65))*($F$7-B$65)+(E$66*G$7)+F$66 -> 55.56666667 | B99: =(((J$72-J$66)*'VRE-W'!$G$7+(K$72-K$66))/(G$71-G$65))*('VRE-W'!$F$7-G$65)+(J$66*'VRE-W'!$G$7)+K$66 -> 54.63333333 | C99: =(((O$72-O$66)*'VRE-W'!$G$7+(P$72-P$66))/(L$71-L$65))*('VRE-W'!$F$7-L$65)+(O$66*'VRE-W'!$G$7)+P$66 -> 54.43333333 | D99: =(((T$72-T$66)*'VRE-W'!$G$7+(U$72-U$66))/(Q$71-Q$65))*('VRE-W'!$F$7-Q$65)+(T$66*'VRE-W'!$G$7)+U$66 -> 54.23333333 | E99: =(((Y$72-Y$66)*'VRE-W'!$G$7+(Z$72-Z$66))/(V$71-V$65))*('VRE-W'!$F$7-V$65)+(Y$66*'VRE-W'!$G$7)+Z$66 -> 51.96666667 | F99: =(((AD$72-AD$66)*'VRE-W'!$G$7+(AE$72-AE$66))/(AA$71-AA$65))*('VRE-W'!$F$7-AA$65)+(AD$66*'VRE-W'!$G$7)+AE$66 -> 48.83333333 | G99: =(((AI$72-AI$66)*'VRE-W'!$G$7+(AJ$72-AJ$66))/(AF$71-AF$65))*('VRE-W'!$F$7-AF$65)+(AI$66*'VRE-W'!$G$7)+AJ$66 -> 45 | H99: =(((AN$72-AN$66)*'VRE-W'!$G$7+(AO$72-AO$66))/(AK$71-AK$65))*('VRE-W'!$F$7-AK$65)+(AN$66*'VRE-W'!$G$7)+AO$66 -> 42.1
A100: =(((E$78-E$75)*$G$8+(F$78-F$75))/(B$77-B$74))*($F$8-B$74)+(E$75*$G$8)+F$75 -> 56.9 | B100: =(((J$78-J$75)*'VRE-W'!$G$8+(K$78-K$75))/(G$77-G$74))*('VRE-W'!$F$8-G$74)+(J$75*'VRE-W'!$G$8)+K$75 -> 54.15 | C100: =(((O$78-O$75)*'VRE-W'!$G$8+(P$78-P$75))/(L$77-L$74))*('VRE-W'!$F$8-L$74)+(O$75*'VRE-W'!$G$8)+P$75 -> 51.85 | D100: =(((T$78-T$75)*'VRE-W'!$G$8+(U$78-U$75))/(Q$77-Q$74))*('VRE-W'!$F$8-Q$74)+(T$75*'VRE-W'!$G$8)+U$75 -> 50.4 | E100: =(((Y$78-Y$75)*'VRE-W'!$G$8+(Z$78-Z$75))/(V$77-V$74))*('VRE-W'!$F$8-V$74)+(Y$75*'VRE-W'!$G$8)+Z$75 -> 48.96666667 | F100: =(((AD$78-AD$75)*'VRE-W'!$G$8+(AE$78-AE$75))/(AA$77-AA$74))*('VRE-W'!$F$8-AA$74)+(AD$75*'VRE-W'!$G$8)+AE$75 -> 44.7 | G100: =(((AI$78-AI$75)*'VRE-W'!$G$8+(AJ$78-AJ$75))/(AF$77-AF$74))*('VRE-W'!$F$8-AF$74)+(AI$75*'VRE-W'!$G$8)+AJ$75 -> 39.93333333 | H100: =(((AN$78-AN$75)*'VRE-W'!$G$8+(AO$78-AO$75))/(AK$77-AK$74))*('VRE-W'!$F$8-AK$74)+(AN$75*'VRE-W'!$G$8)+AO$75 -> 36.11666667
A101: =(((E$87-E$84)*$G$9+(F$87-F$84))/(B$86-B$83))*($F$9-B$83)+(E$84*$G$9)+F$84 -> 53.5 | B101: =(((J$87-J$84)*'VRE-W'!$G$9+(K$87-K$84))/(G$86-G$83))*('VRE-W'!$F$9-G$83)+(J$84*'VRE-W'!$G$9)+K$84 -> 52.7 | C101: =(((O$87-O$84)*'VRE-W'!$G$9+(P$87-P$84))/(L$86-L$83))*('VRE-W'!$F$9-L$83)+(O$84*'VRE-W'!$G$9)+P$84 -> 50.5 | D101: =(((T$87-T$84)*'VRE-W'!$G$9+(U$87-U$84))/(Q$86-Q$83))*('VRE-W'!$F$9-Q$83)+(T$84*'VRE-W'!$G$9)+U$84 -> 49.2 | E101: =(((Y$87-Y$84)*'VRE-W'!$G$9+(Z$87-Z$84))/(V$86-V$83))*('VRE-W'!$F$9-V$83)+(Y$84*'VRE-W'!$G$9)+Z$84 -> 48.4 | F101: =(((AD$87-AD$84)*'VRE-W'!$G$9+(AE$87-AE$84))/(AA$86-AA$83))*('VRE-W'!$F$9-AA$83)+(AD$84*'VRE-W'!$G$9)+AE$84 -> 42.2 | G101: =(((AI$87-AI$84)*'VRE-W'!$G$9+(AJ$87-AJ$84))/(AF$86-AF$83))*('VRE-W'!$F$9-AF$83)+(AI$84*'VRE-W'!$G$9)+AJ$84 -> 42.7 | H101: =(((AN$87-AN$84)*'VRE-W'!$G$9+(AO$87-AO$84))/(AK$86-AK$83))*('VRE-W'!$F$9-AK$83)+(AN$84*'VRE-W'!$G$9)+AO$84 -> 36.7
A104: dp > 200
A105: =(((E$37-E$31)*'VRE-W'!$G$3+(F$37-F$31))/(B$36-B$30))*('VRE-W'!$F$3-B$30)+(E$31*'VRE-W'!$G$3)+F$31 -> 79.08888889 | B105: =(((J$37-J$31)*'VRE-W'!$G$3+(K$37-K$31))/(G$36-G$30))*('VRE-W'!$F$3-G$30)+(J$31*'VRE-W'!$G$3)+K$31 -> 123.5037037 | C105: =(((O$37-O$31)*'VRE-W'!$G$3+(P49-P$31))/(L$36-L$30))*('VRE-W'!$F$3-L$30)+(O$31*'VRE-W'!$G$3)+P$31 -> 67.82222222 | D105: =(((T$37-T$31)*'VRE-W'!$G$3+(U$37-U$31))/(Q$36-Q$30))*('VRE-W'!$F$3-Q$30)+(T$31*'VRE-W'!$G$3)+U$31 -> 92.87407407 | E105: =(((Y$37-Y$31)*'VRE-W'!$G$3+(Z$37-Z$31))/(V$36-V$30))*('VRE-W'!$F$3-V$30)+(Y$31*'VRE-W'!$G$3)+Z$31 -> 70.7 | F105: =(((AD$37-AD$31)*'VRE-W'!$G$3+(AE$37-AE$31))/(AA$36-AA$30))*('VRE-W'!$F$3-AA$30)+(AD$31*'VRE-W'!$G$3)+AE$31 -> 94.01851852 | G105: =(((AI$37-AI$31)*'VRE-W'!$G$3+(AJ$37-AJ$31))/(AF$36-AF$30))*('VRE-W'!$F$3-AF$30)+(AI$31*'VRE-W'!$G$3)+AJ$31 -> 101.9296296 | H105: =(((AN$37-AN$31)*'VRE-W'!$G$3+(AO$37-AO$31))/(AK$36-AK$30))*('VRE-W'!$F$3-AK$30)+(AN$31*'VRE-W'!$G$3)+AO$31 -> 128.0962963
A106: =(((E$46-E$40)*'VRE-W'!$G$4+(F$46-F$40))/(B$45-B$39))*('VRE-W'!$F$4-B$39)+(E$40*'VRE-W'!$G$4)+F$40 -> 79.91666667 | B106: =(((J$46-J$40)*'VRE-W'!$G$4+(K$46-K$40))/(G$45-G$39))*('VRE-W'!$F$4-G$39)+(J$40*'VRE-W'!$G$4)+K$40 -> 113.25 | C106: =(((O$46-O$40)*'VRE-W'!$G$4+(P$46-P$40))/(L$45-L$39))*('VRE-W'!$F$4-L$39)+(O$40*'VRE-W'!$G$4)+P$40 -> 88.75 | D106: =(((T$46-T$40)*'VRE-W'!$G$4+(U$46-U$40))/(Q$45-Q$39))*('VRE-W'!$F$4-Q$39)+(T$40*'VRE-W'!$G$4)+U$40 -> 81.33333333 | E106: =(((Y$46-Y$40)*'VRE-W'!$G$4+(Z$46-Z$40))/(V$45-V$39))*('VRE-W'!$F$4-V$39)+(Y$40*'VRE-W'!$G$4)+Z$40 -> 70 | F106: =(((AD$46-AD$40)*'VRE-W'!$G$4+(AE$46-AE$40))/(AA$45-AA$39))*('VRE-W'!$F$4-AA$39)+(AD$40*'VRE-W'!$G$4)+AE$40 -> 66.25 | G106: =(((AI$46-AI$40)*'VRE-W'!$G$4+(AJ$46-AJ$40))/(AF$45-AF$39))*('VRE-W'!$F$4-AF$39)+(AI$40*'VRE-W'!$G$4)+AJ$40 -> 76.25 | H106: =(((AN$46-AN$40)*'VRE-W'!$G$4+(AO$46-AO$40))/(AK$45-AK$39))*('VRE-W'!$F$4-AK$39)+(AN$40*'VRE-W'!$G$4)+AO$40 -> 79.91666667
A107: =(((E$55-E$49)*'VRE-W'!$G$5+(F$55-F$49))/(B$54-B$48))*('VRE-W'!$F$5-B$48)+(E$49*'VRE-W'!$G$5)+F$49 -> 70.11111111 | B107: =(((J$55-J$49)*'VRE-W'!$G$5+(K$55-K$49))/(G$54-G$48))*('VRE-W'!$F$5-G$48)+(J$49*'VRE-W'!$G$5)+K$49 -> 75.9 | C107: =(((O$55-O$49)*'VRE-W'!$G$5+(P$55-P$49))/(L$54-L$48))*('VRE-W'!$F$5-L$48)+(O$49*'VRE-W'!$G$5)+P$49 -> 70.62222222 | D107: =(((T$55-T$49)*'VRE-W'!$G$5+(U$55-U$49))/(Q$54-Q$48))*('VRE-W'!$F$5-Q$48)+(T$49*'VRE-W'!$G$5)+U$49 -> 67.22222222 | E107: =(((Y$55-Y$49)*'VRE-W'!$G$5+(Z$55-Z$49))/(V$54-V$48))*('VRE-W'!$F$5-V$48)+(Y$49*'VRE-W'!$G$5)+Z$49 -> 64.13333333 | F107: =(((AD$55-AD$49)*'VRE-W'!$G$5+(AE$55-AE$49))/(AA$54-AA$48))*('VRE-W'!$F$5-AA$48)+(AD$49*'VRE-W'!$G$5)+AE$49 -> 59.48888889 | G107: =(((AI$55-AI$49)*'VRE-W'!$G$5+(AJ$55-AJ$49))/(AF$54-AF$48))*('VRE-W'!$F$5-AF$48)+(AI$49*'VRE-W'!$G$5)+AJ$49 -> 55.5 | H107: =(((AN$55-AN$49)*'VRE-W'!$G$5+(AO$55-AO$49))/(AK$54-AK$48))*('VRE-W'!$F$5-AK$48)+(AN$49*'VRE-W'!$G$5)+AO$49 -> 51.46666667
A108: =(((E$64-E$58)*$G$6+(F$64-F$58))/(B$63-B$57))*($F$6-B$57)+(E$58*$G$6)+F$58 -> 62.41666667 | B108: =(((J$64-J$58)*'VRE-W'!$G$6+(K$64-K$58))/(G$63-G$57))*('VRE-W'!$F$6-G$57)+(J$58*'VRE-W'!$G$6)+K$58 -> 59.28333333 | C108: =(((O$64-O$58)*'VRE-W'!$G$6+(P$64-P$58))/(L$63-L$57))*('VRE-W'!$F$6-L$57)+(O$58*'VRE-W'!$G$6)+P$58 -> 57.91666667 | D108: =(((T$64-T$58)*'VRE-W'!$G$6+(U$64-U$58))/(Q$63-Q$57))*('VRE-W'!$F$6-Q$57)+(T$58*'VRE-W'!$G$6)+U$58 -> 55.85 | E108: =(((Y$64-Y$58)*'VRE-W'!$G$6+(Z$64-Z$58))/(V$63-V$57))*('VRE-W'!$F$6-V$57)+(Y$58*'VRE-W'!$G$6)+Z$58 -> 56.38333333 | F108: =(((AD$64-AD$58)*'VRE-W'!$G$6+(AE$64-AE$58))/(AA$63-AA$57))*('VRE-W'!$F$6-AA$57)+(AD$58*'VRE-W'!$G$6)+AE$58 -> 53.9 | G108: =(((AI$64-AI$58)*'VRE-W'!$G$6+(AJ$64-AJ$58))/(AF$63-AF$57))*('VRE-W'!$F$6-AF$57)+(AI$58*'VRE-W'!$G$6)+AJ$58 -> 48.13333333 | H108: =(((AN$64-AN$58)*'VRE-W'!$G$6+(AO$64-AO$58))/(AK$63-AK$57))*('VRE-W'!$F$6-AK$57)+(AN$58*'VRE-W'!$G$6)+AO$58 -> 52.73333333
A109: =(((E$73-E$67)*$G$7+(F$73-F$67))/(B$72-B$66))*($F$7-B$66)+(E$67*G$7)+F$67 -> 56.27777778 | B109: =(((J$73-J$67)*'VRE-W'!$G$7+(K$73-K$67))/(G$72-G$66))*('VRE-W'!$F$7-G$66)+(J$67*'VRE-W'!$G$7)+K$67 -> 55.84444444 | C109: =(((O$73-O$67)*'VRE-W'!$G$7+(P$73-P$67))/(L$72-L$66))*('VRE-W'!$F$7-L$66)+(O$67*'VRE-W'!$G$7)+P$67 -> 55.62222222 | D109: =(((T$73-T$67)*'VRE-W'!$G$7+(U$73-U$67))/(Q$72-Q$66))*('VRE-W'!$F$7-Q$66)+(T$67*'VRE-W'!$G$7)+U$67 -> 56.85555556 | E109: =(((Y$73-Y$67)*'VRE-W'!$G$7+(Z$73-Z$67))/(V$72-V$66))*('VRE-W'!$F$7-V$66)+(Y$67*'VRE-W'!$G$7)+Z$67 -> 54.87777778 | F109: =(((AD$73-AD$67)*'VRE-W'!$G$7+(AE$73-AE$67))/(AA$72-AA$66))*('VRE-W'!$F$7-AA$66)+(AD$67*'VRE-W'!$G$7)+AE$67 -> 52.17777778 | G109: =(((AI$73-AI$67)*'VRE-W'!$G$7+(AJ$73-AJ$67))/(AF$72-AF$66))*('VRE-W'!$F$7-AF$66)+(AI$67*'VRE-W'!$G$7)+AJ$67 -> 46.98888889 | H109: =(((AN$73-AN$67)*'VRE-W'!$G$7+(AO$73-AO$67))/(AK$72-AK$66))*('VRE-W'!$F$7-AK$66)+(AN$67*'VRE-W'!$G$7)+AO$67 -> 43.21111111
A110: =(((E$79-E$76)*$G$8+(F$79-F$76))/(B$78-B$75))*($F$8-B$75)+(E$76*$G$8)+F$76 -> 58.2 | B110: =(((J$79-J$76)*'VRE-W'!$G$8+(K$79-K$76))/(G$78-G$75))*('VRE-W'!$F$8-G$75)+(J$76*'VRE-W'!$G$8)+K$76 -> 55.77222222 | C110: =(((O$79-O$76)*'VRE-W'!$G$8+(P$79-P$76))/(L$78-L$75))*('VRE-W'!$F$8-L$75)+(O$76*'VRE-W'!$G$8)+P$76 -> 53.61111111 | D110: =(((T$79-T$76)*'VRE-W'!$G$8+(U$79-U$76))/(Q$78-Q$75))*('VRE-W'!$F$8-Q$75)+(T$76*'VRE-W'!$G$8)+U$76 -> 51.89444444 | E110: =(((Y$79-Y$76)*'VRE-W'!$G$8+(Z$79-Z$76))/(V$78-V$75))*('VRE-W'!$F$8-V$75)+(Y$76*'VRE-W'!$G$8)+Z$76 -> 50.73888889 | F110: =(((AD$79-AD$76)*'VRE-W'!$G$8+(AE$79-AE$76))/(AA$78-AA$75))*('VRE-W'!$F$8-AA$75)+(AD$76*'VRE-W'!$G$8)+AE$76 -> 47.73333333 | G110: =(((AI$79-AI$76)*'VRE-W'!$G$8+(AJ$79-AJ$76))/(AF$78-AF$75))*('VRE-W'!$F$8-AF$75)+(AI$76*'VRE-W'!$G$8)+AJ$76 -> 42.29444444 | H110: =(((AN$79-AN$76)*'VRE-W'!$G$8+(AO$79-AO$76))/(AK$78-AK$75))*('VRE-W'!$F$8-AK$75)+(AN$76*'VRE-W'!$G$8)+AO$76 -> 36.25555556
A111: =(((E$88-E$85)*$G$9+(F$88-F$85))/(B$87-B$84))*($F$9-B$84)+(E$85*$G$9)+F$85 -> 55.26666667 | B111: =(((J$88-J$85)*'VRE-W'!$G$9+(K$88-K$85))/(G$87-G$84))*('VRE-W'!$F$9-G$84)+(J$85*'VRE-W'!$G$9)+K$85 -> 55.83333333 | C111: =(((O$88-O$85)*'VRE-W'!$G$9+(P$88-P$85))/(L$87-L$84))*('VRE-W'!$F$9-L$84)+(O$85*'VRE-W'!$G$9)+P$85 -> 52.43333333 | D111: =(((T$88-T$85)*'VRE-W'!$G$9+(U$88-U$85))/(Q$87-Q$84))*('VRE-W'!$F$9-Q$84)+(T$85*'VRE-W'!$G$9)+U$85 -> 50.8 | E111: =(((Y$88-Y$85)*'VRE-W'!$G$9+(Z$88-Z$85))/(V$87-V$84))*('VRE-W'!$F$9-V$84)+(Y$85*'VRE-W'!$G$9)+Z$85 -> 50.53333333 | F111: =(((AD$88-AD$85)*'VRE-W'!$G$9+(AE$88-AE$85))/(AA$87-AA$84))*('VRE-W'!$F$9-AA$84)+(AD$85*'VRE-W'!$G$9)+AE$85 -> 46.4 | G111: =(((AI$88-AI$85)*'VRE-W'!$G$9+(AJ$88-AJ$85))/(AF$87-AF$84))*('VRE-W'!$F$9-AF$84)+(AI$85*'VRE-W'!$G$9)+AJ$85 -> 52.6 | H111: =(((AN$88-AN$85)*'VRE-W'!$G$9+(AO$88-AO$85))/(AK$87-AK$84))*('VRE-W'!$F$9-AK$84)+(AN$85*'VRE-W'!$G$9)+AO$85 -> 34.6
A114: Ria oDS
A115: NW | B115: 63 | C115: 125 | D115: 250 | E115: 500 | F115: 1000 | G115: 2000 | H115: 4000 | I115: 8000
A116: 80 | B116: 36 | C116: 48 | D116: 41 | E116: 41 | F116: 39 | G116: 32 | H116: 35 | I116: 34
A117: 100 | B117: 36 | C117: 48 | D117: 41 | E117: 41 | F117: 39 | G117: 32 | H117: 35 | I117: 34
A118: 125 | B118: 36 | C118: 48 | D118: 41 | E118: 41 | F118: 39 | G118: 32 | H118: 35 | I118: 34
A119: 140 | B119: 36 | C119: 48 | D119: 41 | E119: 41 | F119: 39 | G119: 32 | H119: 35 | I119: =34-2 -> 32
A120: 160 | B120: 36 | C120: 48 | D120: 41 | E120: 41 | F120: 39 | G120: 32 | H120: 35 | I120: =34-2 -> 32
A121: 180 | B121: 31 | C121: 40 | D121: 35 | E121: 36 | F121: 37 | G121: 35 | H121: 35 | I121: 30
A122: 200 | B122: 31 | C122: 40 | D122: 35 | E122: 36 | F122: 37 | G122: 35 | H122: 35 | I122: 30
A123: 224 | B123: 31 | C123: 40 | D123: 35 | E123: 36 | F123: 37 | G123: 35 | H123: 35 | I123: 30
A124: 250 | B124: 31 | C124: 40 | D124: 35 | E124: 36 | F124: 37 | G124: 35 | H124: 35 | I124: 30
A125: 280 | B125: 31 | C125: 40 | D125: 35 | E125: =36-3 -> 33 | F125: =37-3 -> 34 | G125: =35-4 -> 31 | H125: 31 | I125: =30-4 -> 26
A126: 300 | B126: 31 | C126: 40 | D126: 35 | E126: =36-3 -> 33 | F126: =37-3 -> 34 | G126: 31 | H126: 31 | I126: =30-4 -> 26
A127: 315 | B127: 31 | C127: 40 | D127: 35 | E127: =36-3 -> 33 | F127: =37-3 -> 34 | G127: 31 | H127: 31 | I127: =30-4 -> 26
A128: 355 | B128: 31 | C128: 40 | D128: 35 | E128: =36-7 -> 29 | F128: =37-7 -> 30 | G128: =35-8 -> 27 | H128: 27 | I128: =30-8 -> 22
A129: 400 | B129: 31 | C129: 40 | D129: 35 | E129: =36-7 -> 29 | F129: =37-7 -> 30 | G129: 27 | H129: 27 | I129: =30-8 -> 22
A130: 500 | B130: 31 | C130: 40 | D130: 35 | E130: =36-7 -> 29 | F130: =37-7 -> 30 | G130: 27 | H130: 27 | I130: =30-8 -> 22
A131: 630 | B131: 31 | C131: 40 | D131: 35 | E131: =36-7 -> 29 | F131: =37-7 -> 30 | G131: 27 | H131: 27 | I131: =30-8 -> 22
A133: Ria mDS
A134: NW | B134: 63 | C134: 125 | D134: 250 | E134: 500 | F134: 1000 | G134: 2000 | H134: 4000 | I134: 8000
A135: 80 | B135: 37 | C135: 48 | D135: 41 | E135: 47 | F135: 48 | G135: 53 | H135: 55 | I135: 54
A136: 100 | B136: 37 | C136: 48 | D136: 41 | E136: 47 | F136: 48 | G136: 53 | H136: 55 | I136: 54
A137: 125 | B137: 37 | C137: 48 | D137: 41 | E137: 47 | F137: 48 | G137: 53 | H137: 55 | I137: 54
A138: 140 | B138: 37 | C138: 48 | D138: 41 | E138: 47 | F138: 48 | G138: 53 | H138: 55 | I138: 54
A139: 160 | B139: 37 | C139: 48 | D139: 41 | E139: 47 | F139: 48 | G139: 53 | H139: 55 | I139: 54
A140: 180 | B140: 34 | C140: 42 | D140: 37 | E140: 39 | F140: 40 | G140: 41 | H140: 57 | I140: 51
A141: 200 | B141: 34 | C141: 42 | D141: 37 | E141: 39 | F141: 40 | G141: 41 | H141: 57 | I141: 51
A142: 224 | B142: 34 | C142: 42 | D142: 37 | E142: 39 | F142: 40 | G142: 41 | H142: 57 | I142: 51
A143: 250 | B143: 34 | C143: 42 | D143: 37 | E143: 39 | F143: 40 | G143: 41 | H143: 57 | I143: 51
A144: 280 | B144: 34 | C144: 42 | D144: 37 | E144: 39 | F144: 40 | G144: 39 | H144: 55 | I144: 48
A145: 300 | B145: 34 | C145: 42 | D145: 37 | E145: 39 | F145: 40 | G145: 39 | H145: 55 | I145: 48
A146: 315 | B146: 34 | C146: 42 | D146: 37 | E146: 39 | F146: 40 | G146: 39 | H146: 55 | I146: 48
A147: 355 | B147: 34 | C147: 42 | D147: 37 | E147: 39 | F147: 40 | G147: 36 | H147: 52 | I147: 47
A148: 400 | B148: 34 | C148: 42 | D148: 37 | E148: 39 | F148: 40 | G148: 36 | H148: 52 | I148: 47
A149: 500 | B149: 34 | C149: 42 | D149: 37 | E149: 39 | F149: 40 | G149: 36 | H149: 52 | I149: 47
A150: 630 | B150: 34 | C150: 42 | D150: 37 | E150: 39 | F150: 40 | G150: 36 | H150: 52 | I150: 47

Sheet VRF-WGES (hidden)
A1: Abmessungen: | H1: VMax Auslegung: | K1: Schallleistungspegel Durchstrahlung ohne Schalldämpfer: | U1: Schallleistungspegel Durchstrahlung mit Schalldämpfer (Volumenstromregler+Schalldämpfer): | AF1: Schallleistungspegel Abstrahlung ohne Dämmschale: | AP1: Schallleistungspegel Abstrahlung mit Dämmschale: | AZ1: Schallleistungspegel Durchstrahlung mit Schalldämpfer (nur Volumenstromregler): | BI1: Schalldruckpegel Durchstrahlung ohne SD | BS1: Schalldruckpegel Durchstrahlung mit SD
A2: Alpha Max | B2: NW BxH | C2: Breite licht [m] | D2: Höhe licht [m] | E2: LänG$e [m] | F2: Querschnittfl. | G2: Mantelfl. | H2: VMax | I2: cMax | J2: Dp | K2: 63 | L2: 125 | M2: 250 | N2: 500 | O2: 1000 | P2: 2000 | Q2: 4000 | R2: 8000 | S2: S aus Oktaven | T2: S LWA | U2: 63 | V2: 125 | W2: 250 | X2: 500 | Y2: 1000 | Z2: 2000 | AA2: 4000 | AB2: 8000 | AC2: S aus Oktaven | AD2: S LWA | AE2: VNenn | AF2: 63 | AG2: 125 | AH2: 250 | AI2: 500 | AJ2: 1000 | AK2: 2000 | AL2: 4000 | AM2: 8000 | AN2: S aus Oktaven | AO2: S LWA | AP2: 63 | AQ2: 125 | AR2: 250 | AS2: 500 | AT2: 1000 | AU2: 2000 | AV2: 4000 | AW2: 8000 | AX2: S aus Oktaven | AY2: S LWA | AZ2: 63 | BA2: 125 | BB2: 250 | BC2: 500 | BD2: 1000 | BE2: 2000 | BF2: 4000 | BG2: 8000 | BH2: S LWA | BI2: 63 | BJ2: 125 | BK2: 250 | BL2: 500 | BM2: 1000 | BN2: 2000 | BO2: 4000 | BP2: 8000 | BQ2: S aus Oktaven | BR2: S LPA | BS2: 63 | BT2: 125 | BU2: 250 | BV2: 500 | BW2: 1000 | BX2: 2000 | BY2: 4000 | BZ2: 8000 | CA2: S aus Oktaven | CB2: S LPA
A3: 75 | B3: 200x100 | C3: =(MID(B3,1,3)/1000)-0 -> 0.2 | D3: =(MID(B3,5,3)/1000)-0 -> 0.1 | E3: 135 | F3: =C3*D3 -> 0.02 | G3: =2*C3*E3+2*D3*E3 -> 81 | H3: =VMax -> 1000 | I3: =H3/(F3*3600) -> 13.88888889 | J3: =IF(SD=TRUE,IF(dp-SDFInfo!Z6<1,1,dp-SDFInfo!Z6),dp) -> 150 | K3: =IF(AND($I3<=4,$J3<=200),$G56,IF(AND($I3<=4,$J3>200),$G57,IF(AND($I3>4,$J3<=200),$G59,$G60))) -> 69.99074074 | L3: =IF(AND($I3<=4,$J3<=200),$M56,IF(AND($I3<=4,$J3>200),$M57,IF(AND($I3>4,$J3<=200),$M59,$M60))) -> 70.19444444 | M3: =IF(AND($I3<=4,$J3<=200),$T56,IF(AND($I3<=4,$J3>200),$T57,IF(AND($I3>4,$J3<=200),$T59,$T60))) -> 66.27777778 | N3: =IF(AND($I3<=4,$J3<=200),$Z56,IF(AND($I3<=4,$J3>200),$Z57,IF(AND($I3>4,$J3<=200),$Z59,$Z60))) -> 64.10185185 | O3: =IF(AND($I3<=4,$J3<=200),$AG56,IF(AND($I3<=4,$J3>200),$AG57,IF(AND($I3>4,$J3<=200),$AG59,$AG60))) -> 62.9537037 | P3: =IF(AND($I3<=4,$J3<=200),$AM56,IF(AND($I3<=4,$J3>200),$AM57,IF(AND($I3>4,$J3<=200),$AM59,$AM60))) -> 59.80555556 | Q3: =IF(AND($I3<=4,$J3<=200),$AT56,IF(AND($I3<=4,$J3>200),$AT57,IF(AND($I3>4,$J3<=200),$AT59,$AT60))) -> 53.18518519 | R3: =IF(AND($I3<=4,$J3<=200),$BA56,IF(AND($I3<=4,$J3>200),$BA57,IF(AND($I3>4,$J3<=200),$BA59,$BA60))) -> 49.50925926 | S3: =(10*LOG10((10^(0.1*(K3-26.2)))+10^(0.1*(L3-16.1))+10^(0.1*(M3-8.6))+10^(0.1*(N3-3.2))+10^(0.1*(O3-0))+10^(0.1*(P3+1.2))+10^(0.1*(Q3+1))+10^(0.1*(R3-1.1)))) -> 67.53076031 | T3: =IF(AND($I3<=4,$J3<=200),$BG56,IF(AND($I3<=4,$J3>200),$BG57,IF(AND($I3>4,$J3<=200),$BG59,$BG60))) -> 67.9537037 | U3: =10*LOG10(10^(0.1*AZ3)+10^(0.1*SDFInfo!R6)) -> 67.9929512 | V3: =10*LOG10(10^(0.1*BA3)+10^(0.1*SDFInfo!S6)) -> 66.20773544 | W3: =10*LOG10(10^(0.1*BB3)+10^(0.1*SDFInfo!T6)) -> 58.53081009 | X3: =10*LOG10(10^(0.1*BC3)+10^(0.1*SDFInfo!U6)) -> 51.19994709 | Y3: =10*LOG10(10^(0.1*BD3)+10^(0.1*SDFInfo!V6)) -> 51.09236734 | Z3: =10*LOG10(10^(0.1*BE3)+10^(0.1*SDFInfo!W6)) -> 47.11009824 | AA3: =10*LOG10(10^(0.1*BF3)+10^(0.1*SDFInfo!X6)) -> 42.87019746 | AB3: =10*LOG10(10^(0.1*BG3)+10^(0.1*SDFInfo!Y6)) -> 37.8546138 | AC3: =(10*LOG10((10^(0.1*(U3-26.2)))+10^(0.1*(V3-16.1))+10^(0.1*(W3-8.6))+10^(0.1*(X3-3.2))+10^(0.1*(Y3-0))+10^(0.1*(Z3+1.2))+10^(0.1*(AA3+1))+10^(0.1*(AB3-1.1)))) -> 57.02962233 | AD3: =10*LOG10(10^(0.1*BH3)+10^(0.1*SDFInfo!Q6)) -> 58.27266713 | AE3: 720 | AF3: ='VRF-WAbstrOhneDS'!K3 -> 79.99074074 | AG3: ='VRF-WAbstrOhneDS'!L3 -> 77.19444444 | AH3: ='VRF-WAbstrOhneDS'!M3 -> 65.27777778 | AI3: ='VRF-WAbstrOhneDS'!N3 -> 55.10185185 | AJ3: ='VRF-WAbstrOhneDS'!O3 -> 54.27777778 | AK3: ='VRF-WAbstrOhneDS'!P3 -> 50.12962963 | AL3: ='VRF-WAbstrOhneDS'!Q3 -> 43.18518519 | AM3: ='VRF-WAbstrOhneDS'!R3 -> 42.18518519 | AN3: =(10*LOG10((10^(0.1*(AF3-26.2)))+10^(0.1*(AG3-16.1))+10^(0.1*(AH3-8.6))+10^(0.1*(AI3-3.2))+10^(0.1*(AJ3-0))+10^(0.1*(AK3+1.2))+10^(0.1*(AL3+1))+10^(0.1*(AM3-1.1)))) -> 64.13118961 | AO3: ='VRF-WAbstrOhneDS'!S3 -> 63.10185185 | AP3: ='VRF-WAbstrMitDS'!K3 -> 72.81481481 | AQ3: ='VRF-WAbstrMitDS'!L3 -> 70.19444444 | AR3: ='VRF-WAbstrMitDS'!M3 -> 58.27777778 | AS3: ='VRF-WAbstrMitDS'!N3 -> 46.10185185 | AT3: ='VRF-WAbstrMitDS'!O3 -> 42.27777778 | AU3: ='VRF-WAbstrMitDS'!P3 -> 35.48148148 | AV3: ='VRF-WAbstrMitDS'!Q3 -> 28.18518519 | AW3: ='VRF-WAbstrMitDS'!R3 -> 24.00925926 | AX3: =(10*LOG10((10^(0.1*(AP3-26.2)))+10^(0.1*(AQ3-16.1))+10^(0.1*(AR3-8.6))+10^(0.1*(AS3-3.2))+10^(0.1*(AT3-0))+10^(0.1*(AU3+1.2))+10^(0.1*(AV3+1))+10^(0.1*(AW3-1.1)))) -> 56.40987399 | AY3: ='VRF-WAbstrMitDS'!S3 -> 55.25 | AZ3: =K3-SDFInfo!H6 -> 67.99074074 | BA3: =L3-SDFInfo!I6 -> 66.19444444 | BB3: =M3-SDFInfo!J6 -> 58.27777778 | BC3: =N3-SDFInfo!K6 -> 47.10185185 | BD3: =O3-SDFInfo!L6 -> 29.9537037 | BE3: =P3-SDFInfo!M6 -> 27.80555556 | BF3: =Q3-SDFInfo!N6 -> 35.18518519 | BG3: =R3-SDFInfo!O6 -> 35.50925926 | BH3: =T3-(10*LOG10((10^(0.1*(K3-26.2)))+10^(0.1*(L3-16.1))+10^(0.1*(M3-8.6))+10^(0.1*(N3-3.2))+10^(0.1*(O3-0))+10^(0.1*(P3+1.2))+10^(0.1*(Q3+1))+10^(0.1*(R3-1.1)))-10*LOG10((10^(0.1*(AZ3-26.2)))+10^(0.1*(BA3-16.1))+10^(0.1*(BB3-8.6))+10^(0.1*(BC3-3.2))+10^(0.1*(BD3-0))+10^(0.1*(BE3+1.2))+10^(0.1*(BF3+1))+10^(0.1*(BG3-1.1)))) -> 54.28628974 | BI3: =K3-5-10-IF(VMax<540,0,ROUND(10*LOG(VMax/540),0)) -> 51.99074074 | BJ3: =L3-5-5-IF(VMax<540,0,ROUND(10*LOG(VMax/540),0)) -> 57.19444444 | BK3: =M3-1-5-2-IF(VMax<540,0,ROUND(10*LOG(VMax/540),0)) -> 55.27777778 | BL3: =N3-2-5-IF(VMax<540,0,ROUND(10*LOG(VMax/540),0)) -> 54.10185185 | BM3: =O3-3-5-IF(VMax<540,0,ROUND(10*LOG(VMax/540),0)) -> 51.9537037 | BN3: =P3-3-5-IF(VMax<540,0,ROUND(10*LOG(VMax/540),0)) -> 48.80555556 | BO3: =Q3-3-5-IF(VMax<540,0,ROUND(10*LOG(VMax/540),0)) -> 42.18518519 | BP3: =R3-3-5-IF(VMax<540,0,ROUND(10*LOG(VMax/540),0)) -> 38.50925926 | BQ3: =(10*LOG10((10^(0.1*(BI3-26.2)))+10^(0.1*(BJ3-16.1))+10^(0.1*(BK3-8.6))+10^(0.1*(BL3-3.2))+10^(0.1*(BM3-0))+10^(0.1*(BN3+1.2))+10^(0.1*(BO3+1))+10^(0.1*(BP3-1.1)))) -> 56.68502654 | BR3: =T3-S3+BQ3 -> 57.10796993 | BS3: =U3-5-10-IF(VMax<540,0,ROUND(10*LOG(VMax/540),0)) -> 49.9929512 | BT3: =V3-5-5-IF(VMax<540,0,ROUND(10*LOG(VMax/540),0)) -> 53.20773544 | BU3: =W3-1-5-2-IF(VMax<540,0,ROUND(10*LOG(VMax/540),0)) -> 47.53081009 | BV3: =X3-2-5-IF(VMax<540,0,ROUND(10*LOG(VMax/540),0)) -> 41.19994709 | BW3: =Y3-3-5-IF(VMax<540,0,ROUND(10*LOG(VMax/540),0)) -> 40.09236734 | BX3: =Z3-3-5-IF(VMax<540,0,ROUND(10*LOG(VMax/540),0)) -> 36.11009824 | BY3: =AA3-3-5-IF(VMax<540,0,ROUND(10*LOG(VMax/540),0)) -> 31.87019746 | BZ3: =AB3-3-5-IF(VMax<540,0,ROUND(10*LOG(VMax/540),0)) -> 26.8546138 | CA3: =(10*LOG10((10^(0.1*(BS3-26.2)))+10^(0.1*(BT3-16.1))+10^(0.1*(BU3-8.6))+10^(0.1*(BV3-3.2))+10^(0.1*(BW3-0))+10^(0.1*(BX3+1.2))+10^(0.1*(BY3+1))+10^(0.1*(BZ3-1.1)))) -> 45.73045886 | CB3: =AD3-AC3+CA3 -> 46.97350366
A4: 75 | B4: 300x100 | C4: 0.3 | D4: 0.1 | E4: 135 | F4: =C4*D4 -> 0.03 | G4: =2*C4*E4+2*D4*E4 -> 108 | H4: 1000 | I4: =H4/(F4*3600) -> 9.259259259 | J4: =IF(SD=TRUE,IF(dp-SDFInfo!Z7<1,1,dp-SDFInfo!Z7),dp) -> 150 | K4: =IF(AND($I4<=4,$J4<=200),$G66,IF(AND($I4<=4,$J4>200),$G67,IF(AND($I4>4,$J4<=200),$G69,$G70))) -> 57.71604938 | L4: =IF(AND($I4<=4,$J4<=200),$M66,IF(AND($I4<=4,$J4>200),$M67,IF(AND($I4>4,$J4<=200),$M69,$M70))) -> 59.46296296 | M4: =IF(AND($I4<=4,$J4<=200),$T66,IF(AND($I4<=4,$J4>200),$T67,IF(AND($I4>4,$J4<=200),$T69,$T70))) -> 59.01851852 | N4: =IF(AND($I4<=4,$J4<=200),$Z66,IF(AND($I4<=4,$J4>200),$Z67,IF(AND($I4>4,$J4<=200),$Z69,$Z70))) -> 56.45679012 | O4: =IF(AND($I4<=4,$J4<=200),$AG66,IF(AND($I4<=4,$J4>200),$AG67,IF(AND($I4>4,$J4<=200),$AG69,$AG70))) -> 56.08024691 | P4: =IF(AND($I4<=4,$J4<=200),$AM66,IF(AND($I4<=4,$J4>200),$AM67,IF(AND($I4>4,$J4<=200),$AM69,$AM70))) -> 53.7037037 | Q4: =IF(AND($I4<=4,$J4<=200),$AT66,IF(AND($I4<=4,$J4>200),$AT67,IF(AND($I4>4,$J4<=200),$AT69,$AT70))) -> 49.01234568 | R4: =IF(AND($I4<=4,$J4<=200),$BA66,IF(AND($I4<=4,$J4>200),$BA67,IF(AND($I4>4,$J4<=200),$BA69,$BA70))) -> 44.95061728 | S4: =(10*LOG10((10^(0.1*(K4-26.2)))+10^(0.1*(L4-16.1))+10^(0.1*(M4-8.6))+10^(0.1*(N4-3.2))+10^(0.1*(O4-0))+10^(0.1*(P4+1.2))+10^(0.1*(Q4+1))+10^(0.1*(R4-1.1)))) -> 60.73456075 | T4: =IF(AND($I4<=4,$J4<=200),$BG66,IF(AND($I4<=4,$J4>200),$BG67,IF(AND($I4>4,$J4<=200),$BG69,$BG70))) -> 61.08024691 | U4: =10*LOG10(10^(0.1*AZ4)+10^(0.1*SDFInfo!R7)) -> 55.71932543 | V4: =10*LOG10(10^(0.1*BA4)+10^(0.1*SDFInfo!S7)) -> 55.47677101 | W4: =10*LOG10(10^(0.1*BB4)+10^(0.1*SDFInfo!T7)) -> 51.13853823 | X4: =10*LOG10(10^(0.1*BC4)+10^(0.1*SDFInfo!U7)) -> 42.01203138 | Y4: =10*LOG10(10^(0.1*BD4)+10^(0.1*SDFInfo!V7)) -> 40.57143375 | Z4: =10*LOG10(10^(0.1*BE4)+10^(0.1*SDFInfo!W7)) -> 36.6351604 | AA4: =10*LOG10(10^(0.1*BF4)+10^(0.1*SDFInfo!X7)) -> 34.2698033 | AB4: =10*LOG10(10^(0.1*BG4)+10^(0.1*SDFInfo!Y7)) -> 31.6679145 | AC4: =(10*LOG10((10^(0.1*(U4-26.2)))+10^(0.1*(V4-16.1))+10^(0.1*(W4-8.6))+10^(0.1*(X4-3.2))+10^(0.1*(Y4-0))+10^(0.1*(Z4+1.2))+10^(0.1*(AA4+1))+10^(0.1*(AB4-1.1)))) -> 47.56575431 | AD4: =10*LOG10(10^(0.1*BH4)+10^(0.1*SDFInfo!Q7)) -> 48.5984221 | AE4: 1080 | AF4: ='VRF-WAbstrOhneDS'!K4 -> 67.71604938 | AG4: ='VRF-WAbstrOhneDS'!L4 -> 66.46296296 | AH4: ='VRF-WAbstrOhneDS'!M4 -> 58.01851852 | AI4: ='VRF-WAbstrOhneDS'!N4 -> 47.45679012 | AJ4: ='VRF-WAbstrOhneDS'!O4 -> 47.01851852 | AK4: ='VRF-WAbstrOhneDS'!P4 -> 43.64197531 | AL4: ='VRF-WAbstrOhneDS'!Q4 -> 39.01234568 | AM4: ='VRF-WAbstrOhneDS'!R4 -> 38.01234568 | AN4: =(10*LOG10((10^(0.1*(AF4-26.2)))+10^(0.1*(AG4-16.1))+10^(0.1*(AH4-8.6))+10^(0.1*(AI4-3.2))+10^(0.1*(AJ4-0))+10^(0.1*(AK4+1.2))+10^(0.1*(AL4+1))+10^(0.1*(AM4-1.1)))) -> 55.22154218 | AO4: ='VRF-WAbstrOhneDS'!S4 -> 55.45679012 | AP4: ='VRF-WAbstrMitDS'!K4 -> 60.15432099 | AQ4: ='VRF-WAbstrMitDS'!L4 -> 59.46296296 | AR4: ='VRF-WAbstrMitDS'!M4 -> 51.01851852 | AS4: ='VRF-WAbstrMitDS'!N4 -> 38.45679012 | AT4: ='VRF-WAbstrMitDS'!O4 -> 35.01851852 | AU4: ='VRF-WAbstrMitDS'!P4 -> 29.7654321 | AV4: ='VRF-WAbstrMitDS'!Q4 -> 24.01234568 | AW4: ='VRF-WAbstrMitDS'!R4 -> 19.45061728 | AX4: =(10*LOG10((10^(0.1*(AP4-26.2)))+10^(0.1*(AQ4-16.1))+10^(0.1*(AR4-8.6))+10^(0.1*(AS4-3.2))+10^(0.1*(AT4-0))+10^(0.1*(AU4+1.2))+10^(0.1*(AV4+1))+10^(0.1*(AW4-1.1)))) -> 46.97184577 | AY4: ='VRF-WAbstrMitDS'!S4 -> 46.83333333 | AZ4: =K4-SDFInfo!H7 -> 55.71604938 | BA4: =L4-SDFInfo!I7 -> 55.46296296 | BB4: =M4-SDFInfo!J7 -> 51.01851852 | BC4: =N4-SDFInfo!K7 -> 39.45679012 | BD4: =O4-SDFInfo!L7 -> 23.08024691 | BE4: =P4-SDFInfo!M7 -> 21.7037037 | BF4: =Q4-SDFInfo!N7 -> 31.01234568 | BG4: =R4-SDFInfo!O7 -> 30.95061728 | BH4: 45.68087083 | BI4: =K4-5-10-IF(VMax<540,0,ROUND(10*LOG(VMax/540),0)) -> 39.71604938 | BJ4: 46.46296296 | BK4: 48.01851852 | BL4: 46.45679012 | BM4: 45.08024691 | BN4: 42.7037037 | BO4: 38.01234568 | BP4: 33.95061728 | BQ4: =(10*LOG10((10^(0.1*(BI4-26.2)))+10^(0.1*(BJ4-16.1))+10^(0.1*(BK4-8.6))+10^(0.1*(BL4-3.2))+10^(0.1*(BM4-0))+10^(0.1*(BN4+1.2))+10^(0.1*(BO4+1))+10^(0.1*(BP4-1.1)))) -> 49.89888767 | BR4: =T4-S4+BQ4 -> 50.24457384 | BS4: 37.71932543 | BT4: 42.47677101 | BU4: 40.13853823 | BV4: 32.01203138 | BW4: 29.57143375 | BX4: 25.6351604 | BY4: 23.2698033 | BZ4: 20.6679145 | CA4: =(10*LOG10((10^(0.1*(BS4-26.2)))+10^(0.1*(BT4-16.1))+10^(0.1*(BU4-8.6))+10^(0.1*(BV4-3.2))+10^(0.1*(BW4-0))+10^(0.1*(BX4+1.2))+10^(0.1*(BY4+1))+10^(0.1*(BZ4-1.1)))) -> 36.41529263 | CB4: =AD4-AC4+CA4 -> 37.44796042
A5: 75 | B5: 400x100 | C5: 0.4 | D5: 0.1 | E5: 135 | F5: =C5*D5 -> 0.04 | G5: 135 | H5: 1000 | I5: =H5/(F5*3600) -> 6.944444444 | J5: =IF(SD=TRUE,IF(dp-SDFInfo!Z8<1,1,dp-SDFInfo!Z8),dp) -> 150 | K5: =IF(AND($I5<=4,$J5<=200),$G76,IF(AND($I5<=4,$J5>200),$G77,IF(AND($I5>4,$J5<=200),$G79,$G80))) -> 51.5787037 | L5: =IF(AND($I5<=4,$J5<=200),$M76,IF(AND($I5<=4,$J5>200),$M77,IF(AND($I5>4,$J5<=200),$M79,$M80))) -> 54.09722222 | M5: =IF(AND($I5<=4,$J5<=200),T76,IF(AND($I5<=4,$J5>200),T77,IF(AND($I5>4,$J5<=200),T79,T80))) -> 55.38888889 | N5: =IF(AND($I5<=4,$J5<=200),Z76,IF(AND($I5<=4,$J5>200),Z77,IF(AND($I5>4,$J5<=200),Z79,Z80))) -> 52.63425926 | O5: =IF(AND($I5<=4,$J5<=200),AG76,IF(AND($I5<=4,$J5>200),AG77,IF(AND($I5>4,$J5<=200),AG79,AG80))) -> 52.64351852 | P5: =IF(AND($I5<=4,$J5<=200),AM76,IF(AND($I5<=4,$J5>200),AM77,IF(AND($I5>4,$J5<=200),AM79,AM80))) -> 50.65277778 | Q5: =IF(AND($I5<=4,$J5<=200),AT76,IF(AND($I5<=4,$J5>200),AT77,IF(AND($I5>4,$J5<=200),AT79,AT80))) -> 46.92592593 | R5: =IF(AND($I5<=4,$J5<=200),BA76,IF(AND($I5<=4,$J5>200),BA77,IF(AND($I5>4,$J5<=200),BA79,BA80))) -> 42.6712963 | S5: 57.44742449 | T5: =IF(AND($I5<=4,$J5<=200),BG76,IF(AND($I5<=4,$J5>200),BG77,IF(AND($I5>4,$J5<=200),BG79,BG80))) -> 57.64351852 | U5: =10*LOG10(10^(0.1*AZ5)+10^(0.1*SDFInfo!R8)) -> 49.58109976 | V5: =10*LOG10(10^(0.1*BA5)+10^(0.1*SDFInfo!S8)) -> 50.10568166 | W5: =10*LOG10(10^(0.1*BB5)+10^(0.1*SDFInfo!T8)) -> 47.43856093 | X5: =10*LOG10(10^(0.1*BC5)+10^(0.1*SDFInfo!U8)) -> 36.91753072 | Y5: =10*LOG10(10^(0.1*BD5)+10^(0.1*SDFInfo!V8)) -> 33.19317561 | Z5: =10*LOG10(10^(0.1*BE5)+10^(0.1*SDFInfo!W8)) -> 29.38076032 | AA5: =10*LOG10(10^(0.1*BF5)+10^(0.1*SDFInfo!X8)) -> 30.13642476 | AB5: =10*LOG10(10^(0.1*BG5)+10^(0.1*SDFInfo!Y8)) -> 28.8997942 | AC5: 42.52145597 | AD5: =10*LOG10(10^(0.1*BH5)+10^(0.1*SDFInfo!Q8)) -> 43.16633176 | AE5: 1440 | AF5: ='VRF-WAbstrOhneDS'!K5 -> 61.5787037 | AG5: ='VRF-WAbstrOhneDS'!L5 -> 61.09722222 | AH5: ='VRF-WAbstrOhneDS'!M5 -> 54.38888889 | AI5: ='VRF-WAbstrOhneDS'!N5 -> 43.63425926 | AJ5: ='VRF-WAbstrOhneDS'!O5 -> 43.38888889 | AK5: ='VRF-WAbstrOhneDS'!P5 -> 40.39814815 | AL5: ='VRF-WAbstrOhneDS'!Q5 -> 36.92592593 | AM5: ='VRF-WAbstrOhneDS'!R5 -> 35.92592593 | AN5: =(10*LOG10((10^(0.1*(AF5-26.2)))+10^(0.1*(AG5-16.1))+10^(0.1*(AH5-8.6))+10^(0.1*(AI5-3.2))+10^(0.1*(AJ5-0))+10^(0.1*(AK5+1.2))+10^(0.1*(AL5+1))+10^(0.1*(AM5-1.1)))) -> 51.12394615 | AO5: ='VRF-WAbstrOhneDS'!S5 -> 51.63425926 | AP5: ='VRF-WAbstrMitDS'!K5 -> 53.82407407 | AQ5: ='VRF-WAbstrMitDS'!L5 -> 54.09722222 | AR5: ='VRF-WAbstrMitDS'!M5 -> 47.38888889 | AS5: ='VRF-WAbstrMitDS'!N5 -> 34.63425926 | AT5: ='VRF-WAbstrMitDS'!O5 -> 31.38888889 | AU5: ='VRF-WAbstrMitDS'!P5 -> 26.90740741 | AV5: ='VRF-WAbstrMitDS'!Q5 -> 21.92592593 | AW5: ='VRF-WAbstrMitDS'!R5 -> 17.1712963 | AX5: 42.57729493 | AY5: ='VRF-WAbstrMitDS'!S5 -> 42.625 | AZ5: =K5-SDFInfo!H8 -> 49.5787037 | BA5: =L5-SDFInfo!I8 -> 50.09722222 | BB5: =M5-SDFInfo!J8 -> 47.38888889 | BC5: =N5-SDFInfo!K8 -> 35.63425926 | BD5: =O5-SDFInfo!L8 -> 19.64351852 | BE5: =P5-SDFInfo!M8 -> 18.65277778 | BF5: =Q5-SDFInfo!N8 -> 28.92592593 | BG5: =R5-SDFInfo!O8 -> 28.6712963 | BH5: 41.59156883 | BI5: 33.5787037 | BJ5: 41.09722222 | BK5: 44.38888889 | BL5: 42.63425926 | BM5: 41.64351852 | BN5: 39.65277778 | BO5: 35.92592593 | BP5: 31.6712963 | BQ5: =(10*LOG10((10^(0.1*(BI5-26.2)))+10^(0.1*(BJ5-16.1))+10^(0.1*(BK5-8.6))+10^(0.1*(BL5-3.2))+10^(0.1*(BM5-0))+10^(0.1*(BN5+1.2))+10^(0.1*(BO5+1))+10^(0.1*(BP5-1.1)))) -> 46.60197389 | BR5: 46.79806792 | BS5: 31.58109976 | BT5: 37.10568166 | BU5: 36.43856093 | BV5: 26.91753072 | BW5: 22.19317561 | BX5: 18.38076032 | BY5: 19.13642476 | BZ5: 17.8997942 | CA5: 31.3999306 | CB5: 32.04480638
A6: 75 | B6: 500x100 | C6: 0.5 | D6: 0.1 | E6: 135 | F6: =C6*D6 -> 0.05 | G6: 162 | H6: 1000 | I6: 5.555555556 | J6: =IF(SD=TRUE,IF(dp-SDFInfo!Z9<1,1,dp-SDFInfo!Z9),dp) -> 150 | K6: =IF(AND($I6<=4,$J6<=200),$G86,IF(AND($I6<=4,$J6>200),$G87,IF(AND($I6>4,$J6<=200),$G89,$G90))) -> 48.2962963 | L6: =IF(AND($I6<=4,$J6<=200),$M86,IF(AND($I6<=4,$J6>200),$M87,IF(AND($I6>4,$J6<=200),$M89,$M90))) -> 51.27777778 | M6: =IF(AND($I6<=4,$J6<=200),T86,IF(AND($I6<=4,$J6>200),T87,IF(AND($I6>4,$J6<=200),T89,T90))) -> 53.61111111 | N6: =IF(AND($I6<=4,$J6<=200),Z86,IF(AND($I6<=4,$J6>200),Z87,IF(AND($I6>4,$J6<=200),Z89,Z90))) -> 50.74074074 | O6: =IF(AND($I6<=4,$J6<=200),AG86,IF(AND($I6<=4,$J6>200),AG87,IF(AND($I6>4,$J6<=200),AG89,AG90))) -> 50.98148148 | P6: =IF(AND($I6<=4,$J6<=200),AM86,IF(AND($I6<=4,$J6>200),AM87,IF(AND($I6>4,$J6<=200),AM89,AM90))) -> 49.22222222 | Q6: =IF(AND($I6<=4,$J6<=200),AT86,IF(AND($I6<=4,$J6>200),AT87,IF(AND($I6>4,$J6<=200),AT89,AT90))) -> 46.07407407 | R6: =IF(AND($I6<=4,$J6<=200),BA86,IF(AND($I6<=4,$J6>200),BA87,IF(AND($I6>4,$J6<=200),BA89,BA90))) -> 41.7037037 | S6: 55.91024275 | T6: =IF(AND($I6<=4,$J6<=200),BG86,IF(AND($I6<=4,$J6>200),BG87,IF(AND($I6>4,$J6<=200),BG89,BG90))) -> 55.98148148 | U6: =10*LOG10(10^(0.1*AZ6)+10^(0.1*SDFInfo!R9)) -> 46.29763391 | V6: =10*LOG10(10^(0.1*BA6)+10^(0.1*SDFInfo!S9)) -> 47.28202433 | W6: =10*LOG10(10^(0.1*BB6)+10^(0.1*SDFInfo!T9)) -> 45.63078687 | X6: =10*LOG10(10^(0.1*BC6)+10^(0.1*SDFInfo!U9)) -> 34.3073874 | Y6: =10*LOG10(10^(0.1*BD6)+10^(0.1*SDFInfo!V9)) -> 27.67538144 | Z6: =10*LOG10(10^(0.1*BE6)+10^(0.1*SDFInfo!W9)) -> 24.16367148 | AA6: =10*LOG10(10^(0.1*BF6)+10^(0.1*SDFInfo!X9)) -> 28.49796342 | AB6: =10*LOG10(10^(0.1*BG6)+10^(0.1*SDFInfo!Y9)) -> 27.77988385 | AC6: 40.01682919 | AD6: =10*LOG10(10^(0.1*BH6)+10^(0.1*SDFInfo!Q9)) -> 40.32220907 | AE6: 1800 | AF6: ='VRF-WAbstrOhneDS'!K6 -> 58.2962963 | AG6: ='VRF-WAbstrOhneDS'!L6 -> 58.27777778 | AH6: ='VRF-WAbstrOhneDS'!M6 -> 52.61111111 | AI6: ='VRF-WAbstrOhneDS'!N6 -> 41.74074074 | AJ6: ='VRF-WAbstrOhneDS'!O6 -> 41.61111111 | AK6: ='VRF-WAbstrOhneDS'!P6 -> 38.85185185 | AL6: ='VRF-WAbstrOhneDS'!Q6 -> 36.07407407 | AM6: ='VRF-WAbstrOhneDS'!R6 -> 35.07407407 | AN6: 49.17335055 | AO6: ='VRF-WAbstrOhneDS'!S6 -> 49.74074074 | AP6: ='VRF-WAbstrMitDS'!K6 -> 50.42592593 | AQ6: ='VRF-WAbstrMitDS'!L6 -> 51.27777778 | AR6: ='VRF-WAbstrMitDS'!M6 -> 45.61111111 | AS6: ='VRF-WAbstrMitDS'!N6 -> 32.74074074 | AT6: ='VRF-WAbstrMitDS'!O6 -> 29.61111111 | AU6: ='VRF-WAbstrMitDS'!P6 -> 25.59259259 | AV6: ='VRF-WAbstrMitDS'!Q6 -> 21.07407407 | AW6: ='VRF-WAbstrMitDS'!R6 -> 16.2037037 | AX6: 40.4411385 | AY6: ='VRF-WAbstrMitDS'!S6 -> 40.5 | AZ6: =K6-SDFInfo!H9 -> 46.2962963 | BA6: =L6-SDFInfo!I9 -> 47.27777778 | BB6: =M6-SDFInfo!J9 -> 45.61111111 | BC6: =N6-SDFInfo!K9 -> 33.74074074 | BD6: =O6-SDFInfo!L9 -> 17.98148148 | BE6: =P6-SDFInfo!M9 -> 17.22222222 | BF6: =Q6-SDFInfo!N9 -> 28.07407407 | BG6: =R6-SDFInfo!O9 -> 27.7037037 | BH6: 39.59863615 | BI6: 30.2962963 | BJ6: 38.27777778 | BK6: 42.61111111 | BL6: 40.74074074 | BM6: 39.98148148 | BN6: 38.22222222 | BO6: 35.07407407 | BP6: 30.7037037 | BQ6: 45.05645422 | BR6: 45.12769295 | BS6: 28.29763391 | BT6: 34.28202433 | BU6: 34.63078687 | BV6: 24.3073874 | BW6: 16.67538144 | BX6: 13.16367148 | BY6: 17.49796342 | BZ6: 16.77988385 | CA6: 28.91518613 | CB6: 29.22056601
A7: 75 | B7: 600x100 | C7: 0.6 | D7: 0.1 | E7: 135 | F7: 0.06 | G7: 189 | H7: 1000 | I7: 4.62962963 | J7: =IF(SD=TRUE,IF(dp-SDFInfo!Z10<1,1,dp-SDFInfo!Z10),dp) -> 150 | K7: =IF(AND($I7<=4,$J7<=200),$G96,IF(AND($I7<=4,$J7>200),$G97,IF(AND($I7>4,$J7<=200),$G99,$G100))) -> 46.44135802 | L7: =IF(AND($I7<=4,$J7<=200),$M96,IF(AND($I7<=4,$J7>200),$M97,IF(AND($I7>4,$J7<=200),$M99,$M100))) -> 49.73148148 | M7: =IF(AND($I7<=4,$J7<=200),T96,IF(AND($I7<=4,$J7>200),T97,IF(AND($I7>4,$J7<=200),T99,T100))) -> 52.75925926 | N7: =IF(AND($I7<=4,$J7<=200),Z96,IF(AND($I7<=4,$J7>200),Z97,IF(AND($I7>4,$J7<=200),Z99,Z100))) -> 49.8117284 | O7: =IF(AND($I7<=4,$J7<=200),AG96,IF(AND($I7<=4,$J7>200),AG97,IF(AND($I7>4,$J7<=200),AG99,AG100))) -> 50.20679012 | P7: =IF(AND($I7<=4,$J7<=200),AM96,IF(AND($I7<=4,$J7>200),AM97,IF(AND($I7>4,$J7<=200),AM99,AM100))) -> 48.60185185 | Q7: =IF(AND($I7<=4,$J7<=200),AT96,IF(AND($I7<=4,$J7>200),AT97,IF(AND($I7>4,$J7<=200),AT99,AT100))) -> 45.83950617 | R7: =IF(AND($I7<=4,$J7<=200),BA96,IF(AND($I7<=4,$J7>200),BA97,IF(AND($I7>4,$J7<=200),BA99,BA100))) -> 41.39197531 | S7: 55.23376058 | T7: =IF(AND($I7<=4,$J7<=200),BG96,IF(AND($I7<=4,$J7>200),BG97,IF(AND($I7>4,$J7<=200),BG99,BG100))) -> 55.20679012 | U7: =10*LOG10(10^(0.1*AZ7)+10^(0.1*SDFInfo!R10)) -> 44.44204473 | V7: =10*LOG10(10^(0.1*BA7)+10^(0.1*SDFInfo!S10)) -> 45.73351239 | W7: =10*LOG10(10^(0.1*BB7)+10^(0.1*SDFInfo!T10)) -> 44.76728734 | X7: =10*LOG10(10^(0.1*BC7)+10^(0.1*SDFInfo!U10)) -> 33.05579369 | Y7: =10*LOG10(10^(0.1*BD7)+10^(0.1*SDFInfo!V10)) -> 23.57191304 | Z7: =10*LOG10(10^(0.1*BE7)+10^(0.1*SDFInfo!W10)) -> 20.62265367 | AA7: =10*LOG10(10^(0.1*BF7)+10^(0.1*SDFInfo!X10)) -> 27.99411535 | AB7: =10*LOG10(10^(0.1*BG7)+10^(0.1*SDFInfo!Y10)) -> 27.41954061 | AC7: 38.86042288 | AD7: =10*LOG10(10^(0.1*BH7)+10^(0.1*SDFInfo!Q10)) -> 38.94420532 | AE7: 2160 | AF7: ='VRF-WAbstrOhneDS'!K7 -> 56.44135802 | AG7: ='VRF-WAbstrOhneDS'!L7 -> 56.73148148 | AH7: ='VRF-WAbstrOhneDS'!M7 -> 51.75925926 | AI7: ='VRF-WAbstrOhneDS'!N7 -> 40.8117284 | AJ7: ='VRF-WAbstrOhneDS'!O7 -> 40.75925926 | AK7: ='VRF-WAbstrOhneDS'!P7 -> 38.15432099 | AL7: ='VRF-WAbstrOhneDS'!Q7 -> 35.83950617 | AM7: ='VRF-WAbstrOhneDS'!R7 -> 34.83950617 | AN7: 48.24871661 | AO7: ='VRF-WAbstrOhneDS'!S7 -> 48.8117284 | AP7: ='VRF-WAbstrMitDS'!K7 -> 48.49382716 | AQ7: ='VRF-WAbstrMitDS'!L7 -> 49.73148148 | AR7: ='VRF-WAbstrMitDS'!M7 -> 44.75925926 | AS7: ='VRF-WAbstrMitDS'!N7 -> 31.8117284 | AT7: ='VRF-WAbstrMitDS'!O7 -> 28.75925926 | AU7: ='VRF-WAbstrMitDS'!P7 -> 25.04938272 | AV7: ='VRF-WAbstrMitDS'!Q7 -> 20.83950617 | AW7: ='VRF-WAbstrMitDS'!R7 -> 15.89197531 | AX7: 39.38984652 | AY7: ='VRF-WAbstrMitDS'!S7 -> 39.41666667 | AZ7: =K7-SDFInfo!H10 -> 44.44135802 | BA7: =L7-SDFInfo!I10 -> 45.73148148 | BB7: =M7-SDFInfo!J10 -> 44.75925926 | BC7: =N7-SDFInfo!K10 -> 32.8117284 | BD7: =O7-SDFInfo!L10 -> 17.20679012 | BE7: =P7-SDFInfo!M10 -> 16.60185185 | BF7: =Q7-SDFInfo!N10 -> 27.83950617 | BG7: =R7-SDFInfo!O10 -> 27.39197531 | BH7: 38.62628537 | BI7: 28.44135802 | BJ7: 36.73148148 | BK7: 41.75925926 | BL7: 39.8117284 | BM7: 39.20679012 | BN7: 37.60185185 | BO7: 34.83950617 | BP7: 30.39197531 | BQ7: 44.37373535 | BR7: 44.3467649 | BS7: 26.44204473 | BT7: 32.73351239 | BU7: 33.76728734 | BV7: 23.05579369 | BW7: 12.57191304 | BX7: 9.622653665 | BY7: 16.99411535 | BZ7: 16.41954061 | CA7: 27.77943674 | CB7: 27.86321918
A8: 75 | B8: 300x150 | C8: 0.3 | D8: 0.15 | E8: 160 | F8: =C8*D8 -> 0.045 | G8: 144 | H8: 1000 | I8: 6.172839506 | J8: =IF(SD=TRUE,IF(dp-SDFInfo!Z11<1,1,dp-SDFInfo!Z11),dp) -> 150 | K8: =IF(AND($I8<=4,$J8<=200),$G106,IF(AND($I8<=4,$J8>200),$G107,IF(AND($I8>4,$J8<=200),$G109,$G110))) -> 59.20781893 | L8: =IF(AND($I8<=4,$J8<=200),$M106,IF(AND($I8<=4,$J8>200),$M107,IF(AND($I8>4,$J8<=200),$M109,$M110))) -> 60.5781893 | M8: =IF(AND($I8<=4,$J8<=200),T106,IF(AND($I8<=4,$J8>200),T107,IF(AND($I8>4,$J8<=200),T109,T110))) -> 60.03497942 | N8: =IF(AND($I8<=4,$J8<=200),Z106,IF(AND($I8<=4,$J8>200),Z107,IF(AND($I8>4,$J8<=200),Z109,Z110))) -> 55.85390947 | O8: =IF(AND($I8<=4,$J8<=200),AG106,IF(AND($I8<=4,$J8>200),AG107,IF(AND($I8>4,$J8<=200),AG109,AG110))) -> 53.21604938 | P8: =IF(AND($I8<=4,$J8<=200),AM106,IF(AND($I8<=4,$J8>200),AM107,IF(AND($I8>4,$J8<=200),AM109,AM110))) -> 51.44855967 | Q8: =IF(AND($I8<=4,$J8<=200),AT106,IF(AND($I8<=4,$J8>200),AT107,IF(AND($I8>4,$J8<=200),AT109,AT110))) -> 50.36213992 | R8: =IF(AND($I8<=4,$J8<=200),BA106,IF(AND($I8<=4,$J8>200),BA107,IF(AND($I8>4,$J8<=200),BA109,BA110))) -> 46.26748971 | S8: 59.62305373 | T8: =IF(AND($I8<=4,$J8<=200),BG106,IF(AND($I8<=4,$J8>200),BG107,IF(AND($I8>4,$J8<=200),BG109,BG110))) -> 59.81069959 | U8: =10*LOG10(10^(0.1*AZ8)+10^(0.1*SDFInfo!R11)) -> 57.208023 | V8: =10*LOG10(10^(0.1*BA8)+10^(0.1*SDFInfo!S11)) -> 56.57912839 | W8: =10*LOG10(10^(0.1*BB8)+10^(0.1*SDFInfo!T11)) -> 52.04342543 | X8: =10*LOG10(10^(0.1*BC8)+10^(0.1*SDFInfo!U11)) -> 39.19135167 | Y8: =10*LOG10(10^(0.1*BD8)+10^(0.1*SDFInfo!V11)) -> 30.36880309 | Z8: =10*LOG10(10^(0.1*BE8)+10^(0.1*SDFInfo!W11)) -> 26.8090255 | AA8: =10*LOG10(10^(0.1*BF8)+10^(0.1*SDFInfo!X11)) -> 32.66357834 | AB8: =10*LOG10(10^(0.1*BG8)+10^(0.1*SDFInfo!Y11)) -> 32.31775947 | AC8: 46.42142644 | AD8: =10*LOG10(10^(0.1*BH8)+10^(0.1*SDFInfo!Q11)) -> 46.70361573 | AE8: 1620 | AF8: ='VRF-WAbstrOhneDS'!K8 -> 64.20781893 | AG8: ='VRF-WAbstrOhneDS'!L8 -> 64.39711934 | AH8: ='VRF-WAbstrOhneDS'!M8 -> 56.03497942 | AI8: ='VRF-WAbstrOhneDS'!N8 -> 45.85390947 | AJ8: ='VRF-WAbstrOhneDS'!O8 -> 43.53497942 | AK8: ='VRF-WAbstrOhneDS'!P8 -> 41.12962963 | AL8: ='VRF-WAbstrOhneDS'!Q8 -> 40.36213992 | AM8: ='VRF-WAbstrOhneDS'!R8 -> 39.26748971 | AN8: 53.17260484 | AO8: ='VRF-WAbstrOhneDS'!S8 -> 53.53497942 | AP8: ='VRF-WAbstrMitDS'!K8 -> 56.70781893 | AQ8: ='VRF-WAbstrMitDS'!L8 -> 56.89711934 | AR8: ='VRF-WAbstrMitDS'!M8 -> 49.03497942 | AS8: ='VRF-WAbstrMitDS'!N8 -> 36.17283951 | AT8: ='VRF-WAbstrMitDS'!O8 -> 31.21604938 | AU8: ='VRF-WAbstrMitDS'!P8 -> 27.44855967 | AV8: ='VRF-WAbstrMitDS'!Q8 -> 25.36213992 | AW8: ='VRF-WAbstrMitDS'!R8 -> 20.26748971 | AX8: 44.58577271 | AY8: ='VRF-WAbstrMitDS'!S8 -> 44.89711934 | AZ8: =K8-SDFInfo!H11 -> 57.20781893 | BA8: =L8-SDFInfo!I11 -> 56.5781893 | BB8: =M8-SDFInfo!J11 -> 52.03497942 | BC8: =N8-SDFInfo!K11 -> 38.85390947 | BD8: =O8-SDFInfo!L11 -> 20.21604938 | BE8: =P8-SDFInfo!M11 -> 19.44855967 | BF8: =Q8-SDFInfo!N11 -> 32.36213992 | BG8: =R8-SDFInfo!O11 -> 32.26748971 | BH8: 46.4050408 | BI8: 41.20781893 | BJ8: 47.5781893 | BK8: 49.03497942 | BL8: 45.85390947 | BM8: 42.21604938 | BN8: 40.44855967 | BO8: 39.36213992 | BP8: 35.26748971 | BQ8: 48.78920233 | BR8: 48.97684819 | BS8: 39.208023 | BT8: 43.57912839 | BU8: 41.04342543 | BV8: 29.19135167 | BW8: 19.36880309 | BX8: 15.8090255 | BY8: 21.66357834 | BZ8: 21.31775947 | CA8: 34.99509187 | CB8: 35.27728117
A9: 75 | B9: 400x150 | C9: 0.4 | D9: 0.15 | E9: 160 | F9: 0.06 | G9: 176 | H9: 1000 | I9: 4.62962963 | J9: =IF(SD=TRUE,IF(dp-SDFInfo!Z12<1,1,dp-SDFInfo!Z12),dp) -> 150 | K9: =IF(AND($I9<=4,$J9<=200),$G116,IF(AND($I9<=4,$J9>200),$G117,IF(AND($I9>4,$J9<=200),$G119,$G120))) -> 56.86419753 | L9: =IF(AND($I9<=4,$J9<=200),$M116,IF(AND($I9<=4,$J9>200),$M117,IF(AND($I9>4,$J9<=200),$M119,$M120))) -> 59.39197531 | M9: =IF(AND($I9<=4,$J9<=200),$T116,IF(AND($I9<=4,$J9>200),$T117,IF(AND($I9>4,$J9<=200),$T119,$T120))) -> 59.2345679 | N9: =IF(AND($I9<=4,$J9<=200),$Z116,IF(AND($I9<=4,$J9>200),$Z117,IF(AND($I9>4,$J9<=200),$Z119,$Z120))) -> 55.18209877 | O9: =IF(AND($I9<=4,$J9<=200),$AG116,IF(AND($I9<=4,$J9>200),$AG117,IF(AND($I9>4,$J9<=200),$AG119,$AG120))) -> 52.28703704 | P9: =IF(AND($I9<=4,$J9<=200),$AM116,IF(AND($I9<=4,$J9>200),$AM117,IF(AND($I9>4,$J9<=200),$AM119,$AM120))) -> 51.41975309 | Q9: =IF(AND($I9<=4,$J9<=200),$AT116,IF(AND($I9<=4,$J9>200),$AT117,IF(AND($I9>4,$J9<=200),$AT119,$AT120))) -> 51.10493827 | R9: =IF(AND($I9<=4,$J9<=200),$BA116,IF(AND($I9<=4,$J9>200),$BA117,IF(AND($I9>4,$J9<=200),$BA119,$BA120))) -> 46.36728395 | S9: 59.26439779 | T9: =IF(AND($I9<=4,$J9<=200),$BG116,IF(AND($I9<=4,$J9>200),$BG117,IF(AND($I9>4,$J9<=200),$BG119,$BG120))) -> 59.52469136 | U9: =10*LOG10(10^(0.1*AZ9)+10^(0.1*SDFInfo!R12)) -> 54.86425983 | V9: =10*LOG10(10^(0.1*BA9)+10^(0.1*SDFInfo!S12)) -> 55.39219496 | W9: =10*LOG10(10^(0.1*BB9)+10^(0.1*SDFInfo!T12)) -> 51.23637671 | X9: =10*LOG10(10^(0.1*BC9)+10^(0.1*SDFInfo!U12)) -> 38.25439399 | Y9: =10*LOG10(10^(0.1*BD9)+10^(0.1*SDFInfo!V12)) -> 24.14818395 | Z9: =10*LOG10(10^(0.1*BE9)+10^(0.1*SDFInfo!W12)) -> 21.96399816 | AA9: =10*LOG10(10^(0.1*BF9)+10^(0.1*SDFInfo!X12)) -> 33.15150919 | AB9: =10*LOG10(10^(0.1*BG9)+10^(0.1*SDFInfo!Y12)) -> 32.37606955 | AC9: 45.46459484 | AD9: =10*LOG10(10^(0.1*BH9)+10^(0.1*SDFInfo!Q12)) -> 45.74496072 | AE9: 2160 | AF9: ='VRF-WAbstrOhneDS'!K9 -> 61.86419753 | AG9: ='VRF-WAbstrOhneDS'!L9 -> 63.33950617 | AH9: ='VRF-WAbstrOhneDS'!M9 -> 55.2345679 | AI9: ='VRF-WAbstrOhneDS'!N9 -> 45.18209877 | AJ9: ='VRF-WAbstrOhneDS'!O9 -> 42.7345679 | AK9: ='VRF-WAbstrOhneDS'!P9 -> 40.97222222 | AL9: ='VRF-WAbstrOhneDS'!Q9 -> 41.10493827 | AM9: ='VRF-WAbstrOhneDS'!R9 -> 39.36728395 | AN9: 52.47259608 | AO9: ='VRF-WAbstrOhneDS'!S9 -> 52.7345679 | AP9: ='VRF-WAbstrMitDS'!K9 -> 54.36419753 | AQ9: ='VRF-WAbstrMitDS'!L9 -> 55.83950617 | AR9: ='VRF-WAbstrMitDS'!M9 -> 48.2345679 | AS9: ='VRF-WAbstrMitDS'!N9 -> 35.62962963 | AT9: ='VRF-WAbstrMitDS'!O9 -> 30.28703704 | AU9: ='VRF-WAbstrMitDS'!P9 -> 27.41975309 | AV9: ='VRF-WAbstrMitDS'!Q9 -> 26.10493827 | AW9: ='VRF-WAbstrMitDS'!R9 -> 20.36728395 | AX9: 43.6939707 | AY9: ='VRF-WAbstrMitDS'!S9 -> 43.83950617 | AZ9: =K9-SDFInfo!H12 -> 54.86419753 | BA9: =L9-SDFInfo!I12 -> 55.39197531 | BB9: =M9-SDFInfo!J12 -> 51.2345679 | BC9: =N9-SDFInfo!K12 -> 38.18209877 | BD9: =O9-SDFInfo!L12 -> 19.28703704 | BE9: =P9-SDFInfo!M12 -> 19.41975309 | BF9: =Q9-SDFInfo!N12 -> 33.10493827 | BG9: =R9-SDFInfo!O12 -> 32.36728395 | BH9: 45.68044508 | BI9: 38.86419753 | BJ9: 46.39197531 | BK9: 48.2345679 | BL9: 45.18209877 | BM9: 41.28703704 | BN9: 40.41975309 | BO9: 40.10493827 | BP9: 35.36728395 | BQ9: 48.42627587 | BR9: 48.68656944 | BS9: 36.86425983 | BT9: 42.39219496 | BU9: 40.23637671 | BV9: 28.25439399 | BW9: 13.14818395 | BX9: 10.96399816 | BY9: 22.15150919 | BZ9: 21.37606955 | CA9: 34.09181198 | CB9: 34.37217785
A10: 75 | B10: 500x150 | C10: 0.5 | D10: 0.15 | E10: 160 | F10: 0.075 | G10: 208 | H10: 1000 | I10: 3.703703704 | J10: =IF(SD=TRUE,IF(dp-SDFInfo!Z13<1,1,dp-SDFInfo!Z13),dp) -> 150 | K10: =IF(AND($I10<=4,$J10<=200),$G126,IF(AND($I10<=4,$J10>200),$G127,IF(AND($I10>4,$J10<=200),$G129,$G130))) -> 55.41358025 | L10: =IF(AND($I10<=4,$J10<=200),$M126,IF(AND($I10<=4,$J10>200),$M127,IF(AND($I10>4,$J10<=200),$M129,$M130))) -> 58.11728395 | M10: =IF(AND($I10<=4,$J10<=200),$T126,IF(AND($I10<=4,$J10>200),$T127,IF(AND($I10>4,$J10<=200),$T129,$T130))) -> 58.46296296 | N10: =IF(AND($I10<=4,$J10<=200),$Z126,IF(AND($I10<=4,$J10>200),$Z127,IF(AND($I10>4,$J10<=200),$Z129,$Z130))) -> 55.05555556 | O10: =IF(AND($I10<=4,$J10<=200),$AG126,IF(AND($I10<=4,$J10>200),$AG127,IF(AND($I10>4,$J10<=200),$AG129,$AG130))) -> 52.15432099 | P10: =IF(AND($I10<=4,$J10<=200),$AM126,IF(AND($I10<=4,$J10>200),$AM127,IF(AND($I10>4,$J10<=200),$AM129,$AM130))) -> 51.55555556 | Q10: =IF(AND($I10<=4,$J10<=200),$AT126,IF(AND($I10<=4,$J10>200),$AT127,IF(AND($I10>4,$J10<=200),$AT129,$AT130))) -> 50.91358025 | R10: =IF(AND($I10<=4,$J10<=200),$BA126,IF(AND($I10<=4,$J10>200),$BA127,IF(AND($I10>4,$J10<=200),$BA129,$BA130))) -> 46.40740741 | S10: 59.07992754 | T10: =IF(AND($I10<=4,$J10<=200),$BG126,IF(AND($I10<=4,$J10>200),$BG127,IF(AND($I10>4,$J10<=200),$BG129,$BG130))) -> 59.40740741 | U10: =10*LOG10(10^(0.1*AZ10)+10^(0.1*SDFInfo!R13)) -> 53.41360306 | V10: =10*LOG10(10^(0.1*BA10)+10^(0.1*SDFInfo!S13)) -> 54.11736117 | W10: =10*LOG10(10^(0.1*BB10)+10^(0.1*SDFInfo!T13)) -> 50.4635294 | X10: =10*LOG10(10^(0.1*BC10)+10^(0.1*SDFInfo!U13)) -> 38.07518652 | Y10: =10*LOG10(10^(0.1*BD10)+10^(0.1*SDFInfo!V13)) -> 21.07866568 | Z10: =10*LOG10(10^(0.1*BE10)+10^(0.1*SDFInfo!W13)) -> 20.35592543 | AA10: =10*LOG10(10^(0.1*BF10)+10^(0.1*SDFInfo!X13)) -> 32.92638823 | AB10: =10*LOG10(10^(0.1*BG10)+10^(0.1*SDFInfo!Y13)) -> 32.40990154 | AC10: 44.68134944 | AD10: =10*LOG10(10^(0.1*BH10)+10^(0.1*SDFInfo!Q13)) -> 45.01482177 | AE10: 2700 | AF10: ='VRF-WAbstrOhneDS'!K10 -> 60.41358025 | AG10: ='VRF-WAbstrOhneDS'!L10 -> 62.01851852 | AH10: ='VRF-WAbstrOhneDS'!M10 -> 54.46296296 | AI10: ='VRF-WAbstrOhneDS'!N10 -> 45.05555556 | AJ10: ='VRF-WAbstrOhneDS'!O10 -> 42.60493827 | AK10: ='VRF-WAbstrOhneDS'!P10 -> 41.05555556 | AL10: ='VRF-WAbstrOhneDS'!Q10 -> 40.91358025 | AM10: ='VRF-WAbstrOhneDS'!R10 -> 39.40740741 | AN10: 51.84549956 | AO10: ='VRF-WAbstrOhneDS'!S10 -> 52.20987654 | AP10: ='VRF-WAbstrMitDS'!K10 -> 52.96296296 | AQ10: ='VRF-WAbstrMitDS'!L10 -> 54.56790123 | AR10: ='VRF-WAbstrMitDS'!M10 -> 47.46296296 | AS10: ='VRF-WAbstrMitDS'!N10 -> 35.60493827 | AT10: ='VRF-WAbstrMitDS'!O10 -> 30.15432099 | AU10: ='VRF-WAbstrMitDS'!P10 -> 27.55555556 | AV10: ='VRF-WAbstrMitDS'!Q10 -> 25.91358025 | AW10: ='VRF-WAbstrMitDS'!R10 -> 20.40740741 | AX10: 42.85598308 | AY10: ='VRF-WAbstrMitDS'!S10 -> 43.0617284 | AZ10: =K10-SDFInfo!H13 -> 53.41358025 | BA10: =L10-SDFInfo!I13 -> 54.11728395 | BB10: =M10-SDFInfo!J13 -> 50.46296296 | BC10: =N10-SDFInfo!K13 -> 38.05555556 | BD10: =O10-SDFInfo!L13 -> 19.15432099 | BE10: =P10-SDFInfo!M13 -> 19.55555556 | BF10: =Q10-SDFInfo!N13 -> 32.91358025 | BG10: =R10-SDFInfo!O13 -> 32.40740741 | BH10: 44.9949154 | BI10: 37.41358025 | BJ10: 45.11728395 | BK10: 47.46296296 | BL10: 45.05555556 | BM10: 41.15432099 | BN10: 40.55555556 | BO10: 39.91358025 | BP10: 35.40740741 | BQ10: 48.25434184 | BR10: 48.58182171 | BS10: 35.41360306 | BT10: 41.11736117 | BU10: 39.4635294 | BV10: 28.07518652 | BW10: 10.07866568 | BX10: 9.35592543 | BY10: 21.92638823 | BZ10: 21.40990154 | CA10: 33.38098841 | CB10: 33.71446074
A11: 75 | B11: 600x150 | C11: 0.6 | D11: 0.15 | E11: 160 | F11: 0.09 | G11: 240 | H11: 1000 | I11: 3.086419753 | J11: =IF(SD=TRUE,IF(dp-SDFInfo!Z14<1,1,dp-SDFInfo!Z14),dp) -> 150 | K11: =IF(AND($I11<=4,$J11<=200),$G136,IF(AND($I11<=4,$J11>200),$G137,IF(AND($I11>4,$J11<=200),$G139,$G140))) -> 54.15020576 | L11: =IF(AND($I11<=4,$J11<=200),$M136,IF(AND($I11<=4,$J11>200),$M137,IF(AND($I11>4,$J11<=200),$M139,$M140))) -> 56.23662551 | M11: =IF(AND($I11<=4,$J11<=200),$T136,IF(AND($I11<=4,$J11>200),$T137,IF(AND($I11>4,$J11<=200),$T139,$T140))) -> 57.30246914 | N11: =IF(AND($I11<=4,$J11<=200),$Z136,IF(AND($I11<=4,$J11>200),$Z137,IF(AND($I11>4,$J11<=200),$Z139,$Z140))) -> 55.12962963 | O11: =IF(AND($I11<=4,$J11<=200),$AG136,IF(AND($I11<=4,$J11>200),$AG137,IF(AND($I11>4,$J11<=200),$AG139,$AG140))) -> 52.43415638 | P11: =IF(AND($I11<=4,$J11<=200),$AM136,IF(AND($I11<=4,$J11>200),$AM137,IF(AND($I11>4,$J11<=200),$AM139,$AM140))) -> 51.62962963 | Q11: =IF(AND($I11<=4,$J11<=200),$AT136,IF(AND($I11<=4,$J11>200),$AT137,IF(AND($I11>4,$J11<=200),$AT139,$AT140))) -> 49.65020576 | R11: =IF(AND($I11<=4,$J11<=200),$BA136,IF(AND($I11<=4,$J11>200),$BA137,IF(AND($I11>4,$J11<=200),$BA139,$BA140))) -> 46.17283951 | S11: 58.7873384 | T11: =IF(AND($I11<=4,$J11<=200),$BG136,IF(AND($I11<=4,$J11>200),$BG137,IF(AND($I11>4,$J11<=200),$BG139,$BG140))) -> 59.17283951 | U11: =10*LOG10(10^(0.1*AZ11)+10^(0.1*SDFInfo!R14)) -> 52.15023223 | V11: =10*LOG10(10^(0.1*BA11)+10^(0.1*SDFInfo!S14)) -> 52.23666539 | W11: =10*LOG10(10^(0.1*BB11)+10^(0.1*SDFInfo!T14)) -> 49.30271695 | X11: =10*LOG10(10^(0.1*BC11)+10^(0.1*SDFInfo!U14)) -> 38.13610262 | Y11: =10*LOG10(10^(0.1*BD11)+10^(0.1*SDFInfo!V14)) -> 20.13476403 | Z11: =10*LOG10(10^(0.1*BE11)+10^(0.1*SDFInfo!W14)) -> 19.90975173 | AA11: =10*LOG10(10^(0.1*BF11)+10^(0.1*SDFInfo!X14)) -> 31.65594804 | AB11: =10*LOG10(10^(0.1*BG11)+10^(0.1*SDFInfo!Y14)) -> 32.17547201 | AC11: 43.56616402 | AD11: =10*LOG10(10^(0.1*BH11)+10^(0.1*SDFInfo!Q14)) -> 43.95404747 | AE11: 3240 | AF11: ='VRF-WAbstrOhneDS'!K11 -> 59.15020576 | AG11: ='VRF-WAbstrOhneDS'!L11 -> 59.93209877 | AH11: ='VRF-WAbstrOhneDS'!M11 -> 53.30246914 | AI11: ='VRF-WAbstrOhneDS'!N11 -> 45.12962963 | AJ11: ='VRF-WAbstrOhneDS'!O11 -> 42.781893 | AK11: ='VRF-WAbstrOhneDS'!P11 -> 41.12962963 | AL11: ='VRF-WAbstrOhneDS'!Q11 -> 39.65020576 | AM11: ='VRF-WAbstrOhneDS'!R11 -> 39.17283951 | AN11: 50.98183997 | AO11: ='VRF-WAbstrOhneDS'!S11 -> 51.56378601 | AP11: ='VRF-WAbstrMitDS'!K11 -> 51.80246914 | AQ11: ='VRF-WAbstrMitDS'!L11 -> 52.58436214 | AR11: ='VRF-WAbstrMitDS'!M11 -> 46.30246914 | AS11: ='VRF-WAbstrMitDS'!N11 -> 35.781893 | AT11: ='VRF-WAbstrMitDS'!O11 -> 30.43415638 | AU11: ='VRF-WAbstrMitDS'!P11 -> 27.62962963 | AV11: ='VRF-WAbstrMitDS'!Q11 -> 24.65020576 | AW11: ='VRF-WAbstrMitDS'!R11 -> 20.17283951 | AX11: 41.71286466 | AY11: ='VRF-WAbstrMitDS'!S11 -> 42.10699588 | AZ11: =K11-SDFInfo!H14 -> 52.15020576 | BA11: =L11-SDFInfo!I14 -> 52.23662551 | BB11: =M11-SDFInfo!J14 -> 49.30246914 | BC11: =N11-SDFInfo!K14 -> 38.12962963 | BD11: =O11-SDFInfo!L14 -> 19.43415638 | BE11: =P11-SDFInfo!M14 -> 19.62962963 | BF11: =Q11-SDFInfo!N14 -> 31.65020576 | BG11: =R11-SDFInfo!O14 -> 32.17283951 | BH11: 43.9455476 | BI11: 36.15020576 | BJ11: 43.23662551 | BK11: 46.30246914 | BL11: 45.12962963 | BM11: 41.43415638 | BN11: 40.62962963 | BO11: 38.65020576 | BP11: 35.17283951 | BQ11: 47.98965767 | BR11: 48.37515878 | BS11: 34.15023223 | BT11: 39.23666539 | BU11: 38.30271695 | BV11: 28.13610262 | BW11: 9.134764032 | BX11: 8.90975173 | BY11: 20.65594804 | BZ11: 21.17547201 | CA11: 32.36590338 | CB11: 32.75378683
A12: 75 | B12: 200x200 | C12: 0.2 | D12: 0.2 | E12: 220 | F12: 0.04 | G12: 176 | H12: 1000 | I12: 6.944444444 | J12: =IF(SD=TRUE,IF(dp-SDFInfo!Z15<1,1,dp-SDFInfo!Z15),dp) -> 150 | K12: =IF(AND($I12<=4,$J12<=200),$G146,IF(AND($I12<=4,$J12>200),$G147,IF(AND($I12>4,$J12<=200),$G149,$G150))) -> 58.83950617 | L12: =IF(AND($I12<=4,$J12<=200),$M146,IF(AND($I12<=4,$J12>200),$M147,IF(AND($I12>4,$J12<=200),$M149,$M150))) -> 54.42592593 | M12: =IF(AND($I12<=4,$J12<=200),$T146,IF(AND($I12<=4,$J12>200),$T147,IF(AND($I12>4,$J12<=200),$T149,$T150))) -> 53.9537037 | N12: =IF(AND($I12<=4,$J12<=200),$Z146,IF(AND($I12<=4,$J12>200),$Z147,IF(AND($I12>4,$J12<=200),$Z149,$Z150))) -> 54.96296296 | O12: =IF(AND($I12<=4,$J12<=200),$AG146,IF(AND($I12<=4,$J12>200),$AG147,IF(AND($I12>4,$J12<=200),$AG149,$AG150))) -> 52.99074074 | P12: =IF(AND($I12<=4,$J12<=200),$AM146,IF(AND($I12<=4,$J12>200),$AM147,IF(AND($I12>4,$J12<=200),$AM149,$AM150))) -> 53.00925926 | Q12: =IF(AND($I12<=4,$J12<=200),$AT146,IF(AND($I12<=4,$J12>200),$AT147,IF(AND($I12>4,$J12<=200),$AT149,$AT150))) -> 48.49074074 | R12: =IF(AND($I12<=4,$J12<=200),$BA146,IF(AND($I12<=4,$J12>200),$BA147,IF(AND($I12>4,$J12<=200),$BA149,$BA150))) -> 43.96296296 | S12: 58.83077505 | T12: =IF(AND($I12<=4,$J12<=200),$BG146,IF(AND($I12<=4,$J12>200),$BG147,IF(AND($I12>4,$J12<=200),$BG149,$BG150))) -> 58.98148148 | U12: =10*LOG10(10^(0.1*AZ12)+10^(0.1*SDFInfo!R15)) -> 56.83995649 | V12: =10*LOG10(10^(0.1*BA12)+10^(0.1*SDFInfo!S15)) -> 50.43376928 | W12: =10*LOG10(10^(0.1*BB12)+10^(0.1*SDFInfo!T15)) -> 46.0226742 | X12: =10*LOG10(10^(0.1*BC12)+10^(0.1*SDFInfo!U15)) -> 38.75874484 | Y12: =10*LOG10(10^(0.1*BD12)+10^(0.1*SDFInfo!V15)) -> 33.2091095 | Z12: =10*LOG10(10^(0.1*BE12)+10^(0.1*SDFInfo!W15)) -> 29.63762129 | AA12: =10*LOG10(10^(0.1*BF12)+10^(0.1*SDFInfo!X15)) -> 31.36925138 | AB12: =10*LOG10(10^(0.1*BG12)+10^(0.1*SDFInfo!Y15)) -> 30.13381491 | AC12: 42.74721706 | AD12: =10*LOG10(10^(0.1*BH12)+10^(0.1*SDFInfo!Q15)) -> 43.33827251 | AE12: 1440 | AF12: ='VRF-WAbstrOhneDS'!K12 -> 65.6712963 | AG12: ='VRF-WAbstrOhneDS'!L12 -> 56.91666667 | AH12: ='VRF-WAbstrOhneDS'!M12 -> 49.70833333 | AI12: ='VRF-WAbstrOhneDS'!N12 -> 44.46296296 | AJ12: ='VRF-WAbstrOhneDS'!O12 -> 43.23611111 | AK12: ='VRF-WAbstrOhneDS'!P12 -> 42.50925926 | AL12: ='VRF-WAbstrOhneDS'!Q12 -> 38.24537037 | AM12: ='VRF-WAbstrOhneDS'!R12 -> 36.96296296 | AN12: 50.17146559 | AO12: ='VRF-WAbstrOhneDS'!S12 -> 50.71759259 | AP12: ='VRF-WAbstrMitDS'!K12 -> 58.18055556 | AQ12: ='VRF-WAbstrMitDS'!L12 -> 49.91666667 | AR12: ='VRF-WAbstrMitDS'!M12 -> 42.70833333 | AS12: ='VRF-WAbstrMitDS'!N12 -> 35.21759259 | AT12: ='VRF-WAbstrMitDS'!O12 -> 30.99074074 | AU12: ='VRF-WAbstrMitDS'!P12 -> 29.00925926 | AV12: ='VRF-WAbstrMitDS'!Q12 -> 23.24537037 | AW12: ='VRF-WAbstrMitDS'!R12 -> 18.20833333 | AX12: 40.32429769 | AY12: ='VRF-WAbstrMitDS'!S12 -> 40.69907407 | AZ12: =K12-SDFInfo!H15 -> 56.83950617 | BA12: =L12-SDFInfo!I15 -> 50.42592593 | BB12: =M12-SDFInfo!J15 -> 45.9537037 | BC12: =N12-SDFInfo!K15 -> 37.96296296 | BD12: =O12-SDFInfo!L15 -> 19.99074074 | BE12: =P12-SDFInfo!M15 -> 21.00925926 | BF12: =Q12-SDFInfo!N15 -> 30.49074074 | BG12: =R12-SDFInfo!O15 -> 29.96296296 | BH12: 41.83657259 | BI12: 40.83950617 | BJ12: 41.42592593 | BK12: 42.9537037 | BL12: 44.96296296 | BM12: 41.99074074 | BN12: 42.00925926 | BO12: 37.49074074 | BP12: 32.96296296 | BQ12: 48.0246489 | BR12: 48.17535533 | BS12: 38.83995649 | BT12: 37.43376928 | BU12: 35.0226742 | BV12: 28.75874484 | BW12: 22.2091095 | BX12: 18.63762129 | BY12: 20.36925138 | BZ12: 19.13381491 | CA12: 31.51079028 | CB12: 32.10184574
A13: 75 | B13: 300x200 | C13: 0.3 | D13: 0.2 | E13: 220 | F13: 0.06 | G13: 220 | H13: 1000 | I13: 4.62962963 | J13: =IF(SD=TRUE,IF(dp-SDFInfo!Z16<1,1,dp-SDFInfo!Z16),dp) -> 150 | K13: =IF(AND($I13<=4,$J13<=200),$G156,IF(AND($I13<=4,$J13>200),$G157,IF(AND($I13>4,$J13<=200),$G159,$G160))) -> 59.83950617 | L13: =IF(AND($I13<=4,$J13<=200),$M156,IF(AND($I13<=4,$J13>200),$M157,IF(AND($I13>4,$J13<=200),$M159,$M160))) -> 52.33950617 | M13: =IF(AND($I13<=4,$J13<=200),$T156,IF(AND($I13<=4,$J13>200),$T157,IF(AND($I13>4,$J13<=200),$T159,$T160))) -> 53.02469136 | N13: =IF(AND($I13<=4,$J13<=200),$Z156,IF(AND($I13<=4,$J13>200),$Z157,IF(AND($I13>4,$J13<=200),$Z159,$Z160))) -> 54.41975309 | O13: =IF(AND($I13<=4,$J13<=200),$AG156,IF(AND($I13<=4,$J13>200),$AG157,IF(AND($I13>4,$J13<=200),$AG159,$AG160))) -> 53.60493827 | P13: =IF(AND($I13<=4,$J13<=200),$AM156,IF(AND($I13<=4,$J13>200),$AM157,IF(AND($I13>4,$J13<=200),$AM159,$AM160))) -> 54.39506173 | Q13: =IF(AND($I13<=4,$J13<=200),$AT156,IF(AND($I13<=4,$J13>200),$AT157,IF(AND($I13>4,$J13<=200),$AT159,$AT160))) -> 49.10493827 | R13: =IF(AND($I13<=4,$J13<=200),$BA156,IF(AND($I13<=4,$J13>200),$BA157,IF(AND($I13>4,$J13<=200),$BA159,$BA160))) -> 43.41975309 | S13: 59.43575113 | T13: =IF(AND($I13<=4,$J13<=200),$BG156,IF(AND($I13<=4,$J13>200),$BG157,IF(AND($I13>4,$J13<=200),$BG159,$BG160))) -> 59.20987654 | U13: =10*LOG10(10^(0.1*AZ13)+10^(0.1*SDFInfo!R16)) -> 57.83953758 | V13: =10*LOG10(10^(0.1*BA13)+10^(0.1*SDFInfo!S16)) -> 48.3406203 | W13: =10*LOG10(10^(0.1*BB13)+10^(0.1*SDFInfo!T16)) -> 45.03224389 | X13: =10*LOG10(10^(0.1*BC13)+10^(0.1*SDFInfo!U16)) -> 37.50578415 | Y13: =10*LOG10(10^(0.1*BD13)+10^(0.1*SDFInfo!V16)) -> 24.62387678 | Z13: =10*LOG10(10^(0.1*BE13)+10^(0.1*SDFInfo!W16)) -> 23.86088745 | AA13: =10*LOG10(10^(0.1*BF13)+10^(0.1*SDFInfo!X16)) -> 31.17851852 | AB13: =10*LOG10(10^(0.1*BG13)+10^(0.1*SDFInfo!Y16)) -> 29.43705518 | AC13: 41.19605917 | AD13: =10*LOG10(10^(0.1*BH13)+10^(0.1*SDFInfo!Q16)) -> 41.04368159 | AE13: 2160 | AF13: ='VRF-WAbstrOhneDS'!K13 -> 63.39197531 | AG13: ='VRF-WAbstrOhneDS'!L13 -> 54.44444444 | AH13: ='VRF-WAbstrOhneDS'!M13 -> 48.97222222 | AI13: ='VRF-WAbstrOhneDS'!N13 -> 43.91975309 | AJ13: ='VRF-WAbstrOhneDS'!O13 -> 43.65740741 | AK13: ='VRF-WAbstrOhneDS'!P13 -> 43.89506173 | AL13: ='VRF-WAbstrOhneDS'!Q13 -> 39.05246914 | AM13: ='VRF-WAbstrOhneDS'!R13 -> 36.41975309 | AN13: 50.16313245 | AO13: ='VRF-WAbstrOhneDS'!S13 -> 50.36728395 | AP13: ='VRF-WAbstrMitDS'!K13 -> 56.28703704 | AQ13: ='VRF-WAbstrMitDS'!L13 -> 47.44444444 | AR13: ='VRF-WAbstrMitDS'!M13 -> 41.97222222 | AS13: ='VRF-WAbstrMitDS'!N13 -> 34.86728395 | AT13: ='VRF-WAbstrMitDS'!O13 -> 31.60493827 | AU13: ='VRF-WAbstrMitDS'!P13 -> 30.39506173 | AV13: ='VRF-WAbstrMitDS'!Q13 -> 24.05246914 | AW13: ='VRF-WAbstrMitDS'!R13 -> 17.47222222 | AX13: 39.67511896 | AY13: ='VRF-WAbstrMitDS'!S13 -> 39.57716049 | AZ13: =K13-SDFInfo!H16 -> 57.83950617 | BA13: =L13-SDFInfo!I16 -> 48.33950617 | BB13: =M13-SDFInfo!J16 -> 45.02469136 | BC13: =N13-SDFInfo!K16 -> 37.41975309 | BD13: =O13-SDFInfo!L16 -> 20.60493827 | BE13: =P13-SDFInfo!M16 -> 22.39506173 | BF13: =Q13-SDFInfo!N16 -> 31.10493827 | BG13: =R13-SDFInfo!O16 -> 29.41975309 | BH13: 40.85039597 | BI13: 41.83950617 | BJ13: 39.33950617 | BK13: 42.02469136 | BL13: 44.41975309 | BM13: 42.60493827 | BN13: 43.39506173 | BO13: 38.10493827 | BP13: 32.41975309 | BQ13: 48.5858708 | BR13: 48.35999621 | BS13: 39.83953758 | BT13: 35.3406203 | BU13: 34.03224389 | BV13: 27.50578415 | BW13: 13.62387678 | BX13: 12.86088745 | BY13: 20.17851852 | BZ13: 18.43705518 | CA13: 29.8216092 | CB13: 29.66923162
A14: 75 | B14: 400x200 | C14: 0.4 | D14: 0.2 | E14: 220 | F14: 0.08 | G14: 264 | H14: 1000 | I14: 3.472222222 | J14: =IF(SD=TRUE,IF(dp-SDFInfo!Z17<1,1,dp-SDFInfo!Z17),dp) -> 150 | K14: =IF(AND($I14<=4,$J14<=200),$G166,IF(AND($I14<=4,$J14>200),$G167,IF(AND($I14>4,$J14<=200),$G169,$G170))) -> 57.88888889 | L14: =IF(AND($I14<=4,$J14<=200),$M166,IF(AND($I14<=4,$J14>200),$M167,IF(AND($I14>4,$J14<=200),$M169,$M170))) -> 51.26851852 | M14: =IF(AND($I14<=4,$J14<=200),$T166,IF(AND($I14<=4,$J14>200),$T167,IF(AND($I14>4,$J14<=200),$T169,$T170))) -> 53.23611111 | N14: =IF(AND($I14<=4,$J14<=200),$Z166,IF(AND($I14<=4,$J14>200),$Z167,IF(AND($I14>4,$J14<=200),$Z169,$Z170))) -> 54.12037037 | O14: =IF(AND($I14<=4,$J14<=200),$AG166,IF(AND($I14<=4,$J14>200),$AG167,IF(AND($I14>4,$J14<=200),$AG169,$AG170))) -> 53.97222222 | P14: =IF(AND($I14<=4,$J14<=200),$AM166,IF(AND($I14<=4,$J14>200),$AM167,IF(AND($I14>4,$J14<=200),$AM169,$AM170))) -> 55.76388889 | Q14: =IF(AND($I14<=4,$J14<=200),$AT166,IF(AND($I14<=4,$J14>200),$AT167,IF(AND($I14>4,$J14<=200),$AT169,$AT170))) -> 48.59259259 | R14: =IF(AND($I14<=4,$J14<=200),$BA166,IF(AND($I14<=4,$J14>200),$BA167,IF(AND($I14>4,$J14<=200),$BA169,$BA170))) -> 43.20833333 | S14: 60.04909373 | T14: =IF(AND($I14<=4,$J14<=200),$BG166,IF(AND($I14<=4,$J14>200),$BG167,IF(AND($I14>4,$J14<=200),$BG169,$BG170))) -> 60 | U14: =10*LOG10(10^(0.1*AZ14)+10^(0.1*SDFInfo!R17)) -> 55.88890008 | V14: =10*LOG10(10^(0.1*BA14)+10^(0.1*SDFInfo!S17)) -> 47.26877229 | W14: =10*LOG10(10^(0.1*BB14)+10^(0.1*SDFInfo!T17)) -> 45.23739235 | X14: =10*LOG10(10^(0.1*BC14)+10^(0.1*SDFInfo!U17)) -> 37.13690684 | Y14: =10*LOG10(10^(0.1*BD14)+10^(0.1*SDFInfo!V17)) -> 21.93804793 | Z14: =10*LOG10(10^(0.1*BE14)+10^(0.1*SDFInfo!W17)) -> 23.98460569 | AA14: =10*LOG10(10^(0.1*BF14)+10^(0.1*SDFInfo!X17)) -> 30.60742821 | AB14: =10*LOG10(10^(0.1*BG14)+10^(0.1*SDFInfo!Y17)) -> 29.21354157 | AC14: 40.7582196 | AD14: =10*LOG10(10^(0.1*BH14)+10^(0.1*SDFInfo!Q17)) -> 40.72208097 | AE14: 2880 | AF14: ='VRF-WAbstrOhneDS'!K14 -> 61.38888889 | AG14: ='VRF-WAbstrOhneDS'!L14 -> 53.35648148 | AH14: ='VRF-WAbstrOhneDS'!M14 -> 49.06018519 | AI14: ='VRF-WAbstrOhneDS'!N14 -> 43.62037037 | AJ14: ='VRF-WAbstrOhneDS'!O14 -> 44.06018519 | AK14: ='VRF-WAbstrOhneDS'!P14 -> 45.35185185 | AL14: ='VRF-WAbstrOhneDS'!Q14 -> 38.59259259 | AM14: ='VRF-WAbstrOhneDS'!R14 -> 36.20833333 | AN14: 50.56045775 | AO14: ='VRF-WAbstrOhneDS'!S14 -> 50.91203704 | AP14: ='VRF-WAbstrMitDS'!K14 -> 54.30092593 | AQ14: ='VRF-WAbstrMitDS'!L14 -> 46.35648148 | AR14: ='VRF-WAbstrMitDS'!M14 -> 42.06018519 | AS14: ='VRF-WAbstrMitDS'!N14 -> 34.62037037 | AT14: ='VRF-WAbstrMitDS'!O14 -> 32.06018519 | AU14: ='VRF-WAbstrMitDS'!P14 -> 31.76388889 | AV14: ='VRF-WAbstrMitDS'!Q14 -> 23.59259259 | AW14: ='VRF-WAbstrMitDS'!R14 -> 17.20833333 | AX14: 39.65026215 | AY14: ='VRF-WAbstrMitDS'!S14 -> 39.73611111 | AZ14: =K14-SDFInfo!H17 -> 55.88888889 | BA14: =L14-SDFInfo!I17 -> 47.26851852 | BB14: =M14-SDFInfo!J17 -> 45.23611111 | BC14: =N14-SDFInfo!K17 -> 37.12037037 | BD14: =O14-SDFInfo!L17 -> 20.97222222 | BE14: =P14-SDFInfo!M17 -> 23.76388889 | BF14: =Q14-SDFInfo!N17 -> 30.59259259 | BG14: =R14-SDFInfo!O17 -> 29.20833333 | BH14: 40.68569645 | BI14: 39.88888889 | BJ14: 38.26851852 | BK14: 42.23611111 | BL14: 44.12037037 | BM14: 42.97222222 | BN14: 44.76388889 | BO14: 37.59259259 | BP14: 32.20833333 | BQ14: 49.17441877 | BR14: 49.12532504 | BS14: 37.88890008 | BT14: 34.26877229 | BU14: 34.23739235 | BV14: 27.13690684 | BW14: 10.93804793 | BX14: 12.98460569 | BY14: 19.60742821 | BZ14: 18.21354157 | CA14: 29.5386186 | CB14: 29.50247997
A15: 75 | B15: 500x200 | C15: 0.5 | D15: 0.2 | E15: 220 | F15: 0.1 | G15: 308 | H15: 1000 | I15: 2.777777778 | J15: =IF(SD=TRUE,IF(dp-SDFInfo!Z18<1,1,dp-SDFInfo!Z18),dp) -> 150 | K15: =IF(AND($I15<=4,$J15<=200),$G176,IF(AND($I15<=4,$J15>200),$G177,IF(AND($I15>4,$J15<=200),$G179,$G180))) -> 56.11111111 | L15: =IF(AND($I15<=4,$J15<=200),$M176,IF(AND($I15<=4,$J15>200),$M177,IF(AND($I15>4,$J15<=200),$M179,$M180))) -> 50.64814815 | M15: =IF(AND($I15<=4,$J15<=200),$T176,IF(AND($I15<=4,$J15>200),$T177,IF(AND($I15>4,$J15<=200),$T179,$T180))) -> 53.88888889 | N15: =IF(AND($I15<=4,$J15<=200),$Z176,IF(AND($I15<=4,$J15>200),$Z177,IF(AND($I15>4,$J15<=200),$Z179,$Z180))) -> 53.96296296 | O15: =IF(AND($I15<=4,$J15<=200),$AG176,IF(AND($I15<=4,$J15>200),$AG177,IF(AND($I15>4,$J15<=200),$AG179,$AG180))) -> 54.27777778 | P15: =IF(AND($I15<=4,$J15<=200),$AM176,IF(AND($I15<=4,$J15>200),$AM177,IF(AND($I15>4,$J15<=200),$AM179,$AM180))) -> 57.11111111 | Q15: =IF(AND($I15<=4,$J15<=200),$AT176,IF(AND($I15<=4,$J15>200),$AT177,IF(AND($I15>4,$J15<=200),$AT179,$AT180))) -> 47.74074074 | R15: =IF(AND($I15<=4,$J15<=200),$BA176,IF(AND($I15<=4,$J15>200),$BA177,IF(AND($I15>4,$J15<=200),$BA179,$BA180))) -> 43.16666667 | S15: 60.76768336 | T15: =IF(AND($I15<=4,$J15<=200),$BG176,IF(AND($I15<=4,$J15>200),$BG177,IF(AND($I15>4,$J15<=200),$BG179,$BG180))) -> 61 | U15: =10*LOG10(10^(0.1*AZ15)+10^(0.1*SDFInfo!R18)) -> 54.11112796 | V15: =10*LOG10(10^(0.1*BA15)+10^(0.1*SDFInfo!S18)) -> 46.64824211 | W15: =10*LOG10(10^(0.1*BB15)+10^(0.1*SDFInfo!T18)) -> 45.88917792 | X15: =10*LOG10(10^(0.1*BC15)+10^(0.1*SDFInfo!U18)) -> 36.96746413 | Y15: =10*LOG10(10^(0.1*BD15)+10^(0.1*SDFInfo!V18)) -> 21.53433141 | Z15: =10*LOG10(10^(0.1*BE15)+10^(0.1*SDFInfo!W18)) -> 25.15441914 | AA15: =10*LOG10(10^(0.1*BF15)+10^(0.1*SDFInfo!X18)) -> 29.74547809 | AB15: =10*LOG10(10^(0.1*BG15)+10^(0.1*SDFInfo!Y18)) -> 29.17192508 | AC15: 40.75317059 | AD15: =10*LOG10(10^(0.1*BH15)+10^(0.1*SDFInfo!Q18)) -> 40.98808175 | AE15: 3600 | AF15: ='VRF-WAbstrOhneDS'!K15 -> 59.61111111 | AG15: ='VRF-WAbstrOhneDS'!L15 -> 52.85185185 | AH15: ='VRF-WAbstrOhneDS'!M15 -> 49.48148148 | AI15: ='VRF-WAbstrOhneDS'!N15 -> 43.46296296 | AJ15: ='VRF-WAbstrOhneDS'!O15 -> 44.48148148 | AK15: ='VRF-WAbstrOhneDS'!P15 -> 46.81481481 | AL15: ='VRF-WAbstrOhneDS'!Q15 -> 37.74074074 | AM15: ='VRF-WAbstrOhneDS'!R15 -> 36.16666667 | AN15: 51.20148802 | AO15: ='VRF-WAbstrOhneDS'!S15 -> 51.7962963 | AP15: ='VRF-WAbstrMitDS'!K15 -> 52.40740741 | AQ15: ='VRF-WAbstrMitDS'!L15 -> 45.85185185 | AR15: ='VRF-WAbstrMitDS'!M15 -> 42.48148148 | AS15: ='VRF-WAbstrMitDS'!N15 -> 34.46296296 | AT15: ='VRF-WAbstrMitDS'!O15 -> 32.48148148 | AU15: ='VRF-WAbstrMitDS'!P15 -> 33.11111111 | AV15: ='VRF-WAbstrMitDS'!Q15 -> 22.74074074 | AW15: ='VRF-WAbstrMitDS'!R15 -> 17.16666667 | AX15: 39.95197079 | AY15: ='VRF-WAbstrMitDS'!S15 -> 40.38888889 | AZ15: =K15-SDFInfo!H18 -> 54.11111111 | BA15: =L15-SDFInfo!I18 -> 46.64814815 | BB15: =M15-SDFInfo!J18 -> 45.88888889 | BC15: =N15-SDFInfo!K18 -> 36.96296296 | BD15: =O15-SDFInfo!L18 -> 21.27777778 | BE15: =P15-SDFInfo!M18 -> 25.11111111 | BF15: =Q15-SDFInfo!N18 -> 29.74074074 | BG15: =R15-SDFInfo!O18 -> 29.16666667 | BH15: 40.9791387 | BI15: 38.11111111 | BJ15: 37.64814815 | BK15: 42.88888889 | BL15: 43.96296296 | BM15: 43.27777778 | BN15: 46.11111111 | BO15: 36.74074074 | BP15: 32.16666667 | BQ15: 49.87206501 | BR15: 50.10438165 | BS15: 36.11112796 | BT15: 33.64824211 | BU15: 34.88917792 | BV15: 26.96746413 | BW15: 10.53433141 | BX15: 14.15441914 | BY15: 18.74547809 | BZ15: 18.17192508 | CA15: 29.64332656 | CB15: 29.87823771
A16: 75 | B16: 600x200 | C16: 0.6 | D16: 0.2 | E16: 220 | F16: 0.12 | G16: 352 | H16: 1000 | I16: 2.314814815 | J16: =IF(SD=TRUE,IF(dp-SDFInfo!Z19<1,1,dp-SDFInfo!Z19),dp) -> 150 | K16: =IF(AND($I16<=4,$J16<=200),$G186,IF(AND($I16<=4,$J16>200),$G187,IF(AND($I16>4,$J16<=200),$G189,$G190))) -> 55.25925926 | L16: =IF(AND($I16<=4,$J16<=200),$M186,IF(AND($I16<=4,$J16>200),$M187,IF(AND($I16>4,$J16<=200),$M189,$M190))) -> 50.56790123 | M16: =IF(AND($I16<=4,$J16<=200),$T186,IF(AND($I16<=4,$J16>200),$T187,IF(AND($I16>4,$J16<=200),$T189,$T190))) -> 54.65740741 | N16: =IF(AND($I16<=4,$J16<=200),$Z186,IF(AND($I16<=4,$J16>200),$Z187,IF(AND($I16>4,$J16<=200),$Z189,$Z190))) -> 54.19135802 | O16: =IF(AND($I16<=4,$J16<=200),$AG186,IF(AND($I16<=4,$J16>200),$AG187,IF(AND($I16>4,$J16<=200),$AG189,$AG190))) -> 54.81481481 | P16: =IF(AND($I16<=4,$J16<=200),$AM186,IF(AND($I16<=4,$J16>200),$AM187,IF(AND($I16>4,$J16<=200),$AM189,$AM190))) -> 58.34259259 | Q16: =IF(AND($I16<=4,$J16<=200),$AT186,IF(AND($I16<=4,$J16>200),$AT187,IF(AND($I16>4,$J16<=200),$AT189,$AT190))) -> 47.50617284 | R16: =IF(AND($I16<=4,$J16<=200),$BA186,IF(AND($I16<=4,$J16>200),$BA187,IF(AND($I16>4,$J16<=200),$BA189,$BA190))) -> 43.47222222 | S16: 61.64593705 | T16: =IF(AND($I16<=4,$J16<=200),$BG186,IF(AND($I16<=4,$J16>200),$BG187,IF(AND($I16>4,$J16<=200),$BG189,$BG190))) -> 62 | U16: =10*LOG10(10^(0.1*AZ16)+10^(0.1*SDFInfo!R19)) -> 53.25927976 | V16: =10*LOG10(10^(0.1*BA16)+10^(0.1*SDFInfo!S19)) -> 46.56799695 | W16: =10*LOG10(10^(0.1*BB16)+10^(0.1*SDFInfo!T19)) -> 46.65750117 | X16: =10*LOG10(10^(0.1*BC16)+10^(0.1*SDFInfo!U19)) -> 37.19278874 | Y16: =10*LOG10(10^(0.1*BD16)+10^(0.1*SDFInfo!V19)) -> 21.89233168 | Z16: =10*LOG10(10^(0.1*BE16)+10^(0.1*SDFInfo!W19)) -> 26.35355616 | AA16: =10*LOG10(10^(0.1*BF16)+10^(0.1*SDFInfo!X19)) -> 29.51103606 | AB16: =10*LOG10(10^(0.1*BG16)+10^(0.1*SDFInfo!Y19)) -> 29.47712359 | AC16: 41.15951172 | AD16: =10*LOG10(10^(0.1*BH16)+10^(0.1*SDFInfo!Q19)) -> 41.5138325 | AE16: 4320 | AF16: ='VRF-WAbstrOhneDS'!K16 -> 58.75925926 | AG16: ='VRF-WAbstrOhneDS'!L16 -> 52.84876543 | AH16: ='VRF-WAbstrOhneDS'!M16 -> 50.09567901 | AI16: ='VRF-WAbstrOhneDS'!N16 -> 43.69135802 | AJ16: ='VRF-WAbstrOhneDS'!O16 -> 45.09567901 | AK16: ='VRF-WAbstrOhneDS'!P16 -> 48.12345679 | AL16: ='VRF-WAbstrOhneDS'!Q16 -> 37.50617284 | AM16: ='VRF-WAbstrOhneDS'!R16 -> 36.47222222 | AN16: 52.04876134 | AO16: ='VRF-WAbstrOhneDS'!S16 -> 52.7191358 | AP16: ='VRF-WAbstrMitDS'!K16 -> 51.47839506 | AQ16: ='VRF-WAbstrMitDS'!L16 -> 45.84876543 | AR16: ='VRF-WAbstrMitDS'!M16 -> 43.09567901 | AS16: ='VRF-WAbstrMitDS'!N16 -> 34.69135802 | AT16: ='VRF-WAbstrMitDS'!O16 -> 33.09567901 | AU16: ='VRF-WAbstrMitDS'!P16 -> 34.34259259 | AV16: ='VRF-WAbstrMitDS'!Q16 -> 22.50617284 | AW16: ='VRF-WAbstrMitDS'!R16 -> 17.47222222 | AX16: 40.56776794 | AY16: ='VRF-WAbstrMitDS'!S16 -> 41.15740741 | AZ16: =K16-SDFInfo!H19 -> 53.25925926 | BA16: =L16-SDFInfo!I19 -> 46.56790123 | BB16: =M16-SDFInfo!J19 -> 46.65740741 | BC16: =N16-SDFInfo!K19 -> 37.19135802 | BD16: =O16-SDFInfo!L19 -> 21.81481481 | BE16: =P16-SDFInfo!M19 -> 26.34259259 | BF16: =Q16-SDFInfo!N19 -> 29.50617284 | BG16: =R16-SDFInfo!O19 -> 29.47222222 | BH16: 41.51118089 | BI16: 37.25925926 | BJ16: 37.56790123 | BK16: 43.65740741 | BL16: 44.19135802 | BM16: 43.81481481 | BN16: 47.34259259 | BO16: 36.50617284 | BP16: 32.47222222 | BQ16: 50.7367126 | BR16: 51.09077555 | BS16: 35.25927976 | BT16: 33.56799695 | BU16: 35.65750117 | BV16: 27.19278874 | BW16: 10.89233168 | BX16: 15.35355616 | BY16: 18.51103606 | BZ16: 18.47712359 | CA16: 30.10314205 | CB16: 30.45746282
A17: 75 | B17: 800x200 | C17: 0.8 | D17: 0.2 | E17: 220 | F17: 0.16 | G17: 440 | H17: 1000 | I17: 1.736111111 | J17: =IF(SD=TRUE,IF(dp-SDFInfo!Z20<1,1,dp-SDFInfo!Z20),dp) -> 150 | K17: =IF(AND($I17<=4,$J17<=200),$G196,IF(AND($I17<=4,$J17>200),$G197,IF(AND($I17>4,$J17<=200),$G199,$G200))) -> 53.94444444 | L17: =IF(AND($I17<=4,$J17<=200),$M196,IF(AND($I17<=4,$J17>200),$M197,IF(AND($I17>4,$J17<=200),$M199,$M200))) -> 50.21759259 | M17: =IF(AND($I17<=4,$J17<=200),$T196,IF(AND($I17<=4,$J17>200),$T197,IF(AND($I17>4,$J17<=200),$T199,$T200))) -> 55.36805556 | N17: =IF(AND($I17<=4,$J17<=200),$Z196,IF(AND($I17<=4,$J17>200),$Z197,IF(AND($I17>4,$J17<=200),$Z199,$Z200))) -> 54.22685185 | O17: =IF(AND($I17<=4,$J17<=200),$AG196,IF(AND($I17<=4,$J17>200),$AG197,IF(AND($I17>4,$J17<=200),$AG199,$AG200))) -> 55.23611111 | P17: =IF(AND($I17<=4,$J17<=200),$AM196,IF(AND($I17<=4,$J17>200),$AM197,IF(AND($I17>4,$J17<=200),$AM199,$AM200))) -> 59.63194444 | Q17: =IF(AND($I17<=4,$J17<=200),$AT196,IF(AND($I17<=4,$J17>200),$AT197,IF(AND($I17>4,$J17<=200),$AT199,$AT200))) -> 46.96296296 | R17: =IF(AND($I17<=4,$J17<=200),$BA196,IF(AND($I17<=4,$J17>200),$BA197,IF(AND($I17>4,$J17<=200),$BA199,$BA200))) -> 43.60416667 | S17: 62.55937261 | T17: =IF(AND($I17<=4,$J17<=200),$BG196,IF(AND($I17<=4,$J17>200),$BG197,IF(AND($I17>4,$J17<=200),$BG199,$BG200))) -> 63 | U17: =10*LOG10(10^(0.1*AZ17)+10^(0.1*SDFInfo!R20)) -> 51.9444722 | V17: =10*LOG10(10^(0.1*BA17)+10^(0.1*SDFInfo!S20)) -> 46.21769635 | W17: =10*LOG10(10^(0.1*BB17)+10^(0.1*SDFInfo!T20)) -> 47.36813517 | X17: =10*LOG10(10^(0.1*BC17)+10^(0.1*SDFInfo!U20)) -> 37.2276742 | Y17: =10*LOG10(10^(0.1*BD17)+10^(0.1*SDFInfo!V20)) -> 22.26198602 | Z17: =10*LOG10(10^(0.1*BE17)+10^(0.1*SDFInfo!W20)) -> 27.63942985 | AA17: =10*LOG10(10^(0.1*BF17)+10^(0.1*SDFInfo!X20)) -> 28.96847374 | AB17: =10*LOG10(10^(0.1*BG17)+10^(0.1*SDFInfo!Y20)) -> 29.60892144 | AC17: 41.49129932 | AD17: =10*LOG10(10^(0.1*BH17)+10^(0.1*SDFInfo!Q20)) -> 41.9308156 | AE17: 5760 | AF17: ='VRF-WAbstrOhneDS'!K17 -> 57.44444444 | AG17: ='VRF-WAbstrOhneDS'!L17 -> 52.59490741 | AH17: ='VRF-WAbstrOhneDS'!M17 -> 50.61342593 | AI17: ='VRF-WAbstrOhneDS'!N17 -> 43.72685185 | AJ17: ='VRF-WAbstrOhneDS'!O17 -> 45.61342593 | AK17: ='VRF-WAbstrOhneDS'!P17 -> 49.50925926 | AL17: ='VRF-WAbstrOhneDS'!Q17 -> 36.96296296 | AM17: ='VRF-WAbstrOhneDS'!R17 -> 36.60416667 | AN17: 52.94354801 | AO17: ='VRF-WAbstrOhneDS'!S17 -> 53.62268519 | AP17: ='VRF-WAbstrMitDS'!K17 -> 50.06712963 | AQ17: ='VRF-WAbstrMitDS'!L17 -> 45.59490741 | AR17: ='VRF-WAbstrMitDS'!M17 -> 43.61342593 | AS17: ='VRF-WAbstrMitDS'!N17 -> 34.72685185 | AT17: ='VRF-WAbstrMitDS'!O17 -> 33.61342593 | AU17: ='VRF-WAbstrMitDS'!P17 -> 35.63194444 | AV17: ='VRF-WAbstrMitDS'!Q17 -> 21.96296296 | AW17: ='VRF-WAbstrMitDS'!R17 -> 17.60416667 | AX17: 41.16917531 | AY17: ='VRF-WAbstrMitDS'!S17 -> 41.86805556 | AZ17: =K17-SDFInfo!H20 -> 51.94444444 | BA17: =L17-SDFInfo!I20 -> 46.21759259 | BB17: =M17-SDFInfo!J20 -> 47.36805556 | BC17: =N17-SDFInfo!K20 -> 37.22685185 | BD17: =O17-SDFInfo!L20 -> 22.23611111 | BE17: =P17-SDFInfo!M20 -> 27.63194444 | BF17: =Q17-SDFInfo!N20 -> 28.96296296 | BG17: =R17-SDFInfo!O20 -> 29.60416667 | BH17: 41.93038698 | BI17: 35.94444444 | BJ17: 37.21759259 | BK17: 44.36805556 | BL17: 44.22685185 | BM17: 44.23611111 | BN17: 48.63194444 | BO17: 35.96296296 | BP17: 32.60416667 | BQ17: 51.63429546 | BR17: 52.07492285 | BS17: 33.9444722 | BT17: 33.21769635 | BU17: 36.36813517 | BV17: 27.2276742 | BW17: 11.26198602 | BX17: 16.63942985 | BY17: 17.96847374 | BZ17: 18.60892144 | CA17: 30.48356068 | CB17: 30.92307696
A18: 75 | B18: 300x250 | C18: 0.3 | D18: 0.25 | E18: 270 | F18: 0.075 | G18: 297 | H18: 1000 | I18: 3.703703704 | J18: =IF(SD=TRUE,IF(dp-SDFInfo!Z21<1,1,dp-SDFInfo!Z21),dp) -> 150 | K18: =IF(AND($I18<=4,$J18<=200),$G206,IF(AND($I18<=4,$J18>200),$G207,IF(AND($I18>4,$J18<=200),$G209,$G210))) -> 57.41358025 | L18: =IF(AND($I18<=4,$J18<=200),$M206,IF(AND($I18<=4,$J18>200),$M207,IF(AND($I18>4,$J18<=200),$M209,$M210))) -> 51.85802469 | M18: =IF(AND($I18<=4,$J18<=200),$T206,IF(AND($I18<=4,$J18>200),$T207,IF(AND($I18>4,$J18<=200),$T209,$T210))) -> 54.15432099 | N18: =IF(AND($I18<=4,$J18<=200),$Z206,IF(AND($I18<=4,$J18>200),$Z207,IF(AND($I18>4,$J18<=200),$Z209,$Z210))) -> 55.40740741 | O18: =IF(AND($I18<=4,$J18<=200),$AG206,IF(AND($I18<=4,$J18>200),$AG207,IF(AND($I18>4,$J18<=200),$AG209,$AG210))) -> 54.75308642 | P18: =IF(AND($I18<=4,$J18<=200),$AM206,IF(AND($I18<=4,$J18>200),$AM207,IF(AND($I18>4,$J18<=200),$AM209,$AM210))) -> 54.64814815 | Q18: =IF(AND($I18<=4,$J18<=200),$AT206,IF(AND($I18<=4,$J18>200),$AT207,IF(AND($I18>4,$J18<=200),$AT209,$AT210))) -> 48.25925926 | R18: =IF(AND($I18<=4,$J18<=200),$BA206,IF(AND($I18<=4,$J18>200),$BA207,IF(AND($I18>4,$J18<=200),$BA209,$BA210))) -> 44.40740741 | S18: 59.98333966 | T18: =IF(AND($I18<=4,$J18<=200),$BG206,IF(AND($I18<=4,$J18>200),$BG207,IF(AND($I18>4,$J18<=200),$BG209,$BG210))) -> 59.95061728 | U18: =10*LOG10(10^(0.1*AZ18)+10^(0.1*SDFInfo!R21)) -> 55.41359464 | V18: =10*LOG10(10^(0.1*BA18)+10^(0.1*SDFInfo!S21)) -> 47.85835102 | W18: =10*LOG10(10^(0.1*BB18)+10^(0.1*SDFInfo!T21)) -> 46.15584845 | X18: =10*LOG10(10^(0.1*BC18)+10^(0.1*SDFInfo!U21)) -> 38.42551384 | Y18: =10*LOG10(10^(0.1*BD18)+10^(0.1*SDFInfo!V21)) -> 22.9140768 | Z18: =10*LOG10(10^(0.1*BE18)+10^(0.1*SDFInfo!W21)) -> 23.05924795 | AA18: =10*LOG10(10^(0.1*BF18)+10^(0.1*SDFInfo!X21)) -> 30.28283005 | AB18: =10*LOG10(10^(0.1*BG18)+10^(0.1*SDFInfo!Y21)) -> 30.41135967 | AC18: 41.46740838 | AD18: =10*LOG10(10^(0.1*BH18)+10^(0.1*SDFInfo!Q21)) -> 41.45082975 | AE18: 2700 | AF18: ='VRF-WAbstrOhneDS'!K18 -> 60.41358025 | AG18: ='VRF-WAbstrOhneDS'!L18 -> 53.75925926 | AH18: ='VRF-WAbstrOhneDS'!M18 -> 49.60493827 | AI18: ='VRF-WAbstrOhneDS'!N18 -> 44.90740741 | AJ18: ='VRF-WAbstrOhneDS'!O18 -> 44.85185185 | AK18: ='VRF-WAbstrOhneDS'!P18 -> 44.64814815 | AL18: ='VRF-WAbstrOhneDS'!Q18 -> 38.25925926 | AM18: ='VRF-WAbstrOhneDS'!R18 -> 37.40740741 | AN18: 50.7041427 | AO18: ='VRF-WAbstrOhneDS'!S18 -> 50.90123457 | AP18: ='VRF-WAbstrMitDS'!K18 -> 53.41358025 | AQ18: ='VRF-WAbstrMitDS'!L18 -> 46.75925926 | AR18: ='VRF-WAbstrMitDS'!M18 -> 42.60493827 | AS18: ='VRF-WAbstrMitDS'!N18 -> 35.45679012 | AT18: ='VRF-WAbstrMitDS'!O18 -> 32.80246914 | AU18: ='VRF-WAbstrMitDS'!P18 -> 30.64814815 | AV18: ='VRF-WAbstrMitDS'!Q18 -> 23.25925926 | AW18: ='VRF-WAbstrMitDS'!R18 -> 18.45679012 | AX18: 39.84283464 | AY18: ='VRF-WAbstrMitDS'!S18 -> 39.75308642 | AZ18: =K18-SDFInfo!H21 -> 55.41358025 | BA18: =L18-SDFInfo!I21 -> 47.85802469 | BB18: =M18-SDFInfo!J21 -> 46.15432099 | BC18: =N18-SDFInfo!K21 -> 38.40740741 | BD18: =O18-SDFInfo!L21 -> 21.75308642 | BE18: =P18-SDFInfo!M21 -> 22.64814815 | BF18: =Q18-SDFInfo!N21 -> 30.25925926 | BG18: =R18-SDFInfo!O21 -> 30.40740741 | BH18: 41.40547088 | BI18: 39.41358025 | BJ18: 38.85802469 | BK18: 43.15432099 | BL18: 45.40740741 | BM18: 43.75308642 | BN18: 43.64814815 | BO18: 37.25925926 | BP18: 33.40740741 | BQ18: 49.15681308 | BR18: 49.1240907 | BS18: 37.41359464 | BT18: 34.85835102 | BU18: 35.15584845 | BV18: 28.42551384 | BW18: 11.9140768 | BX18: 12.05924795 | BY18: 19.28283005 | BZ18: 19.41135967 | CA18: 30.35484801 | CB18: 30.33826938
A19: 75 | B19: 400x250 | C19: 0.4 | D19: 0.25 | E19: 270 | F19: 0.1 | G19: 351 | H19: 1000 | I19: 2.777777778 | J19: =IF(SD=TRUE,IF(dp-SDFInfo!Z22<1,1,dp-SDFInfo!Z22),dp) -> 150 | K19: =IF(AND($I19<=4,$J19<=200),$G216,IF(AND($I19<=4,$J19>200),$G217,IF(AND($I19>4,$J19<=200),$G219,$G220))) -> 55.01851852 | L19: =IF(AND($I19<=4,$J19<=200),$M216,IF(AND($I19<=4,$J19>200),$M217,IF(AND($I19>4,$J19<=200),$M219,$M220))) -> 50.85185185 | M19: =IF(AND($I19<=4,$J19<=200),$T216,IF(AND($I19<=4,$J19>200),$T217,IF(AND($I19>4,$J19<=200),$T219,$T220))) -> 54.07407407 | N19: =IF(AND($I19<=4,$J19<=200),$Z216,IF(AND($I19<=4,$J19>200),$Z217,IF(AND($I19>4,$J19<=200),$Z219,$Z220))) -> 54.55555556 | O19: =IF(AND($I19<=4,$J19<=200),$AG216,IF(AND($I19<=4,$J19>200),$AG217,IF(AND($I19>4,$J19<=200),$AG219,$AG220))) -> 54.98148148 | P19: =IF(AND($I19<=4,$J19<=200),$AM216,IF(AND($I19<=4,$J19>200),$AM217,IF(AND($I19>4,$J19<=200),$AM219,$AM220))) -> 56.11111111 | Q19: =IF(AND($I19<=4,$J19<=200),$AT216,IF(AND($I19<=4,$J19>200),$AT217,IF(AND($I19>4,$J19<=200),$AT219,$AT220))) -> 46.94444444 | R19: =IF(AND($I19<=4,$J19<=200),$BA216,IF(AND($I19<=4,$J19>200),$BA217,IF(AND($I19>4,$J19<=200),$BA219,$BA220))) -> 43.55555556 | S19: 60.44867647 | T19: =IF(AND($I19<=4,$J19<=200),$BG216,IF(AND($I19<=4,$J19>200),$BG217,IF(AND($I19>4,$J19<=200),$BG219,$BG220))) -> 60.7962963 | U19: =10*LOG10(10^(0.1*AZ19)+10^(0.1*SDFInfo!R22)) -> 53.01854019 | V19: =10*LOG10(10^(0.1*BA19)+10^(0.1*SDFInfo!S22)) -> 46.85194151 | W19: =10*LOG10(10^(0.1*BB19)+10^(0.1*SDFInfo!T22)) -> 46.07435104 | X19: =10*LOG10(10^(0.1*BC19)+10^(0.1*SDFInfo!U22)) -> 37.55948286 | Y19: =10*LOG10(10^(0.1*BD19)+10^(0.1*SDFInfo!V22)) -> 22.20060864 | Z19: =10*LOG10(10^(0.1*BE19)+10^(0.1*SDFInfo!W22)) -> 24.16556266 | AA19: =10*LOG10(10^(0.1*BF19)+10^(0.1*SDFInfo!X22)) -> 28.95013452 | AB19: =10*LOG10(10^(0.1*BG19)+10^(0.1*SDFInfo!Y22)) -> 29.56036382 | AC19: 40.85958889 | AD19: =10*LOG10(10^(0.1*BH19)+10^(0.1*SDFInfo!Q22)) -> 41.20951203 | AE19: 3600 | AF19: ='VRF-WAbstrOhneDS'!K19 -> 58.01851852 | AG19: ='VRF-WAbstrOhneDS'!L19 -> 52.44444444 | AH19: ='VRF-WAbstrOhneDS'!M19 -> 49.37037037 | AI19: ='VRF-WAbstrOhneDS'!N19 -> 44.05555556 | AJ19: ='VRF-WAbstrOhneDS'!O19 -> 45.38888889 | AK19: ='VRF-WAbstrOhneDS'!P19 -> 46.11111111 | AL19: ='VRF-WAbstrOhneDS'!Q19 -> 36.94444444 | AM19: ='VRF-WAbstrOhneDS'!R19 -> 36.55555556 | AN19: 51.07600837 | AO19: ='VRF-WAbstrOhneDS'!S19 -> 51.59259259 | AP19: ='VRF-WAbstrMitDS'!K19 -> 51.01851852 | AQ19: ='VRF-WAbstrMitDS'!L19 -> 45.44444444 | AR19: ='VRF-WAbstrMitDS'!M19 -> 42.37037037 | AS19: ='VRF-WAbstrMitDS'!N19 -> 34.75925926 | AT19: ='VRF-WAbstrMitDS'!O19 -> 33.18518519 | AU19: ='VRF-WAbstrMitDS'!P19 -> 32.11111111 | AV19: ='VRF-WAbstrMitDS'!Q19 -> 21.94444444 | AW19: ='VRF-WAbstrMitDS'!R19 -> 17.75925926 | AX19: 39.75275159 | AY19: ='VRF-WAbstrMitDS'!S19 -> 39.98148148 | AZ19: =K19-SDFInfo!H22 -> 53.01851852 | BA19: =L19-SDFInfo!I22 -> 46.85185185 | BB19: =M19-SDFInfo!J22 -> 46.07407407 | BC19: =N19-SDFInfo!K22 -> 37.55555556 | BD19: =O19-SDFInfo!L22 -> 21.98148148 | BE19: =P19-SDFInfo!M22 -> 24.11111111 | BF19: =Q19-SDFInfo!N22 -> 28.94444444 | BG19: =R19-SDFInfo!O22 -> 29.55555556 | BH19: 41.20101396 | BI19: 37.01851852 | BJ19: 37.85185185 | BK19: 43.07407407 | BL19: 44.55555556 | BM19: 43.98148148 | BN19: 45.11111111 | BO19: 35.94444444 | BP19: 32.55555556 | BQ19: 49.57857187 | BR19: 49.9261917 | BS19: 35.01854019 | BT19: 33.85194151 | BU19: 35.07435104 | BV19: 27.55948286 | BW19: 11.20060864 | BX19: 13.16556266 | BY19: 17.95013452 | BZ19: 18.56036382 | CA19: 29.81767917 | CB19: 30.16760231
A20: 75 | B20: 500x250 | C20: 0.5 | D20: 0.25 | E20: 270 | F20: 0.125 | G20: 405 | H20: 1000 | I20: =H20/(F20*3600) -> 2.222222222 | J20: =IF(SD=TRUE,IF(dp-SDFInfo!Z23<1,1,dp-SDFInfo!Z23),dp) -> 150 | K20: =IF(AND($I20<=4,$J20<=200),$G226,IF(AND($I20<=4,$J20>200),$G227,IF(AND($I20>4,$J20<=200),$G229,$G230))) -> 53.98148148 | L20: =IF(AND($I20<=4,$J20<=200),$M226,IF(AND($I20<=4,$J20>200),$M227,IF(AND($I20>4,$J20<=200),$M229,$M230))) -> 50.64814815 | M20: =IF(AND($I20<=4,$J20<=200),$T226,IF(AND($I20<=4,$J20>200),$T227,IF(AND($I20>4,$J20<=200),$T229,$T230))) -> 54.42592593 | N20: =IF(AND($I20<=4,$J20<=200),$Z226,IF(AND($I20<=4,$J20>200),$Z227,IF(AND($I20>4,$J20<=200),$Z229,$Z230))) -> 54.44444444 | O20: =IF(AND($I20<=4,$J20<=200),$AG226,IF(AND($I20<=4,$J20>200),$AG227,IF(AND($I20>4,$J20<=200),$AG229,$AG230))) -> 55.51851852 | P20: =IF(AND($I20<=4,$J20<=200),$AM226,IF(AND($I20<=4,$J20>200),$AM227,IF(AND($I20>4,$J20<=200),$AM229,$AM230))) -> 57.38888889 | Q20: =IF(AND($I20<=4,$J20<=200),$AT226,IF(AND($I20<=4,$J20>200),$AT227,IF(AND($I20>4,$J20<=200),$AT229,$AT230))) -> 46.55555556 | R20: =IF(AND($I20<=4,$J20<=200),$BA226,IF(AND($I20<=4,$J20>200),$BA227,IF(AND($I20>4,$J20<=200),$BA229,$BA230))) -> 43.44444444 | S20: 61.23167904 | T20: =IF(AND($I20<=4,$J20<=200),$BG226,IF(AND($I20<=4,$J20>200),$BG227,IF(AND($I20>4,$J20<=200),$BG229,$BG230))) -> 61.7037037 | U20: =10*LOG10(10^(0.1*AZ20)+10^(0.1*SDFInfo!R23)) -> 51.981509 | V20: =10*LOG10(10^(0.1*BA20)+10^(0.1*SDFInfo!S23)) -> 46.64824211 | W20: =10*LOG10(10^(0.1*BB20)+10^(0.1*SDFInfo!T23)) -> 46.42602482 | X20: =10*LOG10(10^(0.1*BC20)+10^(0.1*SDFInfo!U23)) -> 37.44550099 | Y20: =10*LOG10(10^(0.1*BD20)+10^(0.1*SDFInfo!V23)) -> 22.5702726 | Z20: =10*LOG10(10^(0.1*BE20)+10^(0.1*SDFInfo!W23)) -> 25.40142805 | AA20: =10*LOG10(10^(0.1*BF20)+10^(0.1*SDFInfo!X23)) -> 28.56160793 | AB20: =10*LOG10(10^(0.1*BG20)+10^(0.1*SDFInfo!Y23)) -> 29.44937724 | AC20: 40.95471786 | AD20: =10*LOG10(10^(0.1*BH20)+10^(0.1*SDFInfo!Q23)) -> 41.42666132 | AE20: 4500 | AF20: ='VRF-WAbstrOhneDS'!K20 -> 56.98148148 | AG20: ='VRF-WAbstrOhneDS'!L20 -> 52.05555556 | AH20: ='VRF-WAbstrOhneDS'!M20 -> 49.62962963 | AI20: ='VRF-WAbstrOhneDS'!N20 -> 43.94444444 | AJ20: ='VRF-WAbstrOhneDS'!O20 -> 46.11111111 | AK20: ='VRF-WAbstrOhneDS'!P20 -> 47.38888889 | AL20: ='VRF-WAbstrOhneDS'!Q20 -> 36.55555556 | AM20: ='VRF-WAbstrOhneDS'!R20 -> 36.44444444 | AN20: 51.81566173 | AO20: ='VRF-WAbstrOhneDS'!S20 -> 52.40740741 | AP20: ='VRF-WAbstrMitDS'!K20 -> 49.98148148 | AQ20: ='VRF-WAbstrMitDS'!L20 -> 45.05555556 | AR20: ='VRF-WAbstrMitDS'!M20 -> 42.62962963 | AS20: ='VRF-WAbstrMitDS'!N20 -> 34.74074074 | AT20: ='VRF-WAbstrMitDS'!O20 -> 33.81481481 | AU20: ='VRF-WAbstrMitDS'!P20 -> 33.38888889 | AV20: ='VRF-WAbstrMitDS'!Q20 -> 21.55555556 | AW20: ='VRF-WAbstrMitDS'!R20 -> 17.74074074 | AX20: 40.20774894 | AY20: ='VRF-WAbstrMitDS'!S20 -> 40.51851852 | AZ20: =K20-SDFInfo!H23 -> 51.98148148 | BA20: =L20-SDFInfo!I23 -> 46.64814815 | BB20: =M20-SDFInfo!J23 -> 46.42592593 | BC20: =N20-SDFInfo!K23 -> 37.44444444 | BD20: =O20-SDFInfo!L23 -> 22.51851852 | BE20: =P20-SDFInfo!M23 -> 25.38888889 | BF20: =Q20-SDFInfo!N23 -> 28.55555556 | BG20: =R20-SDFInfo!O23 -> 29.44444444 | BH20: 41.42454381 | BI20: 35.98148148 | BJ20: 37.64814815 | BK20: 43.42592593 | BL20: 44.44444444 | BM20: 44.51851852 | BN20: 46.38888889 | BO20: 35.55555556 | BP20: 32.44444444 | BQ20: 50.33813412 | BR20: 50.81015878 | BS20: 33.981509 | BT20: 33.64824211 | BU20: 35.42602482 | BV20: 27.44550099 | BW20: 11.5702726 | BX20: 14.40142805 | BY20: 17.56160793 | BZ20: 18.44937724 | CA20: 29.94301726 | CB20: 30.41496072
A21: 75 | B21: 600x250 | C21: 0.6 | D21: 0.25 | E21: 270 | F21: 0.15 | G21: 459 | H21: 1000 | I21: 1.851851852 | J21: =IF(SD=TRUE,IF(dp-SDFInfo!Z24<1,1,dp-SDFInfo!Z24),dp) -> 150 | K21: =IF(AND($I21<=4,$J21<=200),$G236,IF(AND($I21<=4,$J21>200),$G237,IF(AND($I21>4,$J21<=200),$G239,$G240))) -> 53.62345679 | L21: =IF(AND($I21<=4,$J21<=200),$M236,IF(AND($I21<=4,$J21>200),$M237,IF(AND($I21>4,$J21<=200),$M239,$M240))) -> 50.84567901 | M21: =IF(AND($I21<=4,$J21<=200),$T236,IF(AND($I21<=4,$J21>200),$T237,IF(AND($I21>4,$J21<=200),$T239,$T240))) -> 54.99382716 | N21: =IF(AND($I21<=4,$J21<=200),$Z236,IF(AND($I21<=4,$J21>200),$Z237,IF(AND($I21>4,$J21<=200),$Z239,$Z240))) -> 54.7037037 | O21: =IF(AND($I21<=4,$J21<=200),$AG236,IF(AND($I21<=4,$J21>200),$AG237,IF(AND($I21>4,$J21<=200),$AG239,$AG240))) -> 56.20987654 | P21: =IF(AND($I21<=4,$J21<=200),$AM236,IF(AND($I21<=4,$J21>200),$AM237,IF(AND($I21>4,$J21<=200),$AM239,$AM240))) -> 58.57407407 | Q21: =IF(AND($I21<=4,$J21<=200),$AT236,IF(AND($I21<=4,$J21>200),$AT237,IF(AND($I21>4,$J21<=200),$AT239,$AT240))) -> 46.62962963 | R21: =IF(AND($I21<=4,$J21<=200),$BA236,IF(AND($I21<=4,$J21>200),$BA237,IF(AND($I21>4,$J21<=200),$BA239,$BA240))) -> 43.7037037 | S21: 62.12660626 | T21: =IF(AND($I21<=4,$J21<=200),$BG236,IF(AND($I21<=4,$J21>200),$BG237,IF(AND($I21>4,$J21<=200),$BG239,$BG240))) -> 62.64197531 | U21: =10*LOG10(10^(0.1*AZ21)+10^(0.1*SDFInfo!R24)) -> 51.62348667 | V21: =10*LOG10(10^(0.1*BA21)+10^(0.1*SDFInfo!S24)) -> 46.8457688 | W21: =10*LOG10(10^(0.1*BB21)+10^(0.1*SDFInfo!T24)) -> 46.99391394 | X21: =10*LOG10(10^(0.1*BC21)+10^(0.1*SDFInfo!U24)) -> 37.70444055 | Y21: =10*LOG10(10^(0.1*BD21)+10^(0.1*SDFInfo!V24)) -> 23.2305666 | Z21: =10*LOG10(10^(0.1*BE21)+10^(0.1*SDFInfo!W24)) -> 26.58362179 | AA21: =10*LOG10(10^(0.1*BF21)+10^(0.1*SDFInfo!X24)) -> 28.63557972 | AB21: =10*LOG10(10^(0.1*BG21)+10^(0.1*SDFInfo!Y24)) -> 29.7083508 | AC21: 41.37413925 | AD21: =10*LOG10(10^(0.1*BH21)+10^(0.1*SDFInfo!Q24)) -> 41.88856396 | AE21: 5400 | AF21: ='VRF-WAbstrOhneDS'!K21 -> 56.62345679 | AG21: ='VRF-WAbstrOhneDS'!L21 -> 52.12962963 | AH21: ='VRF-WAbstrOhneDS'!M21 -> 50.13580247 | AI21: ='VRF-WAbstrOhneDS'!N21 -> 44.2037037 | AJ21: ='VRF-WAbstrOhneDS'!O21 -> 46.92592593 | AK21: ='VRF-WAbstrOhneDS'!P21 -> 48.57407407 | AL21: ='VRF-WAbstrOhneDS'!Q21 -> 36.62962963 | AM21: ='VRF-WAbstrOhneDS'!R21 -> 36.7037037 | AN21: 52.68537507 | AO21: ='VRF-WAbstrOhneDS'!S21 -> 53.28395062 | AP21: ='VRF-WAbstrMitDS'!K21 -> 49.62345679 | AQ21: ='VRF-WAbstrMitDS'!L21 -> 45.12962963 | AR21: ='VRF-WAbstrMitDS'!M21 -> 43.13580247 | AS21: ='VRF-WAbstrMitDS'!N21 -> 35.0617284 | AT21: ='VRF-WAbstrMitDS'!O21 -> 34.56790123 | AU21: ='VRF-WAbstrMitDS'!P21 -> 34.57407407 | AV21: ='VRF-WAbstrMitDS'!Q21 -> 21.62962963 | AW21: ='VRF-WAbstrMitDS'!R21 -> 18.0617284 | AX21: 40.88901992 | AY21: ='VRF-WAbstrMitDS'!S21 -> 41.20987654 | AZ21: =K21-SDFInfo!H24 -> 51.62345679 | BA21: =L21-SDFInfo!I24 -> 46.84567901 | BB21: =M21-SDFInfo!J24 -> 46.99382716 | BC21: =N21-SDFInfo!K24 -> 37.7037037 | BD21: =O21-SDFInfo!L24 -> 23.20987654 | BE21: =P21-SDFInfo!M24 -> 26.57407407 | BF21: =Q21-SDFInfo!N24 -> 28.62962963 | BG21: =R21-SDFInfo!O24 -> 29.7037037 | BH21: 41.88792647 | BI21: 35.62345679 | BJ21: 37.84567901 | BK21: 43.99382716 | BL21: 44.7037037 | BM21: 45.20987654 | BN21: 47.57407407 | BO21: 35.62962963 | BP21: 32.7037037 | BQ21: 51.218936 | BR21: 51.73430505 | BS21: 33.62348667 | BT21: 33.8457688 | BU21: 35.99391394 | BV21: 27.70444055 | BW21: 12.2305666 | BX21: 15.58362179 | BY21: 17.63557972 | BZ21: 18.7083508 | CA21: 30.37833328 | CB21: 30.89275798
A22: 75 | B22: 800x250 | C22: 0.8 | D22: 0.25 | E22: 270 | F22: 0.2 | G22: 567 | H22: 1000 | I22: 1.388888889 | J22: =IF(SD=TRUE,IF(dp-SDFInfo!Z25<1,1,dp-SDFInfo!Z25),dp) -> 150 | K22: =IF(AND($I22<=4,$J22<=200),$G246,IF(AND($I22<=4,$J22>200),$G247,IF(AND($I22>4,$J22<=200),$G249,$G250))) -> 52.92592593 | L22: =IF(AND($I22<=4,$J22<=200),$M246,IF(AND($I22<=4,$J22>200),$M247,IF(AND($I22>4,$J22<=200),$M249,$M250))) -> 50.84259259 | M22: =IF(AND($I22<=4,$J22<=200),$T246,IF(AND($I22<=4,$J22>200),$T247,IF(AND($I22>4,$J22<=200),$T249,$T250))) -> 55.4537037 | N22: =IF(AND($I22<=4,$J22<=200),$Z246,IF(AND($I22<=4,$J22>200),$Z247,IF(AND($I22>4,$J22<=200),$Z249,$Z250))) -> 54.77777778 | O22: =IF(AND($I22<=4,$J22<=200),$AG246,IF(AND($I22<=4,$J22>200),$AG247,IF(AND($I22>4,$J22<=200),$AG249,$AG250))) -> 56.82407407 | P22: =IF(AND($I22<=4,$J22<=200),$AM246,IF(AND($I22<=4,$J22>200),$AM247,IF(AND($I22>4,$J22<=200),$AM249,$AM250))) -> 59.80555556 | Q22: =IF(AND($I22<=4,$J22<=200),$AT246,IF(AND($I22<=4,$J22>200),$AT247,IF(AND($I22>4,$J22<=200),$AT249,$AT250))) -> 46.47222222 | R22: =IF(AND($I22<=4,$J22<=200),$BA246,IF(AND($I22<=4,$J22>200),$BA247,IF(AND($I22>4,$J22<=200),$BA249,$BA250))) -> 43.77777778 | S22: 63.03616013 | T22: =IF(AND($I22<=4,$J22<=200),$BG246,IF(AND($I22<=4,$J22>200),$BG247,IF(AND($I22>4,$J22<=200),$BG249,$BG250))) -> 63.56481481 | U22: =10*LOG10(10^(0.1*AZ22)+10^(0.1*SDFInfo!R25)) -> 50.92596102 | V22: =10*LOG10(10^(0.1*BA22)+10^(0.1*SDFInfo!S25)) -> 46.84268244 | W22: =10*LOG10(10^(0.1*BB22)+10^(0.1*SDFInfo!T25)) -> 47.45378176 | X22: =10*LOG10(10^(0.1*BC22)+10^(0.1*SDFInfo!U25)) -> 37.77850216 | Y22: =10*LOG10(10^(0.1*BD22)+10^(0.1*SDFInfo!V25)) -> 23.84204118 | Z22: =10*LOG10(10^(0.1*BE22)+10^(0.1*SDFInfo!W25)) -> 27.81274788 | AA22: =10*LOG10(10^(0.1*BF22)+10^(0.1*SDFInfo!X25)) -> 28.47839177 | AB22: =10*LOG10(10^(0.1*BG22)+10^(0.1*SDFInfo!Y25)) -> 29.78234632 | AC22: 41.67243255 | AD22: =10*LOG10(10^(0.1*BH22)+10^(0.1*SDFInfo!Q25)) -> 42.19987212 | AE22: 7200 | AF22: ='VRF-WAbstrOhneDS'!K22 -> 55.92592593 | AG22: ='VRF-WAbstrOhneDS'!L22 -> 51.97222222 | AH22: ='VRF-WAbstrOhneDS'!M22 -> 50.51851852 | AI22: ='VRF-WAbstrOhneDS'!N22 -> 44.27777778 | AJ22: ='VRF-WAbstrOhneDS'!O22 -> 47.69444444 | AK22: ='VRF-WAbstrOhneDS'!P22 -> 49.80555556 | AL22: ='VRF-WAbstrOhneDS'!Q22 -> 36.47222222 | AM22: ='VRF-WAbstrOhneDS'!R22 -> 36.77777778 | AN22: 53.56642062 | AO22: ='VRF-WAbstrOhneDS'!S22 -> 54.12962963 | AP22: ='VRF-WAbstrMitDS'!K22 -> 48.92592593 | AQ22: ='VRF-WAbstrMitDS'!L22 -> 44.97222222 | AR22: ='VRF-WAbstrMitDS'!M22 -> 43.51851852 | AS22: ='VRF-WAbstrMitDS'!N22 -> 35.21296296 | AT22: ='VRF-WAbstrMitDS'!O22 -> 35.25925926 | AU22: ='VRF-WAbstrMitDS'!P22 -> 35.80555556 | AV22: ='VRF-WAbstrMitDS'!Q22 -> 21.47222222 | AW22: ='VRF-WAbstrMitDS'!R22 -> 18.21296296 | AX22: 41.53966556 | AY22: ='VRF-WAbstrMitDS'!S22 -> 41.82407407 | AZ22: =K22-SDFInfo!H25 -> 50.92592593 | BA22: =L22-SDFInfo!I25 -> 46.84259259 | BB22: =M22-SDFInfo!J25 -> 47.4537037 | BC22: =N22-SDFInfo!K25 -> 37.77777778 | BD22: =O22-SDFInfo!L25 -> 23.82407407 | BE22: =P22-SDFInfo!M25 -> 27.80555556 | BF22: =Q22-SDFInfo!N25 -> 28.47222222 | BG22: =R22-SDFInfo!O25 -> 29.77777778 | BH22: 42.19961042 | BI22: 34.92592593 | BJ22: 37.84259259 | BK22: 44.4537037 | BL22: 44.77777778 | BM22: 45.82407407 | BN22: 48.80555556 | BO22: 35.47222222 | BP22: 32.77777778 | BQ22: 52.11267001 | BR22: 52.6413247 | BS22: 32.92596102 | BT22: 33.84268244 | BU22: 36.45378176 | BV22: 27.77850216 | BW22: 12.84204118 | BX22: 16.81274788 | BY22: 17.47839177 | BZ22: 18.78234632 | CA22: 30.6923439 | CB22: 31.21978347
A23: 75 | B23: 1000x250 | C23: =(MID(B23,1,4)/1000)-0 -> 1 | D23: =(MID(B23,6,3)/1000)-0 -> 0.25 | E23: 270 | F23: 0.25 | G23: 675 | H23: 1000 | I23: 1.111111111 | J23: =IF(SD=TRUE,IF(dp-SDFInfo!Z26<1,1,dp-SDFInfo!Z26),dp) -> 150 | K23: =IF(AND($I23<=4,$J23<=200),$G256,IF(AND($I23<=4,$J23>200),$G257,IF(AND($I23>4,$J23<=200),$G259,$G260))) -> 52.90740741 | L23: =IF(AND($I23<=4,$J23<=200),$M256,IF(AND($I23<=4,$J23>200),$M257,IF(AND($I23>4,$J23<=200),$M259,$M260))) -> 51.24074074 | M23: =IF(AND($I23<=4,$J23<=200),$T256,IF(AND($I23<=4,$J23>200),$T257,IF(AND($I23>4,$J23<=200),$T259,$T260))) -> 56.12962963 | N23: =IF(AND($I23<=4,$J23<=200),$Z256,IF(AND($I23<=4,$J23>200),$Z257,IF(AND($I23>4,$J23<=200),$Z259,$Z260))) -> 55.22222222 | O23: =IF(AND($I23<=4,$J23<=200),$AG256,IF(AND($I23<=4,$J23>200),$AG257,IF(AND($I23>4,$J23<=200),$AG259,$AG260))) -> 57.59259259 | P23: =IF(AND($I23<=4,$J23<=200),$AM256,IF(AND($I23<=4,$J23>200),$AM257,IF(AND($I23>4,$J23<=200),$AM259,$AM260))) -> 60.94444444 | Q23: =IF(AND($I23<=4,$J23<=200),$AT256,IF(AND($I23<=4,$J23>200),$AT257,IF(AND($I23>4,$J23<=200),$AT259,$AT260))) -> 46.77777778 | R23: =IF(AND($I23<=4,$J23<=200),$BA256,IF(AND($I23<=4,$J23>200),$BA257,IF(AND($I23>4,$J23<=200),$BA259,$BA260))) -> 44.22222222 | S23: 64.00206093 | T23: =IF(AND($I23<=4,$J23<=200),$BG256,IF(AND($I23<=4,$J23>200),$BG257,IF(AND($I23>4,$J23<=200),$BG259,$BG260))) -> 64.51851852 | U23: =10*LOG10(10^(0.1*AZ23)+10^(0.1*SDFInfo!R26)) -> 50.90744265 | V23: =10*LOG10(10^(0.1*BA23)+10^(0.1*SDFInfo!S26)) -> 47.24082272 | W23: =10*LOG10(10^(0.1*BB23)+10^(0.1*SDFInfo!T26)) -> 48.12969644 | X23: =10*LOG10(10^(0.1*BC23)+10^(0.1*SDFInfo!U26)) -> 38.22287615 | Y23: =10*LOG10(10^(0.1*BD23)+10^(0.1*SDFInfo!V26)) -> 24.60765075 | Z23: =10*LOG10(10^(0.1*BE23)+10^(0.1*SDFInfo!W26)) -> 28.94997875 | AA23: =10*LOG10(10^(0.1*BF23)+10^(0.1*SDFInfo!X26)) -> 28.78352845 | AB23: =10*LOG10(10^(0.1*BG23)+10^(0.1*SDFInfo!Y26)) -> 30.22634658 | AC23: 42.26390701 | AD23: =10*LOG10(10^(0.1*BH23)+10^(0.1*SDFInfo!Q26)) -> 42.77930486 | AE23: 9000 | AF23: ='VRF-WAbstrOhneDS'!K23 -> 55.90740741 | AG23: ='VRF-WAbstrOhneDS'!L23 -> 52.27777778 | AH23: ='VRF-WAbstrOhneDS'!M23 -> 51.14814815 | AI23: ='VRF-WAbstrOhneDS'!N23 -> 44.72222222 | AJ23: ='VRF-WAbstrOhneDS'!O23 -> 48.55555556 | AK23: ='VRF-WAbstrOhneDS'!P23 -> 50.94444444 | AL23: ='VRF-WAbstrOhneDS'!Q23 -> 36.77777778 | AM23: ='VRF-WAbstrOhneDS'!R23 -> 37.22222222 | AN23: 54.51642069 | AO23: ='VRF-WAbstrOhneDS'!S23 -> 55.03703704 | AP23: ='VRF-WAbstrMitDS'!K23 -> 48.90740741 | AQ23: ='VRF-WAbstrMitDS'!L23 -> 45.27777778 | AR23: ='VRF-WAbstrMitDS'!M23 -> 44.14814815 | AS23: ='VRF-WAbstrMitDS'!N23 -> 35.7037037 | AT23: ='VRF-WAbstrMitDS'!O23 -> 36.07407407 | AU23: ='VRF-WAbstrMitDS'!P23 -> 36.94444444 | AV23: ='VRF-WAbstrMitDS'!Q23 -> 21.77777778 | AW23: ='VRF-WAbstrMitDS'!R23 -> 18.7037037 | AX23: 42.35558987 | AY23: ='VRF-WAbstrMitDS'!S23 -> 42.59259259 | AZ23: =K23-SDFInfo!H26 -> 50.90740741 | BA23: =L23-SDFInfo!I26 -> 47.24074074 | BB23: =M23-SDFInfo!J26 -> 48.12962963 | BC23: =N23-SDFInfo!K26 -> 38.22222222 | BD23: =O23-SDFInfo!L26 -> 24.59259259 | BE23: =P23-SDFInfo!M26 -> 28.94444444 | BF23: =Q23-SDFInfo!N26 -> 28.77777778 | BG23: =R23-SDFInfo!O26 -> 30.22222222 | BH23: 42.77907584 | BI23: 34.90740741 | BJ23: 38.24074074 | BK23: 45.12962963 | BL23: 45.22222222 | BM23: 46.59259259 | BN23: 49.94444444 | BO23: 35.77777778 | BP23: 33.22222222 | BQ23: 53.07007545 | BR23: 53.58653304 | BS23: 32.90744265 | BT23: 34.24082272 | BU23: 37.12969644 | BV23: 28.22287615 | BW23: 13.60765075 | BX23: 17.94997875 | BY23: 17.78352845 | BZ23: 19.22634658 | CA23: 31.29130058 | CB23: 31.80669843
A24: 75 | B24: 300x300 | C24: =(MID(B24,1,3)/1000)-0 -> 0.3 | D24: =(MID(B24,5,3)/1000)-0 -> 0.3 | E24: 320 | F24: 0.09 | G24: 384 | H24: 1000 | I24: 3.086419753 | J24: =IF(SD=TRUE,IF(dp-SDFInfo!Z27<1,1,dp-SDFInfo!Z27),dp) -> 150 | K24: =IF(AND($I24<=4,$J24<=200),$G266,IF(AND($I24<=4,$J24>200),$G267,IF(AND($I24>4,$J24<=200),$G269,$G270))) -> 55.60699588 | L24: =IF(AND($I24<=4,$J24<=200),$M266,IF(AND($I24<=4,$J24>200),$M267,IF(AND($I24>4,$J24<=200),$M269,$M270))) -> 51.36831276 | M24: =IF(AND($I24<=4,$J24<=200),$T266,IF(AND($I24<=4,$J24>200),$T267,IF(AND($I24>4,$J24<=200),$T269,$T270))) -> 55.12962963 | N24: =IF(AND($I24<=4,$J24<=200),$Z266,IF(AND($I24<=4,$J24>200),$Z267,IF(AND($I24>4,$J24<=200),$Z269,$Z270))) -> 55.67283951 | O24: =IF(AND($I24<=4,$J24<=200),$AG266,IF(AND($I24<=4,$J24>200),$AG267,IF(AND($I24>4,$J24<=200),$AG269,$AG270))) -> 55.69547325 | P24: =IF(AND($I24<=4,$J24<=200),$AM266,IF(AND($I24<=4,$J24>200),$AM267,IF(AND($I24>4,$J24<=200),$AM269,$AM270))) -> 55.30452675 | Q24: =IF(AND($I24<=4,$J24<=200),$AT266,IF(AND($I24<=4,$J24>200),$AT267,IF(AND($I24>4,$J24<=200),$AT269,$AT270))) -> 46.52057613 | R24: =IF(AND($I24<=4,$J24<=200),$BA266,IF(AND($I24<=4,$J24>200),$BA267,IF(AND($I24>4,$J24<=200),$BA269,$BA270))) -> 43.86831276 | S24: 60.49080146 | T24: =IF(AND($I24<=4,$J24<=200),$BG266,IF(AND($I24<=4,$J24>200),$BG267,IF(AND($I24>4,$J24<=200),$BG269,$BG270))) -> 60.69547325 | U24: =10*LOG10(10^(0.1*AZ24)+10^(0.1*SDFInfo!R27)) -> 53.60701481 | V24: =10*LOG10(10^(0.1*BA24)+10^(0.1*SDFInfo!S27)) -> 47.36843509 | W24: =10*LOG10(10^(0.1*BB24)+10^(0.1*SDFInfo!T27)) -> 47.13003833 | X24: =10*LOG10(10^(0.1*BC24)+10^(0.1*SDFInfo!U27)) -> 38.67855195 | Y24: =10*LOG10(10^(0.1*BD24)+10^(0.1*SDFInfo!V27)) -> 23.04021455 | Z24: =10*LOG10(10^(0.1*BE24)+10^(0.1*SDFInfo!W27)) -> 23.42693321 | AA24: =10*LOG10(10^(0.1*BF24)+10^(0.1*SDFInfo!X27)) -> 28.53237239 | AB24: =10*LOG10(10^(0.1*BG24)+10^(0.1*SDFInfo!Y27)) -> 29.8727871 | AC24: 41.67087091 | AD24: =10*LOG10(10^(0.1*BH24)+10^(0.1*SDFInfo!Q27)) -> 41.87978632 | AE24: 3240 | AF24: ='VRF-WAbstrOhneDS'!K24 -> 57.60699588 | AG24: ='VRF-WAbstrOhneDS'!L24 -> 52.71604938 | AH24: ='VRF-WAbstrOhneDS'!M24 -> 49.281893 | AI24: ='VRF-WAbstrOhneDS'!N24 -> 45.02057613 | AJ24: ='VRF-WAbstrOhneDS'!O24 -> 46.04320988 | AK24: ='VRF-WAbstrOhneDS'!P24 -> 44.65226337 | AL24: ='VRF-WAbstrOhneDS'!Q24 -> 36.52057613 | AM24: ='VRF-WAbstrOhneDS'!R24 -> 37.21604938 | AN24: 50.83878773 | AO24: ='VRF-WAbstrOhneDS'!S24 -> 51.54320988 | AP24: ='VRF-WAbstrMitDS'!K24 -> 50.45473251 | AQ24: ='VRF-WAbstrMitDS'!L24 -> 45.36831276 | AR24: ='VRF-WAbstrMitDS'!M24 -> 42.281893 | AS24: ='VRF-WAbstrMitDS'!N24 -> 36.02057613 | AT24: ='VRF-WAbstrMitDS'!O24 -> 34.04320988 | AU24: ='VRF-WAbstrMitDS'!P24 -> 31.30452675 | AV24: ='VRF-WAbstrMitDS'!Q24 -> 21.52057613 | AW24: ='VRF-WAbstrMitDS'!R24 -> 18.71604938 | AX24: 39.96242994 | AY24: ='VRF-WAbstrMitDS'!S24 -> 40.23868313 | AZ24: =K24-SDFInfo!H27 -> 53.60699588 | BA24: =L24-SDFInfo!I27 -> 47.36831276 | BB24: =M24-SDFInfo!J27 -> 47.12962963 | BC24: =N24-SDFInfo!K27 -> 38.67283951 | BD24: =O24-SDFInfo!L27 -> 22.69547325 | BE24: =P24-SDFInfo!M27 -> 23.30452675 | BF24: =Q24-SDFInfo!N27 -> 28.52057613 | BG24: =R24-SDFInfo!O27 -> 29.86831276 | BH24: 41.86607439 | BI24: 37.60699588 | BJ24: 38.36831276 | BK24: 44.12962963 | BL24: 45.67283951 | BM24: 44.69547325 | BN24: 44.30452675 | BO24: 35.52057613 | BP24: 32.86831276 | BQ24: 49.65752167 | BR24: 49.86219347 | BS24: 35.60701481 | BT24: 34.36843509 | BU24: 36.13003833 | BV24: 28.67855195 | BW24: 12.04021455 | BX24: 12.42693321 | BY24: 17.53237239 | BZ24: 18.8727871 | CA24: 30.66476324 | CB24: 30.87367865
A25: 75 | B25: 400x300 | C25: =(MID(B25,1,3)/1000)-0 -> 0.4 | D25: =(MID(B25,5,3)/1000)-0 -> 0.3 | E25: 320 | F25: 0.12 | G25: 448 | H25: 1000 | I25: 2.314814815 | J25: =IF(SD=TRUE,IF(dp-SDFInfo!Z28<1,1,dp-SDFInfo!Z28),dp) -> 150 | K25: =IF(AND($I25<=4,$J25<=200),$G276,IF(AND($I25<=4,$J25>200),$G277,IF(AND($I25>4,$J25<=200),$G279,$G280))) -> 54.16358025 | L25: =IF(AND($I25<=4,$J25<=200),$M276,IF(AND($I25<=4,$J25>200),$M277,IF(AND($I25>4,$J25<=200),$M279,$M280))) -> 50.56790123 | M25: =IF(AND($I25<=4,$J25<=200),$T276,IF(AND($I25<=4,$J25>200),$T277,IF(AND($I25>4,$J25<=200),$T279,$T280))) -> 54.97222222 | N25: =IF(AND($I25<=4,$J25<=200),$Z276,IF(AND($I25<=4,$J25>200),$Z277,IF(AND($I25>4,$J25<=200),$Z279,$Z280))) -> 55.12962963 | O25: =IF(AND($I25<=4,$J25<=200),$AG276,IF(AND($I25<=4,$J25>200),$AG277,IF(AND($I25>4,$J25<=200),$AG279,$AG280))) -> 56.4382716 | P25: =IF(AND($I25<=4,$J25<=200),$AM276,IF(AND($I25<=4,$J25>200),$AM277,IF(AND($I25>4,$J25<=200),$AM279,$AM280))) -> 56.5617284 | Q25: =IF(AND($I25<=4,$J25<=200),$AT276,IF(AND($I25<=4,$J25>200),$AT277,IF(AND($I25>4,$J25<=200),$AT279,$AT280))) -> 45.84876543 | R25: =IF(AND($I25<=4,$J25<=200),$BA276,IF(AND($I25<=4,$J25>200),$BA277,IF(AND($I25>4,$J25<=200),$BA279,$BA280))) -> 43.06790123 | S25: 61.15452989 | T25: =IF(AND($I25<=4,$J25<=200),$BG276,IF(AND($I25<=4,$J25>200),$BG277,IF(AND($I25>4,$J25<=200),$BG279,$BG280))) -> 61.4382716 | U25: =10*LOG10(10^(0.1*AZ25)+10^(0.1*SDFInfo!R28)) -> 52.16360664 | V25: =10*LOG10(10^(0.1*BA25)+10^(0.1*SDFInfo!S28)) -> 46.56799695 | W25: =10*LOG10(10^(0.1*BB25)+10^(0.1*SDFInfo!T28)) -> 46.97230943 | X25: =10*LOG10(10^(0.1*BC25)+10^(0.1*SDFInfo!U28)) -> 38.13078239 | Y25: =10*LOG10(10^(0.1*BD25)+10^(0.1*SDFInfo!V28)) -> 23.49175944 | Z25: =10*LOG10(10^(0.1*BE25)+10^(0.1*SDFInfo!W28)) -> 24.57823891 | AA25: =10*LOG10(10^(0.1*BF25)+10^(0.1*SDFInfo!X28)) -> 27.85588661 | AB25: =10*LOG10(10^(0.1*BG25)+10^(0.1*SDFInfo!Y28)) -> 29.07328053 | AC25: 41.30089473 | AD25: =10*LOG10(10^(0.1*BH25)+10^(0.1*SDFInfo!Q28)) -> 41.58492789 | AE25: 4320 | AF25: ='VRF-WAbstrOhneDS'!K25 -> 56.16358025 | AG25: ='VRF-WAbstrOhneDS'!L25 -> 51.78703704 | AH25: ='VRF-WAbstrOhneDS'!M25 -> 49.25308642 | AI25: ='VRF-WAbstrOhneDS'!N25 -> 44.34876543 | AJ25: ='VRF-WAbstrOhneDS'!O25 -> 46.65740741 | AK25: ='VRF-WAbstrOhneDS'!P25 -> 45.7808642 | AL25: ='VRF-WAbstrOhneDS'!Q25 -> 35.84876543 | AM25: ='VRF-WAbstrOhneDS'!R25 -> 36.28703704 | AN25: 51.26143867 | AO25: ='VRF-WAbstrOhneDS'!S25 -> 52.15740741 | AP25: ='VRF-WAbstrMitDS'!K25 -> 48.88271605 | AQ25: ='VRF-WAbstrMitDS'!L25 -> 44.56790123 | AR25: ='VRF-WAbstrMitDS'!M25 -> 42.25308642 | AS25: ='VRF-WAbstrMitDS'!N25 -> 35.34876543 | AT25: ='VRF-WAbstrMitDS'!O25 -> 34.65740741 | AU25: ='VRF-WAbstrMitDS'!P25 -> 32.5617284 | AV25: ='VRF-WAbstrMitDS'!Q25 -> 20.84876543 | AW25: ='VRF-WAbstrMitDS'!R25 -> 17.78703704 | AX25: 40.14825378 | AY25: ='VRF-WAbstrMitDS'!S25 -> 40.59567901 | AZ25: =K25-SDFInfo!H28 -> 52.16358025 | BA25: =L25-SDFInfo!I28 -> 46.56790123 | BB25: =M25-SDFInfo!J28 -> 46.97222222 | BC25: =N25-SDFInfo!K28 -> 38.12962963 | BD25: =O25-SDFInfo!L28 -> 23.4382716 | BE25: =P25-SDFInfo!M28 -> 24.5617284 | BF25: =Q25-SDFInfo!N28 -> 27.84876543 | BG25: =R25-SDFInfo!O28 -> 29.06790123 | BH25: 41.58231936 | BI25: 36.16358025 | BJ25: 37.56790123 | BK25: 43.97222222 | BL25: 45.12962963 | BM25: 45.4382716 | BN25: 45.5617284 | BO25: 34.84876543 | BP25: 32.06790123 | BQ25: 50.28195902 | BR25: 50.56570073 | BS25: 34.16360664 | BT25: 33.56799695 | BU25: 35.97230943 | BV25: 28.13078239 | BW25: 12.49175944 | BX25: 13.57823891 | BY25: 16.85588661 | BZ25: 18.07328053 | CA25: 30.32618513 | CB25: 30.61021829
A26: 75 | B26: 500x300 | C26: =(MID(B26,1,3)/1000)-0 -> 0.5 | D26: =(MID(B26,5,3)/1000)-0 -> 0.3 | E26: 320 | F26: 0.15 | G26: 512 | H26: 1000 | I26: 1.851851852 | J26: =IF(SD=TRUE,IF(dp-SDFInfo!Z29<1,1,dp-SDFInfo!Z29),dp) -> 150 | K26: =IF(AND($I26<=4,$J26<=200),$G286,IF(AND($I26<=4,$J26>200),$G287,IF(AND($I26>4,$J26<=200),$G289,$G290))) -> 53.69753086 | L26: =IF(AND($I26<=4,$J26<=200),$M286,IF(AND($I26<=4,$J26>200),$M287,IF(AND($I26>4,$J26<=200),$M289,$M290))) -> 50.48765432 | M26: =IF(AND($I26<=4,$J26<=200),$T286,IF(AND($I26<=4,$J26>200),$T287,IF(AND($I26>4,$J26<=200),$T289,$T290))) -> 55.27777778 | N26: =IF(AND($I26<=4,$J26<=200),$Z286,IF(AND($I26<=4,$J26>200),$Z287,IF(AND($I26>4,$J26<=200),$Z289,$Z290))) -> 55.2037037 | O26: =IF(AND($I26<=4,$J26<=200),$AG286,IF(AND($I26<=4,$J26>200),$AG287,IF(AND($I26>4,$J26<=200),$AG289,$AG290))) -> 57.28395062 | P26: =IF(AND($I26<=4,$J26<=200),$AM286,IF(AND($I26<=4,$J26>200),$AM287,IF(AND($I26>4,$J26<=200),$AM289,$AM290))) -> 57.71604938 | Q26: =IF(AND($I26<=4,$J26<=200),$AT286,IF(AND($I26<=4,$J26>200),$AT287,IF(AND($I26>4,$J26<=200),$AT289,$AT290))) -> 45.84567901 | R26: =IF(AND($I26<=4,$J26<=200),$BA286,IF(AND($I26<=4,$J26>200),$BA287,IF(AND($I26>4,$J26<=200),$BA289,$BA290))) -> 42.98765432 | S26: 62.00427198 | T26: =IF(AND($I26<=4,$J26<=200),$BG286,IF(AND($I26<=4,$J26>200),$BG287,IF(AND($I26>4,$J26<=200),$BG289,$BG290))) -> 62.28395062 | U26: =10*LOG10(10^(0.1*AZ26)+10^(0.1*SDFInfo!R29)) -> 51.69756024 | V26: =10*LOG10(10^(0.1*BA26)+10^(0.1*SDFInfo!S29)) -> 46.48775182 | W26: =10*LOG10(10^(0.1*BB26)+10^(0.1*SDFInfo!T29)) -> 47.27785906 | X26: =10*LOG10(10^(0.1*BC26)+10^(0.1*SDFInfo!U29)) -> 38.20436043 | Y26: =10*LOG10(10^(0.1*BD26)+10^(0.1*SDFInfo!V29)) -> 24.3001158 | Z26: =10*LOG10(10^(0.1*BE26)+10^(0.1*SDFInfo!W29)) -> 25.72767986 | AA26: =10*LOG10(10^(0.1*BF26)+10^(0.1*SDFInfo!X29)) -> 27.85280525 | AB26: =10*LOG10(10^(0.1*BG26)+10^(0.1*SDFInfo!Y29)) -> 28.99313387 | AC26: 41.50277791 | AD26: =10*LOG10(10^(0.1*BH26)+10^(0.1*SDFInfo!Q29)) -> 41.78157428 | AE26: 5400 | AF26: ='VRF-WAbstrOhneDS'!K26 -> 55.69753086 | AG26: ='VRF-WAbstrOhneDS'!L26 -> 51.62962963 | AH26: ='VRF-WAbstrOhneDS'!M26 -> 49.63580247 | AI26: ='VRF-WAbstrOhneDS'!N26 -> 44.34567901 | AJ26: ='VRF-WAbstrOhneDS'!O26 -> 47.42592593 | AK26: ='VRF-WAbstrOhneDS'!P26 -> 46.85802469 | AL26: ='VRF-WAbstrOhneDS'!Q26 -> 35.84567901 | AM26: ='VRF-WAbstrOhneDS'!R26 -> 36.12962963 | AN26: 51.97070107 | AO26: ='VRF-WAbstrOhneDS'!S26 -> 52.92592593 | AP26: ='VRF-WAbstrMitDS'!K26 -> 48.33950617 | AQ26: ='VRF-WAbstrMitDS'!L26 -> 44.48765432 | AR26: ='VRF-WAbstrMitDS'!M26 -> 42.63580247 | AS26: ='VRF-WAbstrMitDS'!N26 -> 35.34567901 | AT26: ='VRF-WAbstrMitDS'!O26 -> 35.42592593 | AU26: ='VRF-WAbstrMitDS'!P26 -> 33.71604938 | AV26: ='VRF-WAbstrMitDS'!Q26 -> 20.84567901 | AW26: ='VRF-WAbstrMitDS'!R26 -> 17.62962963 | AX26: 40.72358911 | AY26: ='VRF-WAbstrMitDS'!S26 -> 41.20987654 | AZ26: =K26-SDFInfo!H29 -> 51.69753086 | BA26: =L26-SDFInfo!I29 -> 46.48765432 | BB26: =M26-SDFInfo!J29 -> 47.27777778 | BC26: =N26-SDFInfo!K29 -> 38.2037037 | BD26: =O26-SDFInfo!L29 -> 24.28395062 | BE26: =P26-SDFInfo!M29 -> 25.71604938 | BF26: =Q26-SDFInfo!N29 -> 27.84567901 | BG26: =R26-SDFInfo!O29 -> 28.98765432 | BH26: 41.78092089 | BI26: 35.69753086 | BJ26: 37.48765432 | BK26: 44.27777778 | BL26: 45.2037037 | BM26: 46.28395062 | BN26: 46.71604938 | BO26: 34.84567901 | BP26: 31.98765432 | BQ26: 51.11136955 | BR26: 51.39104818 | BS26: 33.69756024 | BT26: 33.48775182 | BU26: 36.27785906 | BV26: 28.20436043 | BW26: 13.3001158 | BX26: 14.72767986 | BY26: 16.85280525 | BZ26: 17.99313387 | CA26: 30.54322405 | CB26: 30.82202042
A27: 75 | B27: 600x300 | C27: =(MID(B27,1,3)/1000)-0 -> 0.6 | D27: =(MID(B27,5,3)/1000)-0 -> 0.3 | E27: 320 | F27: 0.18 | G27: 576 | H27: 1000 | I27: 1.543209877 | J27: =IF(SD=TRUE,IF(dp-SDFInfo!Z30<1,1,dp-SDFInfo!Z30),dp) -> 150 | K27: =IF(AND($I27<=4,$J27<=200),$G296,IF(AND($I27<=4,$J27>200),$G297,IF(AND($I27>4,$J27<=200),$G299,$G300))) -> 53.72016461 | L27: =IF(AND($I27<=4,$J27<=200),$M296,IF(AND($I27<=4,$J27>200),$M297,IF(AND($I27>4,$J27<=200),$M299,$M300))) -> 50.76748971 | M27: =IF(AND($I27<=4,$J27<=200),$T296,IF(AND($I27<=4,$J27>200),$T297,IF(AND($I27>4,$J27<=200),$T299,$T300))) -> 55.81481481 | N27: =IF(AND($I27<=4,$J27<=200),$Z296,IF(AND($I27<=4,$J27>200),$Z297,IF(AND($I27>4,$J27<=200),$Z299,$Z300))) -> 55.58641975 | O27: =IF(AND($I27<=4,$J27<=200),$AG296,IF(AND($I27<=4,$J27>200),$AG297,IF(AND($I27>4,$J27<=200),$AG299,$AG300))) -> 58.18106996 | P27: =IF(AND($I27<=4,$J27<=200),$AM296,IF(AND($I27<=4,$J27>200),$AM297,IF(AND($I27>4,$J27<=200),$AM299,$AM300))) -> 58.81893004 | Q27: =IF(AND($I27<=4,$J27<=200),$AT296,IF(AND($I27<=4,$J27>200),$AT297,IF(AND($I27>4,$J27<=200),$AT299,$AT300))) -> 46.17695473 | R27: =IF(AND($I27<=4,$J27<=200),$BA296,IF(AND($I27<=4,$J27>200),$BA297,IF(AND($I27>4,$J27<=200),$BA299,$BA300))) -> 43.26748971 | S27: 62.92312584 | T27: =IF(AND($I27<=4,$J27<=200),$BG296,IF(AND($I27<=4,$J27>200),$BG297,IF(AND($I27>4,$J27<=200),$BG299,$BG300))) -> 63.18106996 | U27: =10*LOG10(10^(0.1*AZ27)+10^(0.1*SDFInfo!R30)) -> 51.72019383 | V27: =10*LOG10(10^(0.1*BA27)+10^(0.1*SDFInfo!S30)) -> 46.76758113 | W27: =10*LOG10(10^(0.1*BB27)+10^(0.1*SDFInfo!T30)) -> 47.81488664 | X27: =10*LOG10(10^(0.1*BC27)+10^(0.1*SDFInfo!U30)) -> 38.58702108 | Y27: =10*LOG10(10^(0.1*BD27)+10^(0.1*SDFInfo!V30)) -> 25.1942228 | Z27: =10*LOG10(10^(0.1*BE27)+10^(0.1*SDFInfo!W30)) -> 26.82795489 | AA27: =10*LOG10(10^(0.1*BF27)+10^(0.1*SDFInfo!X30)) -> 28.183558 | AB27: =10*LOG10(10^(0.1*BG27)+10^(0.1*SDFInfo!Y30)) -> 29.27262753 | AC27: 41.98017053 | AD27: =10*LOG10(10^(0.1*BH27)+10^(0.1*SDFInfo!Q30)) -> 42.23699835 | AE27: 6480 | AF27: ='VRF-WAbstrOhneDS'!K27 -> 55.72016461 | AG27: ='VRF-WAbstrOhneDS'!L27 -> 51.85802469 | AH27: ='VRF-WAbstrOhneDS'!M27 -> 50.22427984 | AI27: ='VRF-WAbstrOhneDS'!N27 -> 44.67695473 | AJ27: ='VRF-WAbstrOhneDS'!O27 -> 48.27160494 | AK27: ='VRF-WAbstrOhneDS'!P27 -> 47.90946502 | AL27: ='VRF-WAbstrOhneDS'!Q27 -> 36.17695473 | AM27: ='VRF-WAbstrOhneDS'!R27 -> 36.35802469 | AN27: 52.79783307 | AO27: ='VRF-WAbstrOhneDS'!S27 -> 53.77160494 | AP27: ='VRF-WAbstrMitDS'!K27 -> 48.31069959 | AQ27: ='VRF-WAbstrMitDS'!L27 -> 44.76748971 | AR27: ='VRF-WAbstrMitDS'!M27 -> 43.22427984 | AS27: ='VRF-WAbstrMitDS'!N27 -> 35.67695473 | AT27: ='VRF-WAbstrMitDS'!O27 -> 36.27160494 | AU27: ='VRF-WAbstrMitDS'!P27 -> 34.81893004 | AV27: ='VRF-WAbstrMitDS'!Q27 -> 21.17695473 | AW27: ='VRF-WAbstrMitDS'!R27 -> 17.85802469 | AX27: 41.46635616 | AY27: ='VRF-WAbstrMitDS'!S27 -> 41.9526749 | AZ27: =K27-SDFInfo!H30 -> 51.72016461 | BA27: =L27-SDFInfo!I30 -> 46.76748971 | BB27: =M27-SDFInfo!J30 -> 47.81481481 | BC27: =N27-SDFInfo!K30 -> 38.58641975 | BD27: =O27-SDFInfo!L30 -> 25.18106996 | BE27: =P27-SDFInfo!M30 -> 26.81893004 | BF27: =Q27-SDFInfo!N30 -> 28.17695473 | BG27: =R27-SDFInfo!O30 -> 29.26748971 | BH27: 42.23673887 | BI27: 35.72016461 | BJ27: 37.76748971 | BK27: 44.81481481 | BL27: 45.58641975 | BM27: 47.18106996 | BN27: 47.81893004 | BO27: 35.17695473 | BP27: 32.26748971 | BQ27: 52.0180613 | BR27: 52.27600542 | BS27: 33.72019383 | BT27: 33.76758113 | BU27: 36.81488664 | BV27: 28.58702108 | BW27: 14.1942228 | BX27: 15.82795489 | BY27: 17.183558 | BZ27: 18.27262753 | CA27: 31.02927775 | CB27: 31.28610556
A28: 75 | B28: 800x300 | C28: =(MID(B28,1,3)/1000)-0 -> 0.8 | D28: =(MID(B28,5,3)/1000)-0 -> 0.3 | E28: 320 | F28: 0.24 | G28: 704 | H28: 1000 | I28: 1.157407407 | J28: =IF(SD=TRUE,IF(dp-SDFInfo!Z31<1,1,dp-SDFInfo!Z31),dp) -> 150 | K28: =IF(AND($I28<=4,$J28<=200),$G306,IF(AND($I28<=4,$J28>200),$G307,IF(AND($I28>4,$J28<=200),$G309,$G310))) -> 53.49845679 | L28: =IF(AND($I28<=4,$J28<=200),$M306,IF(AND($I28<=4,$J28>200),$M307,IF(AND($I28>4,$J28<=200),$M309,$M310))) -> 50.86728395 | M28: =IF(AND($I28<=4,$J28<=200),$T306,IF(AND($I28<=4,$J28>200),$T307,IF(AND($I28>4,$J28<=200),$T309,$T310))) -> 56.23611111 | N28: =IF(AND($I28<=4,$J28<=200),$Z306,IF(AND($I28<=4,$J28>200),$Z307,IF(AND($I28>4,$J28<=200),$Z309,$Z310))) -> 55.81481481 | O28: =IF(AND($I28<=4,$J28<=200),$AG306,IF(AND($I28<=4,$J28>200),$AG307,IF(AND($I28>4,$J28<=200),$AG309,$AG310))) -> 59.05246914 | P28: =IF(AND($I28<=4,$J28<=200),$AM306,IF(AND($I28<=4,$J28>200),$AM307,IF(AND($I28>4,$J28<=200),$AM309,$AM310))) -> 59.94753086 | Q28: =IF(AND($I28<=4,$J28<=200),$AT306,IF(AND($I28<=4,$J28>200),$AT307,IF(AND($I28>4,$J28<=200),$AT309,$AT310))) -> 46.34104938 | R28: =IF(AND($I28<=4,$J28<=200),$BA306,IF(AND($I28<=4,$J28>200),$BA307,IF(AND($I28>4,$J28<=200),$BA309,$BA310))) -> 43.36728395 | S28: 63.84107398 | T28: =IF(AND($I28<=4,$J28<=200),$BG306,IF(AND($I28<=4,$J28>200),$BG307,IF(AND($I28>4,$J28<=200),$BG309,$BG310))) -> 64.05246914 | U28: =10*LOG10(10^(0.1*AZ28)+10^(0.1*SDFInfo!R31)) -> 51.49848755 | V28: =10*LOG10(10^(0.1*BA28)+10^(0.1*SDFInfo!S31)) -> 46.86737329 | W28: =10*LOG10(10^(0.1*BB28)+10^(0.1*SDFInfo!T31)) -> 48.2361763 | X28: =10*LOG10(10^(0.1*BC28)+10^(0.1*SDFInfo!U31)) -> 38.81538534 | Y28: =10*LOG10(10^(0.1*BD28)+10^(0.1*SDFInfo!V31)) -> 26.06323376 | Z28: =10*LOG10(10^(0.1*BE28)+10^(0.1*SDFInfo!W31)) -> 27.95449205 | AA28: =10*LOG10(10^(0.1*BF28)+10^(0.1*SDFInfo!X31)) -> 28.34740798 | AB28: =10*LOG10(10^(0.1*BG28)+10^(0.1*SDFInfo!Y31)) -> 29.37230512 | AC28: 42.33791801 | AD28: =10*LOG10(10^(0.1*BH28)+10^(0.1*SDFInfo!Q31)) -> 42.54828771 | AE28: 8640 | AF28: ='VRF-WAbstrOhneDS'!K28 -> 55.49845679 | AG28: ='VRF-WAbstrOhneDS'!L28 -> 51.89351852 | AH28: ='VRF-WAbstrOhneDS'!M28 -> 50.70987654 | AI28: ='VRF-WAbstrOhneDS'!N28 -> 44.84104938 | AJ28: ='VRF-WAbstrOhneDS'!O28 -> 49.0787037 | AK28: ='VRF-WAbstrOhneDS'!P28 -> 48.97376543 | AL28: ='VRF-WAbstrOhneDS'!Q28 -> 36.34104938 | AM28: ='VRF-WAbstrOhneDS'!R28 -> 36.39351852 | AN28: 53.60339887 | AO28: ='VRF-WAbstrOhneDS'!S28 -> 54.5787037 | AP28: ='VRF-WAbstrMitDS'!K28 -> 48.02469136 | AQ28: ='VRF-WAbstrMitDS'!L28 -> 44.86728395 | AR28: ='VRF-WAbstrMitDS'!M28 -> 43.70987654 | AS28: ='VRF-WAbstrMitDS'!N28 -> 35.84104938 | AT28: ='VRF-WAbstrMitDS'!O28 -> 37.0787037 | AU28: ='VRF-WAbstrMitDS'!P28 -> 35.94753086 | AV28: ='VRF-WAbstrMitDS'!Q28 -> 21.34104938 | AW28: ='VRF-WAbstrMitDS'!R28 -> 17.89351852 | AX28: 42.17304838 | AY28: ='VRF-WAbstrMitDS'!S28 -> 42.63117284 | AZ28: =K28-SDFInfo!H31 -> 51.49845679 | BA28: =L28-SDFInfo!I31 -> 46.86728395 | BB28: =M28-SDFInfo!J31 -> 48.23611111 | BC28: =N28-SDFInfo!K31 -> 38.81481481 | BD28: =O28-SDFInfo!L31 -> 26.05246914 | BE28: =P28-SDFInfo!M31 -> 27.94753086 | BF28: =Q28-SDFInfo!N31 -> 28.34104938 | BG28: =R28-SDFInfo!O31 -> 29.36728395 | BH28: 42.54804618 | BI28: 35.49845679 | BJ28: 37.86728395 | BK28: 45.23611111 | BL28: 45.81481481 | BM28: 48.05246914 | BN28: 48.94753086 | BO28: 35.34104938 | BP28: 32.36728395 | BQ28: 52.92234219 | BR28: 53.13373734 | BS28: 33.49848755 | BT28: 33.86737329 | BU28: 37.2361763 | BV28: 28.81538534 | BW28: 15.06323376 | BX28: 16.95449205 | BY28: 17.34740798 | BZ28: 18.37230512 | CA28: 31.39631982 | CB28: 31.60668952
A29: 75 | B29: 1000x300 | C29: =(MID(B29,1,4)/1000)-0 -> 1 | D29: =(MID(B29,6,3)/1000)-0 -> 0.3 | E29: 320 | F29: 0.3 | G29: 832 | H29: 1000 | I29: 0.9259259259 | J29: =IF(SD=TRUE,IF(dp-SDFInfo!Z32<1,1,dp-SDFInfo!Z32),dp) -> 150 | K29: =IF(AND($I29<=4,$J29<=200),$G316,IF(AND($I29<=4,$J29>200),$G317,IF(AND($I29>4,$J29<=200),$G319,$G320))) -> 53.7654321 | L29: =IF(AND($I29<=4,$J29<=200),$M316,IF(AND($I29<=4,$J29>200),$M317,IF(AND($I29>4,$J29<=200),$M319,$M320))) -> 51.32716049 | M29: =IF(AND($I29<=4,$J29<=200),$T316,IF(AND($I29<=4,$J29>200),$T317,IF(AND($I29>4,$J29<=200),$T319,$T320))) -> 56.88888889 | N29: =IF(AND($I29<=4,$J29<=200),$Z316,IF(AND($I29<=4,$J29>200),$Z317,IF(AND($I29>4,$J29<=200),$Z319,$Z320))) -> 56.35185185 | O29: =IF(AND($I29<=4,$J29<=200),$AG316,IF(AND($I29<=4,$J29>200),$AG317,IF(AND($I29>4,$J29<=200),$AG319,$AG320))) -> 59.97530864 | P29: =IF(AND($I29<=4,$J29<=200),$AM316,IF(AND($I29<=4,$J29>200),$AM317,IF(AND($I29>4,$J29<=200),$AM319,$AM320))) -> 61.02469136 | Q29: =IF(AND($I29<=4,$J29<=200),$AT316,IF(AND($I29<=4,$J29>200),$AT317,IF(AND($I29>4,$J29<=200),$AT319,$AT320))) -> 46.83950617 | R29: =IF(AND($I29<=4,$J29<=200),$BA316,IF(AND($I29<=4,$J29>200),$BA317,IF(AND($I29>4,$J29<=200),$BA319,$BA320))) -> 43.82716049 | S29: 64.80134741 | T29: =IF(AND($I29<=4,$J29<=200),$BG316,IF(AND($I29<=4,$J29>200),$BG317,IF(AND($I29>4,$J29<=200),$BG319,$BG320))) -> 64.97530864 | U29: =10*LOG10(10^(0.1*AZ29)+10^(0.1*SDFInfo!R32)) -> 51.76546102 | V29: =10*LOG10(10^(0.1*BA29)+10^(0.1*SDFInfo!S32)) -> 47.32724086 | W29: =10*LOG10(10^(0.1*BB29)+10^(0.1*SDFInfo!T32)) -> 48.88894498 | X29: =10*LOG10(10^(0.1*BC29)+10^(0.1*SDFInfo!U32)) -> 39.35235602 | Y29: =10*LOG10(10^(0.1*BD29)+10^(0.1*SDFInfo!V32)) -> 26.98401463 | Z29: =10*LOG10(10^(0.1*BE29)+10^(0.1*SDFInfo!W32)) -> 29.03012441 | AA29: =10*LOG10(10^(0.1*BF29)+10^(0.1*SDFInfo!X32)) -> 28.84517574 | AB29: =10*LOG10(10^(0.1*BG29)+10^(0.1*SDFInfo!Y32)) -> 29.83167741 | AC29: 42.95861558 | AD29: =10*LOG10(10^(0.1*BH29)+10^(0.1*SDFInfo!Q32)) -> 43.13168976 | AE29: 10800 | AF29: ='VRF-WAbstrOhneDS'!K29 -> 55.7654321 | AG29: ='VRF-WAbstrOhneDS'!L29 -> 52.31481481 | AH29: ='VRF-WAbstrOhneDS'!M29 -> 51.40123457 | AI29: ='VRF-WAbstrOhneDS'!N29 -> 45.33950617 | AJ29: ='VRF-WAbstrOhneDS'!O29 -> 49.96296296 | AK29: ='VRF-WAbstrOhneDS'!P29 -> 50.01234568 | AL29: ='VRF-WAbstrOhneDS'!Q29 -> 36.83950617 | AM29: ='VRF-WAbstrOhneDS'!R29 -> 36.81481481 | AN29: 54.49747561 | AO29: ='VRF-WAbstrOhneDS'!S29 -> 55.46296296 | AP29: ='VRF-WAbstrMitDS'!K29 -> 48.25308642 | AQ29: ='VRF-WAbstrMitDS'!L29 -> 45.32716049 | AR29: ='VRF-WAbstrMitDS'!M29 -> 44.40123457 | AS29: ='VRF-WAbstrMitDS'!N29 -> 36.33950617 | AT29: ='VRF-WAbstrMitDS'!O29 -> 37.96296296 | AU29: ='VRF-WAbstrMitDS'!P29 -> 37.02469136 | AV29: ='VRF-WAbstrMitDS'!Q29 -> 21.83950617 | AW29: ='VRF-WAbstrMitDS'!R29 -> 18.31481481 | AX29: 43.01167566 | AY29: ='VRF-WAbstrMitDS'!S29 -> 43.4382716 | AZ29: =K29-SDFInfo!H32 -> 51.7654321 | BA29: =L29-SDFInfo!I32 -> 47.32716049 | BB29: =M29-SDFInfo!J32 -> 48.88888889 | BC29: =N29-SDFInfo!K32 -> 39.35185185 | BD29: =O29-SDFInfo!L32 -> 26.97530864 | BE29: =P29-SDFInfo!M32 -> 29.02469136 | BF29: =Q29-SDFInfo!N32 -> 28.83950617 | BG29: =R29-SDFInfo!O32 -> 29.82716049 | BH29: 43.13147859 | BI29: 35.7654321 | BJ29: 38.32716049 | BK29: 45.88888889 | BL29: 46.35185185 | BM29: 48.97530864 | BN29: 50.02469136 | BO29: 35.83950617 | BP29: 32.82716049 | BQ29: 53.87520571 | BR29: 54.04916695 | BS29: 33.76546102 | BT29: 34.32724086 | BU29: 37.88894498 | BV29: 29.35235602 | BW29: 15.98401463 | BX29: 18.03012441 | BY29: 17.84517574 | BZ29: 18.83167741 | CA29: 32.02181806 | CB29: 32.19489224
A30: 75 | B30: 1200x300 | C30: =(MID(B30,1,4)/1000)-0 -> 1.2 | D30: =(MID(B30,6,3)/1000)-0 -> 0.3 | E30: 320 | F30: 0.36 | G30: 960 | H30: 1000 | I30: 0.7716049383 | J30: =IF(SD=TRUE,IF(dp-SDFInfo!Z33<1,1,dp-SDFInfo!Z33),dp) -> 150 | K30: =IF(AND($I30<=4,$J30<=200),$G326,IF(AND($I30<=4,$J30>200),$G327,IF(AND($I30>4,$J30<=200),$G329,$G330))) -> 54.27674897 | L30: =IF(AND($I30<=4,$J30<=200),$M326,IF(AND($I30<=4,$J30>200),$M327,IF(AND($I30>4,$J30<=200),$M329,$M330))) -> 51.96707819 | M30: =IF(AND($I30<=4,$J30<=200),$T326,IF(AND($I30<=4,$J30>200),$T327,IF(AND($I30>4,$J30<=200),$T329,$T330))) -> 57.65740741 | N30: =IF(AND($I30<=4,$J30<=200),$Z326,IF(AND($I30<=4,$J30>200),$Z327,IF(AND($I30>4,$J30<=200),$Z329,$Z330))) -> 57.04320988 | O30: =IF(AND($I30<=4,$J30<=200),$AG326,IF(AND($I30<=4,$J30>200),$AG327,IF(AND($I30>4,$J30<=200),$AG329,$AG330))) -> 60.92386831 | P30: =IF(AND($I30<=4,$J30<=200),$AM326,IF(AND($I30<=4,$J30>200),$AM327,IF(AND($I30>4,$J30<=200),$AM329,$AM330))) -> 62.07613169 | Q30: =IF(AND($I30<=4,$J30<=200),$AT326,IF(AND($I30<=4,$J30>200),$AT327,IF(AND($I30>4,$J30<=200),$AT329,$AT330))) -> 47.50514403 | R30: =IF(AND($I30<=4,$J30<=200),$BA326,IF(AND($I30<=4,$J30>200),$BA327,IF(AND($I30>4,$J30<=200),$BA329,$BA330))) -> 44.46707819 | S30: 65.77854592 | T30: =IF(AND($I30<=4,$J30<=200),$BG326,IF(AND($I30<=4,$J30>200),$BG327,IF(AND($I30>4,$J30<=200),$BG329,$BG330))) -> 65.92386831 | U30: =10*LOG10(10^(0.1*AZ30)+10^(0.1*SDFInfo!R33)) -> 52.27677468 | V30: =10*LOG10(10^(0.1*BA30)+10^(0.1*SDFInfo!S33)) -> 47.96714754 | W30: =10*LOG10(10^(0.1*BB30)+10^(0.1*SDFInfo!T33)) -> 49.6574544 | X30: =10*LOG10(10^(0.1*BC30)+10^(0.1*SDFInfo!U33)) -> 40.04363985 | Y30: =10*LOG10(10^(0.1*BD30)+10^(0.1*SDFInfo!V33)) -> 27.9308675 | Z30: =10*LOG10(10^(0.1*BE30)+10^(0.1*SDFInfo!W33)) -> 30.08039707 | AA30: =10*LOG10(10^(0.1*BF30)+10^(0.1*SDFInfo!X33)) -> 29.5100084 | AB30: =10*LOG10(10^(0.1*BG30)+10^(0.1*SDFInfo!Y33)) -> 30.47097655 | AC30: 43.70837705 | AD30: =10*LOG10(10^(0.1*BH30)+10^(0.1*SDFInfo!Q33)) -> 43.85295423 | AE30: 12960 | AF30: ='VRF-WAbstrOhneDS'!K30 -> 56.27674897 | AG30: ='VRF-WAbstrOhneDS'!L30 -> 52.92901235 | AH30: ='VRF-WAbstrOhneDS'!M30 -> 52.19547325 | AI30: ='VRF-WAbstrOhneDS'!N30 -> 46.00514403 | AJ30: ='VRF-WAbstrOhneDS'!O30 -> 50.88580247 | AK30: ='VRF-WAbstrOhneDS'!P30 -> 51.03806584 | AL30: ='VRF-WAbstrOhneDS'!Q30 -> 37.50514403 | AM30: ='VRF-WAbstrOhneDS'!R30 -> 37.42901235 | AN30: 55.43105952 | AO30: ='VRF-WAbstrOhneDS'!S30 -> 56.38580247 | AP30: ='VRF-WAbstrMitDS'!K30 -> 48.73868313 | AQ30: ='VRF-WAbstrMitDS'!L30 -> 45.96707819 | AR30: ='VRF-WAbstrMitDS'!M30 -> 45.19547325 | AS30: ='VRF-WAbstrMitDS'!N30 -> 37.00514403 | AT30: ='VRF-WAbstrMitDS'!O30 -> 38.88580247 | AU30: ='VRF-WAbstrMitDS'!P30 -> 38.07613169 | AV30: ='VRF-WAbstrMitDS'!Q30 -> 22.50514403 | AW30: ='VRF-WAbstrMitDS'!R30 -> 18.92901235 | AX30: 43.91001074 | AY30: ='VRF-WAbstrMitDS'!S30 -> 44.30967078 | AZ30: =K30-SDFInfo!H33 -> 52.27674897 | BA30: =L30-SDFInfo!I33 -> 47.96707819 | BB30: =M30-SDFInfo!J33 -> 49.65740741 | BC30: =N30-SDFInfo!K33 -> 40.04320988 | BD30: =O30-SDFInfo!L33 -> 27.92386831 | BE30: =P30-SDFInfo!M33 -> 30.07613169 | BF30: =Q30-SDFInfo!N33 -> 29.50514403 | BG30: =R30-SDFInfo!O33 -> 30.46707819 | BH30: 43.85277538 | BI30: 36.27674897 | BJ30: 38.96707819 | BK30: 46.65740741 | BL30: 47.04320988 | BM30: 49.92386831 | BN30: 51.07613169 | BO30: 36.50514403 | BP30: 33.46707819 | BQ30: 54.84778063 | BR30: 54.99310303 | BS30: 34.27677468 | BT30: 34.96714754 | BU30: 38.6574544 | BV30: 30.04363985 | BW30: 16.9308675 | BX30: 19.08039707 | BY30: 18.5100084 | BZ30: 19.47097655 | CA30: 32.77447048 | CB30: 32.91904766
A31: 75 | B31: 400x400 | C31: =(MID(B31,1,3)/1000)-0 -> 0.4 | D31: =(MID(B31,5,3)/1000)-0 -> 0.4 | E31: 420 | F31: 0.16 | G31: 672 | H31: 1000 | I31: 1.736111111 | J31: =IF(SD=TRUE,IF(dp-SDFInfo!Z34<1,1,dp-SDFInfo!Z34),dp) -> 150 | K31: =IF(AND($I31<=4,$J31<=200),$G336,IF(AND($I31<=4,$J31>200),$G337,IF(AND($I31>4,$J31<=200),$G339,$G340))) -> 53.34027778 | L31: =IF(AND($I31<=4,$J31<=200),$M336,IF(AND($I31<=4,$J31>200),$M337,IF(AND($I31>4,$J31<=200),$M339,$M340))) -> 51.34027778 | M31: =IF(AND($I31<=4,$J31<=200),$T336,IF(AND($I31<=4,$J31>200),$T337,IF(AND($I31>4,$J31<=200),$T339,$T340))) -> 55.21759259 | N31: =IF(AND($I31<=4,$J31<=200),$Z336,IF(AND($I31<=4,$J31>200),$Z337,IF(AND($I31>4,$J31<=200),$Z339,$Z340))) -> 56.34027778 | O31: =IF(AND($I31<=4,$J31<=200),$AG336,IF(AND($I31<=4,$J31>200),$AG337,IF(AND($I31>4,$J31<=200),$AG339,$AG340))) -> 59.87731481 | P31: =IF(AND($I31<=4,$J31<=200),$AM336,IF(AND($I31<=4,$J31>200),$AM337,IF(AND($I31>4,$J31<=200),$AM339,$AM340))) -> 56 | Q31: =IF(AND($I31<=4,$J31<=200),$AT336,IF(AND($I31<=4,$J31>200),$AT337,IF(AND($I31>4,$J31<=200),$AT339,$AT340))) -> 45.10416667 | R31: =IF(AND($I31<=4,$J31<=200),$BA336,IF(AND($I31<=4,$J31>200),$BA337,IF(AND($I31>4,$J31<=200),$BA339,$BA340))) -> 42.9537037 | S31: 62.57410917 | T31: =IF(AND($I31<=4,$J31<=200),$BG336,IF(AND($I31<=4,$J31>200),$BG337,IF(AND($I31>4,$J31<=200),$BG339,$BG340))) -> 62.99074074 | U31: =10*LOG10(10^(0.1*AZ31)+10^(0.1*SDFInfo!R34)) -> 51.34030968 | V31: =10*LOG10(10^(0.1*BA31)+10^(0.1*SDFInfo!S34)) -> 47.3403579 | W31: =10*LOG10(10^(0.1*BB31)+10^(0.1*SDFInfo!T34)) -> 47.21767501 | X31: =10*LOG10(10^(0.1*BC31)+10^(0.1*SDFInfo!U34)) -> 39.34078329 | Y31: =10*LOG10(10^(0.1*BD31)+10^(0.1*SDFInfo!V34)) -> 26.88621927 | Z31: =10*LOG10(10^(0.1*BE31)+10^(0.1*SDFInfo!W34)) -> 24.01725525 | AA31: =10*LOG10(10^(0.1*BF31)+10^(0.1*SDFInfo!X34)) -> 27.11261838 | AB31: =10*LOG10(10^(0.1*BG31)+10^(0.1*SDFInfo!Y34)) -> 28.95922623 | AC31: 41.7961956 | AD31: =10*LOG10(10^(0.1*BH31)+10^(0.1*SDFInfo!Q34)) -> 42.21179361 | AE31: 5760 | AF31: ='VRF-WAbstrOhneDS'!K31 -> 53.34027778 | AG31: ='VRF-WAbstrOhneDS'!L31 -> 50.96296296 | AH31: ='VRF-WAbstrOhneDS'!M31 -> 49.21759259 | AI31: ='VRF-WAbstrOhneDS'!N31 -> 45.34027778 | AJ31: ='VRF-WAbstrOhneDS'!O31 -> 50.37731481 | AK31: ='VRF-WAbstrOhneDS'!P31 -> 46 | AL31: ='VRF-WAbstrOhneDS'!Q31 -> 35.10416667 | AM31: ='VRF-WAbstrOhneDS'!R31 -> 35.9537037 | AN31: 53.0140247 | AO31: ='VRF-WAbstrOhneDS'!S31 -> 53.49074074 | AP31: ='VRF-WAbstrMitDS'!K31 -> 46.21759259 | AQ31: ='VRF-WAbstrMitDS'!L31 -> 43.96296296 | AR31: ='VRF-WAbstrMitDS'!M31 -> 42.21759259 | AS31: ='VRF-WAbstrMitDS'!N31 -> 36.34027778 | AT31: ='VRF-WAbstrMitDS'!O31 -> 38 | AU31: ='VRF-WAbstrMitDS'!P31 -> 32.12268519 | AV31: ='VRF-WAbstrMitDS'!Q31 -> 19.72685185 | AW31: ='VRF-WAbstrMitDS'!R31 -> 17.07638889 | AX31: 41.36379294 | AY31: ='VRF-WAbstrMitDS'!S31 -> 41.73611111 | AZ31: =K31-SDFInfo!H34 -> 51.34027778 | BA31: =L31-SDFInfo!I34 -> 47.34027778 | BB31: =M31-SDFInfo!J34 -> 47.21759259 | BC31: =N31-SDFInfo!K34 -> 39.34027778 | BD31: =O31-SDFInfo!L34 -> 26.87731481 | BE31: =P31-SDFInfo!M34 -> 24 | BF31: =Q31-SDFInfo!N34 -> 27.10416667 | BG31: =R31-SDFInfo!O34 -> 28.9537037 | BH31: 42.21139185 | BI31: 35.34027778 | BJ31: 38.34027778 | BK31: 44.21759259 | BL31: 46.34027778 | BM31: 48.87731481 | BN31: 45 | BO31: 34.10416667 | BP31: 31.9537037 | BQ31: 51.6965195 | BR31: 52.11315107 | BS31: 33.34030968 | BT31: 34.3403579 | BU31: 36.21767501 | BV31: 29.34078329 | BW31: 15.88621927 | BX31: 13.01725525 | BY31: 16.11261838 | BZ31: 17.95922623 | CA31: 30.88496621 | CB31: 31.30056422
A32: 75 | B32: 500x400 | C32: =(MID(B32,1,3)/1000)-0 -> 0.5 | D32: =(MID(B32,5,3)/1000)-0 -> 0.4 | E32: 420 | F32: 0.2 | G32: 756 | H32: 1000 | I32: 1.388888889 | J32: =IF(SD=TRUE,IF(dp-SDFInfo!Z35<1,1,dp-SDFInfo!Z35),dp) -> 150 | K32: =IF(AND($I32<=4,$J32<=200),$G346,IF(AND($I32<=4,$J32>200),$G347,IF(AND($I32>4,$J32<=200),$G349,$G350))) -> 53.47222222 | L32: =IF(AND($I32<=4,$J32<=200),$M346,IF(AND($I32<=4,$J32>200),$M347,IF(AND($I32>4,$J32<=200),$M349,$M350))) -> 51.47222222 | M32: =IF(AND($I32<=4,$J32<=200),$T346,IF(AND($I32<=4,$J32>200),$T347,IF(AND($I32>4,$J32<=200),$T349,$T350))) -> 55.40740741 | N32: =IF(AND($I32<=4,$J32<=200),$Z346,IF(AND($I32<=4,$J32>200),$Z347,IF(AND($I32>4,$J32<=200),$Z349,$Z350))) -> 56.47222222 | O32: =IF(AND($I32<=4,$J32<=200),$AG346,IF(AND($I32<=4,$J32>200),$AG347,IF(AND($I32>4,$J32<=200),$AG349,$AG350))) -> 60.93518519 | P32: =IF(AND($I32<=4,$J32<=200),$AM346,IF(AND($I32<=4,$J32>200),$AM347,IF(AND($I32>4,$J32<=200),$AM349,$AM350))) -> 57 | Q32: =IF(AND($I32<=4,$J32<=200),$AT346,IF(AND($I32<=4,$J32>200),$AT347,IF(AND($I32>4,$J32<=200),$AT349,$AT350))) -> 45.58333333 | R32: =IF(AND($I32<=4,$J32<=200),$BA346,IF(AND($I32<=4,$J32>200),$BA347,IF(AND($I32>4,$J32<=200),$BA349,$BA350))) -> 42.7962963 | S32: 63.47454699 | T32: =IF(AND($I32<=4,$J32<=200),$BG346,IF(AND($I32<=4,$J32>200),$BG347,IF(AND($I32>4,$J32<=200),$BG349,$BG350))) -> 63.75925926 | U32: =10*LOG10(10^(0.1*AZ32)+10^(0.1*SDFInfo!R35)) -> 51.47225317 | V32: =10*LOG10(10^(0.1*BA32)+10^(0.1*SDFInfo!S35)) -> 47.47229995 | W32: =10*LOG10(10^(0.1*BB32)+10^(0.1*SDFInfo!T35)) -> 47.4074863 | X32: =10*LOG10(10^(0.1*BC32)+10^(0.1*SDFInfo!U35)) -> 39.47271261 | Y32: =10*LOG10(10^(0.1*BD32)+10^(0.1*SDFInfo!V35)) -> 27.94216617 | Z32: =10*LOG10(10^(0.1*BE32)+10^(0.1*SDFInfo!W35)) -> 25.01371193 | AA32: =10*LOG10(10^(0.1*BF32)+10^(0.1*SDFInfo!X35)) -> 27.59090292 | AB32: =10*LOG10(10^(0.1*BG32)+10^(0.1*SDFInfo!Y35)) -> 28.80202252 | AC32: 42.01371733 | AD32: =10*LOG10(10^(0.1*BH32)+10^(0.1*SDFInfo!Q35)) -> 42.2973203 | AE32: 7200 | AF32: ='VRF-WAbstrOhneDS'!K32 -> 53.47222222 | AG32: ='VRF-WAbstrOhneDS'!L32 -> 51.03703704 | AH32: ='VRF-WAbstrOhneDS'!M32 -> 49.40740741 | AI32: ='VRF-WAbstrOhneDS'!N32 -> 45.47222222 | AJ32: ='VRF-WAbstrOhneDS'!O32 -> 51.43518519 | AK32: ='VRF-WAbstrOhneDS'!P32 -> 47 | AL32: ='VRF-WAbstrOhneDS'!Q32 -> 35.58333333 | AM32: ='VRF-WAbstrOhneDS'!R32 -> 35.7962963 | AN32: 53.89698303 | AO32: ='VRF-WAbstrOhneDS'!S32 -> 54.25925926 | AP32: ='VRF-WAbstrMitDS'!K32 -> 46.40740741 | AQ32: ='VRF-WAbstrMitDS'!L32 -> 44.03703704 | AR32: ='VRF-WAbstrMitDS'!M32 -> 42.40740741 | AS32: ='VRF-WAbstrMitDS'!N32 -> 36.47222222 | AT32: ='VRF-WAbstrMitDS'!O32 -> 39 | AU32: ='VRF-WAbstrMitDS'!P32 -> 33.06481481 | AV32: ='VRF-WAbstrMitDS'!Q32 -> 20.14814815 | AW32: ='VRF-WAbstrMitDS'!R32 -> 16.86111111 | AX32: 42.05070778 | AY32: ='VRF-WAbstrMitDS'!S32 -> 42.38888889 | AZ32: =K32-SDFInfo!H35 -> 51.47222222 | BA32: =L32-SDFInfo!I35 -> 47.47222222 | BB32: =M32-SDFInfo!J35 -> 47.40740741 | BC32: =N32-SDFInfo!K35 -> 39.47222222 | BD32: =O32-SDFInfo!L35 -> 27.93518519 | BE32: =P32-SDFInfo!M35 -> 25 | BF32: =Q32-SDFInfo!N35 -> 27.58333333 | BG32: =R32-SDFInfo!O35 -> 28.7962963 | BH32: 42.29706441 | BI32: 35.47222222 | BJ32: 38.47222222 | BK32: 44.40740741 | BL32: 46.47222222 | BM32: 49.93518519 | BN32: 46 | BO32: 34.58333333 | BP32: 31.7962963 | BQ32: 52.57733772 | BR32: 52.86204999 | BS32: 33.47225317 | BT32: 34.47229995 | BU32: 36.4074863 | BV32: 29.47271261 | BW32: 16.94216617 | BX32: 14.01371193 | BY32: 16.59090292 | BZ32: 17.80202252 | CA32: 31.10077216 | CB32: 31.38437514
A33: 75 | B33: 600x400 | C33: =(MID(B33,1,3)/1000)-0 -> 0.6 | D33: =(MID(B33,5,3)/1000)-0 -> 0.4 | E33: 420 | F33: 0.24 | G33: 840 | H33: 1000 | I33: 1.157407407 | J33: =IF(SD=TRUE,IF(dp-SDFInfo!Z36<1,1,dp-SDFInfo!Z36),dp) -> 150 | K33: =IF(AND($I33<=4,$J33<=200),$G356,IF(AND($I33<=4,$J33>200),$G357,IF(AND($I33>4,$J33<=200),$G359,$G360))) -> 53.89351852 | L33: =IF(AND($I33<=4,$J33<=200),$M356,IF(AND($I33<=4,$J33>200),$M357,IF(AND($I33>4,$J33<=200),$M359,$M360))) -> 51.89351852 | M33: =IF(AND($I33<=4,$J33<=200),$T356,IF(AND($I33<=4,$J33>200),$T357,IF(AND($I33>4,$J33<=200),$T359,$T360))) -> 55.86728395 | N33: =IF(AND($I33<=4,$J33<=200),$Z356,IF(AND($I33<=4,$J33>200),$Z357,IF(AND($I33>4,$J33<=200),$Z359,$Z360))) -> 56.89351852 | O33: =IF(AND($I33<=4,$J33<=200),$AG356,IF(AND($I33<=4,$J33>200),$AG357,IF(AND($I33>4,$J33<=200),$AG359,$AG360))) -> 61.97376543 | P33: =IF(AND($I33<=4,$J33<=200),$AM356,IF(AND($I33<=4,$J33>200),$AM357,IF(AND($I33>4,$J33<=200),$AM359,$AM360))) -> 58 | Q33: =IF(AND($I33<=4,$J33<=200),$AT356,IF(AND($I33<=4,$J33>200),$AT357,IF(AND($I33>4,$J33<=200),$AT359,$AT360))) -> 46.23611111 | R33: =IF(AND($I33<=4,$J33<=200),$BA356,IF(AND($I33<=4,$J33>200),$BA357,IF(AND($I33>4,$J33<=200),$BA359,$BA360))) -> 43.02469136 | S33: 64.42066434 | T33: =IF(AND($I33<=4,$J33<=200),$BG356,IF(AND($I33<=4,$J33>200),$BG357,IF(AND($I33>4,$J33<=200),$BG359,$BG360))) -> 64.60493827 | U33: =10*LOG10(10^(0.1*AZ33)+10^(0.1*SDFInfo!R36)) -> 51.8935466 | V33: =10*LOG10(10^(0.1*BA33)+10^(0.1*SDFInfo!S36)) -> 47.89358906 | W33: =10*LOG10(10^(0.1*BB33)+10^(0.1*SDFInfo!T36)) -> 47.86735492 | X33: =10*LOG10(10^(0.1*BC33)+10^(0.1*SDFInfo!U36)) -> 39.89396357 | Y33: =10*LOG10(10^(0.1*BD33)+10^(0.1*SDFInfo!V36)) -> 28.97926252 | Z33: =10*LOG10(10^(0.1*BE33)+10^(0.1*SDFInfo!W36)) -> 26.01089531 | AA33: =10*LOG10(10^(0.1*BF33)+10^(0.1*SDFInfo!X36)) -> 28.24262511 | AB33: =10*LOG10(10^(0.1*BG33)+10^(0.1*SDFInfo!Y36)) -> 29.03012441 | AC33: 42.4989104 | AD33: =10*LOG10(10^(0.1*BH33)+10^(0.1*SDFInfo!Q36)) -> 42.68219766 | AE33: 8640 | AF33: ='VRF-WAbstrOhneDS'!K33 -> 53.89351852 | AG33: ='VRF-WAbstrOhneDS'!L33 -> 51.41975309 | AH33: ='VRF-WAbstrOhneDS'!M33 -> 49.86728395 | AI33: ='VRF-WAbstrOhneDS'!N33 -> 45.89351852 | AJ33: ='VRF-WAbstrOhneDS'!O33 -> 52.47376543 | AK33: ='VRF-WAbstrOhneDS'!P33 -> 48 | AL33: ='VRF-WAbstrOhneDS'!Q33 -> 36.23611111 | AM33: ='VRF-WAbstrOhneDS'!R33 -> 36.02469136 | AN33: 54.8331123 | AO33: ='VRF-WAbstrOhneDS'!S33 -> 55.10493827 | AP33: ='VRF-WAbstrMitDS'!K33 -> 46.86728395 | AQ33: ='VRF-WAbstrMitDS'!L33 -> 44.41975309 | AR33: ='VRF-WAbstrMitDS'!M33 -> 42.86728395 | AS33: ='VRF-WAbstrMitDS'!N33 -> 36.89351852 | AT33: ='VRF-WAbstrMitDS'!O33 -> 40 | AU33: ='VRF-WAbstrMitDS'!P33 -> 34.02623457 | AV33: ='VRF-WAbstrMitDS'!Q33 -> 20.76234568 | AW33: ='VRF-WAbstrMitDS'!R33 -> 17.05092593 | AX33: 42.8620104 | AY33: ='VRF-WAbstrMitDS'!S33 -> 43.15740741 | AZ33: =K33-SDFInfo!H36 -> 51.89351852 | BA33: =L33-SDFInfo!I36 -> 47.89351852 | BB33: =M33-SDFInfo!J36 -> 47.86728395 | BC33: =N33-SDFInfo!K36 -> 39.89351852 | BD33: =O33-SDFInfo!L36 -> 28.97376543 | BE33: =P33-SDFInfo!M36 -> 26 | BF33: =Q33-SDFInfo!N36 -> 28.23611111 | BG33: =R33-SDFInfo!O36 -> 29.02469136 | BH33: 42.68196347 | BI33: 35.89351852 | BJ33: 38.89351852 | BK33: 44.86728395 | BL33: 46.89351852 | BM33: 50.97376543 | BN33: 47 | BO33: 35.23611111 | BP33: 32.02469136 | BQ33: 53.51187654 | BR33: 53.69615047 | BS33: 33.8935466 | BT33: 34.89358906 | BU33: 36.86735492 | BV33: 29.89396357 | BW33: 17.97926252 | BX33: 15.01089531 | BY33: 17.24262511 | BZ33: 18.03012441 | CA33: 31.58470351 | CB33: 31.76799077
A34: 75 | B34: 800x400 | C34: =(MID(B34,1,3)/1000)-0 -> 0.8 | D34: =(MID(B34,5,3)/1000)-0 -> 0.4 | E34: 420 | F34: 0.32 | G34: 1008 | H34: 1000 | I34: 0.8680555556 | J34: =IF(SD=TRUE,IF(dp-SDFInfo!Z37<1,1,dp-SDFInfo!Z37),dp) -> 150 | K34: =IF(AND($I34<=4,$J34<=200),$G366,IF(AND($I34<=4,$J34>200),$G367,IF(AND($I34>4,$J34<=200),$G369,$G370))) -> 54.17013889 | L34: =IF(AND($I34<=4,$J34<=200),$M366,IF(AND($I34<=4,$J34>200),$M367,IF(AND($I34>4,$J34<=200),$M369,$M370))) -> 52.17013889 | M34: =IF(AND($I34<=4,$J34<=200),$T366,IF(AND($I34<=4,$J34>200),$T367,IF(AND($I34>4,$J34<=200),$T369,$T370))) -> 56.19212963 | N34: =IF(AND($I34<=4,$J34<=200),$Z366,IF(AND($I34<=4,$J34>200),$Z367,IF(AND($I34>4,$J34<=200),$Z369,$Z370))) -> 57.17013889 | O34: =IF(AND($I34<=4,$J34<=200),$AG366,IF(AND($I34<=4,$J34>200),$AG367,IF(AND($I34>4,$J34<=200),$AG369,$AG370))) -> 63.02199074 | P34: =IF(AND($I34<=4,$J34<=200),$AM366,IF(AND($I34<=4,$J34>200),$AM367,IF(AND($I34>4,$J34<=200),$AM369,$AM370))) -> 59 | Q34: =IF(AND($I34<=4,$J34<=200),$AT366,IF(AND($I34<=4,$J34>200),$AT367,IF(AND($I34>4,$J34<=200),$AT369,$AT370))) -> 46.80208333 | R34: =IF(AND($I34<=4,$J34<=200),$BA366,IF(AND($I34<=4,$J34>200),$BA367,IF(AND($I34>4,$J34<=200),$BA369,$BA370))) -> 43.06018519 | S34: 65.36569622 | T34: =IF(AND($I34<=4,$J34<=200),$BG366,IF(AND($I34<=4,$J34>200),$BG367,IF(AND($I34>4,$J34<=200),$BG369,$BG370))) -> 65.41203704 | U34: =10*LOG10(10^(0.1*AZ34)+10^(0.1*SDFInfo!R37)) -> 52.17016524 | V34: =10*LOG10(10^(0.1*BA34)+10^(0.1*SDFInfo!S37)) -> 48.17020508 | W34: =10*LOG10(10^(0.1*BB34)+10^(0.1*SDFInfo!T37)) -> 48.19219548 | X34: =10*LOG10(10^(0.1*BC34)+10^(0.1*SDFInfo!U37)) -> 40.17055648 | Y34: =10*LOG10(10^(0.1*BD34)+10^(0.1*SDFInfo!V37)) -> 30.0263096 | Z34: =10*LOG10(10^(0.1*BE34)+10^(0.1*SDFInfo!W37)) -> 27.00865668 | AA34: =10*LOG10(10^(0.1*BF34)+10^(0.1*SDFInfo!X37)) -> 28.80780194 | AB34: =10*LOG10(10^(0.1*BG34)+10^(0.1*SDFInfo!Y37)) -> 29.06557404 | AC34: 42.86425462 | AD34: =10*LOG10(10^(0.1*BH34)+10^(0.1*SDFInfo!Q37)) -> 42.90969533 | AE34: 11520 | AF34: ='VRF-WAbstrOhneDS'!K34 -> 54.17013889 | AG34: ='VRF-WAbstrOhneDS'!L34 -> 51.64814815 | AH34: ='VRF-WAbstrOhneDS'!M34 -> 50.19212963 | AI34: ='VRF-WAbstrOhneDS'!N34 -> 46.17013889 | AJ34: ='VRF-WAbstrOhneDS'!O34 -> 53.52199074 | AK34: ='VRF-WAbstrOhneDS'!P34 -> 49 | AL34: ='VRF-WAbstrOhneDS'!Q34 -> 36.80208333 | AM34: ='VRF-WAbstrOhneDS'!R34 -> 36.06018519 | AN34: 55.76734908 | AO34: ='VRF-WAbstrOhneDS'!S34 -> 55.91203704 | AP34: ='VRF-WAbstrMitDS'!K34 -> 47.19212963 | AQ34: ='VRF-WAbstrMitDS'!L34 -> 44.64814815 | AR34: ='VRF-WAbstrMitDS'!M34 -> 43.19212963 | AS34: ='VRF-WAbstrMitDS'!N34 -> 37.17013889 | AT34: ='VRF-WAbstrMitDS'!O34 -> 41 | AU34: ='VRF-WAbstrMitDS'!P34 -> 34.97800926 | AV34: ='VRF-WAbstrMitDS'!Q34 -> 21.28009259 | AW34: ='VRF-WAbstrMitDS'!R34 -> 17.03819444 | AX34: 43.6474185 | AY34: ='VRF-WAbstrMitDS'!S34 -> 43.86805556 | AZ34: =K34-SDFInfo!H37 -> 52.17013889 | BA34: =L34-SDFInfo!I37 -> 48.17013889 | BB34: =M34-SDFInfo!J37 -> 48.19212963 | BC34: =N34-SDFInfo!K37 -> 40.17013889 | BD34: =O34-SDFInfo!L37 -> 30.02199074 | BE34: =P34-SDFInfo!M37 -> 27 | BF34: =Q34-SDFInfo!N37 -> 28.80208333 | BG34: =R34-SDFInfo!O37 -> 29.06018519 | BH34: 42.90947309 | BI34: 36.17013889 | BJ34: 39.17013889 | BK34: 45.19212963 | BL34: 47.17013889 | BM34: 52.02199074 | BN34: 48 | BO34: 35.80208333 | BP34: 32.06018519 | BQ34: 54.44401368 | BR34: 54.4903545 | BS34: 34.17016524 | BT34: 35.17020508 | BU34: 37.19219548 | BV34: 30.17055648 | BW34: 19.0263096 | BX34: 16.00865668 | BY34: 17.80780194 | BZ34: 18.06557404 | CA34: 31.94832786 | CB34: 31.99376856
